{"text_format":"1","workbook":"xlsx","n_sheets":9,"sheets":["Introduction","Translation","Tools selection","Agriculture","Forestry","Labour","Economics & Finance","Energy & Industry","Crops"],"not_rendered":{"charts":0,"images":4,"macros":1,"external_links":1,"defined_names":1005,"comments":0,"pivot_tables":0},"unopened":[],"bounds":{"document_bytes":16777216,"sheet_cells":100000,"rows_first":2000,"rows_last":500,"rows_between":2000,"halvings":0,"cell_chars":16384,"cell_head_chars":4096},"cells_cut":0,"cells_raw":0,"read":"whole","date_system":"1900"}

{"sheet":"Introduction","index":0,"n_rows":10,"n_cols":5,"rows_kept":10,"cut":false,"hidden":false,"merged":[[6,4,8,10],[9,2,29,11]]}
[]
[]
[]
[null,null,{"$f":"title2&\" \"&title3","v":"BEFS Rapid Appraisal Data Collection"}]
[]
[null,null,"English"]
[null,null,null,null,{"$f":"title4","v":"Introduction to the Data Collection Sheet"}]
[]
[]
[null,null,{"$f":"title5","v":"This part includes information on how to prepare and carry out the data collection for the BEFS Rapid Appraisal. The data to be collected is mainly quantitative. However, qualitative information is required when running the BEFS Rapid Appraisal tools. \n\nBefore starting the data collection, it is important to fully understand for which purpose the data/information is needed and which level of accuracy is required. Therefore, it is recommended to get familiarized thoroughly with the BEFS Rapid Appraisal by reading the relevant user manuals provided for each tool. These manuals provide guidance on how to use the tools and indude specific sections on data requirements and possible data sources. \n\nTo conduct a successful data collection experts with different backgrounds and disciplines should be involved. In order to make the data collection process as intuitive as possible, the data needed are listed in the following Excel datasheets and divided into five areas of work, namely Agriculture, Forestry, Labour, Economics and Finance, Energy and Industry. \n\nThese Excel datasheets ensure that the data requirements of the BEFS RA are fully matched. Each datasheet is structured in sections each indicating the BEFS RAtool within which the data is used. For each dataset instructions and explanatory notes are provided. \n\nFor a number of parameters there are also default values incorporated in the tools to support the analyses. These default values can be used in case country specific data are not available. "}]

{"sheet":"Translation","index":1,"n_rows":934,"n_cols":7,"rows_kept":934,"cut":false,"hidden":true,"merged":[]}
[]
[null,"Selection",{"$f":"VLOOKUP(Introduction!C6,$A$3:$C$5,3,FALSE)","v":1}]
["English","English",1]
["French","French",2]
["Spanish","Spanish",3]
[]
["ID","English","French","Spanish","Typeof","Ref","Name"]
[1,1,2,3]
[2,"BEFS Rapid Appraisal","BEFS Évaluation Rapide","Évaluación Rápida BEFS","title",{"$f":"HLOOKUP($C$2,$B$8:$D9,$A9,FALSE)","v":"BEFS Rapid Appraisal"},{"$f":"$E9&$A9","v":"title2"}]
[3,"Data Collection","Collecte des Données","Recoleción de Datos","title",{"$f":"HLOOKUP($C$2,$B$8:$D10,$A10,FALSE)","v":"Data Collection"},{"$f":"$E10&$A10","v":"title3"}]
[4,"Introduction to the Data Collection Sheet","Introduction à la collecte de données \npour l'évaluation rapide BEFS","Introducción a la Recolección de Datos \npara la Evaluación Rápida","title",{"$f":"HLOOKUP($C$2,$B$8:$D11,$A11,FALSE)","v":"Introduction to the Data Collection Sheet"},{"$f":"$E11&$A11","v":"title4"}]
[5,"This part includes information on how to prepare and carry out the data collection for the BEFS Rapid Appraisal. The data to be collected is mainly quantitative. However, qualitative information is required when running the BEFS Rapid Appraisal tools. \n\nBefore starting the data collection, it is important to fully understand for which purpose the data/information is needed and which level of accuracy is required. Therefore, it is recommended to get familiarized thoroughly with the BEFS Rapid Appraisal by reading the relevant user manuals provided for each tool. These manuals provide guidance on how to use the tools and indude specific sections on data requirements and possible data sources. \n\nTo conduct a successful data collection experts with different backgrounds and disciplines should be involved. In order to make the data collection process as intuitive as possible, the data needed are listed in the following Excel datasheets and divided into five areas of work, namely Agriculture, Forestry, Labour, Economics and Finance, Energy and Industry. \n\nThese Excel datasheets ensure that the data requirements of the BEFS RA are fully matched. Each datasheet is structured in sections each indicating the BEFS RAtool within which the data is used. For each dataset instructions and explanatory notes are provided. \n\nFor a number of parameters there are also default values incorporated in the tools to support the analyses. These default values can be used in case country specific data are not available. ","Cette section contient des informations sur la façon de préparer et d'effectuer la collecte de données pour l'évaluation rapide BEFS Les données à collecter sont  essentiellement quantitatives. Cependant, les informations qualitatives sont nécessaires lors du lancement des outils de l'évaluatim rapide BEFS. \n\nAvait de commencer la collecte de données, il est important de bien comprendre le but et le niveau de précision requis pour les données et informations nécessaires. Par conséquent, il est recommandé de se familiariser avec l'évaluaton rapide BEFS en lisant les manuels correspondants à chaque outil. Ces manuels fournissent des indication sur comment utiliser les outils et comprennent des sedims spécifiques sur les exigences et les sources de données.  \n\nPour mener avec succès la collecte de données, des experts de différents milieux et disciplines devraient être impliqués. Afin de rendre le processus de collecte de données la plus intuitive possible, les données nécessaires sont répertoriés dans les fiches Excel suivantes et répartis en cinq domaines d'activité, à savoir l'agriculture, de la foresterie, du travail, de l'économie et des finances, de l'énergie et de l'industrie. \n\nCes fiches Excel veiller à ce que les exigences relatives aux données de la BEFS RA sont appariés. Chaque fiche est structuré en sections chacune indiquant la RAtool BEFS dans lequel les données sont utilisées. Pour chacune des instructions de jeux de données et les notes explicatives sont fournis.","Esta parte incluye información sobre cómo preparar y llevar a cabo la recolección de datos para la Evaluación Rápida BEFS. Los datos recopilados son principalmente cuantitativos. Sin embargo, se requiere información cualitativa al ejecutar las herramientas de Evaluación Rápida BEFS. \n\nAntes de iniciar la recolección de datos, es importante entender completamente para qué propósito y a qué nivel de precisión se necesitan los datos/información. Por lo tanto, se recomienda familiarizarse a fondo con la Evaluación Rápida BEFS leyendo los manuales de usuario relevantes, previstos para cada herramienta. Estos manuales ofrecen orientación sobre cómo utilizar las herramientas e incluyen secciones específicas sobre los requisitos de datos y las posibles fuentes de datos. \n\nPara llevar a cabo una exitosa colección de datos, los expertos de diferentes procedencias y disciplinas deben estar involucrados. Con el fin de hacer el proceso de recolección de datos lo más intuitivo posible, los datos necesarios se enumeran en las siguientes hojas de datos de Excel y se dividen en cinco áreas de trabajo: Agricultura, Silvicultura, Mano de Obra, Economía y Finanzas, Energía e Industria. \n\nEstas hojas de datos de Excel aseguran que los requisitos de datos de la Evaluación Rápida BEFS estén completamente armonizados. Cada hoja de datos está estructurada en secciones, y cada sección indica cuales herramientas requieren estos datos. Para cada conjunto de datos, instrucciones y notas explicativas se proporcionan. \n\nPara apoyar el análisis, valores por defectos están incorporados en las herramientas para un número de parámetros. Estos valores por defecto se pueden utilizar en el país cuando los datos requeridos no están disponibles.","title",{"$f":"HLOOKUP($C$2,$B$8:$D12,$A12,FALSE)","v":"This part includes information on how to prepare and carry out the data collection for the BEFS Rapid Appraisal. The data to be collected is mainly quantitative. However, qualitative information is required when running the BEFS Rapid Appraisal tools. \n\nBefore starting the data collection, it is important to fully understand for which purpose the data/information is needed and which level of accuracy is required. Therefore, it is recommended to get familiarized thoroughly with the BEFS Rapid Appraisal by reading the relevant user manuals provided for each tool. These manuals provide guidance on how to use the tools and indude specific sections on data requirements and possible data sources. \n\nTo conduct a successful data collection experts with different backgrounds and disciplines should be involved. In order to make the data collection process as intuitive as possible, the data needed are listed in the following Excel datasheets and divided into five areas of work, namely Agriculture, Forestry, Labour, Economics and Finance, Energy and Industry. \n\nThese Excel datasheets ensure that the data requirements of the BEFS RA are fully matched. Each datasheet is structured in sections each indicating the BEFS RAtool within which the data is used. For each dataset instructions and explanatory notes are provided. \n\nFor a number of parameters there are also default values incorporated in the tools to support the analyses. These default values can be used in case country specific data are not available. "},{"$f":"$E12&$A12","v":"title5"}]
[6,"Data collection area","Domaine de collecte de données ","Área de recolección de Datos","title",{"$f":"HLOOKUP($C$2,$B$8:$D13,$A13,FALSE)","v":"Data collection area"},"title6"]
[7,"Sections of the data collection sheet:","Sections des fiches de collecte de données:","Secciones de la hoja de recolección de datos:","title",{"$f":"HLOOKUP($C$2,$B$8:$D14,$A14,FALSE)","v":"Sections of the data collection sheet:"},"title7"]
[8,"BEFS RA use: ","BEFS RA utilisation: ","Uso de la Evaluación Rápida BEFS: ","title",{"$f":"HLOOKUP($C$2,$B$8:$D15,$A15,FALSE)","v":"BEFS RA use: "},"title8"]
[9,"AGRICULTURE","AGRICULTURE","AGRICULTURA","title",{"$f":"HLOOKUP($C$2,$B$8:$D16,$A16,FALSE)","v":"AGRICULTURE"},"title9"]
[10,"1. Crop production, 2. Crop budget, 3. Crop residues, 4. Livestock residues, 5. Product prices","1. Production de cultures, 2. Budget de cultures, 3. Résidus de cultures, 4. Résidus d'élevage, \n5. Prix des produits","1. Producción de Cultivos, 2. Presupuesto Agrícola, 3. Residuos de Cultivos, 4. Residuos Ganaderos, 5. Precios de Producción","title",{"$f":"HLOOKUP($C$2,$B$8:$D17,$A17,FALSE)","v":"1. Crop production, 2. Crop budget, 3. Crop residues, 4. Livestock residues, 5. Product prices"},"title10"]
[11,"Section 1: Crop production collects data for use in the CROP PRODUCTION TOOL ","Section 1: La Production de cultures collecte les données à utiliser de L'OUTIL PRODUCTION \nDE CULTURES du BEFS RA","Sección 1: Recolección de datos sobre Producción de Cultivos para el uso de la HERRAMIENTA PRODUCCIÓN DE CULTIVOS ","title",{"$f":"HLOOKUP($C$2,$B$8:$D18,$A18,FALSE)","v":"Section 1: Crop production collects data for use in the CROP PRODUCTION TOOL "},"title11"]
[12,"Section 2: Crop budget collects data for use in the CROP BUDGET TOOL, BRIQUETTES TOOL, PELLETS TOOL, CHARCOAL TOOL, COMBUSTION TOOL, GASIFICATION TOOL, CHP (COGENERATION) TOOL","Section 2: Le Budget de cultures collecte les données à utiliser de L'OUTIL BUDGET DE CULTURES du BEFS RA ","Sección 2: Recolección de datos sobre Presupuesto Agrícola para el uso de la HERRAMIENTA PRESUPUESTO AGRÍCOLA, HERRAMIENTA BRIQUETAS, HERRAMIENTA PELLETS, HERRAMIENTA CARBÓN VEGETAL, HERRAMIENTA GASIFICACIÓN, HERRAMIENTA COGENERACIÓN ","title",{"$f":"HLOOKUP($C$2,$B$8:$D19,$A19,FALSE)","v":"Section 2: Crop budget collects data for use in the CROP BUDGET TOOL, BRIQUETTES TOOL, PELLETS TOOL, CHARCOAL TOOL, COMBUSTION TOOL, GASIFICATION TOOL, CHP (COGENERATION) TOOL"},"title12"]
[13,"Section 3: Crop residues collects data for use in the CROP RESIDUES TOOL ","Section 3: Les Résidus de cultures collectent les données à utiliser de L'OUTIL RESIDUS DE CULTURES du BEFS RA ","Sección 3: Recolección de datos sobre Residuos de Cultivos para el uso de la HERRAMIENTA RESIDUOS DE CULTIVOS  ","title",{"$f":"HLOOKUP($C$2,$B$8:$D20,$A20,FALSE)","v":"Section 3: Crop residues collects data for use in the CROP RESIDUES TOOL "},"title13"]
[14,"Section 4: Livestock residues collects data for use in the LIVESTOCK RESIDUES TOOL ","Section 4: Les Résidus d'élevage collectent les données à utiliser de L'OUTIL RESIDUS D'ELEVAGE du BEFS RA ","Sección 4: Recolección de datos sobre Residuos Ganaderos para el uso de la HERRAMIETNA RESIDUOS GANADEROS ","title",{"$f":"HLOOKUP($C$2,$B$8:$D21,$A21,FALSE)","v":"Section 4: Livestock residues collects data for use in the LIVESTOCK RESIDUES TOOL "},"title14"]
[15,"Section 5: Other product prices collects data for use in the BRIQUETTES TOOL, PELLETS TOOL","Section 5: Les autres Prix des produits collectent les données à utiliser de L'OUTIL  BRIQUETTES/GRANULÉS DE BOIS du BEFS RA","Sección 5: Recolección de datos sobre Precios de otros productos para el uso de la HERRAMIENTA BRIQUETAS, HERRAMIENTA PELLETS ","title",{"$f":"HLOOKUP($C$2,$B$8:$D22,$A22,FALSE)","v":"Section 5: Other product prices collects data for use in the BRIQUETTES TOOL, PELLETS TOOL"},"title15"]
[16,"Country:","Pays:","País:","title",{"$f":"HLOOKUP($C$2,$B$8:$D23,$A23,FALSE)","v":"Country:"},"title16"]
[17,"USD currency exchange rate:","USD taux de change:","Tasa actual de cambio del USD:","title",{"$f":"HLOOKUP($C$2,$B$8:$D24,$A24,FALSE)","v":"USD currency exchange rate:"},"title17"]
[18,"Focal person:","Le correspondant:","Persona de contacto:","title",{"$f":"HLOOKUP($C$2,$B$8:$D25,$A25,FALSE)","v":"Focal person:"},"title18"]
[19,"Date:","Date:","Fecha:","title",{"$f":"HLOOKUP($C$2,$B$8:$D26,$A26,FALSE)","v":"Date:"},"title19"]
[20,"1.       Crop production                                                                                                                                                                (BEFS RA tool: Crop Production)","1.       Production de cultures                                                                                                                                    (L'outil BEFS RA: Production de Cultures)","1.       Producción de Cultivos                                                                                   (Herramienta de la Evaluación Rápida BEFS: Producción de Cultivos)","title",{"$f":"HLOOKUP($C$2,$B$8:$D27,$A27,FALSE)","v":"1.       Crop production                                                                                                                                                                (BEFS RA tool: Crop Production)"},"title20"]
[21,"Data required","Données exigées ","Datos Requeridos","title",{"$f":"HLOOKUP($C$2,$B$8:$D28,$A28,FALSE)","v":"Data required"},"title21"]
[22,"Instructions and explanatory notes","Instructions et notes explicatives ","Instrucciones y notas explicativas","title",{"$f":"HLOOKUP($C$2,$B$8:$D29,$A29,FALSE)","v":"Instructions and explanatory notes"},"title22"]
[23,"1.1        Yields and area of production","1.1        Rendements et zone de production","1.1        Rendimientos y áreas de producción","title",{"$f":"HLOOKUP($C$2,$B$8:$D30,$A30,FALSE)","v":"1.1        Yields and area of production"},"title23"]
[24,"Unit","Unité","Unidad","title",{"$f":"HLOOKUP($C$2,$B$8:$D31,$A31,FALSE)","v":"Unit"},"title24"]
[25,"Crop 1","Culture 1","Cultivo 1","title",{"$f":"HLOOKUP($C$2,$B$8:$D32,$A32,FALSE)","v":"Crop 1"},"title25"]
[26,"Crop 2","Culture 2","Cultivo 2","title",{"$f":"HLOOKUP($C$2,$B$8:$D33,$A33,FALSE)","v":"Crop 2"},"title26"]
[27,"Crop 3","Culture 3","Cultivo 3","title",{"$f":"HLOOKUP($C$2,$B$8:$D34,$A34,FALSE)","v":"Crop 3"},"title27"]
[28,"Crop 4","Culture 4","Cultivo 4","title",{"$f":"HLOOKUP($C$2,$B$8:$D35,$A35,FALSE)","v":"Crop 4"},"title28"]
[29,"Crop 5","Culture 5","Cultivo 5","title",{"$f":"HLOOKUP($C$2,$B$8:$D36,$A36,FALSE)","v":"Crop 5"},"title29"]
[30,"Selection of the crops","Sélection des cultures","Selección de cultivos","title",{"$f":"HLOOKUP($C$2,$B$8:$D37,$A37,FALSE)","v":"Selection of the crops"},"title30"]
[31,"Annual yield for the last years:","Rendement annuel pour les années précédentes:","Rendimiento anual de los últimos años:","title",{"$f":"HLOOKUP($C$2,$B$8:$D38,$A38,FALSE)","v":"Annual yield for the last years:"},"title31"]
[32,"Year 1:","Année 1:","Año 1:","title",{"$f":"HLOOKUP($C$2,$B$8:$D39,$A39,FALSE)","v":"Year 1:"},"title32"]
[33,"Year 2:","Année 2:","Año 2:","title",{"$f":"HLOOKUP($C$2,$B$8:$D40,$A40,FALSE)","v":"Year 2:"},"title33"]
[34,"Year 3:","Année 3:","Año 3:","title",{"$f":"HLOOKUP($C$2,$B$8:$D41,$A41,FALSE)","v":"Year 3:"},"title34"]
[35,"Year 4:","Année 4:","Año 4:","title",{"$f":"HLOOKUP($C$2,$B$8:$D42,$A42,FALSE)","v":"Year 4:"},"title35"]
[36,"Year 5:","Année 5:","Año 5:","title",{"$f":"HLOOKUP($C$2,$B$8:$D43,$A43,FALSE)","v":"Year 5:"},"title36"]
[37,"Year 6:","Année 6:","Año 6:","title",{"$f":"HLOOKUP($C$2,$B$8:$D44,$A44,FALSE)","v":"Year 6:"},"title37"]
[38,"Year 7:","Année 7:","Año 7:","title",{"$f":"HLOOKUP($C$2,$B$8:$D45,$A45,FALSE)","v":"Year 7:"},"title38"]
[39,"Year 8:","Année 8:","Año 8:","title",{"$f":"HLOOKUP($C$2,$B$8:$D46,$A46,FALSE)","v":"Year 8:"},"title39"]
[40,"Year 9:","Année 9:","Año 9:","title",{"$f":"HLOOKUP($C$2,$B$8:$D47,$A47,FALSE)","v":"Year 9:"},"title40"]
[41,"Year 10:","Année 10:","Año 10:","title",{"$f":"HLOOKUP($C$2,$B$8:$D48,$A48,FALSE)","v":"Year 10:"},"title41"]
[42,"N° of harvests/year","N° de récoltes/an","No. de cosechas/año","title",{"$f":"HLOOKUP($C$2,$B$8:$D49,$A49,FALSE)","v":"N° of harvests/year"},"title42"]
[43,"Average yield based on large scale production","La moyenne du rendement basé sur une production à une grande échelle","Rendimiento promedio basado en la producción a gran escala","title",{"$f":"HLOOKUP($C$2,$B$8:$D50,$A50,FALSE)","v":"Average yield based on large scale production"},"title43"]
[44,"Average yield based on small scale production","La moyenne du rendement basé sur une production à une petite échelle","Rendimiento promedio basado en la producción a pequeña escala","title",{"$f":"HLOOKUP($C$2,$B$8:$D51,$A51,FALSE)","v":"Average yield based on small scale production"},"title44"]
[45,"Annual production for the last years:","Production annuelle pour les années précédentes:","Producción anual para los últimos años:","title",{"$f":"HLOOKUP($C$2,$B$8:$D52,$A52,FALSE)","v":"Annual production for the last years:"},"title45"]
[46,"t/year","t/an","t/año","title",{"$f":"HLOOKUP($C$2,$B$8:$D53,$A53,FALSE)","v":"t/year"},"title46"]
[47,"Sources and year(s) of data publication: ","Sources et année(s) de la publication des données: ","Fuentes y año(s) de las fechas de publicación: ","title",{"$f":"HLOOKUP($C$2,$B$8:$D54,$A54,FALSE)","v":"Sources and year(s) of data publication: "},"title47"]
[48,"Table content:  ","Contenu du tableau:   ","Tabla de Contenido:                                                                 \n                                                                                     ","title",{"$f":"HLOOKUP($C$2,$B$8:$D55,$A55,FALSE)","v":"Table content:  "},"title48"]
[49,"This table collects information on yields and production of crops selected as potential feedstock for liquid biofuels. Crop 1 and 2 can be selected for biodiesel production, crop 3 and 4 for ethanol, finally crop 5 is dedicated to one crop currently grown (e.g. cash crop) that would be replaced with a selected bioenergy crop. After selecting the crops, provide annual yields and production data for the last years. The following crops can be analysed: ","Ce tableau recueille des renseignements sur les rendements et la production des cultures sélectionnées comme étant des matières premières potentielles pour les biocarburants liquides. Les Cultures 1 et 2 peuvent être sélectionnées pour la production de biodiesel, les cultures 3 et 4 pour l'éthanol et la culture 5 est consacrée à une culture actuellement cultivées (par exemple : culture de rente) qui serait remplacée par une culture sélectionnée pour la bioénergie. Après avoir sélectionné les cultures , fournir les données annuelles des rendements et de la production pour les dernières années. Les cultures suivantes peuvent être analysées: ","En esta tabla se recoge la información sobre el rendimiento y la producción de los cultivos seleccionados como potencial materia prima para los biocombustibles líquidos. Los cultivo 1 y 2 pueden ser seleccionados para la producción de biodiesel, los cultivos 3 y 4 para el etanol y por último en el cultivo 5 se escoge un cultivo de los que actualmente se cultivan (por ejemplo, cultivos comerciales) que sería reemplazado por un cultivo bioenergético seleccionado. Después de seleccionar los cultivos, se deben proporcionar los rendimientos anuales y los datos de producción de los últimos años. Los siguientes cultivos se pueden analizar: \n","title",{"$f":"HLOOKUP($C$2,$B$8:$D56,$A56,FALSE)","v":"This table collects information on yields and production of crops selected as potential feedstock for liquid biofuels. Crop 1 and 2 can be selected for biodiesel production, crop 3 and 4 for ethanol, finally crop 5 is dedicated to one crop currently grown (e.g. cash crop) that would be replaced with a selected bioenergy crop. After selecting the crops, provide annual yields and production data for the last years. The following crops can be analysed: "},"title49"]
[50,"barley, cacao, cassava, coconut, coffee, cotton, groundnut, jatropha, maize, millet, oat, oil palm, potato, rapeseed, rice, rye, sorghum, soybean, sugar beet, sugarcane, sunflower, tea, tobacco, wheat, yam.   ","l'orge , le cacao , le manioc , la noix de coco , le café , le coton , l'arachide , le jatropha , le maïs , le millet , l'avoine, le palmier à huile , la pomme de terre, le colza , le riz , le seigle , le sorgho , le soja , la betterave à sucre, la canne à sucre, de tournesol , le thé , le tabac , le blé et l'igname.   ","cebada, cacao, yuca, coco, café, algodón, maní, jatrofa, maíz, mijo, avena, aceite de palma, patata, colza, arroz, centeno, sorgo, soja, remolacha azucarera, caña de azúcar, girasol, té, tabaco, trigo y ñame","title",{"$f":"HLOOKUP($C$2,$B$8:$D57,$A57,FALSE)","v":"barley, cacao, cassava, coconut, coffee, cotton, groundnut, jatropha, maize, millet, oat, oil palm, potato, rapeseed, rice, rye, sorghum, soybean, sugar beet, sugarcane, sunflower, tea, tobacco, wheat, yam.   "},"title50"]
[51,"Information regarding use within the tool:                                  ","Informations en ce qui concerne des utilisations au sein de l'outil:                               ","Información sobre el uso de la herramienta:                                  ","title",{"$f":"HLOOKUP($C$2,$B$8:$D58,$A58,FALSE)","v":"Information regarding use within the tool:                                  "},"title51"]
[52,"Within the Crop Production Tool, up to four crops can be analysed at the same time and they are selected from a dropdown list. Crop 5 is used within the Change of Crops option. The dropdown list includes 25 most important food and cash crops, among which some are suitable for production of liquid biofuels: coconut, jatropha, rapeseed, soybean and sunflower for production of straight vegetable oil and biodiesel, and barley, cassava, maize, sugarbeet, sugarcane for production of ethanol.","Dans l'outil Production de Cultures, jusqu'à quatre cultures peuvent être analysées en même temps et elles sont choisies à partir d'une liste déroulante. la Culture 5 est utilisée dans l'option changement de cultures. La liste déroulante comprend les 25 plus importantes cultures commerciales dont certaines sont appropriées pour la production de biocarburants liquides : noix de coco, jatropha , le colza , le soja , l'huile de palme et de tournesol pour la production d'huile végétale brute et de biodiesel, et l'orge , le manioc , le maïs , betterave à sucre , la canne à sucre et le blé pour la production d'éthanol.","Dentro de la herramienta de producción agrícola, hasta cuatro cultivos pueden ser analizados al mismo tiempo y ellos son seleccionados a partir de una lista desplegable. El cultivo 5 es usada para la opción Cambio de Cultivo. La lista desplegable incluye los 25 cultivos alimentarios y comerciales más importantes, entre los cuales algunos son apropiados para la producción de biocombustibles líquidos: coco, jatrofa, colza, soja y girasol para la producción de aceite vegetal y biodiesel, y cebada, yuca, maíz, remolacha azucarera, caña de azúcar para la producción de etanol.","title",{"$f":"HLOOKUP($C$2,$B$8:$D59,$A59,FALSE)","v":"Within the Crop Production Tool, up to four crops can be analysed at the same time and they are selected from a dropdown list. Crop 5 is used within the Change of Crops option. The dropdown list includes 25 most important food and cash crops, among which some are suitable for production of liquid biofuels: coconut, jatropha, rapeseed, soybean and sunflower for production of straight vegetable oil and biodiesel, and barley, cassava, maize, sugarbeet, sugarcane for production of ethanol."},"title52"]
[53,"2.       Crop budget                                                                                                                                                                               (BEFS RA tool: Crop Budget)","2.       Budget de Cultures                                                                                                                                                   (L'outil BEFS RA: Budget de Cultures)","2.       Presupuesto Agrícola                                                                                         (Herramienta de la Evaluación Rápida BEFS: Presupuesto Agrícola)","title",{"$f":"HLOOKUP($C$2,$B$8:$D60,$A60,FALSE)","v":"2.       Crop budget                                                                                                                                                                               (BEFS RA tool: Crop Budget)"},"title53"]
[54,"2.1       General data","2.1       Données Générales","2.1       Datos generales","title",{"$f":"HLOOKUP($C$2,$B$8:$D61,$A61,FALSE)","v":"2.1       General data"},"title54"]
[55,"Machinery rental rate per hour (average rate for agricultural operations)","Taux de location des machines par heure (taux moyen pour les opérations agricoles)","Tasa de alquiler de maquinaria por hora (tasa promedio para las operaciones agrícolas)","title",{"$f":"HLOOKUP($C$2,$B$8:$D62,$A62,FALSE)","v":"Machinery rental rate per hour (average rate for agricultural operations)"},"title55"]
[56,"Annual farm land rental (country average)","Location annuelle des terres agricoles (moyenne nationale) (USD/ha/an)","Alquiler anual de tierras de cultivo (promedio del país)","title",{"$f":"HLOOKUP($C$2,$B$8:$D63,$A63,FALSE)","v":"Annual farm land rental (country average)"},"title56"]
[57,"Agrochemical prices (without subsidies)","Prix Agrochimiques (sans subventions)","Precios de agroquímicos (sin subsidios)","title",{"$f":"HLOOKUP($C$2,$B$8:$D64,$A64,FALSE)","v":"Agrochemical prices (without subsidies)"},"title57"]
[58,"Nitrogen fertilizers","Engrais Azotés","Fertilizantes de Nitrógeno","title",{"$f":"HLOOKUP($C$2,$B$8:$D65,$A65,FALSE)","v":"Nitrogen fertilizers"},"title58"]
[59,"Phosphate fertilizers","Engrais Phosphatés","Fertilizantes de Fósforo","title",{"$f":"HLOOKUP($C$2,$B$8:$D66,$A66,FALSE)","v":"Phosphate fertilizers"},"title59"]
[60,"Potassium fertilizers","Engrais Potassiques ","Fertilizantes de Potasio","title",{"$f":"HLOOKUP($C$2,$B$8:$D67,$A67,FALSE)","v":"Potassium fertilizers"},"title60"]
[61,"NPK complex fertilizer[1]","Engrais complexes NPK[1]","Fertilizante de complejo NPK[1]","title",{"$f":"HLOOKUP($C$2,$B$8:$D68,$A68,FALSE)","v":"NPK complex fertilizer[1]"},"title61"]
[62,"1. Other agrochemical[2] (used in crop production):","1. Autres produits agrochimiques[2] (utilisés dans la production de cultures):","1. Otros agroquímicos[2] (usados en la producción de cultivos):","title",{"$f":"HLOOKUP($C$2,$B$8:$D69,$A69,FALSE)","v":"1. Other agrochemical[2] (used in crop production):"},"title62"]
[63,"2. Other agrochemical:","2. Autres produits agrochimiques:","2. Otros agroquímicos:","title",{"$f":"HLOOKUP($C$2,$B$8:$D70,$A70,FALSE)","v":"2. Other agrochemical:"},"title63"]
[64,"3. Other agrochemical:","3. Autres produits agrochimiques:","3. Otros agroquímicos:","title",{"$f":"HLOOKUP($C$2,$B$8:$D71,$A71,FALSE)","v":"3. Other agrochemical:"},"title64"]
[65,"Ammonia","Ammoniaque","Amonio","title",{"$f":"HLOOKUP($C$2,$B$8:$D72,$A72,FALSE)","v":"Ammonia"},"title65"]
[66,"Urea","Urée","Urea","title",{"$f":"HLOOKUP($C$2,$B$8:$D73,$A73,FALSE)","v":"Urea"},"title66"]
[67,"Ammonium nitrate","Azote ammoniacal","Nitrato de amonio","title",{"$f":"HLOOKUP($C$2,$B$8:$D74,$A74,FALSE)","v":"Ammonium nitrate"},"title67"]
[68,"Phosphate rock","Roches Phosphatée","Roca fosfórica","title",{"$f":"HLOOKUP($C$2,$B$8:$D75,$A75,FALSE)","v":"Phosphate rock"},"title68"]
[69,"MAP","MAP","MAP","title",{"$f":"HLOOKUP($C$2,$B$8:$D76,$A76,FALSE)","v":"MAP"},{"$f":"$E76&$A76","v":"title69"}]
[70,"DAP","DAP","DAP","title",{"$f":"HLOOKUP($C$2,$B$8:$D77,$A77,FALSE)","v":"DAP"},"title70"]
[71,"TSP","TSP","TSP","title",{"$f":"HLOOKUP($C$2,$B$8:$D78,$A78,FALSE)","v":"TSP"},"title71"]
[72,"Potassium chloride","Chlorure de Potassium","Cloruro de potasio","title",{"$f":"HLOOKUP($C$2,$B$8:$D79,$A79,FALSE)","v":"Potassium chloride"},"title72"]
[73,"Potassium sulphate","Sulfate de Potassium ","Sulfato de potasio","title",{"$f":"HLOOKUP($C$2,$B$8:$D80,$A80,FALSE)","v":"Potassium sulphate"},"title73"]
[74,"Unit","Unité","Unidad","title",{"$f":"HLOOKUP($C$2,$B$8:$D81,$A81,FALSE)","v":"Unit"},"title74"]
[75,"USD/hour","USD/heure","USD/hora","title",{"$f":"HLOOKUP($C$2,$B$8:$D82,$A82,FALSE)","v":"USD/hour"},"title75"]
[76,"Unit Price","Prix Unitaire","Precio unitario","title",{"$f":"HLOOKUP($C$2,$B$8:$D83,$A83,FALSE)","v":"Unit Price"},"title76"]
[77,"Sources:","Sources:","Fuentes:","title",{"$f":"HLOOKUP($C$2,$B$8:$D84,$A84,FALSE)","v":"Sources:"},"title77"]
[78,"This table collects information on rental costs and agrochemicals unit price.","Ce tableau recueille des informations sur les coûts de location et les prix unitaire des produits agrochimiques  ","Esta table recolecta información sobre los costos de renta y precios unitarios de agroquímicos. ","title",{"$f":"HLOOKUP($C$2,$B$8:$D85,$A85,FALSE)","v":"This table collects information on rental costs and agrochemicals unit price."},"title78"]
[79,"Information regarding use within the tool:       ","Informations en ce qui concerne des utilisations au sein de l'outil:       ","Información sobre el uso de la herramienta:","title",{"$f":"HLOOKUP($C$2,$B$8:$D86,$A86,FALSE)","v":"Information regarding use within the tool:       "},"title79"]
[80,"Selection of fertilizers and related unit price expressed in USD/ton has to be provided by the user at least for each category of fertilizer (Nitrogen, Phosphate, Potassium and NPK complex fertilizers). This data is used in the BEFS RA Crop Budget Tool.","La sélection des engrais et des prix unitaires correspondants exprimés en USD / tonne doit être fournie par l'utilisateur au moins pour chaque catégorie d'engrais (azote, phosphore , potassium et engrais complexes NPK ) . Ces données sont utilisées dans l'outil Budget de Cultures du BEFS RA. ","La selección de los fertilizantes y su precio unitario relacionado expresado en USD/tonelada tiene que ser proporcionado por el usuario al menos para cada categoría de fertilizantes (nitrógeno, fósforo, potasio y fertilizantes NPK complejos). Estos datos son utilizados en la herramienta Presupuesto Agrícola de la Evaluación Rápida BEFS.","title",{"$f":"HLOOKUP($C$2,$B$8:$D87,$A87,FALSE)","v":"Selection of fertilizers and related unit price expressed in USD/ton has to be provided by the user at least for each category of fertilizer (Nitrogen, Phosphate, Potassium and NPK complex fertilizers). This data is used in the BEFS RA Crop Budget Tool."},"title80"]
[81,"Notes:","A noter:","Notas:","title",{"$f":"HLOOKUP($C$2,$B$8:$D88,$A88,FALSE)","v":"Notes:"},"title81"]
[82,"[1]Enter nutrients composition of NPK complex (e.g. 18:15:18) and its price per ton.","[1]Entrez la composition en nutriment du complexe NPK (par exemple 18:15:18 ) et son prix de la tonne ","[1]Ingrese la composición del complejo NPK (por ejemplo: 18:15:18) y su precio por tonelada.","title",{"$f":"HLOOKUP($C$2,$B$8:$D89,$A89,FALSE)","v":"[1]Enter nutrients composition of NPK complex (e.g. 18:15:18) and its price per ton."},"title82"]
[83,"[2]Enter the name, unit and unit price for main agrochemicals (i.e. herbice, fungicide, insecticide) used in the selected crop production.","[2]Entrez le nom, l'unité et le prix unitaire des principaux produits agrochimiques (herbice , fongicide, insecticide) utilisés dans la production de culture sélectionnée.","[2]Ingrese el nombre, unidad y precio unitario para el principal agroquímico (es decir: herbicida, fungicida, insecticida) usado en la selección de producción de cultivo.","title",{"$f":"HLOOKUP($C$2,$B$8:$D90,$A90,FALSE)","v":"[2]Enter the name, unit and unit price for main agrochemicals (i.e. herbice, fungicide, insecticide) used in the selected crop production."},"title83"]
[84,"2.2        Crop specific data","2.2        Données spécifiques aux cultures  ","2.2       Datos específicos de cultivos","title",{"$f":"HLOOKUP($C$2,$B$8:$D91,$A91,FALSE)","v":"2.2        Crop specific data"},"title84"]
[85,"(Enter data when applicable to annual or permanent crop)","Entrer les données lorsqu'elles s'appliquent à des cultures annuelles ou permanentes","(Ingrese datos cuando se aplique a cultivos anuales o permanentes)","title",{"$f":"HLOOKUP($C$2,$B$8:$D92,$A92,FALSE)","v":"(Enter data when applicable to annual or permanent crop)"},"title85"]
[86,"Crop selected","Culture selectionnée ","Selección de cultivos","title",{"$f":"HLOOKUP($C$2,$B$8:$D93,$A93,FALSE)","v":"Crop selected"},"title86"]
[87,"Farm-gate price of feedstock","Prix à la ferme des matières premières ","Precio en finca de la materia prima","title",{"$f":"HLOOKUP($C$2,$B$8:$D94,$A94,FALSE)","v":"Farm-gate price of feedstock"},"title87"]
[88,"Annual crops","Culture annuelle","Cultivos anuales","title",{"$f":"HLOOKUP($C$2,$B$8:$D95,$A95,FALSE)","v":"Annual crops"},"title88"]
[89,"Seed price","Prix des semences","Precio de la semilla","title",{"$f":"HLOOKUP($C$2,$B$8:$D96,$A96,FALSE)","v":"Seed price"},"title89"]
[90,"Seedlings density\n(default value of the tool)","Densité des plants/boutures\n(valeur par défaut)","Densidad de las plántulas\n(valor por defecto de la herramienta)","title",{"$f":"HLOOKUP($C$2,$B$8:$D97,$A97,FALSE)","v":"Seedlings density\n(default value of the tool)"},"title90"]
[91,"Total seedling cost per hectare ","Coût total par hectare des Semis/boutures","Costo Total de plántulas por hectárea","title",{"$f":"HLOOKUP($C$2,$B$8:$D98,$A98,FALSE)","v":"Total seedling cost per hectare "},"title91"]
[92,"Permanent crops","Culture pérenne","Cultivos permanentes","title",{"$f":"HLOOKUP($C$2,$B$8:$D99,$A99,FALSE)","v":"Permanent crops"},"title92"]
[93,"Plant density\n(default value of the tool)","Densité des plantes\n(valeur par défaut)","Densidad de la planta\n(valor por defecto de la herramienta)","title",{"$f":"HLOOKUP($C$2,$B$8:$D100,$A100,FALSE)","v":"Plant density\n(default value of the tool)"},"title93"]
[94,"Cost for establishing plantation[3]","Coût d’établissement des plantations[3]","Costo para las plantaciones establecidas[3]","title",{"$f":"HLOOKUP($C$2,$B$8:$D101,$A101,FALSE)","v":"Cost for establishing plantation[3]"},"title94"]
[95,"Lifespan of plantation\n(default value of the tool)"," Durée de vie économique des plantations\n(valeur par défaut)","Vida útil de la plantación\n(valor por defecto de la herramienta)","title",{"$f":"HLOOKUP($C$2,$B$8:$D102,$A102,FALSE)","v":"Lifespan of plantation\n(default value of the tool)"},"title95"]
[96,"USD/ton","USD/tonne","USD/ton","title",{"$f":"HLOOKUP($C$2,$B$8:$D103,$A103,FALSE)","v":"USD/ton"},"title96"]
[97,"plants/ha","plantes/ha","plantas/ha","title",{"$f":"HLOOKUP($C$2,$B$8:$D104,$A104,FALSE)","v":"plants/ha"},"title97"]
[98,"years","années","años","title",{"$f":"HLOOKUP($C$2,$B$8:$D105,$A105,FALSE)","v":"years"},"title98"]
[99,"This table collects information related to annual and permanent crops. Some data are provided as default values integrated in the database of BEFS RA Crop Budget Tool (i.e. planting density, lifespan of plantation).","Ce tableau recueille des informations concernant les cultures annuelles et pérennes.Certaines données sont fournies comme valeurs par défaut intégrées dans la base de données de l'Outil Budget de Cultures du BEFS RA (comme la Densité des plantes et la Durée de vie économique des plantations).","Esta tabla recolecta información relacionada a los cultivos anuales y permanentes. Algunos dados son proporcionados como valores por defecto integrados en la base de datos de la herramienta Presupuesto Agrícola de la Evaluación Rápida BEFS (es decir: densidad de la plantación, vida útil de la plantación).","title",{"$f":"HLOOKUP($C$2,$B$8:$D106,$A106,FALSE)","v":"This table collects information related to annual and permanent crops. Some data are provided as default values integrated in the database of BEFS RA Crop Budget Tool (i.e. planting density, lifespan of plantation)."},"title99"]
[100,"This data is used in the BEFS RA Crop Budget Tool.","Ces données sont utilisées dans l'Outil Budget de Cultures du BEFS RA.","Estos datos son usados en la herramienta Presupuesto Agrícola de la Evaluación Rápida BEFS. ","title",{"$f":"HLOOKUP($C$2,$B$8:$D107,$A107,FALSE)","v":"This data is used in the BEFS RA Crop Budget Tool."},"title100"]
[101,"[3]Cost for establishing permanent plantation includes: land clearing, preparation, planting and material costs per hectare.","[3]Les coûts pour l'établissement de plantations permanentes comprend : défrichement , préparation , plantation et coûts matériels par hectare","[3]El costo para el establecimiento de plantaciones permanente incluye: el costo de limpieza de terrenos, de preparación, de plantación y de materiales por hectárea.","title",{"$f":"HLOOKUP($C$2,$B$8:$D108,$A108,FALSE)","v":"[3]Cost for establishing permanent plantation includes: land clearing, preparation, planting and material costs per hectare."},"title101"]
[102,"3.       Crop residues                                                                                                                                                                         (BEFS RA tool: Crop Residues)","3.       Résidus de cultures                                                                                                                                                  (L'outil BEFS RA: Résidus de cultures)","3.       Residuos de Cultivos                                                                                                (Herramienta de Evaluación Rápida BEFS: Residuos de Cultivos)","title",{"$f":"HLOOKUP($C$2,$B$8:$D109,$A109,FALSE)","v":"3.       Crop residues                                                                                                                                                                         (BEFS RA tool: Crop Residues)"},"title102"]
[103,"3.1        Crop-residue types included inthe tool","3.1          Type de résidus de cultures compris dans l'outil","3.1        Tipos de residuos de cultivo incluidos en la herramienta","title",{"$f":"HLOOKUP($C$2,$B$8:$D110,$A110,FALSE)","v":"3.1        Crop-residue types included inthe tool"},"title103"]
[104,"Crop","Cultures","Cultivo","title",{"$f":"HLOOKUP($C$2,$B$8:$D111,$A111,FALSE)","v":"Crop"},"title104"]
[105,"Barley","Orge","Cebada","title",{"$f":"HLOOKUP($C$2,$B$8:$D112,$A112,FALSE)","v":"Barley"},"title105"]
[106,"Cacao","Cacao","Cacao","title",{"$f":"HLOOKUP($C$2,$B$8:$D113,$A113,FALSE)","v":"Cacao"},"title106"]
[107,"Cassava","Manioc","Yuca","title",{"$f":"HLOOKUP($C$2,$B$8:$D114,$A114,FALSE)","v":"Cassava"},"title107"]
[108,"Coconut","Noix de coco","Coco","title",{"$f":"HLOOKUP($C$2,$B$8:$D115,$A115,FALSE)","v":"Coconut"},"title108"]
[109,"Coffee","Caffé","Café","title",{"$f":"HLOOKUP($C$2,$B$8:$D116,$A116,FALSE)","v":"Coffee"},"title109"]
[110,"Cotton","Coton","Algodón","title",{"$f":"HLOOKUP($C$2,$B$8:$D117,$A117,FALSE)","v":"Cotton"},"title110"]
[111,"Residue ","Résidu ","Residuo","title",{"$f":"HLOOKUP($C$2,$B$8:$D118,$A118,FALSE)","v":"Residue "},"title111"]
[112,"straw","paille","paja","title",{"$f":"HLOOKUP($C$2,$B$8:$D119,$A119,FALSE)","v":"straw"},"title112"]
[113,"pods","cabosse","vaina","title",{"$f":"HLOOKUP($C$2,$B$8:$D120,$A120,FALSE)","v":"pods"},"title113"]
[114,"stalk","tige","hoja","title",{"$f":"HLOOKUP($C$2,$B$8:$D121,$A121,FALSE)","v":"stalk"},"title114"]
[115,"fronds","frondes","cascarilla","title",{"$f":"HLOOKUP($C$2,$B$8:$D122,$A122,FALSE)","v":"fronds"},"title115"]
[116,"husk","balle","corteza","title",{"$f":"HLOOKUP($C$2,$B$8:$D123,$A123,FALSE)","v":"husk"},"title116"]
[117,"shell","coquille","cáscara","title",{"$f":"HLOOKUP($C$2,$B$8:$D124,$A124,FALSE)","v":"shell"},"title117"]
[118,"hull","coque","tallo","title",{"$f":"HLOOKUP($C$2,$B$8:$D125,$A125,FALSE)","v":"hull"},"title118"]
[119,"Groundnut","Arachide","Maní","title",{"$f":"HLOOKUP($C$2,$B$8:$D126,$A126,FALSE)","v":"Groundnut"},"title119"]
[120,"Maize","Maïs","Maíz","title",{"$f":"HLOOKUP($C$2,$B$8:$D127,$A127,FALSE)","v":"Maize"},"title120"]
[121,"Millet","Millet","Mijo","title",{"$f":"HLOOKUP($C$2,$B$8:$D128,$A128,FALSE)","v":"Millet"},"title121"]
[122,"Oat","Avoine","Avena","title",{"$f":"HLOOKUP($C$2,$B$8:$D129,$A129,FALSE)","v":"Oat"},"title122"]
[123,"Oilpalm","Palmier à Huile","Palma de Aceite","title",{"$f":"HLOOKUP($C$2,$B$8:$D130,$A130,FALSE)","v":"Oilpalm"},"title123"]
[124,"Rice","Riz","Arroz","title",{"$f":"HLOOKUP($C$2,$B$8:$D131,$A131,FALSE)","v":"Rice"},"title124"]
[125,"Rye","Seigle","Centeno","title",{"$f":"HLOOKUP($C$2,$B$8:$D132,$A132,FALSE)","v":"Rye"},"title125"]
[126,"Sorghum","Sorgho","Sorgo","title",{"$f":"HLOOKUP($C$2,$B$8:$D133,$A133,FALSE)","v":"Sorghum"},"title126"]
[127,"Soybean","Soja","Soja","title",{"$f":"HLOOKUP($C$2,$B$8:$D134,$A134,FALSE)","v":"Soybean"},"title127"]
[128,"Sugarcane","Canne à sucre","Caña de azúcar","title",{"$f":"HLOOKUP($C$2,$B$8:$D135,$A135,FALSE)","v":"Sugarcane"},"title128"]
[129,"Wheat","Blé","Trigo","title",{"$f":"HLOOKUP($C$2,$B$8:$D136,$A136,FALSE)","v":"Wheat"},"title129"]
[130,"cob","épi","mazorca","title",{"$f":"HLOOKUP($C$2,$B$8:$D137,$A137,FALSE)","v":"cob"},"title130"]
[131,"stover","canne","rastrojo","title",{"$f":"HLOOKUP($C$2,$B$8:$D138,$A138,FALSE)","v":"stover"},"title131"]
[132,"empty bunches","péricarpe","racimos vacíos","title",{"$f":"HLOOKUP($C$2,$B$8:$D139,$A139,FALSE)","v":"empty bunches"},"title132"]
[133,"straw/stalk","paille/tige","paja/tallo","title",{"$f":"HLOOKUP($C$2,$B$8:$D140,$A140,FALSE)","v":"straw/stalk"},{"$f":"$E140&$A140","v":"title133"}]
[134,"tops/leaves","hauts/feuilles","parte superior/hojas","title",{"$f":"HLOOKUP($C$2,$B$8:$D141,$A141,FALSE)","v":"tops/leaves"},"title134"]
[135,"baggase","bagasse","bagazo","title",{"$f":"HLOOKUP($C$2,$B$8:$D142,$A142,FALSE)","v":"baggase"},"title135"]
[136,"This table provides a list of crop-residue types that can be analysed within BEFS RA tool as feedstock for production of biofuels for heating and cooking (briquettes, pellets and charcoal) and for electricity generation through gasification and direct combustion.  ","Ce tableau fournit une liste des types de résidus de cultures qui peuvent être analysés au sein de l'outil BEFS RA et utlisés comme matière première pour la production de biocarburants pour le chauffage et la cuisson (briquettes, granulés de bois et charbon de bois ) et pour la production d'électricité par gazéification et combustion directe .","Esta tabla incluye una lista de los tipos de residuos de cultivos que pueden ser analizados dentro de la herramienta de la Evaluación Rápida BEFS como materia prima para la producción de biocombustibles para la calefacción y la cocina (briquetas, pellets y carbón) y para la generación de electricidad a través de la gasificación y la combustión directa.","title",{"$f":"HLOOKUP($C$2,$B$8:$D143,$A143,FALSE)","v":"This table provides a list of crop-residue types that can be analysed within BEFS RA tool as feedstock for production of biofuels for heating and cooking (briquettes, pellets and charcoal) and for electricity generation through gasification and direct combustion.  "},"title136"]
[137,"2.3.1        Yields per hectare","2.3.1        Rendements par hectare","2.3.1        Rendimiento por hectárea","title",{"$f":"HLOOKUP($C$2,$B$8:$D144,$A144,FALSE)","v":"2.3.1        Yields per hectare"},"title137"]
[138,"Country average yield under rain-fed condition","Rendements moyens du pays en condition pluviale","Rendimiento promedio del país bajo condiciones de secano","title",{"$f":"HLOOKUP($C$2,$B$8:$D145,$A145,FALSE)","v":"Country average yield under rain-fed condition"},"title138"]
[139,"This table collects information on yields under rain-fed condition for the selected crops used as feedstock for liquid biofuels.   ","Ce tableau recueille des informations concernant les rendements moyens en condition pluviale pour les cultures selectionnées et qui sont utilisées comme matières premières pour les biocarburants liquides.     ","Esta tabla recolecta información sobre los rendimientos bajo condiciones de secano para los cultivos seleccionados usados como materia prima para la producción de biocombustibles líquidos.     ","title",{"$f":"HLOOKUP($C$2,$B$8:$D146,$A146,FALSE)","v":"This table collects information on yields under rain-fed condition for the selected crops used as feedstock for liquid biofuels.   "},"title139"]
[140,"This data is used in the BEFS RA Crop Budget Tool.","Ces données sont utilisées dans l'Outil Budget de Cultures du BEFS RA.","Estos datos son usados en la herramienta Presupuesto Agrícola de la Evaluación Rápida BEFS.","title",{"$f":"HLOOKUP($C$2,$B$8:$D147,$A147,FALSE)","v":"This data is used in the BEFS RA Crop Budget Tool."},"title140"]
[141,"2.4        Inputs (amount per hectare)","2.4        Intrants (quantité par hectare)","2.4        Insumos (cantidad por hectárea)","title",{"$f":"HLOOKUP($C$2,$B$8:$D148,$A148,FALSE)","v":"2.4        Inputs (amount per hectare)"},"title141"]
[142,"Seed","Semences","Semillas","title",{"$f":"HLOOKUP($C$2,$B$8:$D149,$A149,FALSE)","v":"Seed"},"title142"]
[143,"Fertilizer nutrients[4]","Engrais[4]","Nutrientes de los fertilizantes[4]","title",{"$f":"HLOOKUP($C$2,$B$8:$D150,$A150,FALSE)","v":"Fertilizer nutrients[4]"},"title143"]
[144,"Nitrogen","Azote","Nitrógeno","title",{"$f":"HLOOKUP($C$2,$B$8:$D151,$A151,FALSE)","v":"Nitrogen"},"title144"]
[145,"Phosphorus","Phosphore","Fósforo","title",{"$f":"HLOOKUP($C$2,$B$8:$D152,$A152,FALSE)","v":"Phosphorus"},"title145"]
[146,"Potassium","Potassium","Potasio","title",{"$f":"HLOOKUP($C$2,$B$8:$D153,$A153,FALSE)","v":"Potassium"},"title146"]
[147,"Other agrochemicals[5]","Autres produits agrochimiques[5]","Otros agroquímicos[5]","title",{"$f":"HLOOKUP($C$2,$B$8:$D154,$A154,FALSE)","v":"Other agrochemicals[5]"},"title147"]
[148,"Herbicide","Herbicide","Herbicidas","title",{"$f":"HLOOKUP($C$2,$B$8:$D155,$A155,FALSE)","v":"Herbicide"},"title148"]
[149,"Insecticide","Insecticide","Insecticidas","title",{"$f":"HLOOKUP($C$2,$B$8:$D156,$A156,FALSE)","v":"Insecticide"},"title149"]
[150,"Fungicide","Fungicide","Fungicida","title",{"$f":"HLOOKUP($C$2,$B$8:$D157,$A157,FALSE)","v":"Fungicide"},"title150"]
[151,"Cost of other agrochemicals","Coût des autres produits agrochimiques","Costos de otros agroquímicos","title",{"$f":"HLOOKUP($C$2,$B$8:$D158,$A158,FALSE)","v":"Cost of other agrochemicals"},"title151"]
[152,"This table collects information on the typical amount of inputs per hectare for each selected crop under rainfed condition.                                \n                                                                     \n                                                                                     ","Ce tableau recueille des informations concernant la quantité spécifique des intrants par hectare pour chaque culture sélectionnée pour des conditions pluviale. ","Esta tabla recoge información sobre la cantidad típica de insumos por hectárea para cada cultivo seleccionado en condiciones de secano.       ","title",{"$f":"HLOOKUP($C$2,$B$8:$D159,$A159,FALSE)","v":"This table collects information on the typical amount of inputs per hectare for each selected crop under rainfed condition.                                \n                                                                     \n                                                                                     "},"title152"]
[153,"This data is used in the BEFS RA Crop Budget Tool.","Ces données sont utilisées dans l'Outil Budget de Cultures du BEFS RA.","Estos datos son usados en la herramienta Presupuesto Agrícola de la Evaluación Rápida BEFS. ","title",{"$f":"HLOOKUP($C$2,$B$8:$D160,$A160,FALSE)","v":"This data is used in the BEFS RA Crop Budget Tool."},"title153"]
[154,"[4]Enter types and amount of fertilizers applied per hectare for each crop based on the average country representative data. Be sure that unit prices of other agrochemicals are entered in the table 2.1. ","[4]Entrez le type et la quantité d'engrais utilisés par hectare pour chaque culture sur la base des moyennes des données représentatives du pays. Assurez-vous que les prix unitaires des autres produits agrochimiques sont entrés dans le tableau 2.1 .","[4]Ingrese los tipos y la cantidad de fertilizante aplicado por hectárea para cada cultivo con base a los datos representativos promedio del país. Asegúrese de que los precios unitarios de otros agroquímicos se introduzcan en la tabla 2.1. ","title",{"$f":"HLOOKUP($C$2,$B$8:$D161,$A161,FALSE)","v":"[4]Enter types and amount of fertilizers applied per hectare for each crop based on the average country representative data. Be sure that unit prices of other agrochemicals are entered in the table 2.1. "},"title154"]
[155,"[5]Define the types, unit and amount of agrochemicals (i.e. herbicides, pesticides) applied per hectare for each crop based on the average country representative data. Cost of other agrochemicals applied per hectare can be estimated as % of total cost of fertilizer nutrients.","[5]Définissez les types, l'unité et la quantité de produits agrochimiques (comme les herbicides, pesticides ) appliqués par hectare pour chaque culture sur la base des moyennes des données représentatives du pays. Les coût des autres produits agrochimiques appliqués par hectare peuvent être estimés en % du coût total des engrais.","[5]Defina los tipos, la unidad y la cantidad de productos agroquímicos (por ejemplo, herbicidas, pesticidas) aplicada por hectárea para cada cultivo con base a los datos representativos promedio del país. El costo de otros productos agroquímicos aplicados por hectárea se puede estimar como el % del costo total de los nutrientes de los fertilizantes.","title",{"$f":"HLOOKUP($C$2,$B$8:$D162,$A162,FALSE)","v":"[5]Define the types, unit and amount of agrochemicals (i.e. herbicides, pesticides) applied per hectare for each crop based on the average country representative data. Cost of other agrochemicals applied per hectare can be estimated as % of total cost of fertilizer nutrients."},"title155"]
[156,"2.5         Labour (amount per hectare)","2.5         Travail (quantité par hectare)","2.5         Mano de obra (cantidad por hectárea)","title",{"$f":"HLOOKUP($C$2,$B$8:$D163,$A163,FALSE)","v":"2.5         Labour (amount per hectare)"},"title156"]
[157,"Land preparation\n(only for annual crops)","Préparation des sols\n(pour des cultures annuelles uniquement)","Preparación de la tierra\n(solamente para cultivos anuales)","title",{"$f":"HLOOKUP($C$2,$B$8:$D164,$A164,FALSE)","v":"Land preparation\n(only for annual crops)"},"title157"]
[158," - Manual "," - Manuel "," - Manual ","title",{"$f":"HLOOKUP($C$2,$B$8:$D165,$A165,FALSE)","v":" - Manual "},"title158"]
[159," - Machinery "," - Machine"," - Maquinaria","title",{"$f":"HLOOKUP($C$2,$B$8:$D166,$A166,FALSE)","v":" - Machinery "},"title159"]
[160,"Planting operation\n(only for annual crops)","Opération de plantation\n(pour des cultures annuelles uniquement)","Labores de siembra\n(solamente para cultivos anuales)","title",{"$f":"HLOOKUP($C$2,$B$8:$D167,$A167,FALSE)","v":"Planting operation\n(only for annual crops)"},"title160"]
[161," - Manual"," - Manuel"," - Manual ","title",{"$f":"HLOOKUP($C$2,$B$8:$D168,$A168,FALSE)","v":" - Manual"},"title161"]
[162," - Machinery"," - Machine"," - Maquinaria","title",{"$f":"HLOOKUP($C$2,$B$8:$D169,$A169,FALSE)","v":" - Machinery"},"title162"]
[163,"Post-planting operation","Opération Post-plantation","Labores post-siembra","title",{"$f":"HLOOKUP($C$2,$B$8:$D170,$A170,FALSE)","v":"Post-planting operation"},"title163"]
[164," - Manual"," - Manuel"," - Manual ","title",{"$f":"HLOOKUP($C$2,$B$8:$D171,$A171,FALSE)","v":" - Manual"},"title164"]
[165," - Machinery"," - Machine"," - Maquinaria","title",{"$f":"HLOOKUP($C$2,$B$8:$D172,$A172,FALSE)","v":" - Machinery"},"title165"]
[166,"Harvesting ","Récolte","Cosecha","title",{"$f":"HLOOKUP($C$2,$B$8:$D173,$A173,FALSE)","v":"Harvesting "},"title166"]
[167," - Manual"," - Manuel"," - Manual ","title",{"$f":"HLOOKUP($C$2,$B$8:$D174,$A174,FALSE)","v":" - Manual"},"title167"]
[168," - Machinery"," - Machine"," - Maquinaria","title",{"$f":"HLOOKUP($C$2,$B$8:$D175,$A175,FALSE)","v":" - Machinery"},"title168"]
[169,"Miscellaneous","Divers","Varios","title",{"$f":"HLOOKUP($C$2,$B$8:$D176,$A176,FALSE)","v":"Miscellaneous"},"title169"]
[170," - Other"," - Autre"," - Otros","title",{"$f":"HLOOKUP($C$2,$B$8:$D177,$A177,FALSE)","v":" - Other"},"title170"]
[171,"manday/ha","homme-jour/ha","hombre-día/ha","title",{"$f":"HLOOKUP($C$2,$B$8:$D178,$A178,FALSE)","v":"manday/ha"},"title171"]
[172,"hours/ha","heures/ha","horas/ha","title",{"$f":"HLOOKUP($C$2,$B$8:$D179,$A179,FALSE)","v":"hours/ha"},"title172"]
[173,"This table collects information on the typical amount of labour (manual and machinery) required per hectare for each selected crop under rainfed condition.     ","Ce tableau recueille des informations concernant la quantité spécifique de travail nécessaire (manuel/machine) par hectare pour chaque culture sélectionnée pour des conditions pluviale.","Esta tabla recoge información sobre la cantidad típica de mano de obra (manual y maquinaria) requerida por hectárea para cada cultivo seleccionado bajo condiciones de secano.   ","title",{"$f":"HLOOKUP($C$2,$B$8:$D180,$A180,FALSE)","v":"This table collects information on the typical amount of labour (manual and machinery) required per hectare for each selected crop under rainfed condition.     "},"title173"]
[174,"The Land preparation and Planting operationlabour data is required only for the annual crops since, for permanent crops, such data is comprised in the cost of establishing plantation (table above of the section 2.2). Other Miscellaneous labour costs per hectare can be expressed in % of total labour costs within the tool. This data is used in the BEFS RA Crop Budget Tool.","Les données du travail de préparation des sols et des opérations de plantation ne sont exigées que pour les cultures annuelles, puisque pour des cultures permanentes, ces données sont comprises dans le coût de l'établissement de plantation ( tableau ci-dessus de la section 2.2 ). les frais divers du coût du travail par hectare peuvent être exprimés en % des coûts totaux de main-d'œuvre au sein de l'outil. Ces données sont utilisées dans l'Outil Budget de Cultures du BEFS RA.","Los datos de mano de obra de la preparación de la tierra y las labores de siembra sólo son necesaria para los cultivos anuales, ya que, para los cultivos permanentes, tales datos se componen de los costos del establecimiento de las plantaciones (tabla sección 2.2). Otros costos de mano de obra varios por hectárea pueden ser expresados como el % de los costos de mano de obra totales dentro de la herramienta. Estos datos son utilizados en la herramienta Presupuesto Agrícola de la Evaluación Rápida BEFS.","title",{"$f":"HLOOKUP($C$2,$B$8:$D181,$A181,FALSE)","v":"The Land preparation and Planting operationlabour data is required only for the annual crops since, for permanent crops, such data is comprised in the cost of establishing plantation (table above of the section 2.2). Other Miscellaneous labour costs per hectare can be expressed in % of total labour costs within the tool. This data is used in the BEFS RA Crop Budget Tool."},"title174"]
[175,"2.7         Collection of Residues","2.7         La collecte des résidus","2.7         Recolección de Residuos","title",{"$f":"HLOOKUP($C$2,$B$8:$D182,$A182,FALSE)","v":"2.7         Collection of Residues"},"title175"]
[176,"Collection type ","Types de collecte                                                                       ","Tipo de recolección","title",{"$f":"HLOOKUP($C$2,$B$8:$D183,$A183,FALSE)","v":"Collection type "},"title176"]
[177," - Manual "," - Manuel "," - Manual ","title",{"$f":"HLOOKUP($C$2,$B$8:$D184,$A184,FALSE)","v":" - Manual "},"title177"]
[178," - Machinery"," - Machine"," - Maquinaria","title",{"$f":"HLOOKUP($C$2,$B$8:$D185,$A185,FALSE)","v":" - Machinery"},"title178"]
[179,"Machinery type used for collection","Type de machine utilisée pour la collecte                                                             ","Tipo de maquinaria utilizada para la recolección","title",{"$f":"HLOOKUP($C$2,$B$8:$D186,$A186,FALSE)","v":"Machinery type used for collection"},"title179"]
[180," - Average fuel economy"," - économie moyenne de carburant"," - Ahorro promedio de combustible","title",{"$f":"HLOOKUP($C$2,$B$8:$D187,$A187,FALSE)","v":" - Average fuel economy"},"title180"]
[181,"Collection months","Mois de la collecte ","Meses de recolección","title",{"$f":"HLOOKUP($C$2,$B$8:$D188,$A188,FALSE)","v":"Collection months"},"title181"]
[182," - Collection months"," - mois de la collecte"," - Meses de recolección","title",{"$f":"HLOOKUP($C$2,$B$8:$D189,$A189,FALSE)","v":" - Collection months"},"title182"]
[183,"months","mois","meses","title",{"$f":"HLOOKUP($C$2,$B$8:$D190,$A190,FALSE)","v":"months"},"title183"]
[184,"This table gathers information on the type of labour (manual and machinery) required per hectare for each selected crop  collected in the field. The average fuel economy will depend on the type of machinery used to collect the residues. The collections months are determined by the crop calendar of the country.","Ce tableau recueille les informations concernant le type de travail (manuel et machine)  nécessaire par hectar pour la collecte dans le champ de chaque culture sélectionnée. L'économie moyenne de carburant dépendera du type de machine utilisée pour collecter les résidus. Les mois de collecte sont déterminés par le calendrier des cultures du pays.      ","Esta tabla recolecta información sobre el tipo de trabajo (manual y maquinaria) requerida por hectárea para cada cultivo seleccionado recogido en el campo. El ahorro promedio de combustible dependerá del tipo de maquinaria utilizada para recolectar los residuos. Los meses de recolección están determinados por el calendario de cultivos del país. ","title",{"$f":"HLOOKUP($C$2,$B$8:$D191,$A191,FALSE)","v":"This table gathers information on the type of labour (manual and machinery) required per hectare for each selected crop  collected in the field. The average fuel economy will depend on the type of machinery used to collect the residues. The collections months are determined by the crop calendar of the country."},"title184"]
[185,"3.2        Crop-residues: yields and area of crop production","3.2        Résidus de cultures : rendements et lieu de production","3.2        Residuos de cultivos: rendimientos y áreas de producción","title",{"$f":"HLOOKUP($C$2,$B$8:$D192,$A192,FALSE)","v":"3.2        Crop-residues: yields and area of crop production"},"title185"]
[186,"Crop (e.g. barley)","Culture (exemple: orge)","Cultivo (por ejemplo: cebada)","title",{"$f":"HLOOKUP($C$2,$B$8:$D193,$A193,FALSE)","v":"Crop (e.g. barley)"},"title186"]
[187,"Residue (e.g. straw)","Résidu (exemple: paille)","Residuo (por ejemplo: paja)","title",{"$f":"HLOOKUP($C$2,$B$8:$D194,$A194,FALSE)","v":"Residue (e.g. straw)"},"title187"]
[188,"Location of residue generation","Lieu de géneration de résidus ","Lugar de la generación del residuo","title",{"$f":"HLOOKUP($C$2,$B$8:$D195,$A195,FALSE)","v":"Location of residue generation"},"title188"]
[189,"This table is used to select crop-residue types which will be analysed. Please note that only the crop-residue combinations listed in the table above can be found in the dropdown lists of Crop Residues Tool, the selection should be done accordingly. ","Ce tableau est utilisé pour sélectionner les types de résidus de cultures  à analyser. A noter que seules les combinaisons de résidus de cultures énumérés dans le tableau ci-dessus peuvent être trouvés dans les listes déroulantes dans l'outil Résidus de Cultures, la sélection devrait être faite en conséquence.","Esta tabla se usa para seleccionar los tipos de residuos de los cultivos que serán analizados. Por favor, tenga en cuenta que sólo las combinaciones de cultivos de residuos que figuran en la tabla anterior se pueden encontrar en las listas desplegables de la herramienta Residuos de cultivos, la selección debe hacerse en este sentido.","title",{"$f":"HLOOKUP($C$2,$B$8:$D196,$A196,FALSE)","v":"This table is used to select crop-residue types which will be analysed. Please note that only the crop-residue combinations listed in the table above can be found in the dropdown lists of Crop Residues Tool, the selection should be done accordingly. "},"title189"]
[190,"This table collects information on yields and annual production for the selected crops, e.g. yield and annual produciton of barley. ","Ce tableau recueille les informations concernant le rendement et la production annuelle pour les cultures selectionnées: par exemple la production annuelle et le rendement de l'orge. ","En esta tabla se recoge la información sobre los rendimientos y la producción anual de los cultivos seleccionados, por ejemplo, rendimiento y producción anual de cebada.","title",{"$f":"HLOOKUP($C$2,$B$8:$D197,$A197,FALSE)","v":"This table collects information on yields and annual production for the selected crops, e.g. yield and annual produciton of barley. "},"title190"]
[191,"This data is used in the BEFS RA Crop Residues Tool.","Ces données sont utilisées dans l'Outil Résidus de Cultures du BEFS RA.","Estos datos son usados en la herramienta Residuos de cultivos de la Evaluación Rápida BEFS.","title",{"$f":"HLOOKUP($C$2,$B$8:$D198,$A198,FALSE)","v":"This data is used in the BEFS RA Crop Residues Tool."},"title191"]
[192,"3.3        Crop yields and production","3.3        Rendements et production des résidus ","3.3        Rendimientos y Producción de cultivos","title",{"$f":"HLOOKUP($C$2,$B$8:$D199,$A199,FALSE)","v":"3.3        Crop yields and production"},"title192"]
[193,"Annual yield of the selected crop for the last years:","Rendement annuel de la culture sélectionnée pour les années précédentes: ","Rendimiento anual de los cultivos seleccionados para los últimos años:","title",{"$f":"HLOOKUP($C$2,$B$8:$D200,$A200,FALSE)","v":"Annual yield of the selected crop for the last years:"},"title193"]
[194,"3.4        Use and production of residues","3.4        Utilisation et production de résidus ","3.4        Uso y producción de residuos","title",{"$f":"HLOOKUP($C$2,$B$8:$D201,$A201,FALSE)","v":"3.4        Use and production of residues"},"title194"]
[195,"Crop-residue type selected (e.g. barley-straw)","Type de résidus de cultures selectionné (exemple Orge-paille)","Tipo de Residuo de Cultivo seleccionado (ejemplo, cebada-paja)","title",{"$f":"HLOOKUP($C$2,$B$8:$D202,$A202,FALSE)","v":"Crop-residue type selected (e.g. barley-straw)"},"title195"]
[196,"How many tons of residues is produced per ton of crop?","Combien de tonnes de résidus sont produits par tonne de culture?","Cuántas toneladas de residuos se producen por tonelada de cultivo?","title",{"$f":"HLOOKUP($C$2,$B$8:$D203,$A203,FALSE)","v":"How many tons of residues is produced per ton of crop?"},"title196"]
[197,"On average how much residues, expressed in %, is left on the ground (for soil protection and fertily)?","En moyenne, quelle quantité de résidus , exprimée en% , est laissée sur le champ (pour la protection et la fertilité des sols)?","En promedio, cuántos residuos, expresado en % es dejado en el campo (para la protección del suelo y fertilidad?","title",{"$f":"HLOOKUP($C$2,$B$8:$D204,$A204,FALSE)","v":"On average how much residues, expressed in %, is left on the ground (for soil protection and fertily)?"},{"$f":"$E204&$A204","v":"title197"}]
[198,"Are these residues currently used for something? (Y/N)","Actuellement ces residus sont-ils utilisés pour des fins quelconque? (Y/N)","Actualmente, estos residuos son utilizados para algo? (Y/N)","title",{"$f":"HLOOKUP($C$2,$B$8:$D205,$A205,FALSE)","v":"Are these residues currently used for something? (Y/N)"},"title198"]
[199,"If yes, specify the type of use(es) and amount expressed in tons/year","Si c'est le cas, veuillez préciser le type d'utilisation ainsi que la quantité en tonnes/an","Si su respuesta es positiva, especifique el tipo de uso(s) y la cantidad, expresada en toneladas por año","title",{"$f":"HLOOKUP($C$2,$B$8:$D206,$A206,FALSE)","v":"If yes, specify the type of use(es) and amount expressed in tons/year"},"title199"]
[200,"animal feed","l'alimentation et la litière animale ","Alimento animal","title",{"$f":"HLOOKUP($C$2,$B$8:$D207,$A207,FALSE)","v":"animal feed"},"title200"]
[201,"construction","les matériaux de construction ","Construcción","title",{"$f":"HLOOKUP($C$2,$B$8:$D208,$A208,FALSE)","v":"construction"},"title201"]
[202,"industrial processing","l'industrie","Procesamiento industrial","title",{"$f":"HLOOKUP($C$2,$B$8:$D209,$A209,FALSE)","v":"industrial processing"},"title202"]
[203,"energy production (e.g. charcoal)","la production de carburant et d'énergie (ex:charbon)","Producción de energía (ejemplo, carbón)","title",{"$f":"HLOOKUP($C$2,$B$8:$D210,$A210,FALSE)","v":"energy production (e.g. charcoal)"},"title203"]
[204,"other uses","d'autres fins","Otros usos","title",{"$f":"HLOOKUP($C$2,$B$8:$D211,$A211,FALSE)","v":"other uses"},"title204"]
[205,"Are the residues burned in the field after harvest?","Les résidus sont-ils brûlés dans les champs après la récolte?","Los residuos son quemados en el campo después de la cosecha?","title",{"$f":"HLOOKUP($C$2,$B$8:$D212,$A212,FALSE)","v":"Are the residues burned in the field after harvest?"},"title205"]
[206,"How many hectares or % or total area under the crop are burned on average?","Combien d'hectares, de % ou de superficie totale de la culture sont brûlés en moyenne?","Cuantas hectáreas o % del área total bajo cultivo son quemadas en promedio?","title",{"$f":"HLOOKUP($C$2,$B$8:$D213,$A213,FALSE)","v":"How many hectares or % or total area under the crop are burned on average?"},"title206"]
[207,"Crop-residue \n1","Résidus-Culture \n1","Residuo de cultivo \n1","title",{"$f":"HLOOKUP($C$2,$B$8:$D214,$A214,FALSE)","v":"Crop-residue \n1"},"title207"]
[208,"Crop-residue \n2","Résidus-Culture \n2","Residuo de cultivo \n2","title",{"$f":"HLOOKUP($C$2,$B$8:$D215,$A215,FALSE)","v":"Crop-residue \n2"},"title208"]
[209,"Crop-residue \n3","Résidus-Culture \n3","Residuo de cultivo \n3","title",{"$f":"HLOOKUP($C$2,$B$8:$D216,$A216,FALSE)","v":"Crop-residue \n3"},"title209"]
[210,"Crop-residue \n4","Résidus-Culture \n4","Residuo de cultivo \n4","title",{"$f":"HLOOKUP($C$2,$B$8:$D217,$A217,FALSE)","v":"Crop-residue \n4"},"title210"]
[211,"This table collects information on the residue-to-crop ratio as well as on the type of use(es) of residues. If the specific data of the country is not available, consult the table below on default values and select the value which could be representative for the country.","Ce tableau recueille des renseignements concernant le ratio résidu-à-culture ainsi que le type d'utilisation des résidus . Si les données spécifiques du pays ne sont pas disponibles, veuillez consulter le tableau ci-dessous sur les valeurs par défaut et sélectionner la valeur qui pourrait être la plus représentative pour le pays .","Esta tabla recoge información sobre la relación de residuos a cultivos, así como el tipo de uso(s) de los residuos. Si los datos específicos del país no están disponible, consulte la siguiente tabla de valores por defecto y seleccione el valor que podría ser representativas para el país.","title",{"$f":"HLOOKUP($C$2,$B$8:$D218,$A218,FALSE)","v":"This table collects information on the residue-to-crop ratio as well as on the type of use(es) of residues. If the specific data of the country is not available, consult the table below on default values and select the value which could be representative for the country."},"title211"]
[212,"This data is used in the BEFS RA Crop Residues Tool.","Ces données sont utilisées dans l'Outil Résidus de Cultures du BEFS RA.","Estos datos son usados en la herramienta Residuos de cultivos de la Evaluación Rápida BEFS.","title",{"$f":"HLOOKUP($C$2,$B$8:$D219,$A219,FALSE)","v":"This data is used in the BEFS RA Crop Residues Tool."},"title212"]
[213,"3.5       Default values of Residue:Product ratio based on the literature","3.5       Les valeurs par défauts des résidus: le ratio des produits basé sur des recherches bibliographiques","3.5      Valores por defecto de la relación Residuo: Producto basado en la literatura","title",{"$f":"HLOOKUP($C$2,$B$8:$D220,$A220,FALSE)","v":"3.5       Default values of Residue:Product ratio based on the literature"},"title213"]
[214,"Crop-residue type ","Type de résidus-cultures ","Tipo de Residuo de Cultivo","title",{"$f":"HLOOKUP($C$2,$B$8:$D221,$A221,FALSE)","v":"Crop-residue type "},"title214"]
[215,"Residue:Product ratio","Résidu: ratio des produits","Relación Residuo: Producto","title",{"$f":"HLOOKUP($C$2,$B$8:$D222,$A222,FALSE)","v":"Residue:Product ratio"},"title215"]
[216,"average","moyenne","promedio","title",{"$f":"HLOOKUP($C$2,$B$8:$D223,$A223,FALSE)","v":"average"},"title216"]
[217,"min","min","min","title",{"$f":"HLOOKUP($C$2,$B$8:$D224,$A224,FALSE)","v":"min"},"title217"]
[218,"max","max","Max","title",{"$f":"HLOOKUP($C$2,$B$8:$D225,$A225,FALSE)","v":"max"},"title218"]
[219,"stdev","stdev","desviación estándar","title",{"$f":"HLOOKUP($C$2,$B$8:$D226,$A226,FALSE)","v":"stdev"},"title219"]
[220,"Default values collected based on literature review. More details on the literature review process is contained in the related BEFS RA manual.","Les valeurs par défaut sont recueillies sur la base d'études bibliographiques. Plus de détails sur le processus de revu de la documentation est contenu dans le manuel BEFS RA correspondant.","Valores por defecto recolectados basado en la literatura. Para mayor detalles sobre el proceso de revisión de literatura referirse al contenido del manual BEFS.","title",{"$f":"HLOOKUP($C$2,$B$8:$D227,$A227,FALSE)","v":"Default values collected based on literature review. More details on the literature review process is contained in the related BEFS RA manual."},"title220"]
[221,"4.       Livestock residues                                                                                                                                                         (BEFS RA tool: Livestock Residues)","4.       Résidus d'élevage                                                                                                                                                        (L'outil BEFS RA: Résidus d'élevage)  ","4.      Residuos Ganaderos                                                                                                 (Herramienta de Evaluación Rápida BEFS: Residuos Ganaderos)","title",{"$f":"HLOOKUP($C$2,$B$8:$D228,$A228,FALSE)","v":"4.       Livestock residues                                                                                                                                                         (BEFS RA tool: Livestock Residues)"},"title221"]
[222,"4.1        Cattle production","4.1        La production de bovins","4.1       Producción de ganado","title",{"$f":"HLOOKUP($C$2,$B$8:$D229,$A229,FALSE)","v":"4.1        Cattle production"},"title222"]
[223,"Species (Dairy cow or Buffalo)","Espèces de bovins (Vaches laitières ou Buffles)","Especies (vacas lecheras o Búfalos)","title",{"$f":"HLOOKUP($C$2,$B$8:$D230,$A230,FALSE)","v":"Species (Dairy cow or Buffalo)"},"title223"]
[224,"Total number of heads","Nombre total de tête de bovins","Número total de cabezas","title",{"$f":"HLOOKUP($C$2,$B$8:$D231,$A231,FALSE)","v":"Total number of heads"},"title224"]
[225,"Commercial production (%)","Production commerciale (%)","Producción comercial (%)","title",{"$f":"HLOOKUP($C$2,$B$8:$D232,$A232,FALSE)","v":"Commercial production (%)"},"title225"]
[226,"Household level production","Production au niveau des ménages","Producción a nivel doméstico","title",{"$f":"HLOOKUP($C$2,$B$8:$D233,$A233,FALSE)","v":"Household level production"},"title226"]
[227,"Cattle feeding systems","les Systèmes d’Alimentation des Bovins","Sistemas de alimentación de ganado","title",{"$f":"HLOOKUP($C$2,$B$8:$D234,$A234,FALSE)","v":"Cattle feeding systems"},"title227"]
[228,"1. Daily feeding: stable only","1. L'alimentation quotidienne: l'étable seulement","1. Alimentación diaria: establo solamente","title",{"$f":"HLOOKUP($C$2,$B$8:$D235,$A235,FALSE)","v":"1. Daily feeding: stable only"},"title228"]
[229,"2. Daily feeding: grazing and stable ","2. L'alimentation quotidienne : Pâturage et étable ","2. Alimentación diaria: pastoreo y establo","title",{"$f":"HLOOKUP($C$2,$B$8:$D236,$A236,FALSE)","v":"2. Daily feeding: grazing and stable "},"title229"]
[230,"3. Seasonal grazing ","3. Pâturage saisonnier","3. Pastoreo por estaciones","title",{"$f":"HLOOKUP($C$2,$B$8:$D237,$A237,FALSE)","v":"3. Seasonal grazing "},"title230"]
[231,"     - Number of months in pasture ","     - Nombre de mois dans le pâturage ","     - Número de meses en pastoreo","title",{"$f":"HLOOKUP($C$2,$B$8:$D238,$A238,FALSE)","v":"     - Number of months in pasture "},"title231"]
[232,"4. Year-round grazing","4. Pâturage toute l'année","4. Pastoreo durante todo el año","title",{"$f":"HLOOKUP($C$2,$B$8:$D239,$A239,FALSE)","v":"4. Year-round grazing"},"title232"]
[233,"Commercial level production","Production au niveau commercial","Producción a nivel comercial","title",{"$f":"HLOOKUP($C$2,$B$8:$D240,$A240,FALSE)","v":"Commercial level production"},"title233"]
[234,"Cattle feeding systems","les Systèmes d'Alimentation des Bovins","Sistemas de alimentación de ganado","title",{"$f":"HLOOKUP($C$2,$B$8:$D241,$A241,FALSE)","v":"Cattle feeding systems"},"title234"]
[235,"1. Daily feeding: stable only","1. L'alimentation quotidienne: l'étable seulement","1. Alimentación diaria: establo solamente","title",{"$f":"HLOOKUP($C$2,$B$8:$D242,$A242,FALSE)","v":"1. Daily feeding: stable only"},"title235"]
[236,"2. Daily feeding: grazing and stable ","2. L'alimentation quotidienne : Pâturage et étable ","2. Alimentación diaria: pastoreo y establo","title",{"$f":"HLOOKUP($C$2,$B$8:$D243,$A243,FALSE)","v":"2. Daily feeding: grazing and stable "},"title236"]
[237,"3. Seasonal grazing","3. Pâturage saisonnier","3. Pastoreo por estaciones","title",{"$f":"HLOOKUP($C$2,$B$8:$D244,$A244,FALSE)","v":"3. Seasonal grazing"},"title237"]
[238,"     - Number of months in pasture ","     - Nombre de mois dans le pâturage ","     - Número de meses en pastoreo","title",{"$f":"HLOOKUP($C$2,$B$8:$D245,$A245,FALSE)","v":"     - Number of months in pasture "},"title238"]
[239,"4. Year-round grazing","4. Pâturage toute l'année","4. Pastoreo durante todo el año","title",{"$f":"HLOOKUP($C$2,$B$8:$D246,$A246,FALSE)","v":"4. Year-round grazing"},"title239"]
[240,"These tables collect information related to the livestock sector. This data is used in the Livestock Residues tool which then provides input data for the Biogas Tool.","Ces tableaux recueillent des renseignements concernant le secteur de l'élevage. Ces données sont utilisées dans l'outil Résidus d'élevage qui fournit ensuite des données d'intrants pour l'outil Biogaz.","Esta tabla recolecta información relacionada al sector ganadero. Estos datos son usados en la herramienta Residuos ganaderos, la cual provee de datos de entrada para la herramienta Biogás. ","title",{"$f":"HLOOKUP($C$2,$B$8:$D247,$A247,FALSE)","v":"These tables collect information related to the livestock sector. This data is used in the Livestock Residues tool which then provides input data for the Biogas Tool."},"title240"]
[241,"This data is used in the BEFS RA Livestock Residues Tool.","Ces données sont utilisées dans l'Outil Résidus d'élevage du BEFS RA.","Estos datos son usados en la herramienta Residuos Ganaderos de la Evaluación Rápida BEFS.","title",{"$f":"HLOOKUP($C$2,$B$8:$D248,$A248,FALSE)","v":"This data is used in the BEFS RA Livestock Residues Tool."},"title241"]
[242,"4.2       Swine production","4.2       Production porcine","4.2       Producción porcina","title",{"$f":"HLOOKUP($C$2,$B$8:$D249,$A249,FALSE)","v":"4.2       Swine production"},"title242"]
[243,"Total number of heads","Nombre Total de têtes","Número total de cabezas","title",{"$f":"HLOOKUP($C$2,$B$8:$D250,$A250,FALSE)","v":"Total number of heads"},"title243"]
[244,"Commercial production (%)","Production Commerciale (%)","Producción comercial (%)","title",{"$f":"HLOOKUP($C$2,$B$8:$D251,$A251,FALSE)","v":"Commercial production (%)"},"title244"]
[245,"4.3       Chicken production","4.3       Production de poulet","4.3       Producción de pollos","title",{"$f":"HLOOKUP($C$2,$B$8:$D252,$A252,FALSE)","v":"4.3       Chicken production"},"title245"]
[246,"Total (1,000 heads)","Total (1,000 têtes)","Total (1,000 cabezas)","title",{"$f":"HLOOKUP($C$2,$B$8:$D253,$A253,FALSE)","v":"Total (1,000 heads)"},"title246"]
[247,"Commercial production (%)","Production Commerciale (%)","Producción comercial (%)","title",{"$f":"HLOOKUP($C$2,$B$8:$D254,$A254,FALSE)","v":"Commercial production (%)"},"title247"]
[248,"5.       Other product prices                                                                                                                                                    (BEFS RA tool: Briquettes/Pellets)","5.       Autres coûts                                                                                                                                             (L'outil BEFS RA : Briquettes/Granulés de Bois)","5.       Precios de otros productos                                                                                               (Herramienta Evaluación Rápida BEFS: Briquetas/Pellets)","title",{"$f":"HLOOKUP($C$2,$B$8:$D255,$A255,FALSE)","v":"5.       Other product prices                                                                                                                                                    (BEFS RA tool: Briquettes/Pellets)"},"title248"]
[249,"5.1        Market prices","5.1        Prix du Marché","5.1       Precio del mercado","title",{"$f":"HLOOKUP($C$2,$B$8:$D256,$A256,FALSE)","v":"5.1        Market prices"},"title249"]
[250,"Provide the market prices:","Fournir les prix du marché:","Proporcione los precios del mercado:","title",{"$f":"HLOOKUP($C$2,$B$8:$D257,$A257,FALSE)","v":"Provide the market prices:"},"title250"]
[251,"Maize flour","La farine de maïs","Harina de maíz","title",{"$f":"HLOOKUP($C$2,$B$8:$D258,$A258,FALSE)","v":"Maize flour"},"title251"]
[252,"Wheat flour","La farine de blé","Harina de trigo","title",{"$f":"HLOOKUP($C$2,$B$8:$D259,$A259,FALSE)","v":"Wheat flour"},"title252"]
[253,"Cassava flour","La farine de manioc","Harina de yuca","title",{"$f":"HLOOKUP($C$2,$B$8:$D260,$A260,FALSE)","v":"Cassava flour"},"title253"]
[254,"Unit price","Prix Unitaire","Precio unitario","title",{"$f":"HLOOKUP($C$2,$B$8:$D261,$A261,FALSE)","v":"Unit price"},"title254"]
[255,"Table content and BEFS RA use:","Contenu du Tableau et l'utilisation BEFS RA: ","Tabla de contenido y uso de la herramienta de Evaluación Rápida BEFS: ","title",{"$f":"HLOOKUP($C$2,$B$8:$D262,$A262,FALSE)","v":"Table content and BEFS RA use:"},"title255"]
[256,"this table collects data on specific flour prices that are used as inputs in the Briquettes/Pellets Tool.","Ce tableau recueille des renseignements concernant le prix spécifique des farines qui sont utilisées comme intrants dans l'outil Briquettes/Granulés de Bois.","Esta tabla recolecta datos sobre precios de harinas especificas que son usada como insumos en la herramienta Briquetas/Pellets.","title",{"$f":"HLOOKUP($C$2,$B$8:$D263,$A263,FALSE)","v":"this table collects data on specific flour prices that are used as inputs in the Briquettes/Pellets Tool."},"title256"]
[257,"Disclaimer","Clause de non-responsabilité:","Renuncia","title",{"$f":"HLOOKUP($C$2,$B$8:$D264,$A264,FALSE)","v":"Disclaimer"},"title257"]
[258,"FAO declines all responsibility for errors or deficiencies in the database or software or in the documentation accompanying it, for program maintenance and upgrading as well as for any damage that may arise from them. FAO also declines any responsibility for updating the data and assumes no responsibility for errors and omissions in the data provided. Users are, however, kindly asked to report any errors or deficiencies in this product to FAO. The choices of calculation made in this tool are those of the author(s) and do not necessarily reflect the views  and choices of the Food and Agriculture Organization of the United Nations.","La FAO décline toute responsabilité quant aux erreurs ou défauts des textes du présent site et des bases de données y afférentes, ainsi que pour les dommages pouvant en résulter. La FAO décline également toute responsabilité quant à la mise à jour des données et se dégage de toute responsabilité quant aux erreurs ou omissions concernant les données fournies. Les utilisateurs sont toutefois invités à signaler toute erreur ou lacune de ce produit à la FAO. Les choix des calculs faits dans le présent outil sont ceux du/des auteur(s) et ne reflètent pas nécessairement les choix et opinions de l’Organisation des Nations Unies pour l’alimentation et l’agriculture (FAO).","La FAO renuncia a toda responsabilidad por los errores o deficiencias en la base de datos o el software o en la documentación que lo acompaña, para el mantenimiento y la actualización del programa, así como de los daños que puedan derivarse de ellos. Asimismo, la FAO renuncia a cualquier responsabilidad por la actualización de los datos y no asume ninguna responsabilidad por errores u omisiones en los datos suministrados. Los usuarios, sin embargo, se deberían informar de cualquier error o deficiencia de este producto a la FAO. Las opciones de cálculo realizado en esta herramienta son las del autor o autores y no reflejan necesariamente las opiniones y elecciones de la Organización de las Naciones Unidas para la Agricultura y la Alimentación.","title",{"$f":"HLOOKUP($C$2,$B$8:$D265,$A265,FALSE)","v":"FAO declines all responsibility for errors or deficiencies in the database or software or in the documentation accompanying it, for program maintenance and upgrading as well as for any damage that may arise from them. FAO also declines any responsibility for updating the data and assumes no responsibility for errors and omissions in the data provided. Users are, however, kindly asked to report any errors or deficiencies in this product to FAO. The choices of calculation made in this tool are those of the author(s) and do not necessarily reflect the views  and choices of the Food and Agriculture Organization of the United Nations."},"title258"]
[259,"FORESTRY","EXPLOITATION FORESTIÈRE","SILVICULTURA","title",{"$f":"HLOOKUP($C$2,$B$8:$D266,$A266,FALSE)","v":"FORESTRY"},"title259"]
[260,"1. Forest harvesting and harvesting residues, 2. Wood processing residues,\n3. Woodfuel plantation budget","1. Exploitation forestière, 2. Résidus de la transformation du bois,\n3. Budget de plantation de combustibles ligneux","1. Aprovechamiento forestal y recolección de residuos, 2. Residuos de procesamiento de madera, \n3. Presupuesto de plantaciones de madera como combustible.","title",{"$f":"HLOOKUP($C$2,$B$8:$D267,$A267,FALSE)","v":"1. Forest harvesting and harvesting residues, 2. Wood processing residues,\n3. Woodfuel plantation budget"},"title260"]
[261,"Section 1: Forest harvesting and harvesting residues collects data for use in the FOREST HARVESTING TOOL","Section 1:  Exploitation Forestière et Résidus d'Exploitation Forestière collecte les données à utiliser de L'OUTIL EXPLOITATION FORESTIERE du BEFS RA ","Sección 1: Recolección de datos sobre el Aprovechamiento forestal y recolección de residuos para ser usados en la Herramienta APROVECHAMIENTO FORESTAL ","title",{"$f":"HLOOKUP($C$2,$B$8:$D268,$A268,FALSE)","v":"Section 1: Forest harvesting and harvesting residues collects data for use in the FOREST HARVESTING TOOL"},{"$f":"$E268&$A268","v":"title261"}]
[262,"Section 2: Wood processing residues collects data for use in the WOOD PROCESSING RESIDUES TOOL ","Section 2: Résidus de la transformation du bois collecte les données à utiliser de L'OUTILS RESIDUS DE LA TRANSFORMATION DU BOIS du BEFS RA","Sección 2: Recolección de datos sobre Residuos del procesamiento de la madera para ser usados en la Herramienta RESIDUOS DEL PROCESAMIENTO DE LA MADERA ","title",{"$f":"HLOOKUP($C$2,$B$8:$D269,$A269,FALSE)","v":"Section 2: Wood processing residues collects data for use in the WOOD PROCESSING RESIDUES TOOL "},"title262"]
[263,"Section 3: Woodfuel plantation budget collects data for use in the WOODFUEL PLANTATION BUDGET TOOL","Section 3: Budget de plantation de combustibles ligneux collecte les données à utiliser de L'OUTIL BUDGET DE PLANTATION DE COMBUSTIBLES LIGNEUX du BEFS RA","Sección 3: Recolección de datos sobre el presupuesto de plantaciones de madera como combustible para ser usados en la Herramienta PRESUPUESTO DE PLANTACIONES DE MADERA ","title",{"$f":"HLOOKUP($C$2,$B$8:$D270,$A270,FALSE)","v":"Section 3: Woodfuel plantation budget collects data for use in the WOODFUEL PLANTATION BUDGET TOOL"},"title263"]
[264,"1.       Forest harvesting and harvesting residues                                                                                                                  (BEFS RA tool: Forest Harvesting)","1.       Exploitation Forestière et Résidus d'Exploitation Forestière                                                                                                      (L'outil BEFS RA : Exploitation Forestière)","1.      Aprovechamiento Forestal y Residuos del Aprovechamiento de la madera                                                            (Herramienta BEFS: Aprovechamiento Forestal)","title",{"$f":"HLOOKUP($C$2,$B$8:$D271,$A271,FALSE)","v":"1.       Forest harvesting and harvesting residues                                                                                                                  (BEFS RA tool: Forest Harvesting)"},"title264"]
[265,"1.1       Roundwood production","1.1       Production de Bois Rond","1.1      Producción de madera en rollo","title",{"$f":"HLOOKUP($C$2,$B$8:$D272,$A272,FALSE)","v":"1.1       Roundwood production"},"title265"]
[266,"Year/ Time period","Année/Période de temps ","Año/período de tiempo","title",{"$f":"HLOOKUP($C$2,$B$8:$D273,$A273,FALSE)","v":"Year/ Time period"},"title266"]
[267,"Total roundwood[1]","Total de Bois Rond[1]","Total madera en rollo[1]","title",{"$f":"HLOOKUP($C$2,$B$8:$D274,$A274,FALSE)","v":"Total roundwood[1]"},"title267"]
[268,"Industrial roundwood[2] ","Bois Rond Industriel[2] ","Madera en rollo Industrial[2]","title",{"$f":"HLOOKUP($C$2,$B$8:$D275,$A275,FALSE)","v":"Industrial roundwood[2] "},"title268"]
[269,"Woodfuel[3]","Combustibles Ligneux[3]","Madera para combustible[3]","title",{"$f":"HLOOKUP($C$2,$B$8:$D276,$A276,FALSE)","v":"Woodfuel[3]"},"title269"]
[270,"1.2       Rate of felling removal","1.2       Vitesse d'élimination de l'abattage","1.2      Tasa de remoción de tala","title",{"$f":"HLOOKUP($C$2,$B$8:$D277,$A277,FALSE)","v":"1.2       Rate of felling removal"},"title270"]
[271,"Industrial roundwood","Bois Rond Industriel","Madera en rollo industrial","title",{"$f":"HLOOKUP($C$2,$B$8:$D278,$A278,FALSE)","v":"Industrial roundwood"},"title271"]
[272,"coniferous ","Conifères","Coníferos","title",{"$f":"HLOOKUP($C$2,$B$8:$D279,$A279,FALSE)","v":"coniferous "},"title272"]
[273,"non-coniferous","Non-Conifères","no-coníferos","title",{"$f":"HLOOKUP($C$2,$B$8:$D280,$A280,FALSE)","v":"non-coniferous"},"title273"]
[274,"Woodfuel","Combustibles Ligneux","Madera combustible","title",{"$f":"HLOOKUP($C$2,$B$8:$D281,$A281,FALSE)","v":"Woodfuel"},"title274"]
[275,"1.3       Wood density","1.3       Densité du Bois","1.3       Densidad de la madera","title",{"$f":"HLOOKUP($C$2,$B$8:$D282,$A282,FALSE)","v":"1.3       Wood density"},"title275"]
[276,"1.4       Tree composition (above stump) for the dominant forest type","1.4       Composition des arbres (souches supérieures) pour le type de forêt prédominant ","1.4       Composición de los árboles (por encima del tocón) para el tipo de bosque dominante. ","title",{"$f":"HLOOKUP($C$2,$B$8:$D283,$A283,FALSE)","v":"1.4       Tree composition (above stump) for the dominant forest type"},"title276"]
[277,"Crown[1]  (% of above stump tree)","Couronne[1]  (% de l'arbre)","Corona1  (% del árbol por encima del tocón)","title",{"$f":"HLOOKUP($C$2,$B$8:$D284,$A284,FALSE)","v":"Crown[1]  (% of above stump tree)"},"title277"]
[278,"Foliage[2]  (% of crown)","Feuillage[2] (% de la couronne)","Follaje2 (% de la corona)","title",{"$f":"HLOOKUP($C$2,$B$8:$D285,$A285,FALSE)","v":"Foliage[2]  (% of crown)"},"title278"]
[279,"Stem+bark[3] (% of above stump tree)","Tronc + Écorce[3] (% de l'arbre)","Tallo+corteza3 (% del árbol por encima del tocón)","title",{"$f":"HLOOKUP($C$2,$B$8:$D286,$A286,FALSE)","v":"Stem+bark[3] (% of above stump tree)"},"title279"]
[280,"Bark[4](% of stem)","Écorce[4](% du tronc)","Corteza4(% del tallo)","title",{"$f":"HLOOKUP($C$2,$B$8:$D287,$A287,FALSE)","v":"Bark[4](% of stem)"},"title280"]
[281,"Current use of harvesting residues","Utilisation actuelle de résidus d'exploitation forestière","Uso actual de los residuos de cosecha","title",{"$f":"HLOOKUP($C$2,$B$8:$D288,$A288,FALSE)","v":"Current use of harvesting residues"},"title281"]
[282,"1.5       Share of residues that can be collected at a reasonable cost","1.5       Pourcentage de Résidus pouvant être collectés à un cout raisonnable","1.5      Participación de los residuos que se pueden recolectar a un costo razonable","title",{"$f":"HLOOKUP($C$2,$B$8:$D289,$A289,FALSE)","v":"1.5       Share of residues that can be collected at a reasonable cost"},"title282"]
[283,"Branches and various cut-offs","Branches et différentes coupes","Ramificaciones y varios cortes","title",{"$f":"HLOOKUP($C$2,$B$8:$D290,$A290,FALSE)","v":"Branches and various cut-offs"},"title283"]
[284,"Bark","Écorces","Corteza","title",{"$f":"HLOOKUP($C$2,$B$8:$D291,$A291,FALSE)","v":"Bark"},"title284"]
[285,"2.       Wood processing residues                                                                                                                                (BEFS RA tool: Wood processing residues)","2.       Résius de la transformation du Bois                                                                                                                         (L'outil BEFS RA : Résidus de la transformation de Bois)","2.       Residuos del Procesamiento de la madera                                                                                            (Herramienta BEFS: Residuos del procesamiento de la Madera)","title",{"$f":"HLOOKUP($C$2,$B$8:$D292,$A292,FALSE)","v":"2.       Wood processing residues                                                                                                                                (BEFS RA tool: Wood processing residues)"},"title285"]
[286,"2.1       Sawnwood production in the country (area of analysis)","2.1       Production de sciages dans le pays (context de l'analyse)","2.1       Producción de madera aserrada en el país (área de análisis)","title",{"$f":"HLOOKUP($C$2,$B$8:$D293,$A293,FALSE)","v":"2.1       Sawnwood production in the country (area of analysis)"},"title286"]
[287,"Year / average for years:","Années/moyenne pour des années:","Año / promedio por años:","title",{"$f":"HLOOKUP($C$2,$B$8:$D294,$A294,FALSE)","v":"Year / average for years:"},"title287"]
[288,"Total sawnwood produced","Total de sciage produit","Total producido de madera aserrada","title",{"$f":"HLOOKUP($C$2,$B$8:$D295,$A295,FALSE)","v":"Total sawnwood produced"},"title288"]
[289,"2.2       Average efficiency of sawmills in the country (area of analysis)","2.2       L'efficacité moyenne des scieries dans le pays (context de l'anlyse)","2.2        Eficiencia promedio de los aserraderos en el país (área de análisis)","title",{"$f":"HLOOKUP($C$2,$B$8:$D296,$A296,FALSE)","v":"2.2       Average efficiency of sawmills in the country (area of analysis)"},"title289"]
[290,"Ratio of sawmill outputs and roundwood input ","Rapport de production de scieries et apport de bois rond ","Relación de las salidas de aserraderos y de las entradas de la madera en rollo","title",{"$f":"HLOOKUP($C$2,$B$8:$D297,$A297,FALSE)","v":"Ratio of sawmill outputs and roundwood input "},"title290"]
[291,"Product and residue types","Produits et types de résidus","Tipos de producto y residuos","title",{"$f":"HLOOKUP($C$2,$B$8:$D298,$A298,FALSE)","v":"Product and residue types"},"title291"]
[292,"Sawnwood[1] (recovery rate)","Sciages[1] (taux de récupération)","Madera aserrada[1] (Tasa de recuperación)","title",{"$f":"HLOOKUP($C$2,$B$8:$D299,$A299,FALSE)","v":"Sawnwood[1] (recovery rate)"},"title292"]
[293,"Sawdust[2]","Sciure[2]","Aserrín[2]","title",{"$f":"HLOOKUP($C$2,$B$8:$D300,$A300,FALSE)","v":"Sawdust[2]"},"title293"]
[294,"Slabs and chips[3]","Plaques et puces[3]","Placas y astillas[3]","title",{"$f":"HLOOKUP($C$2,$B$8:$D301,$A301,FALSE)","v":"Slabs and chips[3]"},"title294"]
[295,"Shrinkage and other losses[4]","Rétrécissement et autres pertes[4]","Contracción y otras pérdidas[4]","title",{"$f":"HLOOKUP($C$2,$B$8:$D302,$A302,FALSE)","v":"Shrinkage and other losses[4]"},"title295"]
[296,"2.3       Current use of wood processing residues","2.3       Utilisation actuelle des résidus de l'exploitation forestière ","2.3      Uso actual de los residuos del procesamiento de la madera","title",{"$f":"HLOOKUP($C$2,$B$8:$D303,$A303,FALSE)","v":"2.3       Current use of wood processing residues"},"title296"]
[297,"Current use of wood processing residues","Utilisation actuelle des résidus de l'exploitation forestière ","Uso actual de los residuos del procesamiento de la madera","title",{"$f":"HLOOKUP($C$2,$B$8:$D304,$A304,FALSE)","v":"Current use of wood processing residues"},"title297"]
[298,"Sawdust","Sciure","Aserrín","title",{"$f":"HLOOKUP($C$2,$B$8:$D305,$A305,FALSE)","v":"Sawdust"},"title298"]
[299,"Slabs and chips","Plaques et puces","Placas y astillas","title",{"$f":"HLOOKUP($C$2,$B$8:$D306,$A306,FALSE)","v":"Slabs and chips"},"title299"]
[300,"3.       Woodfuel plantation budget                                                                                                                     (BEFS RA tool: Woodfuel Plantation Budget)","3.       Budget de Plantation de Combustibles Ligneux                                                                               (L'outil BEFS RA: Budget de Plantations de Combustibles Ligneux)","3.       Presupuesto para Plantaciones de Madera como Combustible           (Herramienta BEFS: Presupuesto para Plantaciones de Madera como Combustible )","title",{"$f":"HLOOKUP($C$2,$B$8:$D307,$A307,FALSE)","v":"3.       Woodfuel plantation budget                                                                                                                     (BEFS RA tool: Woodfuel Plantation Budget)"},"title300"]
[301,"3.1       Selection of species and wood production characteristics","3.1       Sélection des espèces d'arbres ainsi que des caractéristiques de production de bois","3.1       Selección de las características de las especies y producción de madera","title",{"$f":"HLOOKUP($C$2,$B$8:$D308,$A308,FALSE)","v":"3.1       Selection of species and wood production characteristics"},"title301"]
[302,"Select the species","Sélection des espèces d'arbres","Selección de las especies:","title",{"$f":"HLOOKUP($C$2,$B$8:$D309,$A309,FALSE)","v":"Select the species"},"title302"]
[303,"Planted area in the country","Superficie Plantée dans le pays","Área planteada en el país","title",{"$f":"HLOOKUP($C$2,$B$8:$D310,$A310,FALSE)","v":"Planted area in the country"},"title303"]
[304,"Planting density per hectare","Densité de plantation par hectare","Densidad planteada por hectárea","title",{"$f":"HLOOKUP($C$2,$B$8:$D311,$A311,FALSE)","v":"Planting density per hectare"},"title304"]
[305,"Average rotation length ","Longueur moyenne de rotation ","Duración promedio de la rotación","title",{"$f":"HLOOKUP($C$2,$B$8:$D312,$A312,FALSE)","v":"Average rotation length "},"title305"]
[306,"Mean Annual Increment (average MAI)","Accroissement Moyen Annuel (AMI)","Incremento Promedio Anual  (promedio MAI)","title",{"$f":"HLOOKUP($C$2,$B$8:$D313,$A313,FALSE)","v":"Mean Annual Increment (average MAI)"},"title306"]
[307,"Total harvestable volume for bioenergy purposes","Volume Total récoltable à des fins bioénergetiques","Volumen total cosechable para los propósitos de bioenergía ","title",{"$f":"HLOOKUP($C$2,$B$8:$D314,$A314,FALSE)","v":"Total harvestable volume for bioenergy purposes"},"title307"]
[308,"Low heating value (energy content) of wood harvested","Faible Pouvoir Calorifique (contenu énergétique) du bois recolté","Valor de calentamiento bajo (contenido energético) de madera cosechada","title",{"$f":"HLOOKUP($C$2,$B$8:$D315,$A315,FALSE)","v":"Low heating value (energy content) of wood harvested"},"title308"]
[309,"Moisture content","Humidité","Contenido de humedad","title",{"$f":"HLOOKUP($C$2,$B$8:$D316,$A316,FALSE)","v":"Moisture content"},"title309"]
[310,"Species 1"," Espèce 1","Especie 1","title",{"$f":"HLOOKUP($C$2,$B$8:$D317,$A317,FALSE)","v":"Species 1"},"title310"]
[311,"Species 2"," Espèce 2","Especie 2","title",{"$f":"HLOOKUP($C$2,$B$8:$D318,$A318,FALSE)","v":"Species 2"},"title311"]
[312,"m3/ha/year","m3/ha/an","m3/ha/año","title",{"$f":"HLOOKUP($C$2,$B$8:$D319,$A319,FALSE)","v":"m3/ha/year"},"title312"]
[313,"3.2       Current prices","3.2       Prix actuels","3.2       Precios actuales","title",{"$f":"HLOOKUP($C$2,$B$8:$D320,$A320,FALSE)","v":"3.2       Current prices"},"title313"]
[314,"Seedling","Semis","Plántula","title",{"$f":"HLOOKUP($C$2,$B$8:$D321,$A321,FALSE)","v":"Seedling"},"title314"]
[315,"Farm-gate price of harvested fuelwood (stack) - (please provide also the unit)","Prix payés à la porte de traitement des Combustibles Ligneux récoltés (pile) - (Veuillez fournir l'unité)","Precio en finca de madera como combustible cosechada (apila) - (indicar también la unidad)","title",{"$f":"HLOOKUP($C$2,$B$8:$D322,$A322,FALSE)","v":"Farm-gate price of harvested fuelwood (stack) - (please provide also the unit)"},"title315"]
[316,"USD/piece","USD/piece","USD/pieza","title",{"$f":"HLOOKUP($C$2,$B$8:$D323,$A323,FALSE)","v":"USD/piece"},"title316"]
[317,"3.3       Fertilizer nutrients (total amount per hectare)","3.3       Composition des Engrais (quantité totale par hectare)","3.3       Nutrientes de los fertilizantes (cantidad total por hectárea)","title",{"$f":"HLOOKUP($C$2,$B$8:$D324,$A324,FALSE)","v":"3.3       Fertilizer nutrients (total amount per hectare)"},"title317"]
[318,"Nutrients application per hectare overall the rotation lenght","Utilisation des engrais par hectare Durée Totale de Rotation","Aplicación de nutrientes por hectárea durante toda la duración de la rotación","title",{"$f":"HLOOKUP($C$2,$B$8:$D325,$A325,FALSE)","v":"Nutrients application per hectare overall the rotation lenght"},"title318"]
[319,"Enter which year (s) of rotation lenght nutrients are applied","Entrer l'année/les années pour laquelle/lesquelles la durée de rotation des engrais a été appliquée","Ingrese en que año(s) de la duración de la rotación se aplican los nutrientes","title",{"$f":"HLOOKUP($C$2,$B$8:$D326,$A326,FALSE)","v":"Enter which year (s) of rotation lenght nutrients are applied"},"title319"]
[320,"Total nitrogen applied","Azote Total utilisé","Nitrógeno total aplicado","title",{"$f":"HLOOKUP($C$2,$B$8:$D327,$A327,FALSE)","v":"Total nitrogen applied"},"title320"]
[321,"Total phosphorus applied","Phosphore Total utilisé","Fosforo total aplicado","title",{"$f":"HLOOKUP($C$2,$B$8:$D328,$A328,FALSE)","v":"Total phosphorus applied"},"title321"]
[322,"Total potassium applied","Potassium Total utilisé","Potasio total aplicado","title",{"$f":"HLOOKUP($C$2,$B$8:$D329,$A329,FALSE)","v":"Total potassium applied"},"title322"]
[323,"Other agrochemicals","Autres produits agrochimiques","Otros agroquímicos","title",{"$f":"HLOOKUP($C$2,$B$8:$D330,$A330,FALSE)","v":"Other agrochemicals"},"title323"]
[324,"3.4       Machinery rental rates (averages)","3.4      Taux de location des machines  (moyennes)","3.4       Precios de alquiler de maquinaria (promedio)","title",{"$f":"HLOOKUP($C$2,$B$8:$D331,$A331,FALSE)","v":"3.4       Machinery rental rates (averages)"},"title324"]
[325,"Rate","Taux","Relación","title",{"$f":"HLOOKUP($C$2,$B$8:$D332,$A332,FALSE)","v":"Rate"},{"$f":"$E332&$A332","v":"title325"}]
[326,"1. Forestry operation","1. Travail Forestier","1. Operación forestal","title",{"$f":"HLOOKUP($C$2,$B$8:$D333,$A333,FALSE)","v":"1. Forestry operation"},"title326"]
[327,"3.5       Labour (total amount per hectare) and related year(s) of rotation lenght","3.5       Travail (nombre total par hectare) et les durées de rotation correspondantes en années","3.5       Mano de obra (cantidad total por hectárea) y año(s) relacionados a la duración de la rotación","title",{"$f":"HLOOKUP($C$2,$B$8:$D334,$A334,FALSE)","v":"3.5       Labour (total amount per hectare) and related year(s) of rotation lenght"},"title327"]
[328,"Operation","Operation","Operación","title",{"$f":"HLOOKUP($C$2,$B$8:$D335,$A335,FALSE)","v":"Operation"},"title328"]
[329,"Land preparation and clearing","Préparation du sol et défrichage","Preparación de la tierra y limpieza","title",{"$f":"HLOOKUP($C$2,$B$8:$D336,$A336,FALSE)","v":"Land preparation and clearing"},"title329"]
[330,"Manual:","Manuel:","Manual:","title",{"$f":"HLOOKUP($C$2,$B$8:$D337,$A337,FALSE)","v":"Manual:"},"title330"]
[331,"Machinery:","Mécanisé:","Maquinaria:","title",{"$f":"HLOOKUP($C$2,$B$8:$D338,$A338,FALSE)","v":"Machinery:"},"title331"]
[332,"Planting","Plantation","Siembra","title",{"$f":"HLOOKUP($C$2,$B$8:$D339,$A339,FALSE)","v":"Planting"},"title332"]
[333,"Fertilizer application","Application d'engrais ","Aplicación de fertilizantes","title",{"$f":"HLOOKUP($C$2,$B$8:$D340,$A340,FALSE)","v":"Fertilizer application"},"title333"]
[334,"Application of other agrochemicals ","Application d'autres produits agrochimiques ","Aplicación de otros agroquímicos","title",{"$f":"HLOOKUP($C$2,$B$8:$D341,$A341,FALSE)","v":"Application of other agrochemicals "},"title334"]
[335,"Harvesting","Récolte","Cosecha","title",{"$f":"HLOOKUP($C$2,$B$8:$D342,$A342,FALSE)","v":"Harvesting"},"title335"]
[336,"Other operation:","Autre main-d'oeuvre","Otras operaciones","title",{"$f":"HLOOKUP($C$2,$B$8:$D343,$A343,FALSE)","v":"Other operation:"},"title336"]
[337,"Year(s) of rotation*","Durée de rotation en années*","Año(s) de rotación*","title",{"$f":"HLOOKUP($C$2,$B$8:$D344,$A344,FALSE)","v":"Year(s) of rotation*"},"title337"]
[338,"Total \nman-days/ha","Total \njours-homme/ha","Total \nhombre-días/ha","title",{"$f":"HLOOKUP($C$2,$B$8:$D345,$A345,FALSE)","v":"Total \nman-days/ha"},"title338"]
[339,"Total hours/ha","Total heures/ha","Total horas/ha","title",{"$f":"HLOOKUP($C$2,$B$8:$D346,$A346,FALSE)","v":"Total hours/ha"},"title339"]
[340,"Annual/average annual total roundwood, industrial roundwood and woodfuel production in the assessment area expressed in 1,000 m3. ","Production Annuelle/Production moyenne annuelle du total du Bois Rond, du Bois Rond industriel et des Combustibles Ligneux dans le contexte de l'analyse exprimée en 1,000 m3. ","Producción anual/ promedio anual de la madera en rollo total, madera en rollo industrial y de madera para combustible en el área de evaluación, expresado en 1,000 m3. ","title",{"$f":"HLOOKUP($C$2,$B$8:$D347,$A347,FALSE)","v":"Annual/average annual total roundwood, industrial roundwood and woodfuel production in the assessment area expressed in 1,000 m3. "},"title340"]
[341,"[1]Total roundwood includes both industrial roundwood and woodfuel, i.e. it is a sum of production of industrial roundwood and woodfuel.  ","[1] Le total Bois Rond comprend à la fois le bois rond industriel et  le bois de chauffage.  ","[1]Madera en rollo total incluye tanto la madera en rollo industrial como la madera para combustible, es decir, es la suma de la producción de madera en rollo industrial y la madera para combustible.  ","title",{"$f":"HLOOKUP($C$2,$B$8:$D348,$A348,FALSE)","v":"[1]Total roundwood includes both industrial roundwood and woodfuel, i.e. it is a sum of production of industrial roundwood and woodfuel.  "},"title341"]
[342,"[2]Industrial roundwood refers to the wood used for production of goods and services other than energy production.","[2]Le bois rond industriel fait référence au bois extrait pour la production de biens et services autres que la production d'énergie.","[2]Madera en rollo industrial se refiere a la madera utilizada para la producción de bienes y servicios distintos de la producción de energía.","title",{"$f":"HLOOKUP($C$2,$B$8:$D349,$A349,FALSE)","v":"[2]Industrial roundwood refers to the wood used for production of goods and services other than energy production."},"title342"]
[343,"[3]Woodfuel production refers to the wood removed for energy production purposes, regardless whether for industrial, commercial or household use. ","[3]Le combustible ligneux fait référence au bois extrait  pour la production d'énergie, que ce soit pour un usage industriel, commercial ou domestique ","[3]Producción de madera para combustible se refiere a la madera extraída para la producción de energía ya sea para uso industrial, comercial o doméstico.","title",{"$f":"HLOOKUP($C$2,$B$8:$D350,$A350,FALSE)","v":"[3]Woodfuel production refers to the wood removed for energy production purposes, regardless whether for industrial, commercial or household use. "},"title343"]
[344,"The rate of felling removal from the forest, i.e. percentage of the wood that is removed from the forest after the felling. The data should be provided for industrial roundwood and woodfuel, for coniferous and non-coniferous species. If the rate of felling removal is the same, it should be repeated. ","Le taux d'extraction de l'abattage de la forêt  (exemple le pourcentage de bois enlevé de la forêt après l'abattage). Les données doivent être fournies pour le bois rond indutriel et les combustibles ligneux, pour les espèces conifères et non-conifères. Si le taux d'extraction de l'abattage est le même pour les deux alors il faudrait le répéter. ","La tasa de remoción de la tala del bosque, es decir, el porcentaje de la madera que se extrae del bosque después de la tala. Los datos deben ser proporcionados para madera en rollo industrial y madera combustible, para las especies de coníferas y no coníferas. Si la tasa de remoción de la tala es la misma, se debe repetir.","title",{"$f":"HLOOKUP($C$2,$B$8:$D351,$A351,FALSE)","v":"The rate of felling removal from the forest, i.e. percentage of the wood that is removed from the forest after the felling. The data should be provided for industrial roundwood and woodfuel, for coniferous and non-coniferous species. If the rate of felling removal is the same, it should be repeated. "},"title344"]
[345,"Density of predominant coniferous and non-coniferous wood at the moisture content of 15%, expressed in t/m3. If the information for coniferous and non-coniferous species is not available, average value can be used.","La densité du bois des espèces prédominantes de conifères et de non-conifères  ayant  15% d'humidité est exprimée en t/m3. Si cette information n'est pas disponible une valeur par défaut peut être utilisée ","Densidad de la madera de las coníferas predominantes y las no-coníferas con un contenido de humedad del 15%, expresado en t/m3. Si la información para las especies de coníferas y no coníferas no está disponible, un valor promedio puede ser usado.","title",{"$f":"HLOOKUP($C$2,$B$8:$D352,$A352,FALSE)","v":"Density of predominant coniferous and non-coniferous wood at the moisture content of 15%, expressed in t/m3. If the information for coniferous and non-coniferous species is not available, average value can be used."},"title345"]
[346,"Tree composition in the dominant forest type harvested.      ","La composition des arbres dans le type de forêt prédominant      ","Composición de los árboles para el tipo de bosque dominante.  ","title",{"$f":"HLOOKUP($C$2,$B$8:$D353,$A353,FALSE)","v":"Tree composition in the dominant forest type harvested.      "},"title346"]
[347,"[1]Crown (% of above stump tree) = ratio of the crown (branches, upper logs and foliage) to the felled tree. The sum of crown and stem should make 100%. ","[1]Couronne (% des souches supérieures de l'arbre) = rapport de la couronne (branches, bûches et feuillage) à l'arbre abattu. La somme des couronnes et des tiges  doit être équivalente à 100%. ","[1]Corona (% del árbol por encima del tocón) = relación de la corona (ramas, troncos superiores y follaje) para el árbol talado. La suma de la corona y el tallo debe ser 100%. ","title",{"$f":"HLOOKUP($C$2,$B$8:$D354,$A354,FALSE)","v":"[1]Crown (% of above stump tree) = ratio of the crown (branches, upper logs and foliage) to the felled tree. The sum of crown and stem should make 100%. "},"title347"]
[348,"[2]Foliage (% of crown) = ratio of the foliage (leaves) and the crown.","[2]Feuillage (% de la couronne) = rapport du feuillage (feuilles) et la couronne.","[2]Follaje (% de la corona) = relación del follaje (hojas) y la corona.","title",{"$f":"HLOOKUP($C$2,$B$8:$D355,$A355,FALSE)","v":"[2]Foliage (% of crown) = ratio of the foliage (leaves) and the crown."},"title348"]
[349,"[3]Stem+bark (% of above stump tree) = ratio of the overbark stem to the felled tree. The sum of crown and stem should make 100%. ","[3]Tronc et écorce (% des souches supérieures de l'arbre) = rapport de l'écorce/tronc à l'arbre abattu. La somme de la couronne et du tronc doit être équivalente à 100%. ","[3]Tallo+corteza (% del árbol por encima del tocón) = relación del tallo de la corteza hacia el árbol talado. La suma de la corona y el tallo debe ser 100%. ","title",{"$f":"HLOOKUP($C$2,$B$8:$D356,$A356,FALSE)","v":"[3]Stem+bark (% of above stump tree) = ratio of the overbark stem to the felled tree. The sum of crown and stem should make 100%. "},"title349"]
[350,"[4]Bark (% of stem) = ratio of bark and stem.","[3]Écorce (% du tronc) = rapport de l'écorce au tronc.","[3]Corteza (% del tallo) = relación del tallo y la corteza.","title",{"$f":"HLOOKUP($C$2,$B$8:$D357,$A357,FALSE)","v":"[4]Bark (% of stem) = ratio of bark and stem."},"title350"]
[351,"The percentage of the harvesting residues which is collected already used. The information for both industrial roundwood and woodfuel harvesting residues should be collected. The percentage should include officially recored removals and estimated unrecorded removals. ","C'est le pourcentage d'utilisation de résidus d'exploitation forestière actuellement récoltés. Les données doivent être fournies pour le bois rond indutriel et les combustibles ligneux. Le pourcentage doit inclure ce qui a été officiellement enregistré comme étant retiré ainsi que les estimations des composants non-enregistrés. ","El porcentaje de los residuos de la cosecha que se recoge y ya son utilizados. La información, tanto para la madera en rollo industrial y residuos del aprovechamiento de la madera combustible deben ser recolectada. El porcentaje debe incluir oficialmente la remoción registrada  y la remoción no registrada estimada. ","title",{"$f":"HLOOKUP($C$2,$B$8:$D358,$A358,FALSE)","v":"The percentage of the harvesting residues which is collected already used. The information for both industrial roundwood and woodfuel harvesting residues should be collected. The percentage should include officially recored removals and estimated unrecorded removals. "},"title351"]
[352,"The percentage of harvesting residues that can be collected at a reasonable price. ","Pourcentage de Résidus pouvant être collectés à un prix raisonnable","Porcentaje de los residuos de cosecha que se puede recoger en un precio razonable.","title",{"$f":"HLOOKUP($C$2,$B$8:$D359,$A359,FALSE)","v":"The percentage of harvesting residues that can be collected at a reasonable price. "},"title352"]
[353,"When determining the percentage of collectable residues, accessability, labour cost, logistics (transportation infrastracture) should be taken into account. ","Lors de la détermination du pourcentage de résidus  pouvant être collectés, l'accessibilité ,le  coût du travail et la logistique (les infrastractures de transport) devraient être pris en compte. ","Cuando se determina el porcentaje de residuos re-colectables, se debe tener en cuenta la accesibilidad,  costos de mano de obra, logística (infraestructura del transporte).","title",{"$f":"HLOOKUP($C$2,$B$8:$D360,$A360,FALSE)","v":"When determining the percentage of collectable residues, accessability, labour cost, logistics (transportation infrastracture) should be taken into account. "},"title353"]
[354,"Annual production of sawnwood, expressed in 1,000 m3 per year. ","Production annuelle de sciage exprimée en 1,000 m3 par an. ","Producción anual de madera aserrada, expresado en 1,000 m3 por año. ","title",{"$f":"HLOOKUP($C$2,$B$8:$D361,$A361,FALSE)","v":"Annual production of sawnwood, expressed in 1,000 m3 per year. "},"title354"]
[355,"Indicate whether the data refer to the annual average of a certnain period, e.g. annual average 2003-2013, or to a single year, e.g. 2013. ","Veuillez indiquer si les données se réfèrent à la moyenne annuelle d'une certaine période comme par exemple la moyenne annuelle 2003-2013 , ou pour une seule année par exemple 2013. ","Indique si los datos se refieren al promedio anual de un determinado período, por ejemplo, promedio anual 2003-2013, o a un solo año, por ejemplo, 2013.","title",{"$f":"HLOOKUP($C$2,$B$8:$D362,$A362,FALSE)","v":"Indicate whether the data refer to the annual average of a certnain period, e.g. annual average 2003-2013, or to a single year, e.g. 2013. "},"title355"]
[356,"The ratio of sawmilling outputs and roundwood inputs. ","Le rapport de la production de scieries et des apports de bois rond.","Relación de las salidas de aserraderos y de las entradas de la madera en rollo","title",{"$f":"HLOOKUP($C$2,$B$8:$D363,$A363,FALSE)","v":"The ratio of sawmilling outputs and roundwood inputs. "},"title356"]
[357,"[1] Volume of sawnwood as a percentage of roundwood volume.","[1] Volume de sciages comme étant un pourcentage du volume de bois rond.","[1] Volumen de madera aserrada como un porcentaje del volumen de madera en rollo.","title",{"$f":"HLOOKUP($C$2,$B$8:$D364,$A364,FALSE)","v":"[1] Volume of sawnwood as a percentage of roundwood volume."},"title357"]
[358,"[2] Volume of sawdust as a percentage of roundwood volume.","[2] Volume de sciures comme étant un pourcentage du volume de bois rond.","[2] Volumen de aserrín como un porcentaje del volumen de la madera en rollo.","title",{"$f":"HLOOKUP($C$2,$B$8:$D365,$A365,FALSE)","v":"[2] Volume of sawdust as a percentage of roundwood volume."},"title358"]
[359,"[3] Volume of slabs and chips as a percentage of roundwood volume.","[3] Volume de plaques et puces comme étant un pourcentage du volume de bois rond.","[3] Volumen de placas y astillas como un porcentaje del volumen de madera en rollo.","title",{"$f":"HLOOKUP($C$2,$B$8:$D366,$A366,FALSE)","v":"[3] Volume of slabs and chips as a percentage of roundwood volume."},"title359"]
[360,"[4] Difference in volume of sawnwood and residues and the roundwood, expressed as a percentage of roundwood volume .","[4] Différence de volume entre le volume de sciages et de résidus avec celui du bois rond , exprimée comme étant un pourcentage du volume de bois rond","[4] Diferencia en el volumen de la madera aserrada y los residuos y de la madera en rollo, expresado como un porcentaje del volumen de madera en rollo.","title",{"$f":"HLOOKUP($C$2,$B$8:$D367,$A367,FALSE)","v":"[4] Difference in volume of sawnwood and residues and the roundwood, expressed as a percentage of roundwood volume ."},"title360"]
[361,"Percentage of the total sawdust, slabs and chips that is currently used. ","Pourcentage du total de sciures, de plaques et de puces qui sont actuellement utilisés. ","Porcentaje del total de aserrín, placas y astillas que se utilizan actualmente.","title",{"$f":"HLOOKUP($C$2,$B$8:$D368,$A368,FALSE)","v":"Percentage of the total sawdust, slabs and chips that is currently used. "},"title361"]
[362,"Amount of sawdust, slabs and chips currently used. ","Quantité de sciures, de plaques et de puces qui sont actuellement utilisés. ","Cantidad de aserrín, placas y astillas utilizados en la actualidad. ","title",{"$f":"HLOOKUP($C$2,$B$8:$D369,$A369,FALSE)","v":"Amount of sawdust, slabs and chips currently used. "},"title362"]
[363,"If the data about the amount of residues used for production of different wood products and/or for heating and cooking,  is avaiable in these should be noted. The respective ratio to the total residues will be calculated during the BEFS RA analysis. ","Si les données concernant la quantité de résidus utilisés pour le chauffage et/ou la cuisson ou pour la fabrication de produits de bois sont disponibles, alors il faudrait les mentionner. Le rapport des résidus totaux sera calculé lors de l'anayse BEFS RA. ","Si los datos sobre la cantidad de residuos usados para la producción de diversos productos de madera y/o para la calefacción y la cocina, está disponible, estas se deben tener en cuenta. La respectiva relación del total de los residuos se calculará durante el análisis de la Evaluación Rápida BEFS. ","title",{"$f":"HLOOKUP($C$2,$B$8:$D370,$A370,FALSE)","v":"If the data about the amount of residues used for production of different wood products and/or for heating and cooking,  is avaiable in these should be noted. The respective ratio to the total residues will be calculated during the BEFS RA analysis. "},"title363"]
[364,"In case there is no offical data on the use of residue, the estimations (% or amount) can be done through survey and/or consultation with wood processing industry in the country/area of analysis.  ","Dans le cas où il n'y a pas de données officielles sur l'utilisation des résidus, des estimations ( % ou quantité) peuvent être faites en menant des études et/ou en consultant des industries de transformation du bois dans le pays / région de l'analyse.","En caso de que no se cuente con datos oficiales sobre el uso de los residuos, las estimaciones (% o cantidad) se pueden hacer a través de encuestas y/o consultas con la industria de procesamiento de madera en el país o el área de análisis. ","title",{"$f":"HLOOKUP($C$2,$B$8:$D371,$A371,FALSE)","v":"In case there is no offical data on the use of residue, the estimations (% or amount) can be done through survey and/or consultation with wood processing industry in the country/area of analysis.  "},"title364"]
[365,"The tool includes defult values, but note that those represent a global average, based on the data collected from different countries and thus may only be marginally applicable for your country. ","L'outil comprend des valeurs par défaut , mais notez que celles-ci représentent une moyenne mondiale faite sur la base des données recueillies auprès de différents pays et donc ne peuvent être que légèrement applicable pour votre pays.","La herramienta incluye valores por defecto, pero tenga en cuenta que estos representan un promedio global, basado en los datos recolectados a partir de diferentes países y por lo tanto sólo puede ser marginalmente aplicable a su país.","title",{"$f":"HLOOKUP($C$2,$B$8:$D372,$A372,FALSE)","v":"The tool includes defult values, but note that those represent a global average, based on the data collected from different countries and thus may only be marginally applicable for your country. "},"title365"]
[366,"This table collects information on the selected tree species related to the typical wood production characteristics.","Ce tableau recueille des informations sur les espèces d'arbres sélectionnées en lien avec les caractéristiques typiques de production de bois.","Esta tabla recoge información sobre las especies de árboles seleccionados relacionados con las características típicas de la producción de madera.","title",{"$f":"HLOOKUP($C$2,$B$8:$D373,$A373,FALSE)","v":"This table collects information on the selected tree species related to the typical wood production characteristics."},"title366"]
[367,"Within the Woodfuel Plantation Budget BEFS RA tool, the first step is to select tree species that will be analyzed for potential harvestable volume of biomass from dedicated bioenergy plantations. This biomass can be used in the form of fuelwood and/or as feedstock for charcoal, briquette and woodchip production. Up to two tree species can be analyzed at the same time and they are selected from the dropdown list. The list includes Acacia mangium, Acacia Senegal, Eucalyptus spp, Pinus patula, Pinus radiata, Populus spp, Salix spp. Furthermore, the user has the possibility to select a User-defined tree species option and then enter specific name and data. Data should be country representative. ","Dans l'outil Budget de Plantation de Combustibles Ligneux, la première étape consiste à sélectionner les espèces d'arbres qui seront analysées en tant que volume de biomasse potentiellement exploitable provenant de plantations dédiées à la bioénergie. Cette biomasse peut être utilisée sous la forme de bois de feu et / ou comme matière première pour le charbon de bois , briquettes et la production de copeaux de bois .Deux espèces d'arbres peuvent être analysées en même temps et sont choisies de la liste déroulante. La liste comprend Acacia mangium , Acacia Sénégal, Eucalyptus spp , Pinus patula , Pinus radiata , Populus spp , Salix spp . En outre , l'utilisateur a la possibilité de définir une espèce d'arbre en choisissant l'option espèce d'arbre définie par l'utilisateur puis d'entrer le nom et les données qui lui sont spécifiques . Les données doivent être représentatives du pays.","Dentro de la herramienta de Presupuesto para Plantaciones de Madera como Combustible de la Evaluación Rápida BEFS, el primer paso es la selección de las especies de árboles que serán analizadas para su posible volumen cosechable de biomasa de las plantaciones dedicadas a la bioenergía. Esta biomasa se puede utilizar en forma de madera como combustible y/o como materia prima para la producción de carbón, briquetas y astillas de madera. Hasta dos especies de árboles pueden ser analizadas al mismo tiempo y que se seleccionan de la lista desplegable. La lista incluye Acacia mangium, Acacia Senegal, Eucalyptus spp, Pinus patula, Pinus radiata, Populus spp, Salix spp. Además, el usuario tiene la posibilidad de seleccionar la opción de las especies de árboles Definido por el Usuario y especificar el nombre y los datos específicos. Los datos deben ser representativos del país. ","title",{"$f":"HLOOKUP($C$2,$B$8:$D374,$A374,FALSE)","v":"Within the Woodfuel Plantation Budget BEFS RA tool, the first step is to select tree species that will be analyzed for potential harvestable volume of biomass from dedicated bioenergy plantations. This biomass can be used in the form of fuelwood and/or as feedstock for charcoal, briquette and woodchip production. Up to two tree species can be analyzed at the same time and they are selected from the dropdown list. The list includes Acacia mangium, Acacia Senegal, Eucalyptus spp, Pinus patula, Pinus radiata, Populus spp, Salix spp. Furthermore, the user has the possibility to select a User-defined tree species option and then enter specific name and data. Data should be country representative. "},"title367"]
[368,"This table collects information on the current unit prices of seedling and fuelwood for the selected species.","Ce tableau recueille des informations sur les prix unitaires actuels des semis et du bois des espèces sélectionnées.","En esta tabla recoge la información sobre los precios unitarios actuales de las plántulas y de la madera como combustible para las especies seleccionadas.","title",{"$f":"HLOOKUP($C$2,$B$8:$D375,$A375,FALSE)","v":"This table collects information on the current unit prices of seedling and fuelwood for the selected species."},"title368"]
[369,"This table collects information on the total amount of fertilizer nutrients applied per hectare during the overall rotation length and the related year(s) of rotation when such inputs are applied. Data should be country representative."," Ce tableau recueille des renseignements sur la quantité totale d'engrais appliqués par hectare pendant toute la durée de rotation ainsi que l'année( s) de rotation lorsque ces intrants sont appliqués . Les données doivent être représentatives du pays .","En esta tabla se recolecta información sobre la cantidad total de los nutrientes de los fertilizantes aplicados por hectárea durante todo el período de rotación y el año (los años) relacionados de rotación que se apliquen tales insumos. Los datos deben ser representativos del país.","title",{"$f":"HLOOKUP($C$2,$B$8:$D376,$A376,FALSE)","v":"This table collects information on the total amount of fertilizer nutrients applied per hectare during the overall rotation length and the related year(s) of rotation when such inputs are applied. Data should be country representative."},"title369"]
[370,"This table collects information on the average cost per hour for machinery related to forestry operations (average rental cost).","Ce tableau recueille les informations relatives au coût moyen par heure des machines liées aux activités d'exploitation forestières (coût moyen de location).","Esta tabla recoge información sobre el costo promedio por hora para la maquinaria relacionada con las operaciones forestales (costo promedio de alquiler).","title",{"$f":"HLOOKUP($C$2,$B$8:$D377,$A377,FALSE)","v":"This table collects information on the average cost per hour for machinery related to forestry operations (average rental cost)."},"title370"]
[371,"This table collects information on the number of years and total labour amount carried out during the overall rotation length for each operation.","Ce tableau recueille, pour chaque opération, les informations relatives aux nombres d'années ainsi qu'au nombre total de travaux effectués durant toute la durée de rotation (en année).","Esta tabla recoge información sobre el número de años y la cantidad total de trabajo realizado durante el total de la duración de la rotación para cada operación.","title",{"$f":"HLOOKUP($C$2,$B$8:$D378,$A378,FALSE)","v":"This table collects information on the number of years and total labour amount carried out during the overall rotation length for each operation."},"title371"]
[372,"*Year(s) of rotation lenght refers to the related year(s) of rotation when such labour is applied. For example, if the soil was fertilized before planting and once within the first five years of the rotation lenght, enter  ‘0-5’. It is important to consider that plantation is established at the beginning of the first year, i.e. year ‘0’. ","*La durée de rotation en année(s) représente le nombre d’année que le produit/service a été fourni pendant une rotation de culture. Si un sol a été fertilisé une première fois avant la plantation de la culture agricole et une seconde fois au cours des cinq années qui ont suivies la plantation, alors l’utilisateur doit introduire « 0-5 ». L’utilisateur doit savoir que la plantation a été faite au début de la première année, c'est-à-dire année « 0 » .","*Los año(s) de la duración de la rotación se refiere al año(s) relacionado a la rotación cuando se aplica la mano de obra. Por ejemplo, si el suelo se fertilizó antes de la siembra y una vez dentro de los primeros cinco años de la duración de la rotación, introduzca “0 -5”. Es importante considerar que la plantación se establece al comienzo del primer año, es decir, Año “0”. ","title",{"$f":"HLOOKUP($C$2,$B$8:$D379,$A379,FALSE)","v":"*Year(s) of rotation lenght refers to the related year(s) of rotation when such labour is applied. For example, if the soil was fertilized before planting and once within the first five years of the rotation lenght, enter  ‘0-5’. It is important to consider that plantation is established at the beginning of the first year, i.e. year ‘0’. "},"title372"]
[373,"LABOUR","TRAVAIL","MANO DE OBRA","title",{"$f":"HLOOKUP($C$2,$B$8:$D380,$A380,FALSE)","v":"LABOUR"},"title373"]
[374,"1. Labour","1. Travail","1. Mano de obra","title",{"$f":"HLOOKUP($C$2,$B$8:$D381,$A381,FALSE)","v":"1. Labour"},"title374"]
[375,"Section 1: Labour collects data for use in the CROP BUDGET TOOL, WOODFUEL PLANTATION BUDGET TOOL, TRANSPORT TOOL, BRIQUETTES TOOL, PELLETS TOOL, CHARCOAL TOOL, BIOGAS COMMUNITY TOOL, BIOGAS INDUSTRIAL, SVO TOOL, GASIFICATION TOOL, COMBUSTION TOOL, CHP (COGENERATION) TOOL","Section 1: Le travail collecte les données à utiliser des OUTILS BUDGET DE CULTURES, BUDGET DE PLANTATION DE COMBUSTIBLES LIGNEUX, TRANSPORT, BRIQUETTES, GRANULÉS DE BOIS,CHARBON DE BOIS, BIOGAZ INDUSTRIEL, BIOGAZ COMMUNAUTAIRE, HVB, GAZÉIFICATION, COMBUSTION et COGÉNÉRATION","Sección 1: Recolección de datos de mano de obra para ser utilizados en las herramientas PRESUPUESTO AGRÍCOLA, PRESUPUESTO DE PLANTACIONES DE MADERA COMBUSTIBLE, TRANSPORTE, BIQUETAS, PELLETS, CARBÓN VEGETAL, BIOGÁS COMUNITARIO, BIOGÁS INDUSTRIAL, AVC, GASIFICACIÓN, COMBUSTION, COGENERACIÓN","title",{"$f":"HLOOKUP($C$2,$B$8:$D382,$A382,FALSE)","v":"Section 1: Labour collects data for use in the CROP BUDGET TOOL, WOODFUEL PLANTATION BUDGET TOOL, TRANSPORT TOOL, BRIQUETTES TOOL, PELLETS TOOL, CHARCOAL TOOL, BIOGAS COMMUNITY TOOL, BIOGAS INDUSTRIAL, SVO TOOL, GASIFICATION TOOL, COMBUSTION TOOL, CHP (COGENERATION) TOOL"},"title375"]
[376,"The table below collects data on labour related data required within the BEFS RA tools listed above. ","Le tableau ci-dessous recueille les informations sur les données correspondantes au travail des outils BEFS RA énumérés ci-dessus. ","La siguiente tabla recolecta los datos sobre la mano de obra requerida en la herramientas de la Evaluación Rápida BEFS mencionadas anteriormente.","title",{"$f":"HLOOKUP($C$2,$B$8:$D383,$A383,FALSE)","v":"The table below collects data on labour related data required within the BEFS RA tools listed above. "},"title376"]
[377,"1.1       Sectoral minimum wages*","1.1       Salaires minimums sectoriels*","1.1       Salarios mínimos por sector*","title",{"$f":"HLOOKUP($C$2,$B$8:$D384,$A384,FALSE)","v":"1.1       Sectoral minimum wages*"},"title377"]
[378,"Agricultural worker (unskilled)","Travailleur agricole (non-qualifié)","Trabajador agrícola (no-cualificado)","title",{"$f":"HLOOKUP($C$2,$B$8:$D385,$A385,FALSE)","v":"Agricultural worker (unskilled)"},"title378"]
[379,"Agricultural worker (skilled)","Travailleur agricole (qualifié)","Trabajador agrícola (cualificado)","title",{"$f":"HLOOKUP($C$2,$B$8:$D386,$A386,FALSE)","v":"Agricultural worker (skilled)"},"title379"]
[380,"Forestry worker (unskilled)","Travailleur forestier (non-qualifié)","Trabajador forestal (no-cualificado)","title",{"$f":"HLOOKUP($C$2,$B$8:$D387,$A387,FALSE)","v":"Forestry worker (unskilled)"},"title380"]
[381,"Forestry worker (skilled)","Travailleur forestier (qualifié)","Trabajador forestal (cualificado)","title",{"$f":"HLOOKUP($C$2,$B$8:$D388,$A388,FALSE)","v":"Forestry worker (skilled)"},"title381"]
[382,"Industrial worker (unskilled)","Travailleur industriel (non-qualifié)","Trabajador industrial (no-cualificado)","title",{"$f":"HLOOKUP($C$2,$B$8:$D389,$A389,FALSE)","v":"Industrial worker (unskilled)"},"title382"]
[383,"Industrial worker (skilled)","Travailleur industriel (qualifié)","Trabajador industrial (cualificado)","title",{"$f":"HLOOKUP($C$2,$B$8:$D390,$A390,FALSE)","v":"Industrial worker (skilled)"},"title383"]
[384,"Construction worker (unskilled)","Travailleur dans la construction (non-qualifié)","Trabajador de la construcción (no-cualificado)","title",{"$f":"HLOOKUP($C$2,$B$8:$D391,$A391,FALSE)","v":"Construction worker (unskilled)"},"title384"]
[385,"Construction worker (skilled)","Travailleur dans la construction (qualifié)","Trabajador de la construcción (cualificado)","title",{"$f":"HLOOKUP($C$2,$B$8:$D392,$A392,FALSE)","v":"Construction worker (skilled)"},"title385"]
[386,"This table collects information on the current rate of sectoral daily minimum wage in the country. Unskilled worker refer to non-trained operator. Skilled worker are who receive technical training for leading the operations and maintanence.","Ce tableau recueille des renseignements sur le taux actuel du salaire minimum journalier sectoriel dans un pays. Les travailleurs non qualifiés se réfèrent aux travailleurs non-formés alors que les travailleurs qualifiés sont ceux qui reçoivent une formation technique pour mener les opérations d'exploitation et de maintanence .","Esta tabla recoge información sobre la tasa actual por sectores del salario mínimo diario en el país. El trabajador no cualificado se refiere a los operadores no entrenados. El trabajador cualificado se refiere a quienes reciben una formación técnica para dirigir las operaciones y el mantenimiento.","title",{"$f":"HLOOKUP($C$2,$B$8:$D393,$A393,FALSE)","v":"This table collects information on the current rate of sectoral daily minimum wage in the country. Unskilled worker refer to non-trained operator. Skilled worker are who receive technical training for leading the operations and maintanence."},"title386"]
[387,"*The wages are assumed to be set at the minimum daily wage rate or slightly above based on a sector review.","*Les salaires sont supposés être fixés au taux du salaire minimum journalier ou légèrement au-dessus dépendemment d'un examen du secteur ","*Se supone que los salarios se fijan en la tasa de salario mínimo diario o ligeramente por encima, basado en una revisión del sector.","title",{"$f":"HLOOKUP($C$2,$B$8:$D394,$A394,FALSE)","v":"*The wages are assumed to be set at the minimum daily wage rate or slightly above based on a sector review."},"title387"]
[388,"ECONOMICS and FINANCE","ÉCONOMIES et FINANCE","ECONOMÍA Y FINANZAS","title",{"$f":"HLOOKUP($C$2,$B$8:$D395,$A395,FALSE)","v":"ECONOMICS and FINANCE"},"title388"]
[389,"1. Economics and Finance","1. Économies et Finance","1. Economía y Finanzas","title",{"$f":"HLOOKUP($C$2,$B$8:$D396,$A396,FALSE)","v":"1. Economics and Finance"},{"$f":"$E396&$A396","v":"title389"}]
[390,"Section 1: Economics and Finance collects data for use in the CROP BUDGET TOOL, WOODFUEL PLANTATION BUDGET TOOL, TRANSPORT TOOL, BRIQUETTES TOOL, PELLETS TOOL, CHARCOAL TOOL, BIOGAS COMMUNITY TOOL, BIOGAS INDUSTRIAL, SVO TOOL, GASIFICATION TOOL,  COMBUSTION TOOL, CHP (COGENERATION) TOOL","Section 1: Economies et Finance collecte les données à utiliser des OUTILS BUDGET DE CULTURES, BUDGET DE PLANTATION DE COMBUSTIBLES LIGNEUX, TRANSPORT, BRIQUETTES, GRANULÉS DE BOIS, CHARBON DE BOIS, BIOGAZ COMMUNAUTAIRE, BIOGAZ INDUSTRIEL, HVB, GAZÉIFICATION, COMBUSTION et COGÉNÉRATION","Sección 1: Recolección de datos económicos y financieros para el uso de las herramientas PRESUPUESTO AGRÍCOLA, PRESUPUESTO DE PLANTACIONES DE MADERA COMBUSTIBLE, TRANSPORTE, BIQUETAS, PELLETS, CARBÓN VEGETAL, BIOGÁS COMUNITARIO, BIOGÁS INDUSTRIAL, AVC, GASIFICACIÓN, COMBUSTION, COGENERACIÓN","title",{"$f":"HLOOKUP($C$2,$B$8:$D397,$A397,FALSE)","v":"Section 1: Economics and Finance collects data for use in the CROP BUDGET TOOL, WOODFUEL PLANTATION BUDGET TOOL, TRANSPORT TOOL, BRIQUETTES TOOL, PELLETS TOOL, CHARCOAL TOOL, BIOGAS COMMUNITY TOOL, BIOGAS INDUSTRIAL, SVO TOOL, GASIFICATION TOOL,  COMBUSTION TOOL, CHP (COGENERATION) TOOL"},"title390"]
[391,"1.1       Financial Rates","1.1       Paramètres Financiers","1.1       Tasas financieras","title",{"$f":"HLOOKUP($C$2,$B$8:$D398,$A398,FALSE)","v":"1.1       Financial Rates"},"title391"]
[392,"Discount rate (%)","Taux d'actualisation (%) ","Tasa de descuento (%)","title",{"$f":"HLOOKUP($C$2,$B$8:$D399,$A399,FALSE)","v":"Discount rate (%)"},"title392"]
[393,"Loan interest rate (max) (%)        ","Taux d'intérêt du prêt (max) (%)        ","Tasa de interés del préstamo (Max) (%)        ","title",{"$f":"HLOOKUP($C$2,$B$8:$D400,$A400,FALSE)","v":"Loan interest rate (max) (%)        "},"title393"]
[394,"Loan interest rate (min) (%)","Taux d'intérêt du prêt (min) (%)","Tasa de interés del préstamo (min) (%)        ","title",{"$f":"HLOOKUP($C$2,$B$8:$D401,$A401,FALSE)","v":"Loan interest rate (min) (%)"},"title394"]
[395,"Capital interest rate (%)","Taux d'intérêt du Capital (%)","Tasa de interés capital (%)","title",{"$f":"HLOOKUP($C$2,$B$8:$D402,$A402,FALSE)","v":"Capital interest rate (%)"},"title395"]
[396,"This table collects information on the discount rate used as interest rate to determine the present value of a future value by discounting. It is also required the loan interest rate, capital interest rate and inflation rate.","Le tableau recueille les informations sur le taux d'actualisation utilisé comme taux d'intérêt pour déterminer la valeur actuelle d'une valeur future en escomptant. Les paramètres suivant sont aussi exigés : taux d'intérêt du prêt, le taux d'inflation et le taux d'intérêt du Capital.","En esta tabla se recoge la información sobre la tasa de descuento utilizada como tasa de interés para determinar el valor presente de un valor futuro mediante el descuento. También se requiere la tasa de tasa de interés del préstamo, la tasa de participación en el capital y la inflación.","title",{"$f":"HLOOKUP($C$2,$B$8:$D403,$A403,FALSE)","v":"This table collects information on the discount rate used as interest rate to determine the present value of a future value by discounting. It is also required the loan interest rate, capital interest rate and inflation rate."},"title396"]
[397,"All tables below request information on loan parameters. The tables are divided by biofuel type. If there is no difference or data by sector does not exist please make a note accordingly.","Les tableaux ci-dessous recueillent les informations sur les paramèters du prêt. Ils sont divisés par types de biocarburant. Si par secteur, les données n'exsitent pas ou ne sont pas différentes alors veuillez le mentionner.","Todas las tablas a continuación solicitan información sobre los parámetros del préstamo. Las tablas se dividen según el tipo de biocombustible. Si no hay ninguna diferencia o los datos por sectores no existen, por favor haga una nota aclaratoria.","title",{"$f":"HLOOKUP($C$2,$B$8:$D404,$A404,FALSE)","v":"All tables below request information on loan parameters. The tables are divided by biofuel type. If there is no difference or data by sector does not exist please make a note accordingly."},"title397"]
[398,"1.2       Typical loan parameters for liquid biofuel plants investment","1.2       Paramètres spécifiques du prêt pour l'investissement dans les usines de biocarburants liquides","1.2       Parámetros típicos de préstamo para la inversión de plantas de biocombustibles líquidos","title",{"$f":"HLOOKUP($C$2,$B$8:$D405,$A405,FALSE)","v":"1.2       Typical loan parameters for liquid biofuel plants investment"},"title398"]
[399,"Loan ratio (%) for 5ML, 25ML, 50ML, 100ML plant size","Ratio du prêt (%) for 5ML, 25ML, 50ML, 100ML plant size","Índice de cartera (%) para tamaños de planta de 5ML, 25ML, 50ML, 100ML ","title",{"$f":"HLOOKUP($C$2,$B$8:$D406,$A406,FALSE)","v":"Loan ratio (%) for 5ML, 25ML, 50ML, 100ML plant size"},"title399"]
[400,"Loan term (years) ","Durée du prêt (années) ","Plazo del préstamo (años) ","title",{"$f":"HLOOKUP($C$2,$B$8:$D407,$A407,FALSE)","v":"Loan term (years) "},"title400"]
[401,"Loan ratio (%) ","Ratio du prêt (%) ","Índice de cartera (%) ","title",{"$f":"HLOOKUP($C$2,$B$8:$D408,$A408,FALSE)","v":"Loan ratio (%) "},"title401"]
[402,"Loan ratio (%) for Size 1, Size 2, Size 3, Size 4 ","Ratio du prêt (%) pour la Taille 1, Taille 2, Taille 3, Taille 4","Índice de cartera (%) para Tamaños 1, 2, 3 4","title",{"$f":"HLOOKUP($C$2,$B$8:$D409,$A409,FALSE)","v":"Loan ratio (%) for Size 1, Size 2, Size 3, Size 4 "},"title402"]
[403,"1.3       Typical loan parameters for charcoal factories investment","1.3       Paramètres spécifiques du prêt pour l'investissement dans les usines de charbon de bois","1.3        Parámetros típicos de préstamo para la inversión de plantas de producción de carbón vegetal","title",{"$f":"HLOOKUP($C$2,$B$8:$D410,$A410,FALSE)","v":"1.3       Typical loan parameters for charcoal factories investment"},"title403"]
[404,"1.4       Typical loan parameters for briquettes/pellets factories investment","1.4        Paramètres spécifiques du prêt pour l'investissement dans les usines de briquettes et granulés de bois","1.4       Parámetros típicos de préstamo para la inversión de plantas de producción de briquetas/pellets","title",{"$f":"HLOOKUP($C$2,$B$8:$D411,$A411,FALSE)","v":"1.4       Typical loan parameters for briquettes/pellets factories investment"},"title404"]
[405,"1.5       Typical loan parameters for rural electricity plants investment","1.5        Paramètres spécifiques du prêt pour l'investissement dans les usines de production d'électricité rurale","1.5       Parámetros típicos de préstamo para la inversión de plantas rurales de producción de electricidad","title",{"$f":"HLOOKUP($C$2,$B$8:$D412,$A412,FALSE)","v":"1.5       Typical loan parameters for rural electricity plants investment"},"title405"]
[406,"1.6       Typical loan parameters for biogas community plants investment","1.6        Paramètres spécifiques du prêt pour l'investissement dans les usines de biogaz communautaire","1.6         Parámetros típicos de préstamo para la inversión de plantas de producción de biogás comunitario","title",{"$f":"HLOOKUP($C$2,$B$8:$D413,$A413,FALSE)","v":"1.6       Typical loan parameters for biogas community plants investment"},"title406"]
[407,"1.7       Typical loan parameters for biogas industrial plants investment","1.7       Paramètres spécifiques du prêt pour l'investissement dans les usines de biogaz industriel","1.7       Parámetros típicos de préstamo para la inversión de plantas de producción de biogás industrial","title",{"$f":"HLOOKUP($C$2,$B$8:$D414,$A414,FALSE)","v":"1.7       Typical loan parameters for biogas industrial plants investment"},"title407"]
[408,"1.8       Typical loan parameters for CHP (cogeneration) plants investment","1.8      Paramètres spécifiques du prêt pour l'investissement dans les usines de cogénération ","1.8       Parámetros típicos de préstamo para la inversión de plantas de cogeneración","title",{"$f":"HLOOKUP($C$2,$B$8:$D415,$A415,FALSE)","v":"1.8       Typical loan parameters for CHP (cogeneration) plants investment"},"title408"]
[409,"In the Biogas Industrial tool, plant sizes are defined by the user. The defaults values in the tool are: 250 kWe, 1000 kWe, 10000 kWe, and 50000 kWe.","Dans l'outil Biogaz Indutiel, la taille des usines est définie par l'utilisateur. Les valeurs par défaut dans l'outil sont : 250 kWe, 1000 kWe, 10000 kWe, et 50000 kWe.","En la herramienta Biogás Industrial, los tamaños de plantas se definen por el usuario. Los valores por defecto en la herramienta son: 250 kWe, 1000 kWe, 10000 kWe, y 50000 kWe.","title",{"$f":"HLOOKUP($C$2,$B$8:$D416,$A416,FALSE)","v":"In the Biogas Industrial tool, plant sizes are defined by the user. The defaults values in the tool are: 250 kWe, 1000 kWe, 10000 kWe, and 50000 kWe."},"title409"]
[410,"ENERGY and INDUSTRY","ÉNERGIE et INDUSTRIE","ENERGÍA & INDUSTRIA","title",{"$f":"HLOOKUP($C$2,$B$8:$D417,$A417,FALSE)","v":"ENERGY and INDUSTRY"},"title410"]
[411,"1. Energy and Industry","1. Énergie et Industrie","1. Energía e Industria","title",{"$f":"HLOOKUP($C$2,$B$8:$D418,$A418,FALSE)","v":"1. Energy and Industry"},"title411"]
[412,"Section 1:  Energy and Industry collects data for use in the COUNTRY STATUS TOOL, TRANSPORT TOOL, BRIQUETTES TOOL, PELLETS TOOL, CHARCOAL TOOL, BIOGAS COMMUNITY TOOL, BIOGAS INDUSTRIAL, SVO TOOL, GASIFICATION TOOL, COMBUSTION TOOL, CHP (COGENERATION) TOOL","Section 1:  Énergie et Industrie collecte les données à utiliser des OUTILS TRANSPORT, BRIQUETTES, GRANULÉS DE BOIS, CHARBON DE BOIS, BIOGAZ INDUSTRIEL, BIOGAZ COMMUNAUTAIRE, HVB, GAZÉIFICATION, COMBUSTION et COGÉNÉRATION","Sección 1: Recolección de datos de Energía e Industria para el uso de las herramientas de ESTADO ACTUAL DEL PAÍS, TRANSPORTE, BRIQUETAS, PELLETS, CARBÓN VEGETAL, BIOGÁS COMUNITARIO, BIOGÁS INDUSTRIAL, AVC, GASIFICACIÓN, COMBUSTIÓN, COGENERACIÓN","title",{"$f":"HLOOKUP($C$2,$B$8:$D419,$A419,FALSE)","v":"Section 1:  Energy and Industry collects data for use in the COUNTRY STATUS TOOL, TRANSPORT TOOL, BRIQUETTES TOOL, PELLETS TOOL, CHARCOAL TOOL, BIOGAS COMMUNITY TOOL, BIOGAS INDUSTRIAL, SVO TOOL, GASIFICATION TOOL, COMBUSTION TOOL, CHP (COGENERATION) TOOL"},"title412"]
[413,"The tables below collects information on a number of energy related data required within the BEFS RA tools listed above. The title described the data required and further on the tool within which the data is used.  ","Les tableaux ci-dessous recueillent les informations sur les paramètres économiques et financiers nécessaires dans les outils BEFS RA énumérés ci-dessus. Le titre décrit les données requises ainsi que les outils desquels sont extraites les données.","Las tablas a continuación recolectan información sobre una serie de datos relacionados con la energía, requeridos dentro de las herramientas de BEFS mencionadas anteriormente. Se describe los datos requeridos y aún más en la herramienta dentro de la cual se utilizan los datos.","title",{"$f":"HLOOKUP($C$2,$B$8:$D420,$A420,FALSE)","v":"The tables below collects information on a number of energy related data required within the BEFS RA tools listed above. The title described the data required and further on the tool within which the data is used.  "},"title413"]
[414,"1.1      Energy and product market prices","1.1      L'énergie et les prix du marché des produits","1.1      Precios del mercado de la Energía y de los Productos","title",{"$f":"HLOOKUP($C$2,$B$8:$D421,$A421,FALSE)","v":"1.1      Energy and product market prices"},"title414"]
[415,"Diesel free on board (FOB)*","Franco à bord prix du diesel (FOB)*","Diésel puesto a bordo (FOB)*","title",{"$f":"HLOOKUP($C$2,$B$8:$D422,$A422,FALSE)","v":"Diesel free on board (FOB)*"},"title415"]
[416,"Gasoline FOB ","Franco à bord prix de l'essence (FOB)*","Gasolina FOB ","title",{"$f":"HLOOKUP($C$2,$B$8:$D423,$A423,FALSE)","v":"Gasoline FOB "},"title416"]
[417,"Diesel factory gate (FGP)*","Prix à la Sortie de l'usine du diesel (FGP)*","Diésel entregado en la fabrica (FGP)*","title",{"$f":"HLOOKUP($C$2,$B$8:$D424,$A424,FALSE)","v":"Diesel factory gate (FGP)*"},"title417"]
[418,"Gasoline FGP","Prix à la Sortie de l'usine de l'essence (FGP)*","Gasolina FGP","title",{"$f":"HLOOKUP($C$2,$B$8:$D425,$A425,FALSE)","v":"Gasoline FGP"},"title418"]
[419,"Biodiesel FOB ","Biodiesel FOB ","Biodiesel FOB ","title",{"$f":"HLOOKUP($C$2,$B$8:$D426,$A426,FALSE)","v":"Biodiesel FOB "},"title419"]
[420,"Ethanol FOB ","Éthanol FOB ","Etanol FOB ","title",{"$f":"HLOOKUP($C$2,$B$8:$D427,$A427,FALSE)","v":"Ethanol FOB "},"title420"]
[421,"Biodiesel FGP ","Biodiesel FGP ","Biodiesel FGP ","title",{"$f":"HLOOKUP($C$2,$B$8:$D428,$A428,FALSE)","v":"Biodiesel FGP "},"title421"]
[422,"Ethanol FGP ","Éthanol FGP ","Etanol FGP ","title",{"$f":"HLOOKUP($C$2,$B$8:$D429,$A429,FALSE)","v":"Ethanol FGP "},"title422"]
[423,"Diesel at the pump","Diesel à la pompe","Diésel para la bomba","title",{"$f":"HLOOKUP($C$2,$B$8:$D430,$A430,FALSE)","v":"Diesel at the pump"},"title423"]
[424,"Distance from nearest port to main city","Distance du port le plus proche à la ville principaley","Distancia desde el puerto más cercano a la ciudad principal","title",{"$f":"HLOOKUP($C$2,$B$8:$D431,$A431,FALSE)","v":"Distance from nearest port to main city"},"title424"]
[425,"Heat cost (industry)","Coût du chauffage (industrie)","Costo de calefacción (industria)","title",{"$f":"HLOOKUP($C$2,$B$8:$D432,$A432,FALSE)","v":"Heat cost (industry)"},"title425"]
[426,"Heat selling price (industry) ","Prix de vente du chauffage (industrie)","Precio de venta de calor (industria)","title",{"$f":"HLOOKUP($C$2,$B$8:$D433,$A433,FALSE)","v":"Heat selling price (industry) "},"title426"]
[427,"Biogas selling price (industry) ","Prix de vente du biogaz (industrie)","Precio de venta de biogás (industria)","title",{"$f":"HLOOKUP($C$2,$B$8:$D434,$A434,FALSE)","v":"Biogas selling price (industry) "},"title427"]
[428,"Kerosene (rural areas)","Kérosène (zones rurales)","Queroseno (áreas rurales) ","title",{"$f":"HLOOKUP($C$2,$B$8:$D435,$A435,FALSE)","v":"Kerosene (rural areas)"},"title428"]
[429,"Kerosene (urban areas)","Kérosène (zones urbaines)","Queroseno (áreas urbanas) ","title",{"$f":"HLOOKUP($C$2,$B$8:$D436,$A436,FALSE)","v":"Kerosene (urban areas)"},"title429"]
[430,"LPG (rural areas)","GPL (zones rurales)","GLP (áreas rurales)","title",{"$f":"HLOOKUP($C$2,$B$8:$D437,$A437,FALSE)","v":"LPG (rural areas)"},"title430"]
[431,"LPG (urban areas)","GPL (zones urbaines)","GLP (áreas urbanas)","title",{"$f":"HLOOKUP($C$2,$B$8:$D438,$A438,FALSE)","v":"LPG (urban areas)"},"title431"]
[432,"Natural gas (rural areas)","Gaz naturel (zones rurales)","Gas natural (áreas rurales)","title",{"$f":"HLOOKUP($C$2,$B$8:$D439,$A439,FALSE)","v":"Natural gas (rural areas)"},"title432"]
[433,"Natural gas (urban areas)","Gaz naturel (zones urbaines)","Gas natural (áreas urbanas)","title",{"$f":"HLOOKUP($C$2,$B$8:$D440,$A440,FALSE)","v":"Natural gas (urban areas)"},"title433"]
[434,"Natural gas (industry)","Gaz naturel (industries)","Gas natural (industria)","title",{"$f":"HLOOKUP($C$2,$B$8:$D441,$A441,FALSE)","v":"Natural gas (industry)"},"title434"]
[435,"Biomethane selling price (industry) ","Prix de vente du Biométhane (industries)","Precio de venta de biometano (industria)","title",{"$f":"HLOOKUP($C$2,$B$8:$D442,$A442,FALSE)","v":"Biomethane selling price (industry) "},"title435"]
[436,"Electricity selling price (industry) ","Prix de vente de l'électricité (industries)","Precio de venta de la electricidad (industria)","title",{"$f":"HLOOKUP($C$2,$B$8:$D443,$A443,FALSE)","v":"Electricity selling price (industry) "},"title436"]
[437,"Electricity cost (rural areas)","Coût d'électricité (zones rurales)","Costo de la electricidad (áreas rurales)","title",{"$f":"HLOOKUP($C$2,$B$8:$D444,$A444,FALSE)","v":"Electricity cost (rural areas)"},"title437"]
[438,"Electricity cost (urban areas)","Coût d'électricité (zones urbaines)","Costo de la electricidad (áreas urbanas)","title",{"$f":"HLOOKUP($C$2,$B$8:$D445,$A445,FALSE)","v":"Electricity cost (urban areas)"},"title438"]
[439,"Electricity cost (industry)","Coût d'électricité (industries)","Costo de la electricidad (industria)","title",{"$f":"HLOOKUP($C$2,$B$8:$D446,$A446,FALSE)","v":"Electricity cost (industry)"},"title439"]
[440,"Fuel wood (rural areas)","Bois de chauffage (zones rurales)","Madera combustible (áreas rurales)","title",{"$f":"HLOOKUP($C$2,$B$8:$D447,$A447,FALSE)","v":"Fuel wood (rural areas)"},"title440"]
[441,"Fuel wood (urban areas)","Bois de chauffage (zones urbaines)","Madera combustible (áreas urbanas)","title",{"$f":"HLOOKUP($C$2,$B$8:$D448,$A448,FALSE)","v":"Fuel wood (urban areas)"},"title441"]
[442,"Briquettes/Pellets (rural areas)","Briquette/Granulés de bois (zones rurales)","Briquetas/Pellets (áreas rurales)","title",{"$f":"HLOOKUP($C$2,$B$8:$D449,$A449,FALSE)","v":"Briquettes/Pellets (rural areas)"},"title442"]
[443,"Briquettes/Pellets (urban areas)","Briquette/Granulés de bois (zones urbaines)","Briquetas/Pellets (áreas urbanas)","title",{"$f":"HLOOKUP($C$2,$B$8:$D450,$A450,FALSE)","v":"Briquettes/Pellets (urban areas)"},"title443"]
[444,"Charcoal (rural areas)","Charbon de bois (zone rurales)","Carbón vegetal (áreas rurales)","title",{"$f":"HLOOKUP($C$2,$B$8:$D451,$A451,FALSE)","v":"Charcoal (rural areas)"},"title444"]
[445,"Charcoal (urban areas)","Charbon de bois (zone urbaines)","Carbón vegetal (áreas urbanas)","title",{"$f":"HLOOKUP($C$2,$B$8:$D452,$A452,FALSE)","v":"Charcoal (urban areas)"},"title445"]
[446,"Charcoal (industry)","Charbon de bois pour la consommation industrielle ","Carbón vegetal (industria)","title",{"$f":"HLOOKUP($C$2,$B$8:$D453,$A453,FALSE)","v":"Charcoal (industry)"},"title446"]
[447,"Coal (rural areas)","Charbon (zone rurales)","Carbón (áreas rurales)","title",{"$f":"HLOOKUP($C$2,$B$8:$D454,$A454,FALSE)","v":"Coal (rural areas)"},"title447"]
[448,"Coal (urban areas)","Charbon (zone urbaines)","Carbón (áreas urbanas)","title",{"$f":"HLOOKUP($C$2,$B$8:$D455,$A455,FALSE)","v":"Coal (urban areas)"},"title448"]
[449,"Price of co-products:","Prix des co-produits provenant de la production de biocarburants liquides:","Precio de co-productos:","title",{"$f":"HLOOKUP($C$2,$B$8:$D456,$A456,FALSE)","v":"Price of co-products:"},"title449"]
[450,"Digestate market price ","Prix de marché du digestat","Precio de mercado de digestato","title",{"$f":"HLOOKUP($C$2,$B$8:$D457,$A457,FALSE)","v":"Digestate market price "},"title450"]
[451,"Raw glycerol","Glycérol brut","Glicerol crudo","title",{"$f":"HLOOKUP($C$2,$B$8:$D458,$A458,FALSE)","v":"Raw glycerol"},"title451"]
[452,"Meal*","Tourteaux*","Alimento*","title",{"$f":"HLOOKUP($C$2,$B$8:$D459,$A459,FALSE)","v":"Meal*"},"title452"]
[453,"DDGS*","DSDS*","DDGS*","title",{"$f":"HLOOKUP($C$2,$B$8:$D460,$A460,FALSE)","v":"DDGS*"},"title453"]
[454,"* Definition:","* Définition:","* Definición:","title",{"$f":"HLOOKUP($C$2,$B$8:$D461,$A461,FALSE)","v":"* Definition:"},"title454"]
[455,"FOB: Free on board.","FOB: Franco à bord.","FOB: Puesto a bordo.","title",{"$f":"HLOOKUP($C$2,$B$8:$D462,$A462,FALSE)","v":"FOB: Free on board."},{"$f":"$E462&$A462","v":"title455"}]
[456,"FGP: Factory gate price.","FGP: Prix à la sortie de l'usine.","FGP: Precio entregado en la fabrica.","title",{"$f":"HLOOKUP($C$2,$B$8:$D463,$A463,FALSE)","v":"FGP: Factory gate price."},"title456"]
[457,"Meal: Seed cake or kernel meal obtained after oil extraction.","Meal: graines ou noyeau obtenus après l'extraction de l'huile.","Alimento: torta de semillas o harina de palmiste obtenida después de la extracción de aceite.","title",{"$f":"HLOOKUP($C$2,$B$8:$D464,$A464,FALSE)","v":"Meal: Seed cake or kernel meal obtained after oil extraction."},"title457"]
[458,"DDGS: Dried distillers grains with solubles.","DSDS: drêches sèches de distillerie avec solubles.","DDGS: Granos Secos y Solubles de Destilería.","title",{"$f":"HLOOKUP($C$2,$B$8:$D465,$A465,FALSE)","v":"DDGS: Dried distillers grains with solubles."},"title458"]
[459,"Digestate: Fertilizer obtained from biogas production, also known as bioslurry.","Digestat: engrais obtenu lors de la production de biogaz. Il est aussi connu sous le nom boue de biogaz.","Digestato: Fertilizante obtienido de la producción de biogás, también conocido como biolodo.","title",{"$f":"HLOOKUP($C$2,$B$8:$D466,$A466,FALSE)","v":"Digestate: Fertilizer obtained from biogas production, also known as bioslurry."},"title459"]
[460,"1.2      Utilities prices","1.2      Prix des services publics","1.2      Precios de servicios","title",{"$f":"HLOOKUP($C$2,$B$8:$D467,$A467,FALSE)","v":"1.2      Utilities prices"},"title460"]
[461,"Water (urban areas)","Eau (zones rurales)","Agua (áreas rurales)","title",{"$f":"HLOOKUP($C$2,$B$8:$D468,$A468,FALSE)","v":"Water (urban areas)"},"title461"]
[462,"Water (rural areas)","Eau (zones urbaines)","Agua (áreas urbanas)","title",{"$f":"HLOOKUP($C$2,$B$8:$D469,$A469,FALSE)","v":"Water (rural areas)"},"title462"]
[463,"Water (industrial)","Eau (industrielles)","Agua (industria)","title",{"$f":"HLOOKUP($C$2,$B$8:$D470,$A470,FALSE)","v":"Water (industrial)"},"title463"]
[464,"Heat carrier (low pressure steam)","Calopoteur (la vapeur à basse pression)","Portador de calor (vapor a baja presión)","title",{"$f":"HLOOKUP($C$2,$B$8:$D471,$A471,FALSE)","v":"Heat carrier (low pressure steam)"},"title464"]
[465,"Note: ","A Noter: ","Nota: ","title",{"$f":"HLOOKUP($C$2,$B$8:$D472,$A472,FALSE)","v":"Note: "},"title465"]
[466,"Heat carrier is the cost of low pressure steam production. ","le calopteur est le coût de production de vapeur a basse pression.","Portador de calor es el costo de la producción del vapor a baja presión. ","title",{"$f":"HLOOKUP($C$2,$B$8:$D473,$A473,FALSE)","v":"Heat carrier is the cost of low pressure steam production. "},"title466"]
[467,"If the specific data of the country is not available, consult the following link.","Si les donnés spécifiques au pays ne sont pas disponibles, veuillez alors consulter le lien suivant:","Si los datos específicos del país no esta disponible, consulte el siguiente link: ","title",{"$f":"HLOOKUP($C$2,$B$8:$D474,$A474,FALSE)","v":"If the specific data of the country is not available, consult the following link."},"title467"]
[468,"1.3      Industrial input prices","1.3      Prix des intrants Industriels","1.3      Precio de insumos industriales","title",{"$f":"HLOOKUP($C$2,$B$8:$D475,$A475,FALSE)","v":"1.3      Industrial input prices"},"title468"]
[469,"1.3.1       Transport (Biodiesel and Ethanol)/Biogas Industrial","1.3.1       Transport (Biodiesel et Éthanol)/Biogaz industriel","1.3.1       Transporte (Biodiesel y Etanol)/Biogás Industrial","title",{"$f":"HLOOKUP($C$2,$B$8:$D476,$A476,FALSE)","v":"1.3.1       Transport (Biodiesel and Ethanol)/Biogas Industrial"},"title469"]
[470,"Methanol ","Méthanol ","Metanol","title",{"$f":"HLOOKUP($C$2,$B$8:$D477,$A477,FALSE)","v":"Methanol "},"title470"]
[471,"Sodium hydroxide ","Hydroxide de Sodium ","Hidróxido de sodio","title",{"$f":"HLOOKUP($C$2,$B$8:$D478,$A478,FALSE)","v":"Sodium hydroxide "},"title471"]
[472,"Hexane ","Hexane ","Hexano","title",{"$f":"HLOOKUP($C$2,$B$8:$D479,$A479,FALSE)","v":"Hexane "},"title472"]
[473,"Ammonia","Ammoniac","Amonio","title",{"$f":"HLOOKUP($C$2,$B$8:$D480,$A480,FALSE)","v":"Ammonia"},"title473"]
[474,"Yeast","Levure","Levadura","title",{"$f":"HLOOKUP($C$2,$B$8:$D481,$A481,FALSE)","v":"Yeast"},"title474"]
[475,"Sulfuric acid","Acide Sulfurique","Ácido sulfúrico","title",{"$f":"HLOOKUP($C$2,$B$8:$D482,$A482,FALSE)","v":"Sulfuric acid"},"title475"]
[476,"Lime","Chaux","Cal","title",{"$f":"HLOOKUP($C$2,$B$8:$D483,$A483,FALSE)","v":"Lime"},"title476"]
[477,"Alpha-amylase","Alpha-amylase","alfa-amilasa","title",{"$f":"HLOOKUP($C$2,$B$8:$D484,$A484,FALSE)","v":"Alpha-amylase"},"title477"]
[478,"Glucoamylase","Glucoamylase","gluco-amilasa","title",{"$f":"HLOOKUP($C$2,$B$8:$D485,$A485,FALSE)","v":"Glucoamylase"},"title478"]
[479,"1.3.2       Biogas Community/Charcoal","1.3.2       Biogaz communautaire/ Charbon de bois","1.3.2       Biogás Comunitario/Carbón vegetal","title",{"$f":"HLOOKUP($C$2,$B$8:$D486,$A486,FALSE)","v":"1.3.2       Biogas Community/Charcoal"},"title479"]
[480,"Bricks ","Briques","Ladrillos","title",{"$f":"HLOOKUP($C$2,$B$8:$D487,$A487,FALSE)","v":"Bricks "},"title480"]
[481,"Cement 50 kg bag","Ciment sac de 50 kg","Cemento 50 kg ","title",{"$f":"HLOOKUP($C$2,$B$8:$D488,$A488,FALSE)","v":"Cement 50 kg bag"},"title481"]
[482,"Plastic valve 1/2''","Valve en plastique de 1/2''","Válvula de plástico 1/2''","title",{"$f":"HLOOKUP($C$2,$B$8:$D489,$A489,FALSE)","v":"Plastic valve 1/2''"},"title482"]
[483,"Plastic hub 1/2''","Plastique moyeu de 1/2''","Hub de Plástico 1/2''","title",{"$f":"HLOOKUP($C$2,$B$8:$D490,$A490,FALSE)","v":"Plastic hub 1/2''"},"title483"]
[484,"Concrete","Béton","Hormigón","title",{"$f":"HLOOKUP($C$2,$B$8:$D491,$A491,FALSE)","v":"Concrete"},"title484"]
[485,"Oil drum (200 litres)","Baril de pétrole (200 litres)","Tambor de aceite (200 litros)","title",{"$f":"HLOOKUP($C$2,$B$8:$D492,$A492,FALSE)","v":"Oil drum (200 litres)"},"title485"]
[486,"Angle iron for frame 40 x 50 x 5 mm","Cadre de fer 40 x 50 x 5 mm","Ángulo de hierro para el marco de 40 x 50 x 5 mm","title",{"$f":"HLOOKUP($C$2,$B$8:$D493,$A493,FALSE)","v":"Angle iron for frame 40 x 50 x 5 mm"},"title486"]
[487,"Sand","Sable","Arena","title",{"$f":"HLOOKUP($C$2,$B$8:$D494,$A494,FALSE)","v":"Sand"},"title487"]
[488,"Pneumatic league","Ligue pneumatique","Liga neumática","title",{"$f":"HLOOKUP($C$2,$B$8:$D495,$A495,FALSE)","v":"Pneumatic league"},"title488"]
[489,"Gravel","Gravier","Grava","title",{"$f":"HLOOKUP($C$2,$B$8:$D496,$A496,FALSE)","v":"Gravel"},"title489"]
[490,"H2S filter","H2S filtre","Filtro H2S","title",{"$f":"HLOOKUP($C$2,$B$8:$D497,$A497,FALSE)","v":"H2S filter"},"title490"]
[491,"Paint","Peinture","Pintura","title",{"$f":"HLOOKUP($C$2,$B$8:$D498,$A498,FALSE)","v":"Paint"},"title491"]
[492,"Main valve","Vanne principale","Válvula principal","title",{"$f":"HLOOKUP($C$2,$B$8:$D499,$A499,FALSE)","v":"Main valve"},"title492"]
[493,"Net cyclone 4'' feet","Cyclone net 4'' pieds","Ciclón neto 4'' pies","title",{"$f":"HLOOKUP($C$2,$B$8:$D500,$A500,FALSE)","v":"Net cyclone 4'' feet"},"title493"]
[494,"Mixing device","Dispositif de mélange","Dispositivo de mezcla","title",{"$f":"HLOOKUP($C$2,$B$8:$D501,$A501,FALSE)","v":"Mixing device"},"title494"]
[495,"Zinc sheets","Feuilles de zinc","Laminas de zinc","title",{"$f":"HLOOKUP($C$2,$B$8:$D502,$A502,FALSE)","v":"Zinc sheets"},"title495"]
[496,"Metal sheet (thickness 30 mm)","Feuilles de métal (épaisseur 30 mm)","Hojas de metal (espesor 30 mm)","title",{"$f":"HLOOKUP($C$2,$B$8:$D503,$A503,FALSE)","v":"Metal sheet (thickness 30 mm)"},"title496"]
[497,"Gas stove","Cuisinière à gaz","Cocina de gas","title",{"$f":"HLOOKUP($C$2,$B$8:$D504,$A504,FALSE)","v":"Gas stove"},"title497"]
[498,"Plastic bag (polyethylene 0,2 mm thick)","Sac Plastic (polyéthylène 0,2 mm d'épaisseur)","Bolsa de plástico (polietileno 0,2 mm de espesor)","title",{"$f":"HLOOKUP($C$2,$B$8:$D505,$A505,FALSE)","v":"Plastic bag (polyethylene 0,2 mm thick)"},"title498"]
[499,"Gas light","Lampe à gaz","Luz a gas","title",{"$f":"HLOOKUP($C$2,$B$8:$D506,$A506,FALSE)","v":"Gas light"},"title499"]
[500,"Pressure manometer","Manomètre à pression","Manómetro de presión","title",{"$f":"HLOOKUP($C$2,$B$8:$D507,$A507,FALSE)","v":"Pressure manometer"},"title500"]
[501,"Axe","Axe","Hacha","title",{"$f":"HLOOKUP($C$2,$B$8:$D508,$A508,FALSE)","v":"Axe"},"title501"]
[502,"Hoe","Houe","Azadón","title",{"$f":"HLOOKUP($C$2,$B$8:$D509,$A509,FALSE)","v":"Hoe"},"title502"]
[503,"Machete","Machette","Machete","title",{"$f":"HLOOKUP($C$2,$B$8:$D510,$A510,FALSE)","v":"Machete"},"title503"]
[504,"Shovel","Pelle","Pala","title",{"$f":"HLOOKUP($C$2,$B$8:$D511,$A511,FALSE)","v":"Shovel"},"title504"]
[505,"Fork rake","Râteau à fourche","Rastrillo tenedor","title",{"$f":"HLOOKUP($C$2,$B$8:$D512,$A512,FALSE)","v":"Fork rake"},"title505"]
[506,"USD/bag","USD/sac","USD/bolsa","title",{"$f":"HLOOKUP($C$2,$B$8:$D513,$A513,FALSE)","v":"USD/bag"},"title506"]
[507,"USD/unit","USD/unité","USD/unidad","title",{"$f":"HLOOKUP($C$2,$B$8:$D514,$A514,FALSE)","v":"USD/unit"},"title507"]
[508,"This table collects information on the prices of construction material required for contructioning the biodigestor reactor.","Le tableau recueille les informations sur le prix des matérieaux de construction nécessaires pour la construction d'un biodigesteur.","Esta tabla recolecta información sobre los precios de los materiales de construcción requeridos para la construcción del bioreactor.","title",{"$f":"HLOOKUP($C$2,$B$8:$D515,$A515,FALSE)","v":"This table collects information on the prices of construction material required for contructioning the biodigestor reactor."},"title508"]
[509,"Main valve ","Vanne principale","Válvula principal","title",{"$f":"HLOOKUP($C$2,$B$8:$D516,$A516,FALSE)","v":"Main valve "},"title509"]
[510,"- standard gas shut off valve for the stove. It costs around 11 USD/pc in the USA. ","- valve standard d'arrêter pour le fourneau. Ca coûte aux alentour de 11 USD/pc aux USA. ","- estándar válvula de cierre de gas para la estufa. Cuesta alrededor de 11 USD/pieza en los EE.UU.","title",{"$f":"HLOOKUP($C$2,$B$8:$D517,$A517,FALSE)","v":"- standard gas shut off valve for the stove. It costs around 11 USD/pc in the USA. "},"title510"]
[511,"Mixing device","Dispositif de mélange","Dispositivo de mezcla","title",{"$f":"HLOOKUP($C$2,$B$8:$D518,$A518,FALSE)","v":"Mixing device"},"title511"]
[512,"- refers to any type of equipment used to dilute manure in water. The standard mixing device is a plastic bucket. However, cut oil drums or bins may also be used. ","- se réfère à tout type d'équipement utilisé pour diluer le fumier dans l'eau . Le dispositif de mélange standard est un seau en plastique. Cependant , des bidons d'huile découpés ou des bacs peuvent également être utilisés.","- se refiere a cualquier tipo de equipo utilizado para diluir el estiércol en agua. El dispositivo de mezcla estándar es un cubo de plastico. Sin embargo, también se pueden utilizar tambores o contenedores de aceite cortados.  ","title",{"$f":"HLOOKUP($C$2,$B$8:$D519,$A519,FALSE)","v":"- refers to any type of equipment used to dilute manure in water. The standard mixing device is a plastic bucket. However, cut oil drums or bins may also be used. "},"title512"]
[513,"1.4       Storage, logistic and other technical data","1.4       Données sur le stockage, la logistique et la technique","1.4       Almacenamiento, logística y otros datos técnicos","title",{"$f":"HLOOKUP($C$2,$B$8:$D520,$A520,FALSE)","v":"1.4       Storage, logistic and other technical data"},"title513"]
[514,"1.4.1       Transport (Biodiesel and Ethanol)","1.4.1       Transport (Biodiesel et Éthanol)","1.4.1       Transporte (Biodiesel y Etanol)","title",{"$f":"HLOOKUP($C$2,$B$8:$D521,$A521,FALSE)","v":"1.4.1       Transport (Biodiesel and Ethanol)"},"title514"]
[515,"Biodiesel storage cost","Coût de stockage du Biodiesel ","Costo de almacenamiento de Biodiesel","title",{"$f":"HLOOKUP($C$2,$B$8:$D522,$A522,FALSE)","v":"Biodiesel storage cost"},"title515"]
[516,"Ethanol storage cost","Coût de stockage de l'Éthanol","Costo de almacenamiento de Etanol","title",{"$f":"HLOOKUP($C$2,$B$8:$D523,$A523,FALSE)","v":"Ethanol storage cost"},"title516"]
[517,"Safety storage rate: 5 ML","Taux de stockage de la sécurité: 5 ML","Tasa de almacenamiento de seguridad: 5 ML","title",{"$f":"HLOOKUP($C$2,$B$8:$D524,$A524,FALSE)","v":"Safety storage rate: 5 ML"},"title517"]
[518,"Safety storage rate: 25 ML","Taux de stockage de la sécurité: 25 ML","Tasa de almacenamiento de seguridad: 25 ML","title",{"$f":"HLOOKUP($C$2,$B$8:$D525,$A525,FALSE)","v":"Safety storage rate: 25 ML"},"title518"]
[519,"Safety storage rate: 50 ML","Taux de stockage de la sécurité: 50 ML","Tasa de almacenamiento de seguridad: 50 ML","title",{"$f":"HLOOKUP($C$2,$B$8:$D526,$A526,FALSE)","v":"Safety storage rate: 50 ML"},{"$f":"$E526&$A526","v":"title519"}]
[520,"Safety storage rate: 100 ML","Taux de stockage de la sécurité: 100 ML","Tasa de almacenamiento de seguridad: 100 ML","title",{"$f":"HLOOKUP($C$2,$B$8:$D527,$A527,FALSE)","v":"Safety storage rate: 100 ML"},"title520"]
[521,"Transportation cost of liquid fuel (diesel, gasoline, biodiesel, ethanol)","Coût de transport des biocarburants liquides (diesel, essence, biodiesel, éthanol)","Costo del transporte de combustibles líquidos (diésel, gasolina, biodiesel, etanol)","title",{"$f":"HLOOKUP($C$2,$B$8:$D528,$A528,FALSE)","v":"Transportation cost of liquid fuel (diesel, gasoline, biodiesel, ethanol)"},"title521"]
[522,"Transportation cost of biomass (farm to plant)","Coût de transport de la biomasse","Costo de transporte de biomasa","title",{"$f":"HLOOKUP($C$2,$B$8:$D529,$A529,FALSE)","v":"Transportation cost of biomass (farm to plant)"},"title522"]
[523,"Typical distance to waste treatment plants","Distance spécifique aux usines de traitement de déchets","Distancia típica a las plantas de tratamiento de residuos","title",{"$f":"HLOOKUP($C$2,$B$8:$D530,$A530,FALSE)","v":"Typical distance to waste treatment plants"},"title523"]
[524,"USD/l/year","USD/l/an","USD/l/año","title",{"$f":"HLOOKUP($C$2,$B$8:$D531,$A531,FALSE)","v":"USD/l/year"},"title524"]
[525,"1.4.2       Briquettes/Pellets","1.4.2       Briquette/Granulés de bois","1.4.2       Briquetas/Pellets","title",{"$f":"HLOOKUP($C$2,$B$8:$D532,$A532,FALSE)","v":"1.4.2       Briquettes/Pellets"},"title525"]
[526,"Biomass storage cost","Coût de stockage de la biomasse","Costo de almacenamiento de biomasa","title",{"$f":"HLOOKUP($C$2,$B$8:$D533,$A533,FALSE)","v":"Biomass storage cost"},"title526"]
[527,"Safety storage rate: 4 kg/h","Taux de stockage de la sécurité: 4 kg/h","Tasa de almacenamiento de seguridad: 4 kg/h","title",{"$f":"HLOOKUP($C$2,$B$8:$D534,$A534,FALSE)","v":"Safety storage rate: 4 kg/h"},"title527"]
[528,"Safety storage rate: 40 kg/h","Taux de stockage de la sécurité: 40 kg/h","Tasa de almacenamiento de seguridad: 40 kg/h","title",{"$f":"HLOOKUP($C$2,$B$8:$D535,$A535,FALSE)","v":"Safety storage rate: 40 kg/h"},"title528"]
[529,"Safety storage rate: 400 kg/h","Taux de stockage de la sécurité: 400 kg/h","Tasa de almacenamiento de seguridad: 400 kg/h","title",{"$f":"HLOOKUP($C$2,$B$8:$D536,$A536,FALSE)","v":"Safety storage rate: 400 kg/h"},"title529"]
[530,"Safety storage rate: 3000 kg/h","Taux de stockage de la sécurité: 3000 kg/h","Tasa de almacenamiento de seguridad: 3000 kg/h","title",{"$f":"HLOOKUP($C$2,$B$8:$D537,$A537,FALSE)","v":"Safety storage rate: 3000 kg/h"},"title530"]
[531,"Typical distance between biomass collection point and briquette/pellet factories (manual, small, medium and large scale production)","Distance spécifique entre le point de collecte de la biomasse et les usines de briquette/granulés de bois (production manuelle à petite, moyenne et grande échelle)","Distancia típica entre el punto de recolección de la biomasa y de las fábricas de briquetas/pellets (producción manual, pequeña, mediana y grande escala)","title",{"$f":"HLOOKUP($C$2,$B$8:$D538,$A538,FALSE)","v":"Typical distance between biomass collection point and briquette/pellet factories (manual, small, medium and large scale production)"},"title531"]
[532,"Typical distance between biomass briquette/pellet factories and market    (manual, small, medium and large scale production)","Distance spécifique entre les usines de briquette/granulés de bois et le marché (production manuelle à petite, moyenne et grande échelle)","Distancia típica entre las fabricas de biquetas/pellets y el mercado (Producción manual, pequeña, mediana y grande escala) ","title",{"$f":"HLOOKUP($C$2,$B$8:$D539,$A539,FALSE)","v":"Typical distance between biomass briquette/pellet factories and market    (manual, small, medium and large scale production)"},"title532"]
[533,"Transportation cost of biomass (farm to briquettes/pellets plant)","Coût de transport de la biomasse (ferme à l'usine de briquette/granulés de bois)","Costo de transporte de la biomasa (de la granja a la planta de briquetas/pellets) ","title",{"$f":"HLOOKUP($C$2,$B$8:$D540,$A540,FALSE)","v":"Transportation cost of biomass (farm to briquettes/pellets plant)"},"title533"]
[534,"Transportation cost of briquettes/pellets (briquettes/pellets plant to market)","Coût de transport des briquettes/granulés de bois (usine de briquettes/granulés de bois au marché)","Costo de transporte de briquetas (de la planta de briquetas/pellets al  mercado)","title",{"$f":"HLOOKUP($C$2,$B$8:$D541,$A541,FALSE)","v":"Transportation cost of briquettes/pellets (briquettes/pellets plant to market)"},"title534"]
[535,"1.4.3       CHP (Cogeneration)","1.4.3       Cogénération","1.4.3       Cogeneración","title",{"$f":"HLOOKUP($C$2,$B$8:$D542,$A542,FALSE)","v":"1.4.3       CHP (Cogeneration)"},"title535"]
[536,"Feedstock storage cost","Coût de stockage de la biomasse","Costo de almacenamiento de materia prima ","title",{"$f":"HLOOKUP($C$2,$B$8:$D543,$A543,FALSE)","v":"Feedstock storage cost"},"title536"]
[537,"Safety storage rate: Tech 1","Taux de stockage de la sécurité: Tech 1","Tasa de almacenamiento de seguridad: Tec 1","title",{"$f":"HLOOKUP($C$2,$B$8:$D544,$A544,FALSE)","v":"Safety storage rate: Tech 1"},"title537"]
[538,"Safety storage rate: Tech 2","Taux de stockage de la sécurité: Tech 2","Tasa de almacenamiento de seguridad: Tec 2","title",{"$f":"HLOOKUP($C$2,$B$8:$D545,$A545,FALSE)","v":"Safety storage rate: Tech 2"},"title538"]
[539,"Safety storage rate: Tech 3","Taux de stockage de la sécurité: Tech 3","Tasa de almacenamiento de seguridad: Tec 3","title",{"$f":"HLOOKUP($C$2,$B$8:$D546,$A546,FALSE)","v":"Safety storage rate: Tech 3"},"title539"]
[540,"Transportation cost of feedstock (collection point to cogeneration plant)","Coût de transport de la biomasse (point de collecte à l'usine de cogénération)","Costo del transporte del punto de recolección hasta la planta de cogeneración","title",{"$f":"HLOOKUP($C$2,$B$8:$D547,$A547,FALSE)","v":"Transportation cost of feedstock (collection point to cogeneration plant)"},"title540"]
[541,"Typical distance from collection point to cogeneration plant","Distance spécifique entre le point de collecte de la biomasse et les usines de cogénération","Distancia típica entre el punto de recolección de la biomasa y de las plantas de cogeneración","title",{"$f":"HLOOKUP($C$2,$B$8:$D548,$A548,FALSE)","v":"Typical distance from collection point to cogeneration plant"},"title541"]
[542,"1.4.4      Charcoal","1.4.4      Charbon de bois","1.4.4      Carbón vegetal","title",{"$f":"HLOOKUP($C$2,$B$8:$D549,$A549,FALSE)","v":"1.4.4      Charcoal"},"title542"]
[543,"Feedstock storage cost ","Coût de stockage des matières premières ","Costo de almacenamiento de materia prima ","title",{"$f":"HLOOKUP($C$2,$B$8:$D550,$A550,FALSE)","v":"Feedstock storage cost "},"title543"]
[544,"Wood residues drying period","Période de séchage des résidus de bois","Residuos de madera en el periodo de secado ","title",{"$f":"HLOOKUP($C$2,$B$8:$D551,$A551,FALSE)","v":"Wood residues drying period"},"title544"]
[545,"Wood residues safety storage rate","Taux sécuritaire de stockage des Résidus de Bois","Tasa de almacenamiento segura de residuos de madera","title",{"$f":"HLOOKUP($C$2,$B$8:$D552,$A552,FALSE)","v":"Wood residues safety storage rate"},"title545"]
[546,"Transportation cost of wood residues","Coût de transport des résidus de bois","Costo del transporte de los residuos de madera","title",{"$f":"HLOOKUP($C$2,$B$8:$D553,$A553,FALSE)","v":"Transportation cost of wood residues"},"title546"]
[547,"Transportation cost of charcoal","Coût de transport du Charbon de bois","Costo del transporte de carbón vegetal","title",{"$f":"HLOOKUP($C$2,$B$8:$D554,$A554,FALSE)","v":"Transportation cost of charcoal"},"title547"]
[548,"Typical distance between field and charcoal factories ","Distance spécifique entre les champs et les usines de charbon de bois","Distancia típica entre el campo y las fábricas de carbón vegetal","title",{"$f":"HLOOKUP($C$2,$B$8:$D555,$A555,FALSE)","v":"Typical distance between field and charcoal factories "},"title548"]
[549,"Typical distance between charcoal factories and market ","Distance spécifique entre les usines de charbon de bois et le marché ","Distancia típica entre las fábricas de carbón vegetal y el mercado","title",{"$f":"HLOOKUP($C$2,$B$8:$D556,$A556,FALSE)","v":"Typical distance between charcoal factories and market "},"title549"]
[550,"Typical distance between collection point and kiln ","Distance spécifique entre le point de collecte et les fourneaux ","Distancia típica entre un punto de recolección y el horno","title",{"$f":"HLOOKUP($C$2,$B$8:$D557,$A557,FALSE)","v":"Typical distance between collection point and kiln "},"title550"]
[551,"Transportation cost collection point to kiln","Coût de transport du point de collecte aux fourneaux","Costo del transporte del punto de recolección hasta el horno","title",{"$f":"HLOOKUP($C$2,$B$8:$D558,$A558,FALSE)","v":"Transportation cost collection point to kiln"},"title551"]
[552,"Typical distance between kiln and market","Distance spécifique entre les fourneaux et le marché","Distancia típica entre el horno y el mercado","title",{"$f":"HLOOKUP($C$2,$B$8:$D559,$A559,FALSE)","v":"Typical distance between kiln and market"},"title552"]
[553,"Transportation cost kiln to market","Coût de transport des fourneaux au marché","Costo del transporte del horno hasta el mercado","title",{"$f":"HLOOKUP($C$2,$B$8:$D560,$A560,FALSE)","v":"Transportation cost kiln to market"},"title553"]
[554,"days","jour","días","title",{"$f":"HLOOKUP($C$2,$B$8:$D561,$A561,FALSE)","v":"days"},"title554"]
[555,"kWh/month","kWh/mois","kWh/mes","title",{"$f":"HLOOKUP($C$2,$B$8:$D562,$A562,FALSE)","v":"kWh/month"},"title555"]
[556,"1.4.5       SVO/Gasification/Combustion","1.4.5       HVB / Gazéification/Combustion","1.4.5       AVC / Gasificación/Combustión","title",{"$f":"HLOOKUP($C$2,$B$8:$D563,$A563,FALSE)","v":"1.4.5       SVO/Gasification/Combustion"},"title556"]
[557,"Feedstock storage cost (oilseeds)","Coût de stockage des matières premières (oléagineuses)","Costo de almacenamiento de materia prima (semillas oleaginosas)","title",{"$f":"HLOOKUP($C$2,$B$8:$D564,$A564,FALSE)","v":"Feedstock storage cost (oilseeds)"},"title557"]
[558,"Feedstock storage cost (biomass for gasification)","Coût de stockage des matières premières (biomasse pour la gazéification)","Costo de almacenamiento de materia prima (biomasa para gasificación)","title",{"$f":"HLOOKUP($C$2,$B$8:$D565,$A565,FALSE)","v":"Feedstock storage cost (biomass for gasification)"},"title558"]
[559,"Safety storage rate: 10 kW","Taux de stockage de sécurité: 10 Kw","Tasa de almacenamiento de seguridad: 10 kW","title",{"$f":"HLOOKUP($C$2,$B$8:$D566,$A566,FALSE)","v":"Safety storage rate: 10 kW"},"title559"]
[560,"Safety storage rate: 40 kW","Taux de stockage de sécurité: 40 Kw","Tasa de almacenamiento de seguridad: 40 kW","title",{"$f":"HLOOKUP($C$2,$B$8:$D567,$A567,FALSE)","v":"Safety storage rate: 40 kW"},"title560"]
[561,"Safety storage rate: 100 kW","Taux de stockage de sécurité: 100 Kw","Tasa de almacenamiento de seguridad: 100 kW","title",{"$f":"HLOOKUP($C$2,$B$8:$D568,$A568,FALSE)","v":"Safety storage rate: 100 kW"},"title561"]
[562,"Transportation cost of biomass residues","Coût de transport des résidus de la biomasse","Costo de transporte de residuos de biomasa","title",{"$f":"HLOOKUP($C$2,$B$8:$D569,$A569,FALSE)","v":"Transportation cost of biomass residues"},"title562"]
[563,"Transportation cost of oilseeds","Coût de transport des oléagineuses","Costo de transporte de semillas oleaginosas","title",{"$f":"HLOOKUP($C$2,$B$8:$D570,$A570,FALSE)","v":"Transportation cost of oilseeds"},"title563"]
[564,"Typical distance between biomass collection point and electricity plant (small, medium and large scale production)","Distance spécifique entre le point de collecte de la biomasse et l'usine d'électricité (production à petite, moyenne et grande échelle)","Distancia típica entre el punto de recogida de biomasa y la planta de energía eléctrica (producción a pequeña, mediana y grande escala)","title",{"$f":"HLOOKUP($C$2,$B$8:$D571,$A571,FALSE)","v":"Typical distance between biomass collection point and electricity plant (small, medium and large scale production)"},"title564"]
[565,"Electricity consumption per household (average)","Consommation d'électricité par ménage (moyenne)","Consumo de electricidad por hogar (promedio)","title",{"$f":"HLOOKUP($C$2,$B$8:$D572,$A572,FALSE)","v":"Electricity consumption per household (average)"},"title565"]
[566,"1.4.6      Biogas Community/Biogas Industrial/Briquettes/Pellets/Charcoal/CHP (Cogeneration)/Country Status - Profile of energy consumption per household and industry","1.4.6      Biogaz communautaire/ Biogaz industriel/ Briquettes/ Granulés de Bois/ Charbon de Bois/ Cogénération/ Situation du pays - le profile de la consommation énergétique par ménage et par industrie","1.4.6      Biogás Comunitario/Biogás Industrial/Briquetas/Pellets/ Carbón vegetal/Cogeneración/Estado Actual del País - Perfil de hogares y consumo de energía por hogar ","title",{"$f":"HLOOKUP($C$2,$B$8:$D573,$A573,FALSE)","v":"1.4.6      Biogas Community/Biogas Industrial/Briquettes/Pellets/Charcoal/CHP (Cogeneration)/Country Status - Profile of energy consumption per household and industry"},"title566"]
[567,"Percentage of rural households collecting fuelwood","Poucentage de ménages ruraux collectant du bois de chauffage","Porcentaje de hogares rurales que recolectan madera combustible","title",{"$f":"HLOOKUP($C$2,$B$8:$D574,$A574,FALSE)","v":"Percentage of rural households collecting fuelwood"},"title567"]
[568,"Time consumption per household","Temps nécessaire par ménage","Tiempo de consumo por hogar","title",{"$f":"HLOOKUP($C$2,$B$8:$D575,$A575,FALSE)","v":"Time consumption per household"},"title568"]
[569,"Fuelwood collection","Collecte du bois de chauffage","Recolección de madera combustible","title",{"$f":"HLOOKUP($C$2,$B$8:$D576,$A576,FALSE)","v":"Fuelwood collection"},"title569"]
[570,"Cooking using fuelwood","Cuisson en utilisant le bois de chauffage","Cocinando usando madera combustible","title",{"$f":"HLOOKUP($C$2,$B$8:$D577,$A577,FALSE)","v":"Cooking using fuelwood"},"title570"]
[571,"Time consumption in biogas community production","Temps nécessaire pour la production de biogaz communautaire","Tiempo de consumo en la producción de biogás comunitario","title",{"$f":"HLOOKUP($C$2,$B$8:$D578,$A578,FALSE)","v":"Time consumption in biogas community production"},"title571"]
[572,"Dung collection","Collecte de fumier","Recolección de estiércol","title",{"$f":"HLOOKUP($C$2,$B$8:$D579,$A579,FALSE)","v":"Dung collection"},"title572"]
[573,"Water collection","Collecte d'eau","Recolección de agua","title",{"$f":"HLOOKUP($C$2,$B$8:$D580,$A580,FALSE)","v":"Water collection"},"title573"]
[574,"Mixing up dung in digestor","Préparation du fumier ainsi que son mélange dans le digesteur","Mezclando del estiércol en el digestor","title",{"$f":"HLOOKUP($C$2,$B$8:$D581,$A581,FALSE)","v":"Mixing up dung in digestor"},"title574"]
[575,"Nutrients fertilizer consumption per household","Consommation d'engrais par ménage","Nutrientes de fertilizantes consumidos por hogar","title",{"$f":"HLOOKUP($C$2,$B$8:$D582,$A582,FALSE)","v":"Nutrients fertilizer consumption per household"},"title575"]
[576,"Nitrogen","Azote","Nitrógeno","title",{"$f":"HLOOKUP($C$2,$B$8:$D583,$A583,FALSE)","v":"Nitrogen"},"title576"]
[577,"Phosphorous","Phosphore","Fósforo","title",{"$f":"HLOOKUP($C$2,$B$8:$D584,$A584,FALSE)","v":"Phosphorous"},"title577"]
[578,"Potassium","Potassium","Potasio","title",{"$f":"HLOOKUP($C$2,$B$8:$D585,$A585,FALSE)","v":"Potassium"},"title578"]
[579,"Manure","Fumier","Estiércol","title",{"$f":"HLOOKUP($C$2,$B$8:$D586,$A586,FALSE)","v":"Manure"},"title579"]
[580,"Energy consumption per rural household","Énergie consommée par ménage rural ","Consumo energético por hogar rural","title",{"$f":"HLOOKUP($C$2,$B$8:$D587,$A587,FALSE)","v":"Energy consumption per rural household"},"title580"]
[581,"Coal","Charbon","Carbón","title",{"$f":"HLOOKUP($C$2,$B$8:$D588,$A588,FALSE)","v":"Coal"},"title581"]
[582,"Briquettes/Pellets","Briquette/Granulés de Bois","Briquetas/Pellets","title",{"$f":"HLOOKUP($C$2,$B$8:$D589,$A589,FALSE)","v":"Briquettes/Pellets"},"title582"]
[583,"Fuel wood","Bois de Chauffage","Madera combustible","title",{"$f":"HLOOKUP($C$2,$B$8:$D590,$A590,FALSE)","v":"Fuel wood"},{"$f":"$E590&$A590","v":"title583"}]
[584,"Charcoal","Charbon de bois","Carbón vegetal","title",{"$f":"HLOOKUP($C$2,$B$8:$D591,$A591,FALSE)","v":"Charcoal"},"title584"]
[585,"Natural gas","Gaz Naturel","Gas natural","title",{"$f":"HLOOKUP($C$2,$B$8:$D592,$A592,FALSE)","v":"Natural gas"},"title585"]
[586,"Kerosene","Kérosène","Queroseno","title",{"$f":"HLOOKUP($C$2,$B$8:$D593,$A593,FALSE)","v":"Kerosene"},"title586"]
[587,"LPG","GPL","GLP","title",{"$f":"HLOOKUP($C$2,$B$8:$D594,$A594,FALSE)","v":"LPG"},"title587"]
[588,"Heating","Chauffage","Calefacción","title",{"$f":"HLOOKUP($C$2,$B$8:$D595,$A595,FALSE)","v":"Heating"},"title588"]
[589,"Electricity","Électricité","Electricidad","title",{"$f":"HLOOKUP($C$2,$B$8:$D596,$A596,FALSE)","v":"Electricity"},"title589"]
[590,"Energy consumption per urban household","Énergie consommée par ménage urbain","Consumo energético por hogar urbano","title",{"$f":"HLOOKUP($C$2,$B$8:$D597,$A597,FALSE)","v":"Energy consumption per urban household"},"title590"]
[591,"Fuel oil","Mazout","Aceite combustible","title",{"$f":"HLOOKUP($C$2,$B$8:$D598,$A598,FALSE)","v":"Fuel oil"},"title591"]
[592,"h/day","h/jour","h/día","title",{"$f":"HLOOKUP($C$2,$B$8:$D599,$A599,FALSE)","v":"h/day"},"title592"]
[593,"kg/year","kg/an","kg/año","title",{"$f":"HLOOKUP($C$2,$B$8:$D600,$A600,FALSE)","v":"kg/year"},"title593"]
[594,"kg/day","kg/jour","kg/día","title",{"$f":"HLOOKUP($C$2,$B$8:$D601,$A601,FALSE)","v":"kg/day"},"title594"]
[595,"m3/day","m3/jour","m3/day","title",{"$f":"HLOOKUP($C$2,$B$8:$D602,$A602,FALSE)","v":"m3/day"},"title595"]
[596,"l/day","l/jour","l/día","title",{"$f":"HLOOKUP($C$2,$B$8:$D603,$A603,FALSE)","v":"l/day"},"title596"]
[597,"kWhth/month","kWh/mois","kWhth/mes","title",{"$f":"HLOOKUP($C$2,$B$8:$D604,$A604,FALSE)","v":"kWhth/month"},"title597"]
[598,"kWh/day","kWh/jour","kWh/día","title",{"$f":"HLOOKUP($C$2,$B$8:$D605,$A605,FALSE)","v":"kWh/day"},"title598"]
[599,"kWh/year","kWh/an","kWh/año","title",{"$f":"HLOOKUP($C$2,$B$8:$D606,$A606,FALSE)","v":"kWh/year"},"title599"]
[600,"MJ/year","MJ/an","MJ/año","title",{"$f":"HLOOKUP($C$2,$B$8:$D607,$A607,FALSE)","v":"MJ/year"},"title600"]
[601,"t charcoal/year","t charbon de bois/an","t carbón/año","title",{"$f":"HLOOKUP($C$2,$B$8:$D608,$A608,FALSE)","v":"t charcoal/year"},"title601"]
[602,"person-day","personne-jour","persona-día","title",{"$f":"HLOOKUP($C$2,$B$8:$D609,$A609,FALSE)","v":"person-day"},"title602"]
[603,"1.4.7       Traditional charcoal making","1.4.7       Production traditionnelle de Charbon de Bois","1.4.7       Fabricación tradicional de carbón vegetal","title",{"$f":"HLOOKUP($C$2,$B$8:$D610,$A610,FALSE)","v":"1.4.7       Traditional charcoal making"},"title603"]
[604,"Charcoal subsistence producers data","Données sur les Producteurs de Charbon de bois de Subsistance","Datos de los productores de subsistencia de carbón vegetal","title",{"$f":"HLOOKUP($C$2,$B$8:$D611,$A611,FALSE)","v":"Charcoal subsistence producers data"},"title604"]
[605,"Standard production rate","Taux de Production Standard","Tasa de producción estándar","title",{"$f":"HLOOKUP($C$2,$B$8:$D612,$A612,FALSE)","v":"Standard production rate"},"title605"]
[606,"Standard efficiency","Rendement Standard","Eficiencia estándar","title",{"$f":"HLOOKUP($C$2,$B$8:$D613,$A613,FALSE)","v":"Standard efficiency"},"title606"]
[607,"Activities:","Activités:","Actividades:","title",{"$f":"HLOOKUP($C$2,$B$8:$D614,$A614,FALSE)","v":"Activities:"},"title607"]
[608,"Biomass collection and preparation","Collecte et Préparation de la biomasse","Recolección y preparación de biomasa","title",{"$f":"HLOOKUP($C$2,$B$8:$D615,$A615,FALSE)","v":"Biomass collection and preparation"},"title608"]
[609,"Kiln construction","Construction des fourneaux","Construcción del horno","title",{"$f":"HLOOKUP($C$2,$B$8:$D616,$A616,FALSE)","v":"Kiln construction"},"title609"]
[610,"Operating kiln (loading and unloading included)","Fonctionnement des fours (chargement et déchargement inclus)","Operación del horno (incluyendo la carga y descarga)","title",{"$f":"HLOOKUP($C$2,$B$8:$D617,$A617,FALSE)","v":"Operating kiln (loading and unloading included)"},"title610"]
[611,"Packing charcoal","Emballage du charbon de bois","Empaque del carbón vegetal","title",{"$f":"HLOOKUP($C$2,$B$8:$D618,$A618,FALSE)","v":"Packing charcoal"},"title611"]
[612,"Charcoal commercial producers data","Données sur les Producteurs de Charbon de bois Commerciaux","Datos de los productores comerciales de carbón vegetal","title",{"$f":"HLOOKUP($C$2,$B$8:$D619,$A619,FALSE)","v":"Charcoal commercial producers data"},"title612"]
[613,"Biomass preparation","Collecte et Préparation de la biomasse","Preparación de biomasa","title",{"$f":"HLOOKUP($C$2,$B$8:$D620,$A620,FALSE)","v":"Biomass preparation"},"title613"]
[614,"Supervising charcoal processing","Superviser le traitement du charbon de bois","Supervisado del procesamiento de carbón vegetal","title",{"$f":"HLOOKUP($C$2,$B$8:$D621,$A621,FALSE)","v":"Supervising charcoal processing"},"title614"]
[615,"Transportation distance (Fs -> Plant)","Distance de transport (Fs -> Usine)","Distancia del transporte (Fs -> Planta)","title",{"$f":"HLOOKUP($C$2,$B$8:$D622,$A622,FALSE)","v":"Transportation distance (Fs -> Plant)"},"title615"]
[616,"1.4.8       Biogas Industrial","1.4.8       Biogaz industriel","1.4.8       Biogás Industrial","title",{"$f":"HLOOKUP($C$2,$B$8:$D623,$A623,FALSE)","v":"1.4.8       Biogas Industrial"},"title616"]
[617,"Storage safety rate of biogas","Taux de stockage de sécurité du biogaz ","Tasa de seguridad de almacenamiento de biogás","title",{"$f":"HLOOKUP($C$2,$B$8:$D624,$A624,FALSE)","v":"Storage safety rate of biogas"},"title617"]
[618,"Feedstock storage cost (crops)","Coût de stockage des matières premières (cultures)","Costo de almacenamiento de materia prima (cultivos)","title",{"$f":"HLOOKUP($C$2,$B$8:$D625,$A625,FALSE)","v":"Feedstock storage cost (crops)"},"title618"]
[619,"Feedstock storage cost (crop residues)","Coût de stockage des matières premières (résidus de cultures)","Costo de almacenamiento de materia prima (residuos de cultivos)","title",{"$f":"HLOOKUP($C$2,$B$8:$D626,$A626,FALSE)","v":"Feedstock storage cost (crop residues)"},"title619"]
[620,"Feedstock storage cost (food processing residues)","Coût de stockage des matières premières (résidus de transformation alimentaire)","Costo de almacenamiento de materia prima (residuos de procesamiento de alimentos)","title",{"$f":"HLOOKUP($C$2,$B$8:$D627,$A627,FALSE)","v":"Feedstock storage cost (food processing residues)"},"title620"]
[621,"Feedstock storage cost (biofuel residues)","Coût de stockage des matières premières (résidus de biocarburant)","Costo de almacenamiento de materia prima (residuos de biocombustibles)","title",{"$f":"HLOOKUP($C$2,$B$8:$D628,$A628,FALSE)","v":"Feedstock storage cost (biofuel residues)"},"title621"]
[622,"Feedstock storage cost (manure)","Coût de stockage des matières premières (fumier)","Costo de almacenamiento de materia prima (estiércol)","title",{"$f":"HLOOKUP($C$2,$B$8:$D629,$A629,FALSE)","v":"Feedstock storage cost (manure)"},"title622"]
[623,"Feedstock storage cost (other residue types)","Coût de stockage des matières premières (autre types de résidus)","Costo de almacenamiento de materia prima (otros tipos de residuos)","title",{"$f":"HLOOKUP($C$2,$B$8:$D630,$A630,FALSE)","v":"Feedstock storage cost (other residue types)"},"title623"]
[624,"Transportation cost of feedstock (collection point to plant) (crops)","Coût de transport des matières premières (du point de collecte à l'usine) (cultures)","Costo de transporte (punto de recolección hasta la planta) (cultivos)","title",{"$f":"HLOOKUP($C$2,$B$8:$D631,$A631,FALSE)","v":"Transportation cost of feedstock (collection point to plant) (crops)"},"title624"]
[625,"Transportation cost of feedstock (collection point to plant) (crop residues)","Coût de transport des matières premières (du point de collecte à l'usine) (résidus de cultures)","Costo de transporte (punto de recolección hasta la planta) (residuos de cultivos)","title",{"$f":"HLOOKUP($C$2,$B$8:$D632,$A632,FALSE)","v":"Transportation cost of feedstock (collection point to plant) (crop residues)"},"title625"]
[626,"Transportation cost of feedstock (collection point to plant) (food pro. residues)","Coût de transport des matières premières (du point de collecte à l'usine) (résidus de transformation alimentaire)","Costo de transporte (punto de recolección hasta la planta) (res. de proc. de alimentos)","title",{"$f":"HLOOKUP($C$2,$B$8:$D633,$A633,FALSE)","v":"Transportation cost of feedstock (collection point to plant) (food pro. residues)"},"title626"]
[627,"Transportation cost of feedstock (collection point to plant) (biofuel residues)","Coût de transport des matières premières (du point de collecte à l'usine) (résidus de biocarburant)","Costo de transporte (punto de recolección hasta la planta) (residuos de biocombustibles)","title",{"$f":"HLOOKUP($C$2,$B$8:$D634,$A634,FALSE)","v":"Transportation cost of feedstock (collection point to plant) (biofuel residues)"},"title627"]
[628,"Transportation cost of feedstock (collection point to plant) (manure)","Coût de transport des matières premières (du point de collecte à l'usine) (fumier)","Costo de transporte (punto de recolección hasta la planta) (estiércol)","title",{"$f":"HLOOKUP($C$2,$B$8:$D635,$A635,FALSE)","v":"Transportation cost of feedstock (collection point to plant) (manure)"},"title628"]
[629,"Transportation cost of feedstock (collection point to plant) (other res. types)","Coût de transport des matières premières (du point de collecte à l'usine) (autre types de résidus)","Costo de transporte (punto de recolección hasta la planta) (otros tipos de residuos)","title",{"$f":"HLOOKUP($C$2,$B$8:$D636,$A636,FALSE)","v":"Transportation cost of feedstock (collection point to plant) (other res. types)"},"title629"]
[630,"1.5       Other costs for industrial processes (average percentage)","1.5       Autres coûts pour les processus industriels (moyenne de pourcentage)","1.5       Otros costos para procesos industriales (porcentaje promedio)","title",{"$f":"HLOOKUP($C$2,$B$8:$D637,$A637,FALSE)","v":"1.5       Other costs for industrial processes (average percentage)"},"title630"]
[631,"Transport (Biodiesel and Ethanol)","Transport (Biodiesel et Éthanol)","Transporte (Biodiesel y Etanol)","title",{"$f":"HLOOKUP($C$2,$B$8:$D638,$A638,FALSE)","v":"Transport (Biodiesel and Ethanol)"},"title631"]
[632,"Typical plant overhead in liquid biofuel factories[1]","Frais généraux d'usines de production de biocarburants liquides[1]","Gastos generales típicos en las fábricas de biocombustibles líquidos[1]","title",{"$f":"HLOOKUP($C$2,$B$8:$D639,$A639,FALSE)","v":"Typical plant overhead in liquid biofuel factories[1]"},"title632"]
[633,"Typical maintenance cost in liquid biofuel factories[2]","Frais de Maintenance d'usines de production de biocarburants liquides[2]","Costos de mantenimiento típico en las fábricas de biocombustibles líquidos[2]","title",{"$f":"HLOOKUP($C$2,$B$8:$D640,$A640,FALSE)","v":"Typical maintenance cost in liquid biofuel factories[2]"},"title633"]
[634,"Typical general and administrative cost percentage in liquid biofuel factories[3]","Pourcentage des Frais généraux et administratifs d'usines de production de biocarburants liquides[3]","Costos porcentuales generales y administrativos típicos en las fábricas de biocombustibles líquidos[3]","title",{"$f":"HLOOKUP($C$2,$B$8:$D641,$A641,FALSE)","v":"Typical general and administrative cost percentage in liquid biofuel factories[3]"},"title634"]
[635,"Typical plant overhead in briquettes/pellets factories[1]","Frais généraux d'usines de production de briquettes/granulés de bois[1]","Gastos generales típicos en las fábricas de briquetas/pellets[1]","title",{"$f":"HLOOKUP($C$2,$B$8:$D642,$A642,FALSE)","v":"Typical plant overhead in briquettes/pellets factories[1]"},"title635"]
[636,"Typical maintenance cost in briquettes/pellets factories[2]","Frais de Maintenance d'usines de production de briquettes/granulés de bois[2]","Costos de mantenimiento típico en las fábricas de briquetas/pellets[2]","title",{"$f":"HLOOKUP($C$2,$B$8:$D643,$A643,FALSE)","v":"Typical maintenance cost in briquettes/pellets factories[2]"},"title636"]
[637,"Typical general and administrative cost percentage in briquettes/pellets factories[3]","Pourcentage des Frais généraux et administratifs d'usines de production de briquettes/granulés de bois[3]","Costos porcentuales generales y administrativos típicos en las fábricas de briquetas/pellets[3]","title",{"$f":"HLOOKUP($C$2,$B$8:$D644,$A644,FALSE)","v":"Typical general and administrative cost percentage in briquettes/pellets factories[3]"},"title637"]
[638,"Typical plant overhead in biofuel factories[1]","Frais généraux d'usines de production de Charbon de bois[1]","Gastos generales típicos en las fábricas de carbón vegetal[1]","title",{"$f":"HLOOKUP($C$2,$B$8:$D645,$A645,FALSE)","v":"Typical plant overhead in biofuel factories[1]"},"title638"]
[639,"Typical maintenance cost in biofuel factories[2]","Frais de Maintenance d'usines de production de Charbon de bois[2]","Costos de mantenimiento típico en las fábricas de carbón vegetal[2]","title",{"$f":"HLOOKUP($C$2,$B$8:$D646,$A646,FALSE)","v":"Typical maintenance cost in biofuel factories[2]"},"title639"]
[640,"Typical general and administrative cost percentage in charcoal factories[3]","Pourcentage des Frais généraux et administratifs d'usines de production de Charbon de bois[3]","Costos porcentuales generales y administrativos típicos en las fábricas de carbón vegetal[3]","title",{"$f":"HLOOKUP($C$2,$B$8:$D647,$A647,FALSE)","v":"Typical general and administrative cost percentage in charcoal factories[3]"},"title640"]
[641,"SVO/Gasification/Combustion","HVB / Gazéification / Combustion","AVC/Gasificación/Combustión","title",{"$f":"HLOOKUP($C$2,$B$8:$D648,$A648,FALSE)","v":"SVO/Gasification/Combustion"},"title641"]
[642,"Typical plant overhead in electricity plant[1]","Frais généraux d'usines de production d'électricité[1]","Gastos generales típicos en la planta de electricidad[1]","title",{"$f":"HLOOKUP($C$2,$B$8:$D649,$A649,FALSE)","v":"Typical plant overhead in electricity plant[1]"},"title642"]
[643,"Typical maintenance cost in electricity plant[2]","Frais de Maintenance d'usines de production d'électricité[2]","Costos de mantenimiento típico en la planta de electricidad[2]","title",{"$f":"HLOOKUP($C$2,$B$8:$D650,$A650,FALSE)","v":"Typical maintenance cost in electricity plant[2]"},"title643"]
[644,"Typical general and administrative cost percentage in electricity plant[3]","Pourcentage des Frais généraux et administratifs d'usines de production d'électricité[3]","Costos porcentuales generales y administrativos típicos en la planta de electricidad[3]","title",{"$f":"HLOOKUP($C$2,$B$8:$D651,$A651,FALSE)","v":"Typical general and administrative cost percentage in electricity plant[3]"},"title644"]
[645,"CHP (Cogeneration)","Cogénération","Cogeneración","title",{"$f":"HLOOKUP($C$2,$B$8:$D652,$A652,FALSE)","v":"CHP (Cogeneration)"},{"$f":"$E652&$A652","v":"title645"}]
[646,"Typical plant overhead in CHP (cogeneration) plant[1]","Frais généraux d'usines de cogénération[1]","Gastos generales típicos en la planta de cogeneración[1]","title",{"$f":"HLOOKUP($C$2,$B$8:$D653,$A653,FALSE)","v":"Typical plant overhead in CHP (cogeneration) plant[1]"},"title646"]
[647,"Typical maintenance cost in CHP (cogeneration) plant[2]","Frais de Maintenance d'usines de cogénération[2]","Costo de mantenimiento típico en la planta de cogeneración[2]","title",{"$f":"HLOOKUP($C$2,$B$8:$D654,$A654,FALSE)","v":"Typical maintenance cost in CHP (cogeneration) plant[2]"},"title647"]
[648,"Typical general and administrative cost percentage in CHP (cogeneration) plant[3]","Pourcentage des Frais généraux et administratifs d'usines de cogénération[3]","Costos porcentuales generales y administrativos típicos en la planta de cogeneración[3]","title",{"$f":"HLOOKUP($C$2,$B$8:$D655,$A655,FALSE)","v":"Typical general and administrative cost percentage in CHP (cogeneration) plant[3]"},"title648"]
[649,"Biogas Industrial","Biogaz industriel","Biogás Industrial","title",{"$f":"HLOOKUP($C$2,$B$8:$D656,$A656,FALSE)","v":"Biogas Industrial"},"title649"]
[650,"Typical plant overhead in biogas industrial plant[1]","Frais généraux d'usines de biogaz industriel[1]","Gastos generales típicos en la planta de biogás industrial[1]","title",{"$f":"HLOOKUP($C$2,$B$8:$D657,$A657,FALSE)","v":"Typical plant overhead in biogas industrial plant[1]"},"title650"]
[651,"Typical maintenance cost in biogas industrial  plant[2]","Frais de Maintenance d'usines de biogaz industriel[2]","Costo de mantenimiento típico en la planta de biogás industrial[2]","title",{"$f":"HLOOKUP($C$2,$B$8:$D658,$A658,FALSE)","v":"Typical maintenance cost in biogas industrial  plant[2]"},"title651"]
[652,"Typical general and administrative cost percentage in biogas industrial  plant[3]","Pourcentage des Frais généraux et administratifs d'usines de biogaz industriel[3]","Costos porcentuales generales y administrativos típicos en la planta de biogás industrial[3]","title",{"$f":"HLOOKUP($C$2,$B$8:$D659,$A659,FALSE)","v":"Typical general and administrative cost percentage in biogas industrial  plant[3]"},"title652"]
[653,"Biogas Community","Biogaz communautaire","Biogás Communitario","title",{"$f":"HLOOKUP($C$2,$B$8:$D660,$A660,FALSE)","v":"Biogas Community"},"title653"]
[654,"Typical maintenance cost for biogas production[1]","Frais de Maintenance d'usines de production de biogaz[1]","Costo de mantenimiento típico para la producción de biogás[1]","title",{"$f":"HLOOKUP($C$2,$B$8:$D661,$A661,FALSE)","v":"Typical maintenance cost for biogas production[1]"},"title654"]
[655,"Current electricity production in off-grid rural areas","Production actuelle d'électricité dans les zones non-raccordées au réseau ","Producción de electricidad actual en las zonas rurales fuera de la red","title",{"$f":"HLOOKUP($C$2,$B$8:$D662,$A662,FALSE)","v":"Current electricity production in off-grid rural areas"},"title655"]
[656,"Typical diesel generator capacity (kW)","Capacité de production de diesel (kW)","Capacidad típica del generador diésel (kW)","title",{"$f":"HLOOKUP($C$2,$B$8:$D663,$A663,FALSE)","v":"Typical diesel generator capacity (kW)"},"title656"]
[657,"Operating days per year","Jour de fonctionnement par an","Días operados por año","title",{"$f":"HLOOKUP($C$2,$B$8:$D664,$A664,FALSE)","v":"Operating days per year"},"title657"]
[658,"Operating hours per day","Heure de fonctionnement par jour","Horas operadas por día","title",{"$f":"HLOOKUP($C$2,$B$8:$D665,$A665,FALSE)","v":"Operating hours per day"},"title658"]
[659,"Typical efficiency (%)","Rendement spécifique (%)","Eficiencia típica (%)","title",{"$f":"HLOOKUP($C$2,$B$8:$D666,$A666,FALSE)","v":"Typical efficiency (%)"},"title659"]
[660,"Cost of diesel generator at selected capacity (USD)","Coût de production du diesel à la capicité sélectionnée (USD)","Costo del generador diésel en la capacidad seleccionada (USD)","title",{"$f":"HLOOKUP($C$2,$B$8:$D667,$A667,FALSE)","v":"Cost of diesel generator at selected capacity (USD)"},"title660"]
[661,"Transportation distance from  the diesel fuel pump","Distance de transport depuis la pompe à essence du diesel","Distancia de transporte de la bomba de combustible diésel","title",{"$f":"HLOOKUP($C$2,$B$8:$D668,$A668,FALSE)","v":"Transportation distance from  the diesel fuel pump"},"title661"]
[662,"hours","heures","horas","title",{"$f":"HLOOKUP($C$2,$B$8:$D669,$A669,FALSE)","v":"hours"},"title662"]
[663,"When applicable enter values for manual, small, medium and large scale production for typical distance.","En ce qui concerne la distance spécifique, saisir, lorsqu'il est possible, des valeurs pour la production manuelle, à petite, moyenne et grande échelle.","Con respecto a la distancia típica, cuando es aplicable ingresa los valores para la producción manual, a pequeña, mediana y grande escala.","title",{"$f":"HLOOKUP($C$2,$B$8:$D670,$A670,FALSE)","v":"When applicable enter values for manual, small, medium and large scale production for typical distance."},"title663"]
[664,"Tech 1 is a simple technology (condensing turbine), Tech 2 is a semi-advanced technology (back-pressure steam turbine), and Tech 3 is an advanced technology (biomass gasification combined cycle). ","Tech 1 est une technologie simple (turbine à condensation), Tech 2 est une technologie semi-avancée (contre-pression turbine à condensation), et Tech 3 est une technologie avancée (cycle combiné de la gazéification de la biomasse). ","Tec 1 es una tecnología simple (turbina de condensación), Tec 2 es una tecnología semi-avanzada (turbina de vapor de contrapesión), y Tec 3 es una tecnología avanzada (gasificación de biomasa de ciclo combinado). ","title",{"$f":"HLOOKUP($C$2,$B$8:$D671,$A671,FALSE)","v":"Tech 1 is a simple technology (condensing turbine), Tech 2 is a semi-advanced technology (back-pressure steam turbine), and Tech 3 is an advanced technology (biomass gasification combined cycle). "},"title664"]
[665,"This table collects information on the time rural households employ in collecting fuelwood, dung and water, preparing manure for digester (mixing) and cooking using fuelwood. Moreover, the type and quantities of typical fuels used for heating and cooking and nutrients fertilizer consumption are needed.","Ce tableau recueille les informations sur le temps nécessaire par ménage rural pour collecter le bois de chauffage, le fumier et l'eau, pour préparer le fumier et le temps nécessaire pour la cuisson en utilisant le bois de chauffage. En outre, le type et les quantités de combustibles utilisés pour le chauffage et la cuisson ansi que la consommation d'engrais sont exigés. ","Esta tabla recoge información sobre el tiempo que los hogares rurales emplean en la recolección de madera combustible, estiércol y agua, preparar el abono para el digestor (mezcla) y cocina con madera combustible. Además, se necesita el tipo y las cantidades típicas usadas para la calefacción y la cocina y el consumo de los nutrientes de los fertilizantes.","title",{"$f":"HLOOKUP($C$2,$B$8:$D672,$A672,FALSE)","v":"This table collects information on the time rural households employ in collecting fuelwood, dung and water, preparing manure for digester (mixing) and cooking using fuelwood. Moreover, the type and quantities of typical fuels used for heating and cooking and nutrients fertilizer consumption are needed."},"title665"]
[666,"[1]Plant overhead is defined as a percentage of production costs used to pay for services, facilities, payroll overhead, etc.","[1]Les frais généraux sont définis comme étant une charge à la production de services, aux installations, les frais salariaux et sont établis par défaut à 50% des coûts de main-d'œuvre et d'entretien totaux.","[1]Gastos generales de la planta: es definido como un porcentaje de los costos de producción usados para pagar servicios, instalaciones, gastos generales de nómina, etc.","title",{"$f":"HLOOKUP($C$2,$B$8:$D673,$A673,FALSE)","v":"[1]Plant overhead is defined as a percentage of production costs used to pay for services, facilities, payroll overhead, etc."},"title666"]
[667,"[2]Maintenance includes the percentage of costs used to cover the maintenance cost of all equipment, including labor and materials.","[2]La maintenance comprend le pourcentage des coûts utilisés pour couvrir le coût de l'entretien de tous les équipements, y compris la main-d'oeuvre et les matériaux.","[2]El mantenimiento incluye el porcentaje de los costos utilizados para cubrir el costo de mantenimiento de todos los equipos, incluyendo mano de obra y materiales. ","title",{"$f":"HLOOKUP($C$2,$B$8:$D674,$A674,FALSE)","v":"[2]Maintenance includes the percentage of costs used to cover the maintenance cost of all equipment, including labor and materials."},"title667"]
[668,"[3]The general and administrative item comprises the percentage of cost to cover rents, insurances, managerial, administrative and executive salaries.","[3]Les Frais généraux et administratifs incluent le pourcentage des coûts utilisés pour couvrir le coût du loyer, les assurances, les salaires du personnel de gestion et du personnel administratif.","[3]Los ítems generales y administrativos comprenden el porcentaje de los costos para cubrir los alquileres, seguros, salarios gerenciales, administrativos y ejecutivos. ","title",{"$f":"HLOOKUP($C$2,$B$8:$D675,$A675,FALSE)","v":"[3]The general and administrative item comprises the percentage of cost to cover rents, insurances, managerial, administrative and executive salaries."},"title668"]
[669,"If the specific data of the country is not available, consult the following link.","Si les donnés spécifiques au pays ne sont pas disponibles, veuillez alors consulter le lien suivant:","Si los datos específicos del país no esta disponible, consulte el siguiente link: ","title",{"$f":"HLOOKUP($C$2,$B$8:$D676,$A676,FALSE)","v":"If the specific data of the country is not available, consult the following link."},"title669"]
[670,"The tables below collects information on economic and financial parameters required within the BEFS RA tools listed above. The title described the data required and further on the tool within which the data is used.  ","Les tableaux ci-dessous recueillent les informations sur les paramètres économiques et financiers nécessaires dans les outils BEFS RA énumérés ci-dessus. Le titre décrit les données requises ainsi que les outils desquels sont extraites les données.","Las tablas a continuación recolectan información sobre los parámetros económicos y financieros requeridos dentro de las herramientas de la Evaluación Rápida BEFS mencionadas anteriormente. El título describe los datos requeridos y la herramienta dentro de la cual se utilizan los datos.","title",{"$f":"HLOOKUP($C$2,$B$8:$D677,$A677,FALSE)","v":"The tables below collects information on economic and financial parameters required within the BEFS RA tools listed above. The title described the data required and further on the tool within which the data is used.  "},{"$f":"$E677&$A677","v":"title670"}]
[671,"Heat","Chaleur","Calor","title",{"$f":"HLOOKUP($C$2,$B$8:$D678,$A678,FALSE)","v":"Heat"},{"$f":"$E678&$A678","v":"title671"}]
[672,"USD/day","USD/jour","USD/día","title",{"$f":"HLOOKUP($C$2,$B$8:$D679,$A679,FALSE)","v":"USD/day"},{"$f":"$E679&$A679","v":"title672"}]
[673,"2.3.2        Irrigation","2.3.2        Irrigation","2.3.2        Irrigación","title",{"$f":"HLOOKUP($C$2,$B$8:$D680,$A680,FALSE)","v":"2.3.2        Irrigation"},{"$f":"$E680&$A680","v":"title673"}]
[674,"1. Overview","1. Description générale","1. Descripción general","title",{"$f":"HLOOKUP($C$2,$B$8:$D681,$A681,FALSE)","v":"1. Overview"},{"$f":"$E681&$A681","v":"title674"}]
[675,"1.1 Population","1.1 Population ","1.1 Población","title",{"$f":"HLOOKUP($C$2,$B$8:$D682,$A682,FALSE)","v":"1.1 Population"},"title675"]
[676,"Parameter","Paramètre","Parámetro","title",{"$f":"HLOOKUP($C$2,$B$8:$D683,$A683,FALSE)","v":"Parameter"},"title676"]
[677,"Total population (1000 inhab)","Population totale (1000 hab)","Población total (1.000 hab)","title",{"$f":"HLOOKUP($C$2,$B$8:$D684,$A684,FALSE)","v":"Total population (1000 inhab)"},"title677"]
[678,"Rural population (%)","Population rurale (%)","Población rural (%)","title",{"$f":"HLOOKUP($C$2,$B$8:$D685,$A685,FALSE)","v":"Rural population (%)"},"title678"]
[679,"Urban population (%)","Population urbaine (%)","Población urbana (%)","title",{"$f":"HLOOKUP($C$2,$B$8:$D686,$A686,FALSE)","v":"Urban population (%)"},"title679"]
[680,"Population density (inhab/km2)","Densité de population (hab/km2)","Densidad de población (hab/km2)","title",{"$f":"HLOOKUP($C$2,$B$8:$D687,$A687,FALSE)","v":"Population density (inhab/km2)"},"title680"]
[681,"User-defined value","Valeur définie par l'utilisateur","Valor definido por el usuario","title",{"$f":"HLOOKUP($C$2,$B$8:$D688,$A688,FALSE)","v":"User-defined value"},"title681"]
[682,"Year","Année","Año","title",{"$f":"HLOOKUP($C$2,$B$8:$D689,$A689,FALSE)","v":"Year"},"title682"]
[683,"1.2 Socio-economic indicators","1.2 Indicateurs socio-economiques","1.2 Indicadores socio- económicos","title",{"$f":"HLOOKUP($C$2,$B$8:$D690,$A690,FALSE)","v":"1.2 Socio-economic indicators"},"title683"]
[684,"Parameter (unit)","Paramètre (unité)","Parámetro (unidad)","title",{"$f":"HLOOKUP($C$2,$B$8:$D691,$A691,FALSE)","v":"Parameter (unit)"},"title684"]
[685,"GDP per capita (current US$)","PIB par habitant (USD courants)","PIB per cápita (actual US$)","title",{"$f":"HLOOKUP($C$2,$B$8:$D692,$A692,FALSE)","v":"GDP per capita (current US$)"},"title685"]
[686,"GDP/capita, PPP (current int. $)","PIB/habitant, PPA (int. courant USD)","PIB/cápita, PPP (int. actual $)","title",{"$f":"HLOOKUP($C$2,$B$8:$D693,$A693,FALSE)","v":"GDP/capita, PPP (current int. $)"},"title686"]
[687,"GDP/capita, PPP (const. 2011, int. $)","PIB/habitant, PPA (const. 2011, USD int.)","PIB/cápita, PPP (Const. 2011, int. $)","title",{"$f":"HLOOKUP($C$2,$B$8:$D694,$A694,FALSE)","v":"GDP/capita, PPP (const. 2011, int. $)"},"title687"]
[688,"Agriculture, value added (% of GDP)","Valeur ajoutée agricole (% du PIB)","Agricultura, valor agregado (% del PIB)","title",{"$f":"HLOOKUP($C$2,$B$8:$D695,$A695,FALSE)","v":"Agriculture, value added (% of GDP)"},"title688"]
[689,"1.3 Land cover/Land use","1.3 Couverture vegetale / occupation des sols","1.3 Cobertura terrestre / uso de la tierra","title",{"$f":"HLOOKUP($C$2,$B$8:$D696,$A696,FALSE)","v":"1.3 Land cover/Land use"},"title689"]
[690,"Country area","Superficie du pays","Superficie del país","title",{"$f":"HLOOKUP($C$2,$B$8:$D697,$A697,FALSE)","v":"Country area"},"title690"]
[691,"Land area","Superficie des terres","Superficie de la tierra","title",{"$f":"HLOOKUP($C$2,$B$8:$D698,$A698,FALSE)","v":"Land area"},"title691"]
[692,"Agricultural area","Superficie agricole","Superficie agrícola","title",{"$f":"HLOOKUP($C$2,$B$8:$D699,$A699,FALSE)","v":"Agricultural area"},"title692"]
[693,"Arable land","Terres arables","Tierras arables","title",{"$f":"HLOOKUP($C$2,$B$8:$D700,$A700,FALSE)","v":"Arable land"},"title693"]
[694,"Forest area","Superficie forestière","Superficie Forestal","title",{"$f":"HLOOKUP($C$2,$B$8:$D701,$A701,FALSE)","v":"Forest area"},"title694"]
[695,"1.4 Food security and energy use","1.4 Sécurité alimentaire et la consommation d'énergie ","1.4 Seguridad alimentaria y uso de energía","title",{"$f":"HLOOKUP($C$2,$B$8:$D702,$A702,FALSE)","v":"1.4 Food security and energy use"},"title695"]
[696,"Undernourished population (%)","Population sous-alimentée (%)","Prevalencia de desnutrición (% de la población)","title",{"$f":"HLOOKUP($C$2,$B$8:$D703,$A703,FALSE)","v":"Undernourished population (%)"},"title696"]
[697,"Poverty headcount ratio at national poverty line (% of pop.)","Ratio de pauvreté au seuil de pauvreté national (% de la pop.)","Tasa de incidencia de la pobreza, sobre la base de la línea de pobreza nacional (% de la población)","title",{"$f":"HLOOKUP($C$2,$B$8:$D704,$A704,FALSE)","v":"Poverty headcount ratio at national poverty line (% of pop.)"},"title697"]
[698,"Energy use (kg of oil eq. per capita)","Consommation d'énergie (kg d'éq. pétrole par hab.)","Uso de energía (kg eq. de petróleo per cápita)","title",{"$f":"HLOOKUP($C$2,$B$8:$D705,$A705,FALSE)","v":"Energy use (kg of oil eq. per capita)"},"title698"]
[699,"Electricity production (GWh)","Production d'électricité (GWh)","Producción de electricidad (GWh)","title",{"$f":"HLOOKUP($C$2,$B$8:$D706,$A706,FALSE)","v":"Electricity production (GWh)"},"title699"]
[700,"Access to electricity (% of population)","Accès à l'électricité (% de la population)","Acceso a la electricidad (% de población)","title",{"$f":"HLOOKUP($C$2,$B$8:$D707,$A707,FALSE)","v":"Access to electricity (% of population)"},"title700"]
[701,"1.5 Food supply and key foodstuffs","1.5 Disponibilite alimentaire et principales denrées alimentaires","1.5 Suministro de alimentos y principales productos alimenticios","title",{"$f":"HLOOKUP($C$2,$B$8:$D708,$A708,FALSE)","v":"1.5 Food supply and key foodstuffs"},"title701"]
[702,"Rank","Rang","Rango","title",{"$f":"HLOOKUP($C$2,$B$8:$D709,$A709,FALSE)","v":"Rank"},"title702"]
[703,"Food commodity","Denrée ","Producto alimenticio","title",{"$f":"HLOOKUP($C$2,$B$8:$D710,$A710,FALSE)","v":"Food commodity"},"title703"]
[704,"Food supply (kcal/capita/day)","Disponibilité alimentaire (kcal/personne/jour) ","Suministro de alimentos (kcal/cápita/día)","title",{"$f":"HLOOKUP($C$2,$B$8:$D711,$A711,FALSE)","v":"Food supply (kcal/capita/day)"},"title704"]
[705,"1.6 Agricultural trade - Key commodities","1.6 Commerce agricole - principaux produits","1.6 Comercio agrícola - principales productos básicos","title",{"$f":"HLOOKUP($C$2,$B$8:$D712,$A712,FALSE)","v":"1.6 Agricultural trade - Key commodities"},"title705"]
[706,"Trade commodity","Produits de commerce ","Principales productos de exportación","title",{"$f":"HLOOKUP($C$2,$B$8:$D713,$A713,FALSE)","v":"Trade commodity"},"title706"]
[707,"Export quantity (t)","Quantité  de l’exportation (t) ","Cantidad exportada (t)","title",{"$f":"HLOOKUP($C$2,$B$8:$D714,$A714,FALSE)","v":"Export quantity (t)"},"title707"]
[708,"Export value (1000 US$)","Valeur des exportations                                               (1000 USD) ","Valor de las exportaciones (1000 US$)","title",{"$f":"HLOOKUP($C$2,$B$8:$D715,$A715,FALSE)","v":"Export value (1000 US$)"},"title708"]
[709,"2. Net trade position for key crops","2. Bilan de la balance commerciale pour les principales cultures vivrières ","2. Posición comercial neta de cultivos alimentarios básicos","title",{"$f":"HLOOKUP($C$2,$B$8:$D716,$A716,FALSE)","v":"2. Net trade position for key crops"},"title709"]
[710,"Production","Production","Producción","title",{"$f":"HLOOKUP($C$2,$B$8:$D717,$A717,FALSE)","v":"Production"},"title710"]
[711,"Import","Import","Importación","title",{"$f":"HLOOKUP($C$2,$B$8:$D718,$A718,FALSE)","v":"Import"},"title711"]
[712,"Stock variation","Variation des stocks","Variación de existencias","title",{"$f":"HLOOKUP($C$2,$B$8:$D719,$A719,FALSE)","v":"Stock variation"},"title712"]
[713,"Export","Export","Exportación","title",{"$f":"HLOOKUP($C$2,$B$8:$D720,$A720,FALSE)","v":"Export"},"title713"]
[714,"Domestic supply ","Disponibilité intérieure","Oferta interna ","title",{"$f":"HLOOKUP($C$2,$B$8:$D721,$A721,FALSE)","v":"Domestic supply "},"title714"]
[715,"3. Energy balance","3. Bilan energetique","3. Balance energético","title",{"$f":"HLOOKUP($C$2,$B$8:$D722,$A722,FALSE)","v":"3. Energy balance"},"title715"]
[716,"3.1 Simplified aggregated energy balance","Équilibre énergétique global simplifié ","Balance Agregado Simplificado de Energía","title",{"$f":"HLOOKUP($C$2,$B$8:$D723,$A723,FALSE)","v":"3.1 Simplified aggregated energy balance"},"title716"]
[717,"Total primary energy supply","Approvisionnement total en énergie primaire","Suministro Total de Energía Primaria","title",{"$f":"HLOOKUP($C$2,$B$8:$D724,$A724,FALSE)","v":"Total primary energy supply"},"title717"]
[718,"Final consumption","Consommation finale","Consumo Final de Energía","title",{"$f":"HLOOKUP($C$2,$B$8:$D725,$A725,FALSE)","v":"Final consumption"},"title718"]
[719,"Industry","Industrie ","Industria","title",{"$f":"HLOOKUP($C$2,$B$8:$D726,$A726,FALSE)","v":"Industry"},"title719"]
[720,"Transport","Transport","Transporte","title",{"$f":"HLOOKUP($C$2,$B$8:$D727,$A727,FALSE)","v":"Transport"},"title720"]
[721,"Residential","Résidentiel ","Residencial","title",{"$f":"HLOOKUP($C$2,$B$8:$D728,$A728,FALSE)","v":"Residential"},"title721"]
[722,"Commercial and public services","Services publics et commerciaux ","Servicios públicos y comerciales","title",{"$f":"HLOOKUP($C$2,$B$8:$D729,$A729,FALSE)","v":"Commercial and public services"},"title722"]
[723,"Agriculture / forestry","Agriculture/sylviculture","Agricultura/silvicultura","title",{"$f":"HLOOKUP($C$2,$B$8:$D730,$A730,FALSE)","v":"Agriculture / forestry"},"title723"]
[724,"Fishing","Pêche ","Pesca","title",{"$f":"HLOOKUP($C$2,$B$8:$D731,$A731,FALSE)","v":"Fishing"},"title724"]
[725,"Non-specified","Non spécifié ","No especificado","title",{"$f":"HLOOKUP($C$2,$B$8:$D732,$A732,FALSE)","v":"Non-specified"},"title725"]
[726,"Non-energy use","Utilisation non-énergétique ","Uso no energético","title",{"$f":"HLOOKUP($C$2,$B$8:$D733,$A733,FALSE)","v":"Non-energy use"},"title726"]
[727,"Coal and peat","Charbon et tourbe","Carbón y turba","title",{"$f":"HLOOKUP($C$2,$B$8:$D734,$A734,FALSE)","v":"Coal and peat"},"title727"]
[728,"Crude oil","Huile brute","Petróleo crudo","title",{"$f":"HLOOKUP($C$2,$B$8:$D735,$A735,FALSE)","v":"Crude oil"},"title728"]
[729,"Oil products","Produits pétroliers","Derivados de petróleo","title",{"$f":"HLOOKUP($C$2,$B$8:$D736,$A736,FALSE)","v":"Oil products"},"title729"]
[730,"Nuclear","Nucléaire","Nuclear","title",{"$f":"HLOOKUP($C$2,$B$8:$D737,$A737,FALSE)","v":"Nuclear"},"title730"]
[731,"Hydro","Hydro","Hidro","title",{"$f":"HLOOKUP($C$2,$B$8:$D738,$A738,FALSE)","v":"Hydro"},"title731"]
[732,"Geothermal, solar, etc.","Géothermal, solaire, etc.","Geotérmica, \nsolar, etc.","title",{"$f":"HLOOKUP($C$2,$B$8:$D739,$A739,FALSE)","v":"Geothermal, solar, etc."},"title732"]
[733,"Biofuels and waste","Biocarburants \net \ndéchets","Biocombustibles y residuos","title",{"$f":"HLOOKUP($C$2,$B$8:$D740,$A740,FALSE)","v":"Biofuels and waste"},"title733"]
[734,"4. Current energy demand at national level","4. Demande  actuelle d'énergie au niveau national ","4. Demanda de energía actual a nivel nacional","title",{"$f":"HLOOKUP($C$2,$B$8:$D741,$A741,FALSE)","v":"4. Current energy demand at national level"},"title734"]
[735,"4.1 Population","4.1 Population","4.1 Población","title",{"$f":"HLOOKUP($C$2,$B$8:$D742,$A742,FALSE)","v":"4.1 Population"},"title735"]
[736,"Number of households","Nombre de foyers","Número de hogares","title",{"$f":"HLOOKUP($C$2,$B$8:$D743,$A743,FALSE)","v":"Number of households"},"title736"]
[737,"Urban","Urbain","Urbano","title",{"$f":"HLOOKUP($C$2,$B$8:$D744,$A744,FALSE)","v":"Urban"},"title737"]
[738,"4.2 Fuel consumption in transport sector (excluding aviation)","4.2 Consommation de carburant dans le secteur des transports (hors aviation) ","4.2 Consumo de combustible en el sector del transporte (excluyendo el transporte aéreo)","title",{"$f":"HLOOKUP($C$2,$B$8:$D745,$A745,FALSE)","v":"4.2 Fuel consumption in transport sector (excluding aviation)"},"title738"]
[739,"Fossil fuels","Combustibles fossiles ","Combustibles fósiles","title",{"$f":"HLOOKUP($C$2,$B$8:$D746,$A746,FALSE)","v":"Fossil fuels"},{"$f":"$E746&$A746","v":"title739"}]
[740,"Diesel","Diesel","Diésel","title",{"$f":"HLOOKUP($C$2,$B$8:$D747,$A747,FALSE)","v":"Diesel"},"title740"]
[741,"Gasoline","Essence","Gasolina","title",{"$f":"HLOOKUP($C$2,$B$8:$D748,$A748,FALSE)","v":"Gasoline"},"title741"]
[742,"Liquid biofuels","Biocarburants liquides ","Biocombustibles líquidos","title",{"$f":"HLOOKUP($C$2,$B$8:$D749,$A749,FALSE)","v":"Liquid biofuels"},"title742"]
[743,"Biodiesel","Biodiesel","Biodiesel","title",{"$f":"HLOOKUP($C$2,$B$8:$D750,$A750,FALSE)","v":"Biodiesel"},"title743"]
[744,"Ethanol","Ethanol","Etanol","title",{"$f":"HLOOKUP($C$2,$B$8:$D751,$A751,FALSE)","v":"Ethanol"},"title744"]
[745,"Units","Unités","Unidades","title",{"$f":"HLOOKUP($C$2,$B$8:$D752,$A752,FALSE)","v":"Units"},"title745"]
[746,"(ML/year)","(ML/année)","(ML/año)","title",{"$f":"HLOOKUP($C$2,$B$8:$D753,$A753,FALSE)","v":"(ML/year)"},"title746"]
[747,"Blending mandate (%)","Mandat de mélange (%) ","Mezcla exigida (%)","title",{"$f":"HLOOKUP($C$2,$B$8:$D754,$A754,FALSE)","v":"Blending mandate (%)"},"title747"]
[748,"4.3 Energy consumption in households","4.3 Consommation d'énergie dans les ménages","4.3 Consumo de energía en los hogares","title",{"$f":"HLOOKUP($C$2,$B$8:$D755,$A755,FALSE)","v":"4.3 Energy consumption in households"},"title748"]
[749,"4.3.1 Energy for heating and cooking","4.3.1 Énergie pour le chauffage et la cuisson ","4.3.1 Energía  para calefaccionar y cocinar","title",{"$f":"HLOOKUP($C$2,$B$8:$D756,$A756,FALSE)","v":"4.3.1 Energy for heating and cooking"},"title749"]
[750,"Fuel type","Type de carburant","Tipo del combustible","title",{"$f":"HLOOKUP($C$2,$B$8:$D757,$A757,FALSE)","v":"Fuel type"},"title750"]
[751,"Briquette","Briquette","Briqueta","title",{"$f":"HLOOKUP($C$2,$B$8:$D758,$A758,FALSE)","v":"Briquette"},"title751"]
[752,"Pellets","Granulés de Bois ","Pellets","title",{"$f":"HLOOKUP($C$2,$B$8:$D759,$A759,FALSE)","v":"Pellets"},"title752"]
[753,"Rural households","Ménages ruraux ","Hogares rurales","title",{"$f":"HLOOKUP($C$2,$B$8:$D760,$A760,FALSE)","v":"Rural households"},"title753"]
[754,"Price (USD)","Prix (USD)","Precio (USD)","title",{"$f":"HLOOKUP($C$2,$B$8:$D761,$A761,FALSE)","v":"Price (USD)"},"title754"]
[755,"Consumption (per day)","Consommation  (par jour)","Consumo (por día)","title",{"$f":"HLOOKUP($C$2,$B$8:$D762,$A762,FALSE)","v":"Consumption (per day)"},"title755"]
[756,"Urban households","Ménages urbains ","Hogares urbanos","title",{"$f":"HLOOKUP($C$2,$B$8:$D763,$A763,FALSE)","v":"Urban households"},"title756"]
[757,"Rural","Rural","Rural","title",{"$f":"HLOOKUP($C$2,$B$8:$D764,$A764,FALSE)","v":"Rural"},"title757"]
[758,"Households with electricity access","Ménages ayant accès à l'électricité ","Hogares con acceso a la electricidad","title",{"$f":"HLOOKUP($C$2,$B$8:$D765,$A765,FALSE)","v":"Households with electricity access"},"title758"]
[759,"Electricity consupmtion per household","Consommation d'électricité par ménage ","Consumo de electricidad por hogar","title",{"$f":"HLOOKUP($C$2,$B$8:$D766,$A766,FALSE)","v":"Electricity consupmtion per household"},"title759"]
[760,"Quanitity","Quantité ","Cantidad","title",{"$f":"HLOOKUP($C$2,$B$8:$D767,$A767,FALSE)","v":"Quanitity"},"title760"]
[761,"Operating time (h/day)","Temps de fonctionnement (h/jour) ","Tiempo de funcionamiento (h/día)","title",{"$f":"HLOOKUP($C$2,$B$8:$D768,$A768,FALSE)","v":"Operating time (h/day)"},"title761"]
[762,"Monthly use (days/month)","Utilisation mensuel (jours/mois)","Uso mensual (día/mes)","title",{"$f":"HLOOKUP($C$2,$B$8:$D769,$A769,FALSE)","v":"Monthly use (days/month)"},"title762"]
[763,"TV color 25 inch","TV couleur 25 pouces ","TV color de 25 pulgadas","title",{"$f":"HLOOKUP($C$2,$B$8:$D770,$A770,FALSE)","v":"TV color 25 inch"},"title763"]
[764,"TV color 14 inch","TV couleur 14 pouces ","TV color de 14 pulgadas","title",{"$f":"HLOOKUP($C$2,$B$8:$D771,$A771,FALSE)","v":"TV color 14 inch"},"title764"]
[765,"Computer","Ordinateur","Computador","title",{"$f":"HLOOKUP($C$2,$B$8:$D772,$A772,FALSE)","v":"Computer"},"title765"]
[766,"Fan 16 inch","Fan 16 pouces ","Ventilador de 16 pulgadas","title",{"$f":"HLOOKUP($C$2,$B$8:$D773,$A773,FALSE)","v":"Fan 16 inch"},"title766"]
[767,"Air conditioner (9,000 BTU)","Climatiseur (9,000 BTU)","Aire acondicionado (9,000 BTU)","title",{"$f":"HLOOKUP($C$2,$B$8:$D774,$A774,FALSE)","v":"Air conditioner (9,000 BTU)"},"title767"]
[768,"Electrical iron","Fer électrique ","Plancha eléctrica","title",{"$f":"HLOOKUP($C$2,$B$8:$D775,$A775,FALSE)","v":"Electrical iron"},"title768"]
[769,"Rice cooker","Cuiseur de riz ","Olla arrocera","title",{"$f":"HLOOKUP($C$2,$B$8:$D776,$A776,FALSE)","v":"Rice cooker"},"title769"]
[770,"Microwave","Micro-onde ","Microondas","title",{"$f":"HLOOKUP($C$2,$B$8:$D777,$A777,FALSE)","v":"Microwave"},"title770"]
[771,"Clothes washer 5 kg","Machine à laver 5 kg ","Lavadora de ropa 5 kg","title",{"$f":"HLOOKUP($C$2,$B$8:$D778,$A778,FALSE)","v":"Clothes washer 5 kg"},"title771"]
[772,"Electrical boiler","Chaudière électrique ","Caldera eléctrica","title",{"$f":"HLOOKUP($C$2,$B$8:$D779,$A779,FALSE)","v":"Electrical boiler"},"title772"]
[773,"Refrigerator","Réfrigérateur","Refrigerador","title",{"$f":"HLOOKUP($C$2,$B$8:$D780,$A780,FALSE)","v":"Refrigerator"},"title773"]
[774,"Electrical water shower","Douche d'eau électrique ","Ducha de agua eléctrica","title",{"$f":"HLOOKUP($C$2,$B$8:$D781,$A781,FALSE)","v":"Electrical water shower"},"title774"]
[775,"Fluorescent lamp (ceiling T5)","Lampe fluorescente (plafond T5) ","Lámpara fluorescente (T5 techo)","title",{"$f":"HLOOKUP($C$2,$B$8:$D782,$A782,FALSE)","v":"Fluorescent lamp (ceiling T5)"},"title775"]
[776,"Compact fluorescent lamp T5","Lampe fluorescente compacte T5 ","Lámpara fluorescente T5 compacta","title",{"$f":"HLOOKUP($C$2,$B$8:$D783,$A783,FALSE)","v":"Compact fluorescent lamp T5"},"title776"]
[777,"User defined appliance: Radio","Appareil définie par l'utilisateur ","Dispositivo definido por el usuario","title",{"$f":"HLOOKUP($C$2,$B$8:$D784,$A784,FALSE)","v":"User defined appliance: Radio"},"title777"]
[778,"Seedlings/cuttings density (default value of the tool)","Densité des ensemencements/boutures (valeur par défaut)","Densidad de plántulas/esquejes (valor por defecto)","title",{"$f":"HLOOKUP($C$2,$B$8:$D785,$A785,FALSE)","v":"Seedlings/cuttings density (default value of the tool)"},"title778"]
[779,"Seedlings/cuttings (total cost per hectare)","Ensemencements/boutures (coût total par hectare)","plántulas/esquejes (Costo total por Hectárea)","title",{"$f":"HLOOKUP($C$2,$B$8:$D786,$A786,FALSE)","v":"Seedlings/cuttings (total cost per hectare)"},"title779"]
[780,"Country average yield under rirrigation condition","Country average yield under rirrigation condition","Rendimiento promedio del país bajo condiciones de riego","title",{"$f":"HLOOKUP($C$2,$B$8:$D787,$A787,FALSE)","v":"Country average yield under rirrigation condition"},"title780"]
[781,"Water supply","Source d'eau","Abastecimiento de agua","title",{"$f":"HLOOKUP($C$2,$B$8:$D788,$A788,FALSE)","v":"Water supply"},"title781"]
[782,"Crop water deficit","Déficit hydrique de la culture","Déficit hídrico del cultivo","title",{"$f":"HLOOKUP($C$2,$B$8:$D789,$A789,FALSE)","v":"Crop water deficit"},"title782"]
[783,"Water source","Source de l’eau","Fuente de agua","title",{"$f":"HLOOKUP($C$2,$B$8:$D790,$A790,FALSE)","v":"Water source"},"title783"]
[784,"Average depth","Profondeur moyenne","Profundidad promedio","title",{"$f":"HLOOKUP($C$2,$B$8:$D791,$A791,FALSE)","v":"Average depth"},"title784"]
[785,"Irrigation system","Système d’irrigation","Sistema de Riego","title",{"$f":"HLOOKUP($C$2,$B$8:$D792,$A792,FALSE)","v":"Irrigation system"},"title785"]
[786,"Pumping system","Système de pompage","Sistema de Bombeo","title",{"$f":"HLOOKUP($C$2,$B$8:$D793,$A793,FALSE)","v":"Pumping system"},"title786"]
[787,"Power unit source","Source de courant électrique","Fuente de energía","title",{"$f":"HLOOKUP($C$2,$B$8:$D794,$A794,FALSE)","v":"Power unit source"},"title787"]
[788,"Irrigated Area","Surface irriguée","Área Irrigada","title",{"$f":"HLOOKUP($C$2,$B$8:$D795,$A795,FALSE)","v":"Irrigated Area"},"title788"]
[789,"Investment","Investissement","Inversión","title",{"$f":"HLOOKUP($C$2,$B$8:$D796,$A796,FALSE)","v":"Investment"},"title789"]
[790,"Average lifespan","Durée de vie moyenne","Vida útil promedio","title",{"$f":"HLOOKUP($C$2,$B$8:$D797,$A797,FALSE)","v":"Average lifespan"},"title790"]
[791,"Lubricants for engine water pump ","Lubrifiants pour le moteur de la pompe","Lubricantes para el motor de la bomba de agua","title",{"$f":"HLOOKUP($C$2,$B$8:$D798,$A798,FALSE)","v":"Lubricants for engine water pump "},"title791"]
[792,"Maintenance of irrigation equipment","Entretien du système d’irrigation","Mantenimiento del equipamiento para riego","title",{"$f":"HLOOKUP($C$2,$B$8:$D799,$A799,FALSE)","v":"Maintenance of irrigation equipment"},"title792"]
[793,"mm/yr","mm/année","mm/año","title",{"$f":"HLOOKUP($C$2,$B$8:$D800,$A800,FALSE)","v":"mm/yr"},"title793"]
[794,"2.6        Crops Storage","2.6        Stockage des cultures","2.6        Almacenamiento de cultivos","title",{"$f":"HLOOKUP($C$2,$B$8:$D801,$A801,FALSE)","v":"2.6        Crops Storage"},"title794"]
[795,"Storage Costs","Coût de stockage","Costo de almacenamiento","title",{"$f":"HLOOKUP($C$2,$B$8:$D802,$A802,FALSE)","v":"Storage Costs"},"title795"]
[796,"Collection Months Crops","Mois de la collecte Cultures","Meses de recolección Cultivos","title",{"$f":"HLOOKUP($C$2,$B$8:$D803,$A803,FALSE)","v":"Collection Months Crops"},"title796"]
[797,"This table collects information about the storage costs and harvesting season of selected crops determined by the crop calendar of the country","Ce tableau rassemble les informations relatives aux couts de stockage et à la saison de récolte des cultures sélectionnées déterminés par le calendrier cultural du pays.","Esta tabla recopila información sobre los costos de almacenamiento y sobre la temporada de cosecha de los cultivos seleccionados de acuerdo al calendario de cosechas del país","title",{"$f":"HLOOKUP($C$2,$B$8:$D804,$A804,FALSE)","v":"This table collects information about the storage costs and harvesting season of selected crops determined by the crop calendar of the country"},"title797"]
[798,"Collection method","Méthode de collecte","Método de recolección","title",{"$f":"HLOOKUP($C$2,$B$8:$D805,$A805,FALSE)","v":"Collection method"},"title798"]
[799,"man-h/ha","homme-h/ha","hombre-h/ha","title",{"$f":"HLOOKUP($C$2,$B$8:$D806,$A806,FALSE)","v":"man-h/ha"},"title799"]
[800,"Collection Months Residues","Mois de la collecte Résidus","Meses de recolección Residuos","title",{"$f":"HLOOKUP($C$2,$B$8:$D807,$A807,FALSE)","v":"Collection Months Residues"},"title800"]
[801,"Market Price","Prix du Marché","Precio del mercado","title",{"$f":"HLOOKUP($C$2,$B$8:$D808,$A808,FALSE)","v":"Market Price"},"title801"]
[802,"Collection Price","Prix de la collecte","Precio de recolección","title",{"$f":"HLOOKUP($C$2,$B$8:$D809,$A809,FALSE)","v":"Collection Price"},"title802"]
[803,"Baling Cost","Cout de mise en balles","Costos de empacado","title",{"$f":"HLOOKUP($C$2,$B$8:$D810,$A810,FALSE)","v":"Baling Cost"},{"$f":"$E810&$A810","v":"title803"}]
[804,"animal feed or bedding","nourriture et litière animale","Alimentación y lecho para animales","title",{"$f":"HLOOKUP($C$2,$B$8:$D811,$A811,FALSE)","v":"animal feed or bedding"},"title804"]
[805,"4.4       Current Use of Manure","4.4       Utilisation actuelle de fumier","4.4       Uso actual del estiércol","title",{"$f":"HLOOKUP($C$2,$B$8:$D812,$A812,FALSE)","v":"4.4       Current Use of Manure"},"title805"]
[806,"Composting (%)","Compostage (%)","Compostaje (%)","title",{"$f":"HLOOKUP($C$2,$B$8:$D813,$A813,FALSE)","v":"Composting (%)"},"title806"]
[807,"Direct Fertilization (%)","Fertilisation direct (%)","Fertilizacion directa (%)","title",{"$f":"HLOOKUP($C$2,$B$8:$D814,$A814,FALSE)","v":"Direct Fertilization (%)"},"title807"]
[808,"Energy production (%)","Production énergétique (%)","Produccion de energia (%)","title",{"$f":"HLOOKUP($C$2,$B$8:$D815,$A815,FALSE)","v":"Energy production (%)"},"title808"]
[809,"Other uses (%)","Autre utilisation (%)","Otros usos (%)","title",{"$f":"HLOOKUP($C$2,$B$8:$D816,$A816,FALSE)","v":"Other uses (%)"},"title809"]
[810,"Dairy cow","Vache laitière","Vaca lechera","title",{"$f":"HLOOKUP($C$2,$B$8:$D817,$A817,FALSE)","v":"Dairy cow"},"title810"]
[811,"Buffalo","Buffle","Búfalo","title",{"$f":"HLOOKUP($C$2,$B$8:$D818,$A818,FALSE)","v":"Buffalo"},"title811"]
[812,"Swine","Porc","Cerdos","title",{"$f":"HLOOKUP($C$2,$B$8:$D819,$A819,FALSE)","v":"Swine"},"title812"]
[813,"Poultry","Volaille","Aves de corral","title",{"$f":"HLOOKUP($C$2,$B$8:$D820,$A820,FALSE)","v":"Poultry"},"title813"]
[814,"4.5       Household Owning Percentage","4.5       Part des ménages propriétaires","4.5       Porcentaje de propiedad del hogar","title",{"$f":"HLOOKUP($C$2,$B$8:$D821,$A821,FALSE)","v":"4.5       Household Owning Percentage"},"title814"]
[815,"Range","Range","Intervalo","title",{"$f":"HLOOKUP($C$2,$B$8:$D822,$A822,FALSE)","v":"Range"},"title815"]
[816,"4.6      Manure Price","Prix de fumier ","Precio de estiércol","title",{"$f":"HLOOKUP($C$2,$B$8:$D823,$A823,FALSE)","v":"4.6      Manure Price"},"title816"]
[817,"Agricultural worker-farm (unskilled)","Travailleur agricole - farm (non-qualifié)","Trabajador agrícola - Granja (no capacitado)","title",{"$f":"HLOOKUP($C$2,$B$8:$D824,$A824,FALSE)","v":"Agricultural worker-farm (unskilled)"},"title817"]
[818,"Agricultural worker-farm (skilled)","Travailleur agricole - farm (qualifié)","Trabajador agrícola - Granja (capacitado)","title",{"$f":"HLOOKUP($C$2,$B$8:$D825,$A825,FALSE)","v":"Agricultural worker-farm (skilled)"},"title818"]
[819,"Agricultural worker-biomass collection (unskilled)","Travailleur agricole - Collecte de la biomasse (non-qualifié)","Trabajadores agrícola - Recolección de la biomasa (no cualificados)","title",{"$f":"HLOOKUP($C$2,$B$8:$D826,$A826,FALSE)","v":"Agricultural worker-biomass collection (unskilled)"},"title819"]
[820,"Agricultural worker-biomass collection (skilled)","Travailleur agricole - Collecte de la biomasse (qualifié)","Trabajadores agrícola - Recolección de la biomasa (cualificados)","title",{"$f":"HLOOKUP($C$2,$B$8:$D827,$A827,FALSE)","v":"Agricultural worker-biomass collection (skilled)"},"title820"]
[821,"1.2      Number of hours dedicated to biomass collection","1.2      Nombre d'heures dévoué à la collecte de biomasse","1.2      Número de horas dedicadas a la recolección de biomasa","title",{"$f":"HLOOKUP($C$2,$B$8:$D828,$A828,FALSE)","v":"1.2      Number of hours dedicated to biomass collection"},"title821"]
[822,"Working hours per day (manual)","Heures de travail par jour (manuel)","Horas de trabajo por día (manual)","title",{"$f":"HLOOKUP($C$2,$B$8:$D829,$A829,FALSE)","v":"Working hours per day (manual)"},"title822"]
[823,"Working hours per day (mechanized)","Heures de travail par jour (mécanisé )","Horas de trabajo por día (mecanizado)","title",{"$f":"HLOOKUP($C$2,$B$8:$D830,$A830,FALSE)","v":"Working hours per day (mechanized)"},"title823"]
[824,"Notes","Note","Nota","title",{"$f":"HLOOKUP($C$2,$B$8:$D831,$A831,FALSE)","v":"Notes"},"title824"]
[825,"Gasoline at the pump","Essence à la pompe","Gasolina en la bomba","title",{"$f":"HLOOKUP($C$2,$B$8:$D832,$A832,FALSE)","v":"Gasoline at the pump"},"title825"]
[826,"Water (agriculture)","Eau (agriculture)","Agua (agricultura)","title",{"$f":"HLOOKUP($C$2,$B$8:$D833,$A833,FALSE)","v":"Water (agriculture)"},"title826"]
[827,"Heat carrier (steam generation cost - low pressure)","Caloporteur (coût de production de vapeur - basse pression)","Portador de calor (costo de generación de vapor - baja presión)","title",{"$f":"HLOOKUP($C$2,$B$8:$D834,$A834,FALSE)","v":"Heat carrier (steam generation cost - low pressure)"},"title827"]
[828,"Fuel used for steam generation","Combustible utilisé pour la production de vapeur","Combustible utilizado para la generación de vapor","title",{"$f":"HLOOKUP($C$2,$B$8:$D835,$A835,FALSE)","v":"Fuel used for steam generation"},"title828"]
[829,"USD/t steam","USD/t vapeur","USD/t vapor","title",{"$f":"HLOOKUP($C$2,$B$8:$D836,$A836,FALSE)","v":"USD/t steam"},"title829"]
[830,"Storage rate of ethanol","Taux de stockage de l'éthanol ","Tasa de almacenamiento de etanol","title",{"$f":"HLOOKUP($C$2,$B$8:$D837,$A837,FALSE)","v":"Storage rate of ethanol"},"title830"]
[831,"Working days per year","Jours de travail par an","Días laborables por año","title",{"$f":"HLOOKUP($C$2,$B$8:$D838,$A838,FALSE)","v":"Working days per year"},"title831"]
[832,"Distance Size","Longueur de la distance","Distancia tamaño","title",{"$f":"HLOOKUP($C$2,$B$8:$D839,$A839,FALSE)","v":"Distance Size"},"title832"]
[833,"days/year","jour/an","días/año","title",{"$f":"HLOOKUP($C$2,$B$8:$D840,$A840,FALSE)","v":"days/year"},"title833"]
[834,"Heat loss in distribution (%)","Perte de chaleur dans le distribution (%)","Pérdida de calor en distribución (%)","title",{"$f":"HLOOKUP($C$2,$B$8:$D841,$A841,FALSE)","v":"Heat loss in distribution (%)"},"title834"]
[835,"Power loss in distribution (%)","Perte de courant dans le distribution (%)","Pérdida de electricidad en distribución (%)","title",{"$f":"HLOOKUP($C$2,$B$8:$D842,$A842,FALSE)","v":"Power loss in distribution (%)"},"title835"]
[836,"Power - self use (%)","Électricité - utilisation autonome (%)","Electricidad - Uso propio (%)","title",{"$f":"HLOOKUP($C$2,$B$8:$D843,$A843,FALSE)","v":"Power - self use (%)"},"title836"]
[837,"Transportation distance (collection point to cogeneration plant)","Transport à distance (le point de collecte à la centrale)","Distancia de transporte (punto de recolección a la planta de cogeneratión)","title",{"$f":"HLOOKUP($C$2,$B$8:$D844,$A844,FALSE)","v":"Transportation distance (collection point to cogeneration plant)"},"title837"]
[838,"Feedstock storage cost (biomass residues)","Coût de stockage des matières premières (residuos de biomasa)","Costo de almacenamiento de la materia prima (residuos de biomasa)","title",{"$f":"HLOOKUP($C$2,$B$8:$D845,$A845,FALSE)","v":"Feedstock storage cost (biomass residues)"},"title838"]
[839,"Power loss due to operation (%) - Combustion","Perte de courant due aux opérations (%) - Combustion","Pérdida de potencia por operación (%) - Combustión","title",{"$f":"HLOOKUP($C$2,$B$8:$D846,$A846,FALSE)","v":"Power loss due to operation (%) - Combustion"},"title839"]
[840,"Power loss due to operation (%) - Gasification","Perte de courant due aux opérations (%) - Gazéification","Pérdida de potencia por operación (%) - Gasificación","title",{"$f":"HLOOKUP($C$2,$B$8:$D847,$A847,FALSE)","v":"Power loss due to operation (%) - Gasification"},"title840"]
[841,"Power loss in distribution network (%)","Perte d'électricité dans le réseau de distribution (%)","Pérdida de potencia en la red de distribución (%)","title",{"$f":"HLOOKUP($C$2,$B$8:$D848,$A848,FALSE)","v":"Power loss in distribution network (%)"},"title841"]
[842,"Gas Engine Efficiency (%) - Gasification","Efficacité du moteur à gaz (%) - Gazéification","Eficiencia del motor de gas (%) - Gasificación","title",{"$f":"HLOOKUP($C$2,$B$8:$D849,$A849,FALSE)","v":"Gas Engine Efficiency (%) - Gasification"},"title842"]
[843,"Option 1 - Charcoal","Options 1 - Charbon","Opciones 1 - Carbón","title",{"$f":"HLOOKUP($C$2,$B$8:$D850,$A850,FALSE)","v":"Option 1 - Charcoal"},"title843"]
[844,"Option 2 - CHP/Biogas Industrial","Options 2 - CHP/Biogaz Industriel","Opciones 2 - CHP/Biogás Industrial","title",{"$f":"HLOOKUP($C$2,$B$8:$D851,$A851,FALSE)","v":"Option 2 - CHP/Biogas Industrial"},"title844"]
[845,"Process","Procédure","Proceso","title",{"$f":"HLOOKUP($C$2,$B$8:$D852,$A852,FALSE)","v":"Process"},"title845"]
[846,"1.4.9       Biogas Community","1.4.9       Biogaz Communautaire","1.4.9       Biogás Comunitario","title",{"$f":"HLOOKUP($C$2,$B$8:$D853,$A853,FALSE)","v":"1.4.9       Biogas Community"},"title846"]
[847,"Average annual temperature","Température moyenne annuelle","Temperatura anual promedio","title",{"$f":"HLOOKUP($C$2,$B$8:$D854,$A854,FALSE)","v":"Average annual temperature"},"title847"]
[848,"Implementation of Biogas Programme (years)","Mise en œuvre du programme Biogaz (ans) ","Implementación del programa de Biogás (años)","title",{"$f":"HLOOKUP($C$2,$B$8:$D855,$A855,FALSE)","v":"Implementation of Biogas Programme (years)"},"title848"]
[849,"Share of households collecting fuelwood","Portion du ménage qui collecte du bois de feu","Proporción de madera combustible recolectada por hh","title",{"$f":"HLOOKUP($C$2,$B$8:$D856,$A856,FALSE)","v":"Share of households collecting fuelwood"},"title849"]
[850,"Share of time dedicated to income generation","Portion du temps dédié à la génération de revenus","Proporción de tiempo dedicado a la generación de ingresos","title",{"$f":"HLOOKUP($C$2,$B$8:$D857,$A857,FALSE)","v":"Share of time dedicated to income generation"},"title850"]
[851,"Cattle","Bovins ","Bovinos","title",{"$f":"HLOOKUP($C$2,$B$8:$D858,$A858,FALSE)","v":"Cattle"},"title851"]
[852,"Nutrients fertilizer prices (These can be calculated using crops tools)","Prix des éléments nutritifs dans les engrais (Ils peuvent être calculés en utilisant l'outil sur les cultures)","Precios de fertilizantes de nutrientes (Estos pueden ser calculados usando la herramienta de Produccion de Cultivos)","title",{"$f":"HLOOKUP($C$2,$B$8:$D859,$A859,FALSE)","v":"Nutrients fertilizer prices (These can be calculated using crops tools)"},"title852"]
[853,"Miscellaneous cost - Labor (%)","Coût divers - Travail (%)","Costos varios - Mano de obra (%)","title",{"$f":"HLOOKUP($C$2,$B$8:$D860,$A860,FALSE)","v":"Miscellaneous cost - Labor (%)"},"title853"]
[854,"Transportation cost of diesel (USD/t/km)","Frais de transport du diesel (USD/t/km)","Costo de transporte del diésel (USD/t/km)","title",{"$f":"HLOOKUP($C$2,$B$8:$D861,$A861,FALSE)","v":"Transportation cost of diesel (USD/t/km)"},"title854"]
[855,"Operating and maintenance cost (USD/kWh)","Coûts d'opérations et d'entretien","Costo de operación y mantenimiento ","title",{"$f":"HLOOKUP($C$2,$B$8:$D862,$A862,FALSE)","v":"Operating and maintenance cost (USD/kWh)"},"title855"]
[856,"Market","Marché","Mercado","title",{"$f":"HLOOKUP($C$2,$B$8:$D863,$A863,FALSE)","v":"Market"},"title856"]
[857,"USD/pc","USD/pc","USD/pz","title",{"$f":"HLOOKUP($C$2,$B$8:$D864,$A864,FALSE)","v":"USD/pc"},"title857"]
[858,"Select species","Sélectionner les espèces","Seleccionar especies","title",{"$f":"HLOOKUP($C$2,$B$8:$D865,$A865,FALSE)","v":"Select species"},"title858"]
[859,"User-defined","Définies par l'utilisateur","Definido por el usuario","title",{"$f":"HLOOKUP($C$2,$B$8:$D866,$A866,FALSE)","v":"User-defined"},"title859"]
[860,"Enter species name:","Indiquer l’espèce d’arbre:","Ingresar el nombre de la especie:","title",{"$f":"HLOOKUP($C$2,$B$8:$D867,$A867,FALSE)","v":"Enter species name:"},"title860"]
[861,"households","Ménages","Hogares","title",{"$f":"HLOOKUP($C$2,$B$8:$D868,$A868,FALSE)","v":"households"},"title861"]
[862,"Commercial","Commercial","Comercial","title",{"$f":"HLOOKUP($C$2,$B$8:$D869,$A869,FALSE)","v":"Commercial"},"title862"]
[863,"Share","Portion","Proporción","title",{"$f":"HLOOKUP($C$2,$B$8:$D870,$A870,FALSE)","v":"Share"},"title863"]
[864,"Select Species 1 from the drop-down list in the cell below","Sélectionner l'espèce 1 depuis le munu déroulant  ci-dessous","Seleccione la especie 1 de la lista en la celda de abajo","title",{"$f":"HLOOKUP($C$2,$B$8:$D871,$A871,FALSE)","v":"Select Species 1 from the drop-down list in the cell below"},"title864"]
[865,"Select Species 2 from the drop-down list in the cell below","Sélectionner l'espèce 2 depuis le munu déroulant  ci-dessous","Seleccione la especie 2 de la lista en la celda de abajo","title",{"$f":"HLOOKUP($C$2,$B$8:$D872,$A872,FALSE)","v":"Select Species 2 from the drop-down list in the cell below"},{"$f":"$E872&$A872","v":"title865"}]
[866,"Wood properties","Propriétés du bois","Propiedades de la madera","title",{"$f":"HLOOKUP($C$2,$B$8:$D873,$A873,FALSE)","v":"Wood properties"},{"$f":"$E873&$A873","v":"title866"}]
[867,"Average wood density","Densité moyenne du bois","Densidad promedio de la madera","title",{"$f":"HLOOKUP($C$2,$B$8:$D874,$A874,FALSE)","v":"Average wood density"},"title867"]
[868,"Steel sheet density","Densité des tôles d'acier","Densidad de la lámina de acero","title",{"$f":"HLOOKUP($C$2,$B$8:$D875,$A875,FALSE)","v":"Steel sheet density"},"title868"]
[869,"Charcoal storage cost","Coût de stockage de charbon de bois","Costo de almacenamiento de carbón vegetal","title",{"$f":"HLOOKUP($C$2,$B$8:$D876,$A876,FALSE)","v":"Charcoal storage cost"},"title869"]
[870,"Share of market price paid to small scale producers","Part des prix du marché payé aux producteurs à petite échelle","Parte del precio de mercado pagado a los productores de pequeña escala","title",{"$f":"HLOOKUP($C$2,$B$8:$D877,$A877,FALSE)","v":"Share of market price paid to small scale producers"},"title870"]
[871,"Share of market price paid to medium and large scale producers","Part des prix du marché payé aux producteurs de moyennes et grandes","Parte del precio de mercado pagado a los productores de mediana y gran escala","title",{"$f":"HLOOKUP($C$2,$B$8:$D878,$A878,FALSE)","v":"Share of market price paid to medium and large scale producers"},"title871"]
[872,"Oil drum","Tambour d'huile","Oil drum","title",{"$f":"HLOOKUP($C$2,$B$8:$D879,$A879,FALSE)","v":"Oil drum"},"title872"]
[873,"Casamance","Casamance","Casamance","title",{"$f":"HLOOKUP($C$2,$B$8:$D880,$A880,FALSE)","v":"Casamance"},"title873"]
[874,"Improved pit Liberia","Fosse améliorée Libéria","Improved pit Liberia","title",{"$f":"HLOOKUP($C$2,$B$8:$D881,$A881,FALSE)","v":"Improved pit Liberia"},"title874"]
[875,"Portable steel kiln","Four Portable en acier","Portable steel kiln","title",{"$f":"HLOOKUP($C$2,$B$8:$D882,$A882,FALSE)","v":"Portable steel kiln"},"title875"]
[876,"Standard Beehive","Beehive standard","Standard Beehive","title",{"$f":"HLOOKUP($C$2,$B$8:$D883,$A883,FALSE)","v":"Standard Beehive"},"title876"]
[877,"Missouri","Missouri","Missouri","title",{"$f":"HLOOKUP($C$2,$B$8:$D884,$A884,FALSE)","v":"Missouri"},"title877"]
[878,"Somalia mound","Monticule de Somalie","Somalia mound","title",{"$f":"HLOOKUP($C$2,$B$8:$D885,$A885,FALSE)","v":"Somalia mound"},"title878"]
[879,"Average production cost","Coût moyen de production","Costo promedio de producción","title",{"$f":"HLOOKUP($C$2,$B$8:$D886,$A886,FALSE)","v":"Average production cost"},"title879"]
[880,"Average investment cost","Coût moyen d'investissement","Costo promedio de la inversión","title",{"$f":"HLOOKUP($C$2,$B$8:$D887,$A887,FALSE)","v":"Average investment cost"},"title880"]
[881,"Feedstock cost","Coût de matières premières","Costo de materia prima","title",{"$f":"HLOOKUP($C$2,$B$8:$D888,$A888,FALSE)","v":"Feedstock cost"},"title881"]
[882,"Country Status","Situation du Pays","Situación actual del país","title",{"$f":"HLOOKUP($C$2,$B$8:$D889,$A889,FALSE)","v":"Country Status"},"title882"]
[883,"Natural resources","Ressources Naturelles ","Recursos Naturales","title",{"$f":"HLOOKUP($C$2,$B$8:$D890,$A890,FALSE)","v":"Natural resources"},"title883"]
[884,"Energy end-use options","Options d’Utilisation Finale de l'Énergie","Opciones de uso final de energía","title",{"$f":"HLOOKUP($C$2,$B$8:$D891,$A891,FALSE)","v":"Energy end-use options"},"title884"]
[885,"Agricultural residues","Résidus Agricoles  ","Residuos Agropecuarios","title",{"$f":"HLOOKUP($C$2,$B$8:$D892,$A892,FALSE)","v":"Agricultural residues"},"title885"]
[886,"Woodfuel and Wood Residues","Combustibles Ligneux et Résidus de Bois","Madera combustible y residuos de madera","title",{"$f":"HLOOKUP($C$2,$B$8:$D893,$A893,FALSE)","v":"Woodfuel and Wood Residues"},"title886"]
[887,"Crops","Culture","Cultivos","title",{"$f":"HLOOKUP($C$2,$B$8:$D894,$A894,FALSE)","v":"Crops"},"title887"]
[888,"Intermediate or final products","Produits Intermédiaires ou Finaux","Productos intermedios o finales","title",{"$f":"HLOOKUP($C$2,$B$8:$D895,$A895,FALSE)","v":"Intermediate or final products"},"title888"]
[889,"Heating and cooking","Chauffage et Cuisson","Calefacción y cocción","title",{"$f":"HLOOKUP($C$2,$B$8:$D896,$A896,FALSE)","v":"Heating and cooking"},"title889"]
[890,"Rural electrification","Électrification Rurale","Electrificación rural","title",{"$f":"HLOOKUP($C$2,$B$8:$D897,$A897,FALSE)","v":"Rural electrification"},"title890"]
[891,"Heat and Power","Chaleur et électricité","Calor y electricidad","title",{"$f":"HLOOKUP($C$2,$B$8:$D898,$A898,FALSE)","v":"Heat and Power"},"title891"]
[892,"Transport","Transport","Transporte","title",{"$f":"HLOOKUP($C$2,$B$8:$D899,$A899,FALSE)","v":"Transport"},"title892"]
[893,"Country Status Tool","Outil Situation du Pays","Herramienta de situación actual del país","title",{"$f":"HLOOKUP($C$2,$B$8:$D900,$A900,FALSE)","v":"Country Status Tool"},"title893"]
[894,"Agricultural Residues Tool","Outil Résidus Agricoles  ","Herramienta de residuos agropecuarios","title",{"$f":"HLOOKUP($C$2,$B$8:$D901,$A901,FALSE)","v":"Agricultural Residues Tool"},"title894"]
[895,"Woodfuel Tool","Outil Combustibles Ligneux","Herramienta de madera combustible","title",{"$f":"HLOOKUP($C$2,$B$8:$D902,$A902,FALSE)","v":"Woodfuel Tool"},"title895"]
[896,"Crops Tool","Outil Culture","Herramienta de cultivos","title",{"$f":"HLOOKUP($C$2,$B$8:$D903,$A903,FALSE)","v":"Crops Tool"},"title896"]
[897,"Briquettes Tool","Outil Briquettes","Herramienta de briquetas","title",{"$f":"HLOOKUP($C$2,$B$8:$D904,$A904,FALSE)","v":"Briquettes Tool"},"title897"]
[898,"Pellets Tool","Outil Granulés de Bois","Herramienta de pellets","title",{"$f":"HLOOKUP($C$2,$B$8:$D905,$A905,FALSE)","v":"Pellets Tool"},"title898"]
[899,"Charcoal Tool","Outil Charbon de Bois","Herramienta de carbón vegetal","title",{"$f":"HLOOKUP($C$2,$B$8:$D906,$A906,FALSE)","v":"Charcoal Tool"},"title899"]
[900,"Biogas Community Tool","Outil Biogaz Communautaire","Herramienta de biogás comunitario","title",{"$f":"HLOOKUP($C$2,$B$8:$D907,$A907,FALSE)","v":"Biogas Community Tool"},"title900"]
[901,"Gasification Tool","Outil Gazéification","Herramienta de gasificación","title",{"$f":"HLOOKUP($C$2,$B$8:$D908,$A908,FALSE)","v":"Gasification Tool"},"title901"]
[902,"SVO Tool","Outil HVB","Herramienta AVC","title",{"$f":"HLOOKUP($C$2,$B$8:$D909,$A909,FALSE)","v":"SVO Tool"},"title902"]
[903,"Combustion Tool","Outil Combustion","Herramienta de combustión","title",{"$f":"HLOOKUP($C$2,$B$8:$D910,$A910,FALSE)","v":"Combustion Tool"},"title903"]
[904,"Cogeneration Tool","Outil Cogénération","Herramienta de cogeneración","title",{"$f":"HLOOKUP($C$2,$B$8:$D911,$A911,FALSE)","v":"Cogeneration Tool"},"title904"]
[905,"Biogas Industrial Tool","Outil Biogaz Industriel","Herramienta de biogás industrial","title",{"$f":"HLOOKUP($C$2,$B$8:$D912,$A912,FALSE)","v":"Biogas Industrial Tool"},"title905"]
[906,"Transport Tool","Outil Transport","Herramienta de transporte","title",{"$f":"HLOOKUP($C$2,$B$8:$D913,$A913,FALSE)","v":"Transport Tool"},"title906"]
[907,"Transport Molasses Tool","Outil Mélasses","Herramienta de melazas","title",{"$f":"HLOOKUP($C$2,$B$8:$D914,$A914,FALSE)","v":"Transport Molasses Tool"},"title907"]
[908,"Please select tools for analysis","Sélectionner les outils d'analyse","Por favor seleccione las herramienta a analizar","title",{"$f":"HLOOKUP($C$2,$B$8:$D915,$A915,FALSE)","v":"Please select tools for analysis"},"title908"]
[909,"Collection of Residues","La Collecte des Résidus","Recolección de Residuos","title",{"$f":"HLOOKUP($C$2,$B$8:$D916,$A916,FALSE)","v":"Collection of Residues"},"title909"]
[910,"Woody Processing Residues","Traitement de Résidus du Bois","Residuos del  Procesamiento de la Madera\n\n","title",{"$f":"HLOOKUP($C$2,$B$8:$D917,$A917,FALSE)","v":"Woody Processing Residues"},"title910"]
[911,"Forest Harvesting Residues","Résidus De L'Exploitation Forestière","Residuos Del Aprovechamiento Forestal","title",{"$f":"HLOOKUP($C$2,$B$8:$D918,$A918,FALSE)","v":"Forest Harvesting Residues"},"title911"]
[912,"Safety storage rate","Taux de stockage de sécurité","Tasa de almacenamiento de seguridad","title",{"$f":"HLOOKUP($C$2,$B$8:$D919,$A919,FALSE)","v":"Safety storage rate"},"title912"]
[913,"Transformation efficiency (%)","Efficacité de la transformation (%)","Eficiencia de transformación (%)","title",{"$f":"HLOOKUP($C$2,$B$8:$D920,$A920,FALSE)","v":"Transformation efficiency (%)"},"title913"]
[914," (manual)"," (manuel)"," (manual)","title",{"$f":"HLOOKUP($C$2,$B$8:$D921,$A921,FALSE)","v":" (manual)"},"title914"]
[915," (semi-mechanized)"," (semi-mécanisée)"," (semi mecanizada)","title",{"$f":"HLOOKUP($C$2,$B$8:$D922,$A922,FALSE)","v":" (semi-mechanized)"},"title915"]
[916,"Engine efficiency (%)","Efficacité du moteur (%)","Eficiencia del motor (%)","title",{"$f":"HLOOKUP($C$2,$B$8:$D923,$A923,FALSE)","v":"Engine efficiency (%)"},"title916"]
[917," - (Gasification)"," - (Gazéification)"," - (Gasificación)","title",{"$f":"HLOOKUP($C$2,$B$8:$D924,$A924,FALSE)","v":" - (Gasification)"},"title917"]
[918," - (SVO)"," - (HVB)"," - (AVC)","title",{"$f":"HLOOKUP($C$2,$B$8:$D925,$A925,FALSE)","v":" - (SVO)"},"title918"]
[919,"Land use class","Classe de l'utilisation des terres","Clase de uso de la tierra","title",{"$f":"HLOOKUP($C$2,$B$8:$D926,$A926,FALSE)","v":"Land use class"},"title919"]
[920,"Permanent meadows and pastures","Prairies et pâturages permanents","Praderas y pastos permanentes","title",{"$f":"HLOOKUP($C$2,$B$8:$D927,$A927,FALSE)","v":"Permanent meadows and pastures"},"title920"]
[921,"Other land","Autres terres","Otras tierras","title",{"$f":"HLOOKUP($C$2,$B$8:$D928,$A928,FALSE)","v":"Other land"},"title921"]
[922,"Average annual production","Production annuelle moyenne","Producción anual promedio","title",{"$f":"HLOOKUP($C$2,$B$8:$D929,$A929,FALSE)","v":"Average annual production"},"title922"]
[923,"Data collection cells will be shown for the selected tools only","Les cellules pour la collecte de données ne seront visibles que pour les outils sélectionnés ","Solo se mostrarán celdas para colección de datos para aquellas herramientas seleccionadas","title",{"$f":"HLOOKUP($C$2,$B$8:$D930,$A930,FALSE)","v":"Data collection cells will be shown for the selected tools only"},"title923"]
[924,"NEXT >> \nTools selection","SUIVANT >>\nSélection d'outils","SIGUIENTE >> \nSelección de herramientas","title",{"$f":"HLOOKUP($C$2,$B$8:$D931,$A931,FALSE)","v":"NEXT >> \nTools selection"},"title924"]
[925,"BACK << Introduction","RETOUR << Introduction","VOLVER << Introducción","title",{"$f":"HLOOKUP($C$2,$B$8:$D932,$A932,FALSE)","v":"BACK << Introduction"},"title925"]
[926,"Tools selection","Sélection des outils","Selección de herramientas","title",{"$f":"HLOOKUP($C$2,$B$8:$D933,$A933,FALSE)","v":"Tools selection"},"title926"]
[927,"Introduction","Introduction","Introducción","title",{"$f":"HLOOKUP($C$2,$B$8:$D934,$A934,FALSE)","v":"Introduction"},"title927"]

{"sheet":"Tools selection","index":2,"n_rows":29,"n_cols":13,"rows_kept":29,"cut":false,"hidden":false,"merged":[[8,2,8,11],[7,2,7,11]]}
[]
[null,null,null,null,null,null,null,null,null,null,null,null,{"$f":"title2","v":"BEFS Rapid Appraisal"}]
[null,null,null,null,null,null,null,null,null,null,null,null,{"$f":"title3","v":"Data Collection"}]
[]
[]
[]
[]
[null,null,{"$f":"title908","v":"Please select tools for analysis"}]
[null,null,{"$f":"title923","v":"Data collection cells will be shown for the selected tools only"}]
[]
[null,null,{"$f":"\">> \"&UPPER(title883)","v":">> NATURAL RESOURCES"}]
[]
[]
[null,null,"Crop and Livestock Residues",null,null,{"$f":"PROPER(title886)","v":"Woodfuel And Wood Residues"},null,null,{"$f":"PROPER(title887)&\" - Production and Budget\"","v":"Crops - Production and Budget"}]
[]
[null,null,{"$f":"title894","v":"Agricultural Residues Tool"},false,null,{"$f":"title895","v":"Woodfuel Tool"},false,null,{"$f":"title896","v":"Crops Tool"},false]
[]
[null,null,{"$f":"\">> \"&UPPER(title884)","v":">> ENERGY END-USE OPTIONS"}]
[]
[null,null,{"$f":"PROPER(title888)","v":"Intermediate Or Final Products"},null,null,{"$f":"PROPER(title889)","v":"Heating And Cooking"},null,null,{"$f":"PROPER(title890)","v":"Rural Electrification"},null,null,{"$f":"PROPER(title891)","v":"Heat And Power"}]
[]
[null,null,{"$f":"title897","v":"Briquettes Tool"},false,null,{"$f":"title900","v":"Biogas Community Tool"},false,null,{"$f":"title901","v":"Gasification Tool"},false,null,{"$f":"title904","v":"Cogeneration Tool"},false]
[null,null,{"$f":"title898","v":"Pellets Tool"},false,null,null,null,null,{"$f":"title902","v":"SVO Tool"},false,null,{"$f":"title905","v":"Biogas Industrial Tool"},false]
[null,null,{"$f":"title899","v":"Charcoal Tool"},false,null,null,null,null,{"$f":"title903","v":"Combustion Tool"},false]
[]
[null,null,{"$f":"PROPER(title892)","v":"Transport"}]
[]
[null,null,{"$f":"title906","v":"Transport Tool"},false,null,{"$f":"IF(OR(option5=TRUE,option6=TRUE,option7=TRUE,option8=TRUE,option9=TRUE,option10=TRUE,option11=TRUE,option12=TRUE,option13=TRUE,option14=TRUE),FALSE,TRUE)","v":true},null,null,{"$f":"IF(OR(option5=TRUE,option6=TRUE,option7=TRUE,option8=TRUE,option12=TRUE,option13=TRUE),FALSE,TRUE)","v":true}]
[null,null,{"$f":"title907","v":"Transport Molasses Tool"},false,null,{"$f":"IF(OR(option2=TRUE,option3=TRUE,option4=TRUE,option5=TRUE,option6=TRUE,option7=TRUE,option8=TRUE,option9=TRUE,option10=TRUE,option11=TRUE,option12=TRUE,option13=TRUE,option14=TRUE),FALSE,TRUE)","v":true},null,null,{"$f":"IF(OR(option2=TRUE,option4=TRUE,option5=TRUE,option6=TRUE,option7=TRUE,option9=TRUE,option11=TRUE,option12=TRUE,option13=TRUE),FALSE,TRUE)","v":true}]

{"sheet":"Agriculture","index":3,"n_rows":375,"n_cols":67,"rows_kept":375,"cut":false,"hidden":true,"merged":[[335,6,336,7],[344,6,345,7],[310,1,310,3],[302,1,302,3],[302,4,302,5],[303,1,303,3],[303,4,303,5],[304,1,304,3],[304,4,304,5],[306,1,306,5],[317,1,317,3],[312,1,312,3],[314,1,314,5],[315,1,315,5],[316,1,316,3],[311,1,311,3],[307,1,307,5],[308,1,308,3],[309,1,309,3],[302,6,302,7],[303,6,303,7],[304,6,304,7],[176,15,176,19],[185,4,185,5],[185,6,185,7],[185,8,185,9],[185,10,185,11],[181,4,181,5],[181,6,181,7],[181,8,181,9],[181,10,181,11],[183,4,183,5],[176,12,176,13],[183,6,183,7],[183,8,183,9],[183,10,183,11],[284,4,284,5],[167,4,167,5],[167,6,167,7],[282,4,282,5],[282,6,282,7],[282,8,282,9],[168,15,170,19],[169,4,169,5],[169,6,169,7],[169,8,169,9],[169,10,169,11],[169,12,169,13],[171,4,171,5],[171,6,171,7],[171,8,171,9],[171,10,171,11],[171,12,171,13],[168,4,168,5],[168,6,168,7],[168,8,168,9],[168,10,168,11],[168,12,168,13],[177,15,179,19],[173,2,173,13],[167,12,167,13],[155,4,155,5],[155,6,155,7],[187,12,187,13],[167,8,167,9],[283,4,283,5],[283,6,283,7],[283,8,283,9],[185,12,185,13],[177,4,177,5],[177,6,177,7],[177,8,177,9],[177,10,177,11],[181,12,181,13],[180,4,180,5],[180,6,180,7],[180,8,180,9],[180,10,180,11],[180,12,180,13],[183,12,183,13],[279,4,279,5],[279,6,279,7],[279,8,279,9],[280,4,280,5],[367,15,367,19],[344,4,345,5],[344,8,345,9],[139,15,139,19],[140,15,140,19],[179,4,179,5],[179,6,179,7],[179,8,179,9],[179,10,179,11],[179,12,179,13],[177,12,177,13],[158,4,158,5],[158,6,158,7],[158,8,158,9],[158,10,158,11],[158,12,158,13],[160,4,160,5],[187,4,187,5],[187,6,187,7],[284,6,284,7],[284,8,284,9],[281,4,281,5],[281,6,281,7],[281,8,281,9],[371,2,371,11],[373,1,373,19],[374,1,377,19],[332,2,332,11],[367,4,367,6],[368,4,368,6],[369,4,369,6],[370,4,370,6],[318,1,318,3],[319,1,319,3],[320,1,320,3],[322,2,322,11],[327,2,327,11],[330,1,330,2],[368,15,370,19],[344,10,345,11],[339,1,339,3],[340,1,340,3],[341,1,341,3],[335,8,336,9],[335,10,336,10],[335,1,337,3],[338,1,338,3],[335,4,336,5],[294,8,294,9],[291,4,291,5],[291,6,291,7],[289,4,289,5],[289,6,289,7],[289,8,289,9],[290,4,290,5],[290,6,290,7],[290,8,290,9],[291,8,291,9],[292,4,292,5],[292,6,292,7],[292,8,292,9],[293,4,293,5],[293,6,293,7],[293,8,293,9],[294,4,294,5],[294,6,294,7],[288,8,288,9],[285,4,285,5],[285,6,285,7],[285,8,285,9],[286,4,286,5],[286,6,286,7],[286,8,286,9],[287,4,287,5],[287,6,287,7],[287,8,287,9],[288,4,288,5],[288,6,288,7],[280,6,280,7],[280,8,280,9],[277,4,277,5],[277,6,277,7],[277,8,277,9],[278,4,278,5],[278,6,278,7],[278,8,278,9],[275,4,275,5],[275,6,275,7],[275,8,275,9],[276,4,276,5],[276,6,276,7],[276,8,276,9],[273,4,273,5],[273,6,273,7],[273,8,273,9],[274,4,274,5],[274,6,274,7],[274,8,274,9],[271,4,271,5],[271,6,271,7],[271,8,271,9],[272,4,272,5],[272,6,272,7],[272,8,272,9],[269,4,269,5],[269,6,269,7],[269,8,269,9],[270,4,270,5],[270,6,270,7],[270,8,270,9],[266,1,266,2],[266,3,266,9],[267,4,267,5],[267,6,267,7],[267,8,267,9],[268,4,268,5],[268,6,268,7],[268,8,268,9],[262,1,262,3],[262,4,262,5],[262,6,262,7],[262,8,262,9],[262,10,262,11],[263,2,263,14],[260,1,260,3],[260,4,260,5],[260,6,260,7],[260,8,260,9],[260,10,260,11],[261,1,261,3],[261,4,261,5],[261,6,261,7],[261,8,261,9],[261,10,261,11],[258,1,258,3],[258,4,258,5],[258,6,258,7],[258,8,258,9],[258,10,258,11],[259,1,259,3],[259,4,259,5],[259,6,259,7],[259,8,259,9],[259,10,259,11],[256,1,256,3],[256,4,256,5],[256,6,256,7],[256,8,256,9],[256,10,256,11],[257,1,257,3],[257,4,257,5],[257,6,257,7],[257,8,257,9],[257,10,257,11],[252,1,252,3],[252,4,252,5],[252,6,252,7],[252,8,252,9],[252,10,252,11],[253,1,253,3],[253,4,253,5],[253,6,253,7],[253,8,253,9],[255,1,255,3],[255,4,255,5],[255,6,255,7],[255,8,255,9],[255,10,255,11],[253,10,253,11],[254,1,254,3],[254,4,254,5],[254,6,254,7],[254,8,254,9],[254,10,254,11],[250,4,250,5],[250,6,250,7],[250,8,250,9],[250,10,250,11],[251,1,251,3],[251,4,251,5],[251,6,251,7],[251,8,251,9],[251,10,251,11],[245,4,245,5],[245,6,245,7],[245,8,245,9],[245,10,245,11],[247,1,247,2],[247,3,247,14],[242,16,242,19],[243,4,243,5],[243,6,243,7],[243,8,243,9],[243,10,243,11],[243,15,245,19],[244,4,244,5],[244,6,244,7],[244,8,244,9],[244,10,244,11],[246,1,246,2],[246,4,246,5],[246,6,246,7],[246,8,246,9],[246,10,246,11],[241,4,241,5],[241,6,241,7],[241,8,241,9],[241,10,241,11],[242,4,242,5],[242,6,242,7],[242,8,242,9],[242,10,242,11],[239,4,239,5],[239,6,239,7],[239,8,239,9],[239,10,239,11],[240,4,240,5],[240,6,240,7],[240,8,240,9],[240,10,240,11],[237,4,237,5],[237,6,237,7],[237,8,237,9],[237,10,237,11],[238,4,238,5],[238,6,238,7],[238,8,238,9],[238,10,238,11],[234,1,234,2],[234,4,234,5],[234,6,234,7],[234,8,234,9],[234,10,234,11],[236,4,236,5],[236,6,236,7],[236,8,236,9],[236,10,236,11],[232,1,232,2],[232,4,232,5],[232,6,232,7],[232,8,232,9],[232,10,232,11],[233,1,233,2],[233,4,233,5],[233,6,233,7],[233,8,233,9],[233,10,233,11],[230,4,230,5],[230,6,230,7],[230,8,230,9],[230,10,230,11],[231,4,231,5],[231,6,231,7],[231,8,231,9],[231,10,231,11],[228,4,228,5],[228,6,228,7],[228,8,228,9],[228,10,228,11],[229,4,229,5],[229,6,229,7],[229,8,229,9],[229,10,229,11],[220,15,222,19],[223,15,223,19],[226,4,226,5],[226,6,226,7],[226,8,226,9],[226,10,226,11],[227,4,227,5],[227,6,227,7],[227,8,227,9],[227,10,227,11],[224,4,224,5],[224,6,224,7],[224,8,224,9],[224,10,224,11],[225,4,225,5],[225,6,225,7],[225,8,225,9],[225,10,225,11],[221,4,221,5],[221,6,221,7],[221,8,221,9],[221,10,221,11],[222,4,222,5],[222,6,222,7],[222,8,222,9],[222,10,222,11],[223,4,223,5],[223,6,223,7],[223,8,223,9],[223,10,223,11],[215,10,215,11],[216,1,216,2],[216,4,216,5],[216,6,216,7],[216,8,216,9],[216,10,216,11],[219,1,219,4],[220,4,220,5],[220,6,220,7],[220,8,220,9],[220,10,220,11],[203,6,203,7],[203,8,203,9],[204,4,204,5],[204,6,204,7],[204,8,204,9],[205,4,205,5],[205,6,205,7],[215,1,215,2],[215,4,215,5],[215,6,215,7],[215,8,215,9],[210,4,210,5],[210,6,210,7],[210,8,210,9],[213,4,213,5],[213,6,213,7],[213,8,213,9],[206,6,206,7],[206,8,206,9],[207,4,207,5],[207,6,207,7],[207,8,207,9],[187,10,187,11],[202,4,202,5],[202,6,202,7],[202,8,202,9],[153,1,153,2],[154,4,154,5],[154,6,154,7],[154,8,154,9],[154,10,154,11],[157,6,157,7],[157,8,157,9],[157,10,157,11],[176,10,176,11],[192,10,192,11],[167,10,167,11],[192,8,192,9],[189,8,189,9],[189,10,189,11],[154,12,154,13],[205,8,205,9],[164,2,164,13],[201,4,201,5],[201,6,201,7],[201,8,201,9],[161,4,161,5],[161,6,161,7],[161,8,161,9],[161,10,161,11],[161,12,161,13],[163,4,163,5],[163,6,163,7],[163,8,163,9],[163,10,163,11],[163,12,163,13],[176,4,176,5],[176,6,176,7],[176,8,176,9],[155,8,155,9],[155,10,155,11],[155,12,155,13],[160,12,160,13],[157,4,157,5],[157,12,157,13],[160,6,160,7],[160,8,160,9],[160,10,160,11],[152,15,153,19],[144,2,144,13],[148,4,148,5],[148,6,148,7],[148,8,148,9],[148,10,148,11],[148,12,148,13],[148,15,148,19],[150,1,150,2],[151,4,151,5],[151,6,151,7],[151,8,151,9],[151,10,151,11],[151,12,151,13],[149,4,149,5],[149,6,149,7],[149,8,149,9],[149,10,149,11],[149,12,149,13],[152,4,152,5],[121,4,121,5],[121,6,121,7],[121,8,121,9],[121,10,121,11],[123,8,123,9],[123,10,123,11],[122,4,122,5],[122,6,122,7],[118,6,118,7],[118,8,118,9],[118,10,118,11],[152,6,152,7],[152,8,152,9],[152,10,152,11],[152,12,152,13],[142,4,142,5],[142,6,142,7],[142,8,142,9],[142,10,142,11],[142,12,142,13],[103,12,103,13],[102,1,102,2],[102,4,102,5],[102,6,102,7],[102,8,102,9],[102,10,102,11],[102,12,102,13],[133,4,133,5],[133,6,133,7],[133,8,133,9],[133,10,133,11],[133,12,133,13],[114,6,114,7],[115,4,115,5],[116,10,116,11],[116,12,116,13],[115,6,115,7],[115,8,115,9],[115,10,115,11],[115,12,115,13],[116,4,116,5],[116,6,116,7],[116,8,116,9],[123,4,123,5],[97,4,97,5],[97,6,97,7],[97,12,97,13],[101,12,101,13],[99,1,99,2],[99,4,99,5],[99,6,99,7],[99,8,99,9],[99,10,99,11],[99,12,99,13],[98,1,98,2],[98,4,98,5],[98,6,98,7],[97,8,97,9],[97,10,97,11],[98,8,98,9],[98,10,98,11],[98,12,98,13],[97,1,97,2],[101,10,101,11],[101,1,101,2],[101,4,101,5],[101,6,101,7],[101,8,101,9],[94,12,94,13],[95,1,95,2],[95,4,95,5],[95,6,95,7],[95,8,95,9],[95,10,95,11],[95,12,95,13],[77,8,77,9],[77,10,77,11],[87,5,87,7],[88,5,88,7],[89,5,89,7],[93,4,93,5],[93,6,93,7],[93,10,93,11],[93,12,93,13],[93,1,93,2],[94,4,94,5],[94,6,94,7],[94,10,94,11],[52,1,53,2],[52,3,53,18],[73,8,73,9],[73,10,73,11],[74,8,74,9],[74,10,74,11],[75,8,75,9],[75,10,75,11],[74,15,75,19],[61,1,61,2],[62,1,62,2],[63,1,63,2],[58,1,58,2],[59,1,59,2],[60,1,60,2],[64,1,64,2],[58,3,58,4],[59,3,59,4],[60,3,60,4],[61,3,61,4],[62,3,62,4],[63,3,63,4],[64,3,64,4],[66,2,66,17],[50,4,50,5],[50,6,50,7],[50,8,50,9],[50,10,50,11],[50,12,50,13],[51,4,51,5],[51,6,51,7],[51,8,51,9],[51,10,51,11],[51,12,51,13],[48,10,48,11],[48,12,48,13],[46,10,46,11],[46,12,46,13],[49,4,49,5],[49,6,49,7],[49,8,49,9],[49,10,49,11],[49,12,49,13],[31,6,31,7],[32,6,32,7],[32,10,32,11],[32,12,32,13],[30,4,30,5],[30,8,30,9],[36,4,36,5],[36,6,36,7],[36,8,36,9],[36,10,36,11],[36,12,36,13],[31,4,31,5],[33,8,33,9],[34,4,34,5],[34,6,34,7],[35,4,35,5],[35,6,35,7],[34,10,34,11],[34,12,34,13],[16,2,16,6],[8,1,8,2],[9,1,9,2],[10,1,10,2],[16,13,16,15],[30,10,30,11],[30,12,30,13],[27,4,27,5],[27,6,27,7],[27,8,27,9],[27,10,27,11],[27,12,27,13],[28,4,28,5],[28,8,28,9],[28,10,28,11],[16,16,16,19],[14,3,14,17],[13,3,13,17],[12,3,12,17],[11,3,11,17],[10,3,10,17],[9,3,9,17],[8,3,8,17],[26,1,26,2],[26,4,26,5],[26,6,26,7],[26,8,26,9],[26,10,26,11],[26,12,26,13],[17,1,17,3],[17,4,17,6],[25,4,25,5],[25,6,25,7],[25,8,25,9],[25,10,25,11],[25,12,25,13],[17,13,17,15],[26,15,30,17],[30,6,30,7],[17,16,17,19],[28,12,28,13],[29,4,29,5],[29,8,29,9],[29,10,29,11],[29,12,29,13],[31,15,32,17],[45,8,45,9],[28,6,28,7],[29,6,29,7],[43,12,43,13],[44,8,44,9],[44,10,44,11],[44,12,44,13],[35,8,35,9],[32,4,32,5],[32,8,32,9],[31,8,31,9],[31,10,31,11],[31,12,31,13],[35,10,35,11],[35,12,35,13],[33,4,33,5],[33,6,33,7],[255,15,255,19],[108,15,109,19],[112,15,112,19],[133,15,135,19],[149,15,150,19],[83,8,83,9],[83,10,83,11],[84,8,84,9],[84,10,84,11],[87,8,87,9],[88,8,88,9],[88,10,88,11],[93,8,93,9],[90,2,90,11],[189,4,189,5],[189,6,189,7],[127,8,127,9],[127,10,127,11],[117,8,117,9],[110,1,110,2],[126,4,126,5],[126,6,126,7],[126,8,126,9],[110,4,110,5],[42,12,42,13],[43,8,43,9],[43,10,43,11],[34,8,34,9],[41,10,41,11],[41,12,41,13],[39,8,39,9],[39,10,39,11],[39,12,39,13],[40,8,40,9],[40,10,40,11],[40,12,40,13],[37,15,43,19],[78,8,78,9],[78,10,78,11],[79,8,79,9],[79,10,79,11],[80,8,80,9],[80,10,80,11],[40,1,40,2],[40,4,40,5],[40,6,40,7],[47,4,47,5],[47,6,47,7],[47,8,47,9],[47,10,47,11],[47,12,47,13],[45,4,45,5],[45,6,45,7],[45,10,45,11],[48,4,48,5],[48,6,48,7],[48,8,48,9],[37,8,37,9],[37,10,37,11],[37,12,37,13],[114,12,114,13],[33,10,33,11],[33,12,33,13],[38,1,38,2],[38,4,38,5],[38,6,38,7],[38,8,38,9],[38,10,38,11],[38,12,38,13],[37,4,37,5],[37,6,37,7],[39,1,39,2],[39,4,39,5],[39,6,39,7],[41,1,41,3],[41,4,41,5],[41,6,41,7],[41,8,41,9],[94,8,94,9],[109,1,109,2],[109,4,109,5],[104,2,104,13],[42,8,42,9],[42,10,42,11],[109,6,109,7],[109,8,109,9],[109,10,109,11],[110,6,110,7],[110,8,110,9],[117,4,117,5],[103,1,103,2],[103,4,103,5],[103,6,103,7],[103,8,103,9],[103,10,103,11],[108,4,108,5],[108,6,108,7],[108,8,108,9],[108,10,108,11],[107,4,107,5],[107,6,107,7],[114,4,114,5],[114,8,114,9],[114,10,114,11],[117,6,117,7],[124,4,124,5],[124,6,124,7],[124,8,124,9],[124,10,124,11],[123,6,123,7],[125,8,125,9],[125,10,125,11],[141,4,141,5],[141,6,141,7],[141,8,141,9],[141,10,141,11],[127,6,127,7],[127,4,127,5],[129,2,129,13],[125,4,125,5],[125,6,125,7],[126,10,126,11],[141,12,141,13],[134,12,134,13],[134,4,134,5],[134,6,134,7],[134,8,134,9],[134,10,134,11],[136,4,136,5],[136,6,136,7],[136,8,136,9],[136,10,136,11],[137,4,137,5],[137,6,137,7],[137,8,137,9],[137,10,137,11],[137,12,137,13],[140,8,140,9],[140,10,140,11],[140,6,140,7],[189,12,189,13],[191,4,191,5],[192,4,192,5],[191,6,191,7],[191,8,191,9],[192,6,192,7],[42,4,42,5],[42,6,42,7],[43,4,43,5],[43,6,43,7],[44,4,44,5],[44,6,44,7],[132,4,132,5],[132,6,132,7],[191,10,191,11],[191,12,191,13],[138,8,138,9],[138,10,138,11],[138,12,138,13],[187,8,187,9],[109,12,109,13],[110,10,110,11],[111,2,111,13],[110,12,110,13],[137,15,137,19],[81,8,81,9],[81,10,81,11],[82,8,82,9],[82,10,82,11],[85,8,85,9],[85,10,85,11],[86,8,86,9],[86,10,86,11],[89,8,89,9],[89,10,89,11],[136,12,136,13],[132,8,132,9],[132,10,132,11],[94,15,95,19],[107,8,107,9],[111,15,111,19],[107,10,107,11],[107,12,107,13],[136,15,136,19],[122,8,122,9],[108,12,108,13],[132,12,132,13],[122,10,122,11],[303,15,306,19],[307,15,307,19],[87,10,87,11],[45,12,45,13],[46,4,46,5],[46,6,46,7],[46,8,46,9],[115,15,120,19],[119,4,119,5],[119,6,119,7],[119,8,119,9],[119,10,119,11],[120,4,120,5],[120,6,120,7],[120,8,120,9],[120,10,120,11],[117,10,117,11],[118,4,118,5],[77,15,77,19],[140,12,140,13],[138,4,138,5],[138,6,138,7],[140,4,140,5],[192,12,192,13],[267,15,274,19],[194,2,194,13],[193,4,193,5],[193,6,193,7],[193,8,193,9],[193,10,193,11],[202,15,208,19],[208,4,208,5],[208,6,208,7],[208,8,208,9],[209,4,209,5],[209,6,209,7],[209,8,209,9],[206,4,206,5],[251,15,252,19],[254,16,254,19],[214,15,216,19],[213,10,213,11],[214,4,214,5],[214,6,214,7],[214,8,214,9],[193,12,193,13],[214,10,214,11],[203,4,203,5],[337,13,337,16],[338,13,338,16],[355,14,355,17],[356,14,356,17],[353,1,355,3],[353,4,354,5],[353,6,354,7],[353,8,354,9],[353,10,354,10]]}
[null,null,null,null,null,null,null,null,null,null,null,null,null,null,null,null,null,null,null,null,null,null,null,null,null,null,null,null,null,null,null,null,null,null,null,null,null,null,null,"List of Crops","Seedlings density ","Plant density ","Lifespan of plantation",null,"Crop-residues"]
[null,{"$f":"title2","v":"BEFS Rapid Appraisal"},null,null,null,null,null,null,null,null,null,null,null,null,null,null,null,null,null,null,null,null,null,null,null,null,null,null,null,null,null,null,null,null,null,null,null,null,null,"Select a crop"," -","-","-",null,"Barley-straw","Select a crop",null,null,1,null,"Select location"]
[null,{"$f":"title3","v":"Data Collection"},null,null,null,null,null,null,null,null,null,null,null,null,null,null,null,null,null,null,null,null,null,null,null,null,null,null,null,null,null,null,null,null,null,null,null,null,1,"Barley"," -"," -"," -",null,"Cacao-pods","barley",null,null,2,1,"field - spread"]
[null,null,null,null,null,null,null,null,null,null,null,null,null,null,null,null,null,null,null,null,null,null,null,null,null,null,null,null,null,null,null,null,null,null,null,null,null,null,2,"Cacao","-",1333,20,null,"Cassava-stalk","cacao",null,null,3,2,"field - collected"]
[null,null,null,null,null,null,null,null,null,null,null,null,null,null,null,null,null,null,null,null,null,null,null,null,null,null,null,null,null,null,null,null,null,null,null,null,null,null,3,"Cassava",10000," -"," -",null,"Coconut-fronds","cassava",null,null,4,3,"processing plant"]
[]
[]
[]
[null,{"$f":"title6","v":"Data collection area"},null,{"$f":"title9","v":"AGRICULTURE"},null,null,null,null,null,null,null,null,null,null,null,null,null,null,null,null,null,null,null,null,null,null,null,null,null,null,null,null,null,null,null,null,null,null,4,"Coconut"," -",143,20,null,"Coconut-husk","coconut",null,null,5]
[null,{"$f":"title7","v":"Sections of the data collection sheet:"},null,{"$f":"title10","v":"1. Crop production, 2. Crop budget, 3. Crop residues, 4. Livestock residues, 5. Product prices"},null,null,null,null,null,null,null,null,null,null,null,null,null,null,null,null,null,null,null,null,null,null,null,null,null,null,null,null,null,null,null,null,null,null,5,"Coffee"," -",3300,20,null,"Coconut-shell","coffee",null,null,6,null,"List of residue types"]
[null,{"$f":"title8","v":"BEFS RA use: "},null,{"$f":"title11","v":"Section 1: Crop production collects data for use in the CROP PRODUCTION TOOL "},null,null,null,null,null,null,null,null,null,null,null,null,null,null,null,null,null,null,null,null,null,null,null,null,null,null,null,null,null,null,null,null,null,null,6,"Cotton"," -"," -"," -",null,"Coffee-husk","cotton",null,null,7,"1-1",{"$error":"#N/A"}]
[null,null,null,{"$f":"title12","v":"Section 2: Crop budget collects data for use in the CROP BUDGET TOOL, BRIQUETTES TOOL, PELLETS TOOL, CHARCOAL TOOL, COMBUSTION TOOL, GASIFICATION TOOL, CHP (COGENERATION) TOOL"},null,null,null,null,null,null,null,null,null,null,null,null,null,null,null,null,null,null,null,null,null,null,null,null,null,null,null,null,null,null,null,null,null,null,7,"Groundnut"," -"," -"," -",null,"Cotton-hull","groundnut",null,null,8,"1-2",{"$error":"#N/A"}]
[null,null,null,{"$f":"title13","v":"Section 3: Crop residues collects data for use in the CROP RESIDUES TOOL "},null,null,null,null,null,null,null,null,null,null,null,null,null,null,null,null,null,null,null,null,null,null,null,null,null,null,null,null,null,null,null,null,null,null,8,"Jatropha"," -",1600,20,null,"Cotton-stalk","maize",null,null,9,"1-3",{"$error":"#N/A"}]
[null,null,null,{"$f":"title14","v":"Section 4: Livestock residues collects data for use in the LIVESTOCK RESIDUES TOOL "},null,null,null,null,null,null,null,null,null,null,null,null,null,null,null,null,null,null,null,null,null,null,null,null,null,null,null,null,null,null,null,null,null,null,9,"Maize"," -"," -"," -",null,"Groundnut-husk","millet",null,null,10,"2-1",{"$error":"#N/A"}]
[null,null,null,{"$f":"title15","v":"Section 5: Other product prices collects data for use in the BRIQUETTES TOOL, PELLETS TOOL"},null,null,null,null,null,null,null,null,null,null,null,null,null,null,null,null,null,null,null,null,null,null,null,null,null,null,null,null,null,null,null,null,null,null,10,"Millet"," -"," -"," -",null,"Maize-cob","oat",null,null,11,"2-2",{"$error":"#N/A"}]
[null,null,null,null,null,null,null,null,null,null,null,null,null,null,null,null,null,null,null,null,null,null,null,null,null,null,null,null,null,null,null,null,null,null,null,null,null,null,11,"Oat"," -"," -"," -",null,"Maize-husk","oilpalm",null,null,12,"2-3",{"$error":"#N/A"}]
[null,{"$f":"title16","v":"Country:"},null,null,null,null,null,null,null,null,null,null,null,{"$f":"title18","v":"Focal person:"},null,null,null,null,null,null,null,null,null,null,null,null,null,null,null,null,null,null,null,null,null,null,null,null,12,"Oil palm"," -",143,20,null,"Maize-stover","rice",null,null,13,"3-1",{"$error":"#N/A"}]
[null,{"$f":"title17","v":"USD currency exchange rate:"},null,null,null,null,null,null,null,null,null,null,null,{"$f":"title19","v":"Date:"},null,null,null,null,null,null,null,null,null,null,null,null,null,null,null,null,null,null,null,null,null,null,null,null,13,"Potato",50000," - "," - ",null,"Millet-straw","rye",null,null,14,"3-2",{"$error":"#N/A"}]
[null,null,null,null,null,null,null,null,null,null,null,null,null,null,null,null,null,null,null,null,null,null,null,null,null,null,null,null,null,null,null,null,null,null,null,null,null,null,14,"Rapeseed"," - "," - "," - ",null,"Oat-straw","sorghum",null,null,15,"3-3",{"$error":"#N/A"}]
[]
[null,{"$f":"title20","v":"1.       Crop production                                                                                                                                                                (BEFS RA tool: Crop Production)"},null,null,null,null,null,null,null,null,null,null,null,null,null,null,null,null,null,null,null,null,null,null,null,null,null,null,null,null,null,null,null,null,null,null,null,null,15,"Rice"," - "," - "," - ",null,"Oilpalm-empty bunches","soybean",null,null,16,"4-1",{"$error":"#N/A"}]
[null,null,null,null,null,null,null,null,null,null,null,null,null,null,null,null,null,null,null,null,null,null,null,null,null,null,null,null,null,null,null,null,null,null,null,null,null,null,16,"Rye"," - "," - "," - ",null,"Oilpalm-fronds","sugarcane",null,null,17,"4-2",{"$error":"#N/A"}]
[null,{"$f":"title21","v":"Data required"},null,null,null,null,null,null,null,null,null,null,null,null,null,{"$f":"title22","v":"Instructions and explanatory notes"},null,null,null,null,null,null,null,null,null,null,null,null,null,null,null,null,null,null,null,null,null,null,17,"Sorghum"," - "," - "," - ",null,"Oilpalm-shell","wheat",null,null,18,"4-3",{"$error":"#N/A"}]
[null,null,null,null,null,null,null,null,null,null,null,null,null,null,null,null,null,null,null,null,null,null,null,null,null,null,null,null,null,null,null,null,null,null,null,null,null,null,18,"Soybean"," - "," - "," - ",null,"Rice-straw",null,"Residue type",null,19,null,"Residue type selection"]
[null,{"$f":"title23","v":"1.1        Yields and area of production"},null,null,null,null,null,null,null,null,null,null,null,null,null,null,null,null,null,null,null,null,null,null,null,null,null,null,null,null,null,null,null,null,null,null,null,null,19,"Sugarbeet"," - "," - "," - ",null,"Rice-husk","1-1",{"$f":"IF($E$215=\"Select a crop\",\"\",IF(HLOOKUP($E$215,$AY$31:$BO$34,2,FALSE)=0,\"\",HLOOKUP($E$215,$AY$31:$BO$34,2,FALSE)))","v":{"$error":"#N/A"}},null,20,"1",{"$f":"E216","v":0}]
[null,null,null,{"$f":"title24","v":"Unit"},{"$f":"title25","v":"Crop 1"},null,{"$f":"title26","v":"Crop 2"},null,{"$f":"title27","v":"Crop 3"},null,{"$f":"title28","v":"Crop 4"},null,{"$f":"title29","v":"Crop 5"},null,null,{"$f":"title48","v":"Table content:  "},null,null,null,null,null,null,null,null,null,null,null,null,null,null,null,null,null,null,null,null,null,null,20,"Sugarcane"," - ",15000,5,null,"Rye-straw","1-2",{"$f":"IF($E$215=\"Select a crop\",\"\",IF(HLOOKUP($E$215,$AY$31:$BO$34,3,FALSE)=0,\"\",HLOOKUP($E$215,$AY$31:$BO$34,3,FALSE)))","v":{"$error":"#N/A"}},null,21,"2",{"$f":"G216","v":0}]
[null,{"$f":"title30","v":"Selection of the crops"},null,null,null,null,null,null,null,null,null,null,null,null,null,{"$f":"title49","v":"This table collects information on yields and production of crops selected as potential feedstock for liquid biofuels. Crop 1 and 2 can be selected for biodiesel production, crop 3 and 4 for ethanol, finally crop 5 is dedicated to one crop currently grown (e.g. cash crop) that would be replaced with a selected bioenergy crop. After selecting the crops, provide annual yields and production data for the last years. The following crops can be analysed: "},null,null,null,null,null,null,null,null,null,null,null,null,null,null,null,null,null,null,null,null,null,null,21,"Sunflower"," -"," -"," - ",null,"Sorghum-straw/stalk","1-3",{"$f":"IF($E$215=\"Select a crop\",\"\",IF(HLOOKUP($E$215,$AY$31:$BO$34,4,FALSE)=0,\"\",HLOOKUP($E$215,$AY$31:$BO$34,4,FALSE)))","v":{"$error":"#N/A"}},null,22,"3",{"$f":"I216","v":0}]
[null,{"$f":"title31","v":"Annual yield for the last years:"},null,null,null,null,null,null,null,null,null,null,null,null,null,null,null,null,null,null,null,null,null,null,null,null,null,null,null,null,null,null,null,null,null,null,null,null,22,"Tea"," - ",15000,20,null,"Soybean-straw",null,"Residue type",null,23,"4",{"$f":"K216","v":0}]
[null,{"$f":"title32","v":"Year 1:"},null,"t/ha",null,null,null,null,null,null,null,null,null,null,null,null,null,null,null,null,null,null,null,null,null,null,null,null,null,null,null,null,null,null,null,null,null,null,23,"Tobacco",15000," - "," - ",null,"Soybean-pods","2-1",{"$f":"IF($G$215=\"Select a crop\",\"\",IF(HLOOKUP($G$215,$AY$31:$BO$34,2,FALSE)=0,\"\",HLOOKUP($G$215,$AY$31:$BO$34,2,FALSE)))","v":{"$error":"#N/A"}},null,24]
[null,{"$f":"title33","v":"Year 2:"},null,"t/ha",null,null,null,null,null,null,null,null,null,null,null,null,null,null,null,null,null,null,null,null,null,null,null,null,null,null,null,null,null,null,null,null,null,null,24,"Wheat"," - ",null,null,null,"Sugarcane-tops/leaves","2-2",{"$f":"IF($G$215=\"Select a crop\",\"\",IF(HLOOKUP($G$215,$AY$31:$BO$34,3,FALSE)=0,\"\",HLOOKUP($G$215,$AY$31:$BO$34,3,FALSE)))","v":{"$error":"#N/A"}},null,25,null,"CROP - RESIDUE COMBINATION LIST"]
[null,{"$f":"title34","v":"Year 3:"},null,"t/ha",null,null,null,null,null,null,null,null,null,null,null,null,null,null,null,null,null,null,null,null,null,null,null,null,null,null,null,null,null,null,null,null,null,null,25,"Yams",15000," - "," - ",null,"Sugarcane-bagasse","2-3",{"$f":"IF($G$215=\"Select a crop\",\"\",IF(HLOOKUP($G$215,$AY$31:$BO$34,4,FALSE)=0,\"\",HLOOKUP($G$215,$AY$31:$BO$34,4,FALSE)))","v":{"$error":"#N/A"}},null,26,null,"barley","cacao","cassava","coconut","coffee","cotton","groundnut","maize","millet","oat","oilpalm","rice","rye","sorghum","soybean","sugarcane","wheat"]
[null,{"$f":"title35","v":"Year 4:"},null,"t/ha",null,null,null,null,null,null,null,null,null,null,null,{"$f":"title50","v":"barley, cacao, cassava, coconut, coffee, cotton, groundnut, jatropha, maize, millet, oat, oil palm, potato, rapeseed, rice, rye, sorghum, soybean, sugar beet, sugarcane, sunflower, tea, tobacco, wheat, yam.   "},null,null,null,null,null,null,null,null,null,null,null,null,null,null,null,null,null,null,null,null,null,null,null,null,null,null,null,null,"Wheat-straw",null,"Residue type",null,27,null,"straw","pods","stalk","fronds","husk","hull","husk","cob","straw","straw","empty bunches","straw","straw","straw/stalk","straw","tops/leaves","straw"]
[null,{"$f":"title36","v":"Year 5:"},null,"t/ha",null,null,null,null,null,null,null,null,null,null,null,null,null,null,null,null,null,null,null,null,null,null,null,null,null,null,null,null,null,null,null,null,null,null,null,null,null,null,null,null,null,null,null,null,null,null,0,0,0,"husk",0,"stalk",0,"husk",0,0,"fronds","husk",0,0,"pods","baggase",0]
[null,{"$f":"title37","v":"Year 6:"},null,"t/ha",null,null,null,null,null,null,null,null,null,null,null,null,null,null,null,null,null,null,null,null,null,null,null,null,null,null,null,null,null,null,null,null,null,null,null,null,null,null,null,null,null,"3-1",{"$f":"IF($I$215=\"Select a crop\",\"\",IF(HLOOKUP($I$215,$AY$31:$BO$34,2,FALSE)=0,\"\",HLOOKUP($I$215,$AY$31:$BO$34,2,FALSE)))","v":{"$error":"#N/A"}},null,28,null,0,0,0,"shell",0,0,0,"stover",0,0,"shell",0,0,0,0,0,0]
[null,{"$f":"title38","v":"Year 7:"},null,"t/ha",null,null,null,null,null,null,null,null,null,null,null,null,null,null,null,null,null,null,null,null,null,null,null,null,null,null,null,null,null,null,null,null,null,null,null,null,null,null,null,null,null,"3-2",{"$f":"IF($I$215=\"Select a crop\",\"\",IF(HLOOKUP($I$215,$AY$31:$BO$34,3,FALSE)=0,\"\",HLOOKUP($I$215,$AY$31:$BO$34,3,FALSE)))","v":{"$error":"#N/A"}}]
[null,{"$f":"title39","v":"Year 8:"},null,"t/ha",null,null,null,null,null,null,null,null,null,null,null,null,null,null,null,null,null,null,null,null,null,null,null,null,null,null,null,null,null,null,null,null,null,null,null,null,null,null,null,null,null,"3-3",{"$f":"IF($I$215=\"Select a crop\",\"\",IF(HLOOKUP($I$215,$AY$31:$BO$34,4,FALSE)=0,\"\",HLOOKUP($I$215,$AY$31:$BO$34,4,FALSE)))","v":{"$error":"#N/A"}}]
[null,{"$f":"title40","v":"Year 9:"},null,"t/ha",null,null,null,null,null,null,null,null,null,null,null,{"$f":"title51","v":"Information regarding use within the tool:                                  "},null,null,null,null,null,null,null,null,null,null,null,null,null,null,null,null,null,null,null,null,null,null,null,null,null,null,null,null,null,null,"Residue type"]
[null,{"$f":"title41","v":"Year 10:"},null,"t/ha",null,null,null,null,null,null,null,null,null,null,null,{"$f":"title52","v":"Within the Crop Production Tool, up to four crops can be analysed at the same time and they are selected from a dropdown list. Crop 5 is used within the Change of Crops option. The dropdown list includes 25 most important food and cash crops, among which some are suitable for production of liquid biofuels: coconut, jatropha, rapeseed, soybean and sunflower for production of straight vegetable oil and biodiesel, and barley, cassava, maize, sugarbeet, sugarcane for production of ethanol."},null,null,null,null,null,null,null,null,null,null,null,null,null,null,null,null,null,null,null,null,null,null,null,null,null,null,null,null,null,"4-1",{"$f":"IF($K$215=\"Select a crop\",\"\",IF(HLOOKUP($K$215,$AY$31:$BO$34,2,FALSE)=0,\"\",HLOOKUP($K$215,$AY$31:$BO$34,2,FALSE)))","v":{"$error":"#N/A"}}]
[null,{"$f":"title42","v":"N° of harvests/year"},null,"n.",null,null,null,null,null,null,null,null,null,null,null,null,null,null,null,null,null,null,null,null,null,null,null,null,null,null,null,null,null,null,null,null,null,null,null,null,null,null,null,null,null,"4-2",{"$f":"IF($K$215=\"Select a crop\",\"\",IF(HLOOKUP($K$215,$AY$31:$BO$34,3,FALSE)=0,\"\",HLOOKUP($K$215,$AY$31:$BO$34,3,FALSE)))","v":{"$error":"#N/A"}}]
[null,{"$f":"title43","v":"Average yield based on large scale production"},null,"t/ha",null,null,null,null,null,null,null,null,null,null,null,null,null,null,null,null,null,null,null,null,null,null,null,null,null,null,null,null,null,null,null,null,null,null,null,null,null,null,null,null,null,"4-3",{"$f":"IF($K$215=\"Select a crop\",\"\",IF(HLOOKUP($K$215,$AY$31:$BO$34,4,FALSE)=0,\"\",HLOOKUP($K$215,$AY$31:$BO$34,4,FALSE)))","v":{"$error":"#N/A"}}]
[null,{"$f":"title44","v":"Average yield based on small scale production"},null,"t/ha"]
[null,{"$f":"title45","v":"Annual production for the last years:"},null,null,null,null,null,null,null,null,null,null,null,null,null,null,null,null,null,null,null,null,null,null,null,null,null,null,null,null,null,null,null,null,null,null,null,null,null,null,null,null,null,null,"Select a fertilizer"]
[null,{"$f":"title32","v":"Year 1:"},null,{"$f":"title46","v":"t/year"},null,null,null,null,null,null,null,null,null,null,null,null,null,null,null,null,null,null,null,null,null,null,null,null,null,null,null,null,null,null,null,null,null,null,null,null,null,null,null,null,"Ammonia"]
[null,{"$f":"title33","v":"Year 2:"},null,"t/year",null,null,null,null,null,null,null,null,null,null,null,null,null,null,null,null,null,null,null,null,null,null,null,null,null,null,null,null,null,null,null,null,null,null,null,null,null,null,null,null,"Urea"]
[null,{"$f":"title34","v":"Year 3:"},null,"t/year",null,null,null,null,null,null,null,null,null,null,null,{"$f":"title77","v":"Sources:"},null,null,null,null,null,null,null,null,null,null,null,null,null,null,null,null,null,null,null,null,null,null,null,null,null,null,null,null,"Ammonium nitrate"]
[null,{"$f":"title35","v":"Year 4:"},null,"t/year",null,null,null,null,null,null,null,null,null,null,null,null,null,null,null,null,null,null,null,null,null,null,null,null,null,null,null,null,null,null,null,null,null,null,null,null,null,null,null,null,"Select a fertilizer"]
[null,{"$f":"title36","v":"Year 5:"},null,"t/year",null,null,null,null,null,null,null,null,null,null,null,null,null,null,null,null,null,null,null,null,null,null,null,null,null,null,null,null,null,null,null,null,null,null,null,null,null,null,null,null,"Phosphate rock"]
[null,{"$f":"title37","v":"Year 6:"},null,"t/year",null,null,null,null,null,null,null,null,null,null,null,null,null,null,null,null,null,null,null,null,null,null,null,null,null,null,null,null,null,null,null,null,null,null,null,null,null,null,null,null,"MAP"]
[null,{"$f":"title38","v":"Year 7:"},null,"t/year",null,null,null,null,null,null,null,null,null,null,null,null,null,null,null,null,null,null,null,null,null,null,null,null,null,null,null,null,null,null,null,null,null,null,null,null,null,null,null,null,"DAP"]
[null,{"$f":"title39","v":"Year 8:"},null,"t/year",null,null,null,null,null,null,null,null,null,null,null,null,null,null,null,null,null,null,null,null,null,null,null,null,null,null,null,null,null,null,null,null,null,null,null,null,null,null,null,null,"TSP"]
[null,{"$f":"title40","v":"Year 9:"},null,"t/year",null,null,null,null,null,null,null,null,null,null,null,null,null,null,null,null,null,null,null,null,null,null,null,null,null,null,null,null,null,null,null,null,null,null,null,null,null,null,null,null,"Select a fertilizer"]
[null,{"$f":"title41","v":"Year 10:"},null,"t/year",null,null,null,null,null,null,null,null,null,null,null,null,null,null,null,null,null,null,null,null,null,null,null,null,null,null,null,null,null,null,null,null,null,null,null,null,null,null,null,null,"Potassium chloride"]
[null,{"$f":"title47","v":"Sources and year(s) of data publication: "},null,null,null,null,null,null,null,null,null,null,null,null,null,null,null,null,null,null,null,null,null,null,null,null,null,null,null,null,null,null,null,null,null,null,null,null,null,null,null,null,null,null,"Potassium sulphate"]
[]
[]
[]
[null,"1.2 Land use area"]
[]
[null,{"$f":"title919","v":"Land use class"},null,"Unit: 1000 ha"]
[null,{"$f":"title694","v":"Forest area"}]
[null,{"$f":"title692","v":"Agricultural area"}]
[null,{"$f":"title693","v":"Arable land"}]
[null,{"$f":"title92","v":"Permanent crops"}]
[null,{"$f":"title920","v":"Permanent meadows and pastures"}]
[null,{"$f":"title921","v":"Other land"}]
[]
[null,{"$f":"title77","v":"Sources:"}]
[]
[null,{"$f":"title53","v":"2.       Crop budget                                                                                                                                                                               (BEFS RA tool: Crop Budget)"}]
[]
[null,{"$f":"title21","v":"Data required"},null,null,null,null,null,null,null,null,null,null,null,null,null,{"$f":"title22","v":"Instructions and explanatory notes"}]
[]
[null,{"$f":"title54","v":"2.1       General data"}]
[null,null,null,null,null,null,null,null,{"$f":"title74","v":"Unit"},null,{"$f":"title76","v":"Unit Price"},null,null,null,null,{"$f":"title48","v":"Table content:  "}]
[null,{"$f":"title55","v":"Machinery rental rate per hour (average rate for agricultural operations)"},null,null,null,null,null,null,{"$f":"title75","v":"USD/hour"},null,null,null,null,null,null,{"$f":"title78","v":"This table collects information on rental costs and agrochemicals unit price."}]
[null,{"$f":"title56","v":"Annual farm land rental (country average)"},null,null,null,null,null,null,"USD/ha"]
[null,{"$f":"title57","v":"Agrochemical prices (without subsidies)"},null,null,null,null,null,null,null,null,null,null,null,null,null,{"$f":"title79","v":"Information regarding use within the tool:       "}]
[null,{"$f":"title58","v":"Nitrogen fertilizers"},null,null,null,{"$f":"title65","v":"Ammonia"},null,null,"USD/t",null,null,null,null,null,null,{"$f":"title80","v":"Selection of fertilizers and related unit price expressed in USD/ton has to be provided by the user at least for each category of fertilizer (Nitrogen, Phosphate, Potassium and NPK complex fertilizers). This data is used in the BEFS RA Crop Budget Tool."}]
[null,null,null,null,null,{"$f":"title66","v":"Urea"},null,null,"USD/t",null,null,null,null,null,null,{"$f":"title81","v":"Notes:"}]
[null,null,null,null,null,{"$f":"title67","v":"Ammonium nitrate"},null,null,"USD/t",null,null,null,null,null,null,{"$f":"title82","v":"[1]Enter nutrients composition of NPK complex (e.g. 18:15:18) and its price per ton."}]
[null,{"$f":"title59","v":"Phosphate fertilizers"},null,null,null,{"$f":"title68","v":"Phosphate rock"},null,null,"USD/t"]
[null,null,null,null,null,{"$f":"title69","v":"MAP"},null,null,"USD/t",null,null,null,null,null,null,{"$f":"title83","v":"[2]Enter the name, unit and unit price for main agrochemicals (i.e. herbice, fungicide, insecticide) used in the selected crop production."}]
[null,null,null,null,null,{"$f":"title70","v":"DAP"},null,null,"USD/t",null,null,null,null,null,null,{"$f":"title77","v":"Sources:"}]
[null,null,null,null,null,{"$f":"title71","v":"TSP"},null,null,"USD/t"]
[null,{"$f":"title60","v":"Potassium fertilizers"},null,null,null,{"$f":"title72","v":"Potassium chloride"},null,null,"USD/t"]
[null,null,null,null,null,{"$f":"title73","v":"Potassium sulphate"},null,null,"USD/t"]
[null,{"$f":"title61","v":"NPK complex fertilizer[1]"},null,null,null,null,null,null,"USD/t"]
[null,{"$f":"title62","v":"1. Other agrochemical[2] (used in crop production):"}]
[null,{"$f":"title63","v":"2. Other agrochemical:"}]
[null,{"$f":"title64","v":"3. Other agrochemical:"}]
[null,{"$f":"title77","v":"Sources:"}]
[]
[null,{"$f":"title84","v":"2.2        Crop specific data"}]
[null,{"$f":"title85","v":"(Enter data when applicable to annual or permanent crop)"},null,{"$f":"title24","v":"Unit"},{"$f":"title25","v":"Crop 1"},null,{"$f":"title26","v":"Crop 2"},null,{"$f":"title27","v":"Crop 3"},null,{"$f":"title28","v":"Crop 4"},null,{"$f":"title29","v":"Crop 5"},null,null,{"$f":"title48","v":"Table content:  "}]
[null,{"$f":"title86","v":"Crop selected"},null,null,null,null,null,null,null,null,null,null,null,null,null,{"$f":"title99","v":"This table collects information related to annual and permanent crops. Some data are provided as default values integrated in the database of BEFS RA Crop Budget Tool (i.e. planting density, lifespan of plantation)."}]
[null,{"$f":"title87","v":"Farm-gate price of feedstock"},null,{"$f":"title96","v":"USD/ton"}]
[null,{"$f":"title88","v":"Annual crops"},null,null,null,null,null,null,null,null,null,null,null,null,null,{"$f":"title51","v":"Information regarding use within the tool:                                  "}]
[null,{"$f":"title89","v":"Seed price"},null,"USD/kg",null,null,null,null,null,null,null,null,null,null,null,{"$f":"title100","v":"This data is used in the BEFS RA Crop Budget Tool."}]
[null,{"$f":"title778","v":"Seedlings/cuttings density (default value of the tool)"},"Seedlings/cuttings density (default value)",{"$f":"title97","v":"plants/ha"},null,null,null,null,null,null,null,null,null,null,null,{"$f":"title81","v":"Notes:"}]
[null,{"$f":"title779","v":"Seedlings/cuttings (total cost per hectare)"},"Seedlings/cuttings (total cost per hectare)","USD/ha",null,null,null,null,null,null,null,null,null,null,null,{"$f":"title101","v":"[3]Cost for establishing permanent plantation includes: land clearing, preparation, planting and material costs per hectare."}]
[null,{"$f":"title92","v":"Permanent crops"},null,null,null,null,null,null,null,null,null,null,null,null,null,{"$f":"title77","v":"Sources:"}]
[null,{"$f":"title93","v":"Plant density\n(default value of the tool)"},null,{"$f":"title97","v":"plants/ha"}]
[null,{"$f":"title94","v":"Cost for establishing plantation[3]"},null,"USD/ha"]
[null,{"$f":"title95","v":"Lifespan of plantation\n(default value of the tool)"},null,{"$f":"title98","v":"years"}]
[null,{"$f":"title77","v":"Sources:"}]
[]
[null,{"$f":"title137","v":"2.3.1        Yields per hectare"}]
[null,null,null,{"$f":"title24","v":"Unit"},{"$f":"title25","v":"Crop 1"},null,{"$f":"title26","v":"Crop 2"},null,{"$f":"title27","v":"Crop 3"},null,{"$f":"title28","v":"Crop 4"},null,{"$f":"title29","v":"Crop 5"},null,null,{"$f":"title48","v":"Table content:  "}]
[null,{"$f":"title86","v":"Crop selected"},null,null,null,null,null,null,null,null,null,null,null,null,null,{"$f":"title139","v":"This table collects information on yields under rain-fed condition for the selected crops used as feedstock for liquid biofuels.   "}]
[null,{"$f":"title138","v":"Country average yield under rain-fed condition"},null,"t/ha"]
[null,{"$f":"title780","v":"Country average yield under rirrigation condition"},null,"t/ha"]
[null,{"$f":"title77","v":"Sources:"},null,null,null,null,null,null,null,null,null,null,null,null,null,{"$f":"title51","v":"Information regarding use within the tool:                                  "}]
[null,null,null,null,null,null,null,null,null,null,null,null,null,null,null,{"$f":"title140","v":"This data is used in the BEFS RA Crop Budget Tool."}]
[null,{"$f":"title673","v":"2.3.2        Irrigation"}]
[null,null,null,{"$f":"title24","v":"Unit"},{"$f":"title25","v":"Crop 1"},null,{"$f":"title26","v":"Crop 2"},null,{"$f":"title27","v":"Crop 3"},null,{"$f":"title28","v":"Crop 4"},null,{"$f":"title29","v":"Crop 5"}]
[null,{"$f":"title86","v":"Crop selected"}]
[null,{"$f":"title781","v":"Water supply"},null,"-"]
[null,{"$f":"title782","v":"Crop water deficit"},null,{"$f":"title793","v":"mm/yr"}]
[null,{"$f":"title783","v":"Water source"},null,"-"]
[null,{"$f":"title784","v":"Average depth"},null,"m"]
[null,{"$f":"title785","v":"Irrigation system"}]
[null,{"$f":"title786","v":"Pumping system"},null,null,null,null,null,null,null,null,null,null,null,null,null,{"$f":"title77","v":"Sources:"}]
[null,{"$f":"title787","v":"Power unit source"}]
[null,{"$f":"title788","v":"Irrigated Area"},null,"Ha"]
[null,{"$f":"title789","v":"Investment"},null,"USD"]
[null,{"$f":"title790","v":"Average lifespan"},null,{"$f":"title98","v":"years"}]
[null,{"$f":"title791","v":"Lubricants for engine water pump "},null,"%"]
[null,{"$f":"title792","v":"Maintenance of irrigation equipment"},null,"%"]
[]
[null,{"$f":"title77","v":"Sources:"}]
[]
[null,{"$f":"title141","v":"2.4        Inputs (amount per hectare)"}]
[null,null,null,{"$f":"title24","v":"Unit"},{"$f":"title25","v":"Crop 1"},null,{"$f":"title26","v":"Crop 2"},null,{"$f":"title27","v":"Crop 3"},null,{"$f":"title28","v":"Crop 4"},null,{"$f":"title29","v":"Crop 5"},null,null,{"$f":"title48","v":"Table content:  "}]
[null,{"$f":"title86","v":"Crop selected"},null,null,null,null,null,null,null,null,null,null,null,null,null,{"$f":"title152","v":"This table collects information on the typical amount of inputs per hectare for each selected crop under rainfed condition.                                \n                                                                     \n                                                                                     "}]
[null,{"$f":"title142","v":"Seed"},null,"kg/ha"]
[null,{"$f":"title143","v":"Fertilizer nutrients[4]"}]
[null,{"$f":"title144","v":"Nitrogen"},null,"kg/ha",null,null,null,null,null,null,null,null,null,null,null,{"$f":"title51","v":"Information regarding use within the tool:                                  "}]
[null,{"$f":"title145","v":"Phosphorus"},null,"kg/ha",null,null,null,null,null,null,null,null,null,null,null,{"$f":"title153","v":"This data is used in the BEFS RA Crop Budget Tool."}]
[null,{"$f":"title146","v":"Potassium"},null,"kg/ha",null,null,null,null,null,null,null,null,null,null,null,{"$f":"title81","v":"Notes:"}]
[null,{"$f":"title147","v":"Other agrochemicals[5]"},null,null,null,null,null,null,null,null,null,null,null,null,null,{"$f":"title154","v":"[4]Enter types and amount of fertilizers applied per hectare for each crop based on the average country representative data. Be sure that unit prices of other agrochemicals are entered in the table 2.1. "}]
[null,"Herbicide",null,null,null,null,null,null,null,null,null,null,null,null,null,{"$f":"title155","v":"[5]Define the types, unit and amount of agrochemicals (i.e. herbicides, pesticides) applied per hectare for each crop based on the average country representative data. Cost of other agrochemicals applied per hectare can be estimated as % of total cost of fertilizer nutrients."}]
[null,"Insecticide"]
[null,{"$f":"title151","v":"Cost of other agrochemicals"},null,null,null,null,null,null,null,null,null,null,null,null,null,{"$f":"title77","v":"Sources:"}]
[]
[null,{"$f":"title77","v":"Sources:"}]
[]
[]
[null,{"$f":"title156","v":"2.5         Labour (amount per hectare)"}]
[null,null,null,null,{"$f":"title25","v":"Crop 1"},null,{"$f":"title26","v":"Crop 2"},null,{"$f":"title27","v":"Crop 3"},null,{"$f":"title28","v":"Crop 4"},null,{"$f":"title29","v":"Crop 5"},null,null,{"$f":"title48","v":"Table content:  "}]
[null,null,null,{"$f":"title24","v":"Unit"},null,null,null,null,null,null,null,null,null,null,null,{"$f":"title173","v":"This table collects information on the typical amount of labour (manual and machinery) required per hectare for each selected crop under rainfed condition.     "}]
[null,{"$f":"title157","v":"Land preparation\n(only for annual crops)"}]
[null,{"$f":"title158","v":" - Manual "},null,{"$f":"title171","v":"manday/ha"},null,null,null,null,null,null,null,null,null,null,null,{"$f":"title79","v":"Information regarding use within the tool:       "}]
[null,{"$f":"title159","v":" - Machinery "},null,{"$f":"title172","v":"hours/ha"},null,null,null,null,null,null,null,null,null,null,null,{"$f":"title174","v":"The Land preparation and Planting operationlabour data is required only for the annual crops since, for permanent crops, such data is comprised in the cost of establishing plantation (table above of the section 2.2). Other Miscellaneous labour costs per hectare can be expressed in % of total labour costs within the tool. This data is used in the BEFS RA Crop Budget Tool."}]
[null,{"$f":"title160","v":"Planting operation\n(only for annual crops)"}]
[null,{"$f":"title161","v":" - Manual"},null,{"$f":"title171","v":"manday/ha"}]
[null,{"$f":"title162","v":" - Machinery"},null,{"$f":"title172","v":"hours/ha"},null,null,null,null,null,null,null,null,null,null,null,{"$f":"title77","v":"Sources:"}]
[null,{"$f":"title163","v":"Post-planting operation"}]
[null,{"$f":"title164","v":" - Manual"},null,{"$f":"title171","v":"manday/ha"}]
[null,{"$f":"title165","v":" - Machinery"},null,{"$f":"title172","v":"hours/ha"}]
[null,{"$f":"title166","v":"Harvesting "}]
[null,{"$f":"title167","v":" - Manual"},null,{"$f":"title171","v":"manday/ha"}]
[null,{"$f":"title168","v":" - Machinery"},null,{"$f":"title172","v":"hours/ha"}]
[null,{"$f":"title169","v":"Miscellaneous"}]
[null,{"$f":"title170","v":" - Other"},null,"%"]
[null,{"$f":"title77","v":"Sources:"}]
[]
[null,{"$f":"title794","v":"2.6        Crops Storage"}]
[null,null,null,{"$f":"title24","v":"Unit"},{"$f":"title25","v":"Crop 1"},null,{"$f":"title26","v":"Crop 2"},null,{"$f":"title27","v":"Crop 3"},null,{"$f":"title28","v":"Crop 4"},null,{"$f":"title29","v":"Crop 5"},null,null,{"$f":"title48","v":"Table content:  "}]
[null,{"$f":"title86","v":"Crop selected"},null,null,null,null,null,null,null,null,null,null,null,null,null,{"$f":"title797","v":"This table collects information about the storage costs and harvesting season of selected crops determined by the crop calendar of the country"}]
[null,{"$f":"title795","v":"Storage Costs"},null,"USD/t"]
[null,{"$f":"title796","v":"Collection Months Crops"}]
[null,{"$f":"title182","v":" - Collection months"},null,{"$f":"title183","v":"months"},null,null,null,null,null,null,null,null,null,null,null,"Sources:"]
[]
[null,{"$f":"title77","v":"Sources:"}]
[]
[null,{"$f":"title175","v":"2.7         Collection of Residues"}]
[null,null,null,null,{"$f":"title25","v":"Crop 1"},null,{"$f":"title26","v":"Crop 2"},null,{"$f":"title27","v":"Crop 3"},null,{"$f":"title28","v":"Crop 4"},null,{"$f":"title29","v":"Crop 5"},null,null,{"$f":"title48","v":"Table content:  "}]
[null,null,null,{"$f":"title24","v":"Unit"},null,null,null,null,null,null,null,null,null,null,null,{"$f":"title184","v":"This table gathers information on the type of labour (manual and machinery) required per hectare for each selected crop  collected in the field. The average fuel economy will depend on the type of machinery used to collect the residues. The collections months are determined by the crop calendar of the country."}]
[null,{"$f":"title176","v":"Collection type "}]
[null,{"$f":"title177","v":" - Manual "},null,{"$f":"title799","v":"man-h/ha"}]
[null,{"$f":"title178","v":" - Machinery"},null,{"$f":"title172","v":"hours/ha"}]
[null,{"$f":"title798","v":"Collection method"},null,null,null,null,null,null,null,null,null,null,null,null,null,"Sources:"]
[null,{"$f":"title179","v":"Machinery type used for collection"}]
[null,{"$f":"title180","v":" - Average fuel economy"},null,"l/h"]
[null,{"$f":"title800","v":"Collection Months Residues"}]
[null,{"$f":"title182","v":" - Collection months"},null,{"$f":"title183","v":"months"}]
[null,{"$f":"title795","v":"Storage Costs"}]
[null,{"$f":"title795","v":"Storage Costs"},null,"USD/t"]
[null,{"$f":"title856","v":"Market"}]
[null,{"$f":"title801","v":"Market Price"},null,"USD/t"]
[null,{"$f":"title802","v":"Collection Price"}]
[null,{"$f":"title802","v":"Collection Price"},null,"USD/t"]
[null,{"$f":"title803","v":"Baling Cost"},null,"USD/t"]
[null,"Total",null,"USD/t"]
[null,{"$f":"title77","v":"Sources:"}," "]
[]
[null,{"$f":"title102","v":"3.       Crop residues                                                                                                                                                                         (BEFS RA tool: Crop Residues)"}]
[]
[null,{"$f":"title21","v":"Data required"},null,null,null,null,null,null,null,null,null,null,null,null,null,{"$f":"title22","v":"Instructions and explanatory notes"}]
[]
[null,{"$f":"title103","v":"3.1        Crop-residue types included inthe tool"}]
[null,{"$f":"title104","v":"Crop"},{"$f":"title111","v":"Residue "},{"$f":"title104","v":"Crop"},{"$f":"title111","v":"Residue "},null,{"$f":"title104","v":"Crop"},null,{"$f":"title111","v":"Residue "},null,null,null,null,null,null,{"$f":"title48","v":"Table content:  "}]
[null,{"$f":"title105","v":"Barley"},{"$f":"title112","v":"straw"},{"$f":"title119","v":"Groundnut"},{"$f":"title116","v":"husk"},{"$f":"title116","v":"husk"},{"$f":"title124","v":"Rice"},null,{"$f":"title112","v":"straw"},null,null,null,null,null,null,{"$f":"title136","v":"This table provides a list of crop-residue types that can be analysed within BEFS RA tool as feedstock for production of biofuels for heating and cooking (briquettes, pellets and charcoal) and for electricity generation through gasification and direct combustion.  "}]
[null,{"$f":"title106","v":"Cacao"},{"$f":"title113","v":"pods"},{"$f":"title120","v":"Maize"},{"$f":"title130","v":"cob"},null,{"$f":"title124","v":"Rice"},null,{"$f":"title116","v":"husk"},{"$f":"title116","v":"husk"}]
[null,{"$f":"title107","v":"Cassava"},{"$f":"title114","v":"stalk"},{"$f":"title120","v":"Maize"},{"$f":"title116","v":"husk"},{"$f":"title116","v":"husk"},{"$f":"title125","v":"Rye"},null,{"$f":"title112","v":"straw"}]
[null,{"$f":"title108","v":"Coconut"},{"$f":"title115","v":"fronds"},{"$f":"title120","v":"Maize"},{"$f":"title131","v":"stover"},null,{"$f":"title126","v":"Sorghum"},null,{"$f":"title133","v":"straw/stalk"}]
[null,{"$f":"title108","v":"Coconut"},{"$f":"title116","v":"husk"},{"$f":"title121","v":"Millet"},{"$f":"title112","v":"straw"},null,{"$f":"title127","v":"Soybean"},null,{"$f":"title112","v":"straw"}]
[null,{"$f":"title108","v":"Coconut"},{"$f":"title117","v":"shell"},{"$f":"title122","v":"Oat"},{"$f":"title112","v":"straw"},null,{"$f":"title127","v":"Soybean"},null,{"$f":"title113","v":"pods"},{"$f":"title113","v":"pods"}]
[null,{"$f":"title109","v":"Coffee"},{"$f":"title116","v":"husk"},{"$f":"title123","v":"Oilpalm"},{"$f":"title132","v":"empty bunches"},null,{"$f":"title128","v":"Sugarcane"},null,{"$f":"title134","v":"tops/leaves"}]
[null,{"$f":"title110","v":"Cotton"},{"$f":"title118","v":"hull"},{"$f":"title123","v":"Oilpalm"},{"$f":"title115","v":"fronds"},{"$f":"title115","v":"fronds"},{"$f":"title128","v":"Sugarcane"},null,{"$f":"title135","v":"baggase"}]
[null,{"$f":"title110","v":"Cotton"},{"$f":"title114","v":"stalk"},{"$f":"title123","v":"Oilpalm"},{"$f":"title117","v":"shell"},{"$f":"title117","v":"shell"},{"$f":"title129","v":"Wheat"},null,{"$f":"title112","v":"straw"}]
[]
[null,{"$f":"title185","v":"3.2        Crop-residues: yields and area of crop production"}]
[null,null,null,null,{"$f":"title25","v":"Crop 1"},null,{"$f":"title26","v":"Crop 2"},null,{"$f":"title27","v":"Crop 3"},null,{"$f":"title28","v":"Crop 4"},null,null,null,null,{"$f":"title48","v":"Table content:  "}]
[null,{"$f":"title186","v":"Crop (e.g. barley)"},null,null,null,null,null,null,null,null,null,null,null,null,null,{"$f":"title189","v":"This table is used to select crop-residue types which will be analysed. Please note that only the crop-residue combinations listed in the table above can be found in the dropdown lists of Crop Residues Tool, the selection should be done accordingly. "}]
[null,{"$f":"title187","v":"Residue (e.g. straw)"}]
[null,{"$f":"title188","v":"Location of residue generation"}]
[]
[null,{"$f":"title192","v":"3.3        Crop yields and production"}]
[null,{"$f":"title193","v":"Annual yield of the selected crop for the last years:"},null,null,null,null,null,null,null,null,null,null,null,null,null,{"$f":"title48","v":"Table content:  "}]
[null,null,null,{"$f":"title24","v":"Unit"},{"$f":"title25","v":"Crop 1"},null,{"$f":"title26","v":"Crop 2"},null,{"$f":"title27","v":"Crop 3"},null,{"$f":"title28","v":"Crop 4"},null,null,null,null,{"$f":"title190","v":"This table collects information on yields and annual production for the selected crops, e.g. yield and annual produciton of barley. "}]
[null,{"$f":"title86","v":"Crop selected"}]
[null,{"$f":"title32","v":"Year 1:"},null,{"$f":"title46","v":"t/year"}]
[null,{"$f":"title33","v":"Year 2:"},null,"t/year",null,null,null,null,null,null,null,null,null,null,null,{"$f":"title79","v":"Information regarding use within the tool:       "}]
[null,{"$f":"title34","v":"Year 3:"},null,"t/year"]
[null,{"$f":"title35","v":"Year 4:"},null,"t/year"]
[null,{"$f":"title36","v":"Year 5:"},null,"t/year"]
[null,{"$f":"title37","v":"Year 6:"},null,"t/year"]
[null,{"$f":"title38","v":"Year 7:"},null,"t/year"]
[null,{"$f":"title39","v":"Year 8:"},null,"t/year"]
[null,{"$f":"title40","v":"Year 9:"},null,"t/year"]
[null,{"$f":"title41","v":"Year 10:"},null,"t/year"]
[null,{"$f":"title42","v":"N° of harvests/year"},null,"n."]
[null,{"$f":"title43","v":"Average yield based on large scale production"},null,"t/ha"]
[null,{"$f":"title44","v":"Average yield based on small scale production"},null,"t/ha"]
[null,{"$f":"title45","v":"Annual production for the last years:"}]
[null,{"$f":"title32","v":"Year 1:"},null,{"$f":"title46","v":"t/year"}]
[null,{"$f":"title33","v":"Year 2:"},null,"t/year"]
[null,{"$f":"title34","v":"Year 3:"},null,"t/year"]
[null,{"$f":"title35","v":"Year 4:"},null,"t/year"]
[null,{"$f":"title36","v":"Year 5:"},null,"t/year"]
[null,{"$f":"title37","v":"Year 6:"},null,"t/year"]
[null,{"$f":"title38","v":"Year 7:"},null,"t/year"]
[null,{"$f":"title39","v":"Year 8:"},null,"t/year"]
[null,{"$f":"title40","v":"Year 9:"},null,"t/year"]
[null,{"$f":"title41","v":"Year 10:"},null,"t/year"]
[null,{"$f":"title922","v":"Average annual production"},null,{"$f":"title46","v":"t/year"}]
[null,{"$f":"title47","v":"Sources and year(s) of data publication: "}]
[]
[null,{"$f":"title194","v":"3.4        Use and production of residues"}]
[null,null,null,null,{"$f":"title207","v":"Crop-residue \n1"},null,{"$f":"title208","v":"Crop-residue \n2"},null,{"$f":"title209","v":"Crop-residue \n3"},null,{"$f":"title210","v":"Crop-residue \n4"},null,null,null,null,{"$f":"title48","v":"Table content:  "}]
[null,{"$f":"title195","v":"Crop-residue type selected (e.g. barley-straw)"},null,null,null,null,null,null,null,null,null,null,null,null,null,{"$f":"title211","v":"This table collects information on the residue-to-crop ratio as well as on the type of use(es) of residues. If the specific data of the country is not available, consult the table below on default values and select the value which could be representative for the country."}]
[null,{"$f":"title196","v":"How many tons of residues is produced per ton of crop?"}]
[null,{"$f":"title197","v":"On average how much residues, expressed in %, is left on the ground (for soil protection and fertily)?"},null,null,null,null,null,null,null,null,null,null,null,null,null,{"$f":"title79","v":"Information regarding use within the tool:       "}]
[null,{"$f":"title198","v":"Are these residues currently used for something? (Y/N)"}]
[null,{"$f":"title199","v":"If yes, specify the type of use(es) and amount expressed in tons/year"}]
[null,{"$f":"title804","v":"animal feed or bedding"}]
[null,{"$f":"title201","v":"construction"}]
[null,{"$f":"title202","v":"industrial processing"}]
[null,{"$f":"title203","v":"energy production (e.g. charcoal)"}]
[null,{"$f":"title204","v":"other uses"}]
[null,{"$f":"title205","v":"Are the residues burned in the field after harvest?"}]
[null,{"$f":"title206","v":"How many hectares or % or total area under the crop are burned on average?"}]
[null,{"$f":"title77","v":"Sources:"}]
[]
[null,{"$f":"title213","v":"3.5       Default values of Residue:Product ratio based on the literature"}]
[null,{"$f":"title214","v":"Crop-residue type "},null,{"$f":"title215","v":"Residue:Product ratio"},null,null,null,null,null,null,null,null,null,null,null,{"$f":"title48","v":"Table content:  "}]
[null,{"$f":"title104","v":"Crop"},{"$f":"title111","v":"Residue "},{"$f":"title216","v":"average"},{"$f":"title217","v":"min"},null,{"$f":"title218","v":"max"},null,{"$f":"title219","v":"stdev"},null,null,null,null,null,null,{"$f":"title220","v":"Default values collected based on literature review. More details on the literature review process is contained in the related BEFS RA manual."}]
[null,{"$f":"title105","v":"Barley"},{"$f":"title112","v":"straw"},1.35,0.95,null,1.75,null,0.27]
[null,{"$f":"title106","v":"Cacao"},{"$f":"title113","v":"pods"},1.5,1,null,2,null,0.71]
[null,{"$f":"title107","v":"Cassava"},{"$f":"title114","v":"stalk"},0.13,0.06,null,0.2,null,0.06]
[null,{"$f":"title108","v":"Coconut"},{"$f":"title115","v":"fronds"},0.47,0.23,null,0.95,null,0.34]
[null,{"$f":"title108","v":"Coconut"},{"$f":"title116","v":"husk"},0.49,0.36,null,0.84,null,0.18]
[null,{"$f":"title108","v":"Coconut"},{"$f":"title117","v":"shell"},0.39,0.12,null,0.7,null,0.25]
[null,{"$f":"title109","v":"Coffee"},{"$f":"title116","v":"husk"},1.32,0.16,null,2.1,null,0.95]
[null,{"$f":"title110","v":"Cotton"},{"$f":"title118","v":"hull"},0.26,0.26,null,0.26,null,0]
[null,{"$f":"title110","v":"Cotton"},{"$f":"title114","v":"stalk"},3.4,2.76,null,4.25,null,0.47]
[null,{"$f":"title119","v":"Groundnut"},{"$f":"title116","v":"husk"},0.47,0.32,null,0.67,null,0.12]
[null,{"$f":"title120","v":"Maize"},{"$f":"title130","v":"cob"},0.33,0.2,null,0.86,null,0.16]
[null,{"$f":"title120","v":"Maize"},{"$f":"title116","v":"husk"},0.22,0.2,null,0.3,null,0.04]
[null,{"$f":"title120","v":"Maize"},{"$f":"title131","v":"stover"},1.96,1,null,3.77,null,0.67]
[null,{"$f":"title121","v":"Millet"},{"$f":"title112","v":"straw"},2.54,1.4,null,4,null,0.81]
[null,{"$f":"title122","v":"Oat"},{"$f":"title112","v":"straw"},1.42,1,null,2,null,0.33]
[null,{"$f":"title123","v":"Oilpalm"},{"$f":"title132","v":"empty bunches"},0.31,0.23,null,0.43,null,0.09]
[null,{"$f":"title123","v":"Oilpalm"},{"$f":"title115","v":"fronds"},2.6,2.6,null,2.6,null,0]
[null,{"$f":"title123","v":"Oilpalm"},{"$f":"title117","v":"shell"},0.06,0.05,null,0.08,null,0.01]
[null,{"$f":"title124","v":"Rice"},{"$f":"title112","v":"straw"},1.33,0.42,null,2.15,null,0.68]
[null,{"$f":"title124","v":"Rice"},{"$f":"title116","v":"husk"},0.25,0.15,null,0.36,null,0.06]
[null,{"$f":"title125","v":"Rye"},{"$f":"title112","v":"straw"},1.61,1,null,2,null,0.37]
[null,{"$f":"title126","v":"Sorghum"},{"$f":"title133","v":"straw/stalk"},2.44,1,null,4.5999999999999996,null,0.97]
[null,{"$f":"title127","v":"Soybean"},{"$f":"title112","v":"straw"},1.53,1,null,2.5,null,0.84]
[null,{"$f":"title127","v":"Soybean"},{"$f":"title113","v":"pods"},1.0900000000000001,0.9,null,1.36,null,0.24]
[null,{"$f":"title128","v":"Sugarcane"},{"$f":"title134","v":"tops/leaves"},0.2,0.05,null,0.3,null,0.1]
[null,{"$f":"title128","v":"Sugarcane"},{"$f":"title135","v":"baggase"},0.26,0.14000000000000001,null,0.4,null,7.0000000000000007E-2]
[null,{"$f":"title129","v":"Wheat"},{"$f":"title112","v":"straw"},1.28,0.5,null,2,null,0.36]
[]
[]
[null,{"$f":"title221","v":"4.       Livestock residues                                                                                                                                                         (BEFS RA tool: Livestock Residues)"}]
[]
[null,{"$f":"title21","v":"Data required"},null,null,null,null,null,null,null,null,null,null,null,null,null,{"$f":"title22","v":"Instructions and explanatory notes"}]
[]
[null,{"$f":"title222","v":"4.1        Cattle production"}]
[null,{"$f":"title223","v":"Species (Dairy cow or Buffalo)"},null,null,{"$f":"title810","v":"Dairy cow"},null,{"$f":"title811","v":"Buffalo"},null,null,null,null,null,null,null,null,{"$f":"title48","v":"Table content:  "}]
[null,{"$f":"title224","v":"Total number of heads"},null,null,null,null,null,null,null,null,null,null,null,null,null,{"$f":"title240","v":"These tables collect information related to the livestock sector. This data is used in the Livestock Residues tool which then provides input data for the Biogas Tool."},null,null,null,null,null,null,null,null,null,null,null,null,null,null,null,null,null,null,null,null,null,null,null,null,{"$f":"title810","v":"Dairy cow"}]
[null,{"$f":"title225","v":"Commercial production (%)"},null,null,null,null,null,null,null,null,null,null,null,null,null,null,null,null,null,null,null,null,null,null,null,null,null,null,null,null,null,null,null,null,null,null,null,null,null,null,{"$f":"title811","v":"Buffalo"}]
[]
[null,{"$f":"title226","v":"Household level production"}]
[null,{"$f":"title227","v":"Cattle feeding systems"},null,null,null,null,null,null,null,null,null,null,null,null,null,{"$f":"title79","v":"Information regarding use within the tool:       "}]
[null,{"$f":"title228","v":"1. Daily feeding: stable only"},null,null,"%"]
[null,{"$f":"title229","v":"2. Daily feeding: grazing and stable "},null,null,"%"]
[null,{"$f":"title230","v":"3. Seasonal grazing "},null,null,"%"]
[null,{"$f":"title231","v":"     - Number of months in pasture "},null,null,"n."]
[null,{"$f":"title232","v":"4. Year-round grazing"},null,null,"%"]
[]
[null,{"$f":"title233","v":"Commercial level production"}]
[null,{"$f":"title234","v":"Cattle feeding systems"}]
[null,{"$f":"title235","v":"1. Daily feeding: stable only"},null,null,"%"]
[null,{"$f":"title236","v":"2. Daily feeding: grazing and stable "},null,null,"%"]
[null,{"$f":"title237","v":"3. Seasonal grazing"},null,null,"%"]
[null,{"$f":"title238","v":"     - Number of months in pasture "},null,null,"n."]
[null,{"$f":"title239","v":"4. Year-round grazing"},null,null,"%"]
[]
[null,{"$f":"title77","v":"Sources:"}]
[]
[null,{"$f":"title242","v":"4.2       Swine production"}]
[null,{"$f":"title243","v":"Total number of heads"}]
[null,{"$f":"title244","v":"Commercial production (%)"}]
[null,{"$f":"title77","v":"Sources:"}]
[]
[null,{"$f":"title245","v":"4.3       Chicken production"}]
[null,{"$f":"title246","v":"Total (1,000 heads)"}]
[null,{"$f":"title247","v":"Commercial production (%)"}]
[null,{"$f":"title77","v":"Sources:"}]
[]
[null,{"$f":"title805","v":"4.4       Current Use of Manure"}]
[null,null,null,null,{"$f":"title810","v":"Dairy cow"},null,{"$f":"title811","v":"Buffalo"},null,{"$f":"title812","v":"Swine"},null,{"$f":"title813","v":"Poultry"}]
[]
[null,null,null,null,"hh","Com","hh","Com","hh","Com","Com",null,"hh=",{"$f":"title861","v":"households"}]
[null,{"$f":"title806","v":"Composting (%)"},null,null,null,null,null,null,null,null,null,null,"Com=",{"$f":"title862","v":"Commercial"}]
[null,{"$f":"title807","v":"Direct Fertilization (%)"}]
[null,{"$f":"title808","v":"Energy production (%)"}]
[null,{"$f":"title809","v":"Other uses (%)"}]
[]
[null,{"$f":"title814","v":"4.5       Household Owning Percentage"}]
[null,null,null,null,{"$f":"title810","v":"Dairy cow"},null,{"$f":"title811","v":"Buffalo"},null,{"$f":"title812","v":"Swine"},null,{"$f":"title813","v":"Poultry"}]
[null,null,null,null,null,null,null,null,null,null,null,null,null,null,null,{"$f":"title77","v":"Sources:"}]
[null,null,null,null,"# Animals","% hh","# Animals","% hh","# Animals","% hh","# Animals","% hh"]
[null,{"$f":"title863&\" 1\"","v":"Share 1"}]
[null,{"$f":"title863&\" 2\"","v":"Share 2"}]
[null,{"$f":"title863&\" 3\"","v":"Share 3"}]
[null,{"$f":"title863&\" 4\"","v":"Share 4"}]
[]
[null,{"$f":"title816","v":"4.6      Manure Price"}]
[null,null,null,null,{"$f":"title810","v":"Dairy cow"},null,{"$f":"title811","v":"Buffalo"},null,{"$f":"title812","v":"Swine"},null,{"$f":"title813","v":"Poultry"}]
[]
[null,null,null,null,"hh","Com","hh","Com","hh","Com","Com",null,null,"hh=",{"$f":"title861","v":"households"}]
[null,{"$f":"title856","v":"Market"},null,{"$f":"title24","v":"Unit"},null,null,null,null,null,null,null,null,null,"Com=",{"$f":"title862","v":"Commercial"}]
[null,{"$f":"title801","v":"Market Price"},null,"USD/t"]
[null,{"$f":"title802","v":"Collection Price"}]
[null,{"$f":"title802","v":"Collection Price"},null,"USD/t"]
[]
[]
[null,{"$f":"title248","v":"5.       Other product prices                                                                                                                                                    (BEFS RA tool: Briquettes/Pellets)"}]
[]
[null,{"$f":"title21","v":"Data required"},null,null,null,null,null,null,null,null,null,null,null,null,null,{"$f":"title22","v":"Instructions and explanatory notes"}]
[]
[null,{"$f":"title249","v":"5.1        Market prices"}]
[null,{"$f":"title250","v":"Provide the market prices:"},null,{"$f":"title254","v":"Unit price"},null,null,null,null,null,null,null,null,null,null,null,{"$f":"title255","v":"Table content and BEFS RA use:"}]
[null,{"$f":"title251","v":"Maize flour"},"USD/t",null,null,null,null,null,null,null,null,null,null,null,null,{"$f":"title256","v":"this table collects data on specific flour prices that are used as inputs in the Briquettes/Pellets Tool."}]
[null,{"$f":"title252","v":"Wheat flour"},"USD/t"]
[null,{"$f":"title253","v":"Cassava flour"},"USD/t"]
[null,{"$f":"title77","v":"Sources:"}]
[]
[null,{"$f":"title257","v":"Disclaimer"}]
[null,{"$f":"title258","v":"FAO declines all responsibility for errors or deficiencies in the database or software or in the documentation accompanying it, for program maintenance and upgrading as well as for any damage that may arise from them. FAO also declines any responsibility for updating the data and assumes no responsibility for errors and omissions in the data provided. Users are, however, kindly asked to report any errors or deficiencies in this product to FAO. The choices of calculation made in this tool are those of the author(s) and do not necessarily reflect the views  and choices of the Food and Agriculture Organization of the United Nations."}]

{"sheet":"Forestry","index":4,"n_rows":206,"n_cols":35,"rows_kept":206,"cut":false,"hidden":true,"merged":[[155,1,155,3],[155,4,155,5],[155,6,155,7],[155,8,155,9],[197,1,197,3],[197,4,197,5],[197,6,197,7],[197,8,197,9],[121,10,121,11],[125,4,125,5],[125,6,125,7],[130,8,130,9],[130,10,130,11],[125,8,125,9],[126,4,126,5],[126,6,126,7],[126,8,126,9],[191,1,191,3],[191,4,191,5],[191,6,191,7],[191,8,191,9],[195,1,195,3],[195,4,195,5],[195,6,195,7],[121,12,121,13],[121,15,121,19],[122,4,122,5],[122,6,122,7],[122,8,122,9],[124,4,124,5],[124,6,124,7],[124,8,124,9],[122,10,124,18],[130,12,130,13],[130,15,132,18],[132,4,132,5],[132,6,132,7],[132,8,132,9],[132,10,132,11],[190,1,190,3],[190,4,190,5],[190,6,190,7],[190,8,190,9],[137,2,137,13],[134,6,134,7],[134,8,134,9],[134,10,134,11],[134,12,134,13],[136,4,136,5],[136,6,136,7],[136,8,136,9],[136,10,136,11],[136,12,136,13],[130,4,130,5],[130,6,130,7],[132,12,132,13],[184,10,186,18],[202,2,202,8],[204,1,204,18],[205,1,208,18],[200,1,200,3],[200,4,200,5],[200,6,200,7],[200,8,200,9],[201,1,201,3],[201,4,201,5],[201,6,201,7],[201,8,201,9],[198,1,198,3],[198,4,198,5],[198,6,198,7],[198,8,198,9],[199,1,199,3],[199,4,199,5],[199,6,199,7],[199,8,199,9],[196,1,196,3],[196,4,196,5],[196,6,196,7],[196,8,196,9],[189,8,189,9],[186,4,186,5],[186,6,186,7],[186,8,186,9],[187,1,187,3],[187,4,187,5],[187,6,187,7],[187,8,187,9],[195,8,195,9],[192,4,192,5],[192,6,192,7],[192,8,192,9],[193,1,193,3],[193,4,193,5],[193,6,193,7],[193,8,193,9],[194,1,194,3],[194,4,194,5],[194,6,194,7],[194,8,194,9],[188,10,192,18],[180,2,180,8],[183,1,183,3],[183,4,183,5],[183,6,183,7],[183,8,183,9],[184,1,184,3],[184,4,184,5],[184,6,184,7],[184,8,184,9],[185,1,185,3],[185,4,185,5],[185,6,185,7],[185,8,185,9],[186,1,186,3],[181,1,181,9],[192,1,192,3],[188,1,188,3],[188,4,188,5],[188,6,188,7],[188,8,188,9],[189,1,189,3],[189,4,189,5],[189,6,189,7],[172,2,172,8],[173,10,175,18],[177,4,177,5],[177,6,177,7],[178,1,179,3],[178,4,179,5],[178,6,178,7],[178,10,179,18],[179,6,179,7],[170,1,170,3],[170,4,170,5],[170,6,170,7],[170,8,170,9],[170,10,170,12],[171,1,171,3],[171,4,171,5],[171,6,171,7],[171,8,171,9],[171,10,171,12],[168,1,168,3],[168,4,168,5],[168,6,168,7],[168,8,168,9],[168,10,168,12],[169,1,169,3],[169,4,169,5],[169,6,169,7],[169,8,169,9],[169,10,169,12],[163,2,163,8],[166,1,167,3],[166,4,167,5],[166,6,167,7],[166,8,167,9],[166,10,167,12],[161,1,161,3],[161,4,161,5],[161,6,161,7],[161,8,161,9],[161,10,162,18],[162,1,162,3],[162,4,162,5],[162,6,162,7],[162,8,162,9],[164,1,164,9],[156,1,156,3],[156,4,156,5],[156,6,156,7],[156,8,156,9],[157,2,157,8],[150,10,158,18],[160,1,160,3],[160,4,160,5],[160,6,160,7],[160,8,160,9],[153,4,153,5],[153,6,153,7],[153,8,153,9],[154,1,154,3],[154,4,154,5],[154,6,154,7],[154,8,154,9],[151,1,151,3],[151,4,151,5],[151,6,151,7],[151,8,151,9],[152,1,152,3],[152,4,152,5],[152,6,152,7],[152,8,152,9],[153,1,153,3],[149,1,149,3],[149,4,149,5],[149,6,149,7],[149,8,149,9],[150,1,150,3],[150,4,150,5],[150,6,150,7],[150,8,150,9],[147,1,147,3],[147,4,147,5],[147,6,147,7],[147,8,147,9],[88,1,88,2],[97,2,97,8],[100,1,100,4],[101,1,101,4],[102,1,102,2],[105,1,105,4],[106,1,106,2],[92,1,92,2],[93,1,93,2],[94,1,94,2],[95,1,95,2],[109,1,109,4],[110,1,110,2],[121,4,121,5],[121,6,121,7],[121,8,121,9],[128,4,128,5],[128,6,128,7],[128,8,128,9],[134,4,134,5],[116,10,118,18],[147,10,148,18],[148,1,148,5],[148,6,148,7],[148,8,148,9],[146,4,146,5],[146,6,146,7],[146,8,146,9],[86,1,86,2],[86,3,86,4],[86,10,87,18],[87,2,87,8],[91,10,91,18],[95,10,96,18],[94,10,94,18],[93,10,93,18],[92,10,92,18],[103,1,103,2],[107,1,107,2],[101,10,101,18],[102,10,102,18],[104,10,108,18],[112,10,114,18],[113,2,113,8],[57,10,59,18],[60,10,60,18],[61,10,62,18],[63,10,63,18],[65,10,68,18],[77,2,77,8],[84,1,84,2],[84,3,84,4],[85,1,85,2],[85,3,85,4],[64,1,64,4],[65,1,65,2],[66,1,66,2],[67,2,67,8],[70,1,70,4],[71,1,71,2],[72,1,72,2],[74,1,74,4],[74,10,76,18],[75,1,75,2],[76,1,76,2],[71,10,72,18],[85,10,85,18],[54,1,54,3],[55,1,55,3],[56,1,56,3],[57,1,57,3],[58,1,58,3],[29,1,29,2],[26,10,28,18],[30,10,31,18],[32,10,33,18],[34,10,36,18],[38,1,38,2],[39,10,44,18],[49,10,52,18],[55,10,55,18],[45,2,45,8],[48,1,48,2],[49,1,49,2],[50,1,50,2],[51,2,51,8],[39,1,39,2],[40,1,40,2],[42,1,42,2],[43,1,43,2],[44,1,44,2],[8,1,8,2],[9,1,9,2],[9,3,9,13],[10,1,10,2],[10,3,10,13],[11,3,11,13],[24,1,24,6],[24,16,24,17],[15,12,15,17],[14,12,14,17],[25,1,25,2],[12,3,12,13],[14,2,14,6],[15,1,15,3],[15,4,15,6],[31,2,31,8],[26,1,26,2],[30,1,30,2],[28,1,28,2],[14,10,14,11],[26,3,26,4],[25,3,25,4],[27,1,27,2]]}
[]
[null,null,null,{"$f":"title2","v":"BEFS Rapid Appraisal"}]
[null,null,null,{"$f":"title3","v":"Data Collection"}]
[]
[]
[]
[]
[]
[null,{"$f":"title6","v":"Data collection area"},null,{"$f":"title259","v":"FORESTRY"}]
[null,{"$f":"title7","v":"Sections of the data collection sheet:"},null,{"$f":"title260","v":"1. Forest harvesting and harvesting residues, 2. Wood processing residues,\n3. Woodfuel plantation budget"}]
[null,{"$f":"title8","v":"BEFS RA use: "},null,{"$f":"title261","v":"Section 1: Forest harvesting and harvesting residues collects data for use in the FOREST HARVESTING TOOL"}]
[null,null,null,{"$f":"title262","v":"Section 2: Wood processing residues collects data for use in the WOOD PROCESSING RESIDUES TOOL "}]
[null,null,null,{"$f":"title263","v":"Section 3: Woodfuel plantation budget collects data for use in the WOODFUEL PLANTATION BUDGET TOOL"}]
[]
[null,{"$f":"title16","v":"Country:"},null,null,null,null,null,null,null,null,{"$f":"title18","v":"Focal person:"}]
[null,{"$f":"title17","v":"USD currency exchange rate:"},null,null,null,null,null,null,null,null,{"$f":"title19","v":"Date:"}]
[]
[]
[]
[]
[null,{"$f":"title264","v":"1.       Forest harvesting and harvesting residues                                                                                                                  (BEFS RA tool: Forest Harvesting)"}]
[]
[null,{"$f":"title21","v":"Data required"},null,null,null,null,null,null,null,null,{"$f":"title22","v":"Instructions and explanatory notes"}]
[]
[null,{"$f":"title265","v":"1.1       Roundwood production"}]
[null,{"$f":"title266","v":"Year/ Time period"},null,null,null,null,null,null,null,null,{"$f":"title48","v":"Table content:  "}]
[null,{"$f":"title24","v":"Unit"},null,"1,000 m3",null,null,null,null,null,null,{"$f":"title340","v":"Annual/average annual total roundwood, industrial roundwood and woodfuel production in the assessment area expressed in 1,000 m3. "}]
[null,null,null,{"$f":"PROPER(title272)","v":"Coniferous "},{"$f":"PROPER(title273)","v":"Non-Coniferous"}]
[null,{"$f":"title267","v":"Total roundwood[1]"}]
[null,{"$f":"title268","v":"Industrial roundwood[2] "},null,null,null,null,null,null,null,null,{"$f":"title81","v":"Notes:"}]
[null,{"$f":"title269","v":"Woodfuel[3]"},null,null,null,null,null,null,null,null,{"$f":"title341","v":"[1]Total roundwood includes both industrial roundwood and woodfuel, i.e. it is a sum of production of industrial roundwood and woodfuel.  "}]
[null,{"$f":"title77","v":"Sources:"}]
[null,null,null,null,null,null,null,null,null,null,{"$f":"title342","v":"[2]Industrial roundwood refers to the wood used for production of goods and services other than energy production."}]
[]
[null,null,null,null,null,null,null,null,null,null,{"$f":"title343","v":"[3]Woodfuel production refers to the wood removed for energy production purposes, regardless whether for industrial, commercial or household use. "}]
[]
[]
[null,{"$f":"title270","v":"1.2       Rate of felling removal"}]
[null,{"$f":"title271","v":"Industrial roundwood"},null,null,null,null,null,null,null,null,{"$f":"title48","v":"Table content:  "}]
[null,{"$f":"title272","v":"coniferous "},null,"%",null,null,null,null,null,null,{"$f":"title344","v":"The rate of felling removal from the forest, i.e. percentage of the wood that is removed from the forest after the felling. The data should be provided for industrial roundwood and woodfuel, for coniferous and non-coniferous species. If the rate of felling removal is the same, it should be repeated. "}]
[null,{"$f":"title273","v":"non-coniferous"},null,"%"]
[]
[null,{"$f":"title274","v":"Woodfuel"}]
[null,{"$f":"title272","v":"coniferous "},null,"%"]
[null,{"$f":"title273","v":"non-coniferous"},null,"%"]
[null,{"$f":"title77","v":"Sources:"}]
[]
[null,{"$f":"title275","v":"1.3       Wood density"}]
[null,{"$f":"title216","v":"average"},null,"t/m3",null,null,null,null,null,null,{"$f":"title48","v":"Table content:  "}]
[null,{"$f":"title272","v":"coniferous "},null,"t/m3",null,null,null,null,null,null,{"$f":"title345","v":"Density of predominant coniferous and non-coniferous wood at the moisture content of 15%, expressed in t/m3. If the information for coniferous and non-coniferous species is not available, average value can be used."}]
[null,{"$f":"title273","v":"non-coniferous"},null,"t/m3"]
[null,{"$f":"title77","v":"Sources:"}]
[]
[null,{"$f":"title276","v":"1.4       Tree composition (above stump) for the dominant forest type"}]
[null,{"$f":"title277","v":"Crown[1]  (% of above stump tree)"},null,null,null,null,null,null,null,null,{"$f":"title48","v":"Table content:  "}]
[null,{"$f":"title278","v":"Foliage[2]  (% of crown)"},null,null,null,null,null,null,null,null,{"$f":"title346","v":"Tree composition in the dominant forest type harvested.      "}]
[null,{"$f":"title279","v":"Stem+bark[3] (% of above stump tree)"},null,null,null,null,null,null,null,null,{"$f":"title81","v":"Notes:"}]
[null,{"$f":"title280","v":"Bark[4](% of stem)"},null,null,null,null,null,null,null,null,{"$f":"title347","v":"[1]Crown (% of above stump tree) = ratio of the crown (branches, upper logs and foliage) to the felled tree. The sum of crown and stem should make 100%. "}]
[]
[]
[null,null,null,null,null,null,null,null,null,null,{"$f":"title348","v":"[2]Foliage (% of crown) = ratio of the foliage (leaves) and the crown."}]
[null,null,null,null,null,null,null,null,null,null,{"$f":"title349","v":"[3]Stem+bark (% of above stump tree) = ratio of the overbark stem to the felled tree. The sum of crown and stem should make 100%. "}]
[]
[null,null,null,null,null,null,null,null,null,null,{"$f":"title350","v":"[4]Bark (% of stem) = ratio of bark and stem."}]
[null,{"$f":"title281","v":"Current use of harvesting residues"},null,null,null,null,null,null,null,null,{"$f":"title48","v":"Table content:  "}]
[null,{"$f":"title271","v":"Industrial roundwood"},null,"%",null,null,null,null,null,null,{"$f":"title351","v":"The percentage of the harvesting residues which is collected already used. The information for both industrial roundwood and woodfuel harvesting residues should be collected. The percentage should include officially recored removals and estimated unrecorded removals. "}]
[null,{"$f":"title274","v":"Woodfuel"},null,"%"]
[null,{"$f":"title77","v":"Sources:"}]
[]
[null,{"$f":"title282","v":"1.5       Share of residues that can be collected at a reasonable cost"}]
[null,{"$f":"title283","v":"Branches and various cut-offs"},null,null,null,null,null,null,null,null,{"$f":"title48","v":"Table content:  "}]
[null,{"$f":"title272","v":"coniferous "},null,"%",null,null,null,null,null,null,{"$f":"title352","v":"The percentage of harvesting residues that can be collected at a reasonable price. "}]
[null,{"$f":"title273","v":"non-coniferous"},null,"%",null,null," "]
[null,null,null,null,null,null,null,null,null,null,{"$f":"title81","v":"Notes:"}]
[null,{"$f":"title284","v":"Bark"},null,null,null,null,null,null,null,null,{"$f":"title353","v":"When determining the percentage of collectable residues, accessability, labour cost, logistics (transportation infrastracture) should be taken into account. "}]
[null,{"$f":"title272","v":"coniferous "},null,"%"]
[null,{"$f":"title273","v":"non-coniferous"},null,"%"]
[null,{"$f":"title77","v":"Sources:"}]
[]
[null,{"$f":"title285","v":"2.       Wood processing residues                                                                                                                                (BEFS RA tool: Wood processing residues)"}]
[]
[null,{"$f":"title21","v":"Data required"},null,null,null,null,null,null,null,null,{"$f":"title22","v":"Instructions and explanatory notes"}]
[]
[null,{"$f":"title286","v":"2.1       Sawnwood production in the country (area of analysis)"}]
[null,{"$f":"title287","v":"Year / average for years:"},null,null,null,null,null,null,null,null,{"$f":"title48","v":"Table content:  "}]
[null,{"$f":"title24","v":"Unit"},null,"1,000 m3/year",null,null,null,null,null,null,{"$f":"title354","v":"Annual production of sawnwood, expressed in 1,000 m3 per year. "}]
[null,{"$f":"title288","v":"Total sawnwood produced"},null,null,null,null,null,null,null,null,{"$f":"title355","v":"Indicate whether the data refer to the annual average of a certnain period, e.g. annual average 2003-2013, or to a single year, e.g. 2013. "}]
[null,{"$f":"title77","v":"Sources:"}]
[]
[null,{"$f":"title289","v":"2.2       Average efficiency of sawmills in the country (area of analysis)"}]
[null,{"$f":"title290","v":"Ratio of sawmill outputs and roundwood input "},null,null,null,null,null,null,null,null,{"$f":"title48","v":"Table content:  "}]
[null,{"$f":"title291","v":"Product and residue types"},null,"%",null,null,null,null,null,null,{"$f":"title356","v":"The ratio of sawmilling outputs and roundwood inputs. "}]
[null,{"$f":"title292","v":"Sawnwood[1] (recovery rate)"},null,null,null,null,null,null,null,null,{"$f":"title357","v":"[1] Volume of sawnwood as a percentage of roundwood volume."}]
[null,{"$f":"title293","v":"Sawdust[2]"},null,null,null,null,null,null,null,null,{"$f":"title358","v":"[2] Volume of sawdust as a percentage of roundwood volume."}]
[null,{"$f":"title294","v":"Slabs and chips[3]"},null,null,null,null,null,null,null,null,{"$f":"title359","v":"[3] Volume of slabs and chips as a percentage of roundwood volume."}]
[null,{"$f":"title295","v":"Shrinkage and other losses[4]"},null,null,null,null,null,null,null,null,{"$f":"title360","v":"[4] Difference in volume of sawnwood and residues and the roundwood, expressed as a percentage of roundwood volume ."}]
[]
[null,{"$f":"title77","v":"Sources:"}]
[]
[null,{"$f":"title296","v":"2.3       Current use of wood processing residues"}]
[null,null,null,null,null,null,null,null,null,null,{"$f":"title48","v":"Table content:  "}]
[null,{"$f":"title297","v":"Current use of wood processing residues"},null,null,null,null,null,null,null,null,{"$f":"title361","v":"Percentage of the total sawdust, slabs and chips that is currently used. "}]
[null,{"$f":"title298","v":"Sawdust"},null,"%",null,null,null,null,null,null,{"$f":"title362","v":"Amount of sawdust, slabs and chips currently used. "}]
[null,{"$f":"title299","v":"Slabs and chips"},null,"%",null,null,null,null,null,null,{"$f":"title81","v":"Notes:"}]
[null,null,null,null,null,null,null,null,null,null,{"$f":"title363","v":"If the data about the amount of residues used for production of different wood products and/or for heating and cooking,  is avaiable in these should be noted. The respective ratio to the total residues will be calculated during the BEFS RA analysis. "}]
[null,{"$f":"title297","v":"Current use of wood processing residues"}]
[null,{"$f":"title298","v":"Sawdust"},null,{"$f":"title46","v":"t/year"}]
[null,{"$f":"title299","v":"Slabs and chips"},null,{"$f":"title46","v":"t/year"}]
[]
[null,{"$f":"title866","v":"Wood properties"}]
[null,{"$f":"title867","v":"Average wood density"},null,"t/m3"]
[]
[null,null,null,null,null,null,null,null,null,null,{"$f":"title364","v":"In case there is no offical data on the use of residue, the estimations (% or amount) can be done through survey and/or consultation with wood processing industry in the country/area of analysis.  "}]
[null,{"$f":"title77","v":"Sources:"}]
[]
[null,null,null,null,null,null,null,null,null,null,{"$f":"title51","v":"Information regarding use within the tool:                                  "}]
[null,null,null,null,null,null,null,null,null,null,{"$f":"title365","v":"The tool includes defult values, but note that those represent a global average, based on the data collected from different countries and thus may only be marginally applicable for your country. "}]
[]
[]
[]
[null,{"$f":"\"2.4 \"&title909","v":"2.4 Collection of Residues"}]
[null,null,null,null,{"$f":"title25","v":"Crop 1"},null,{"$f":"title26","v":"Crop 2"},null,null,null,{"$f":"title48","v":"Table content:  "}]
[null,null,null,{"$f":"title24","v":"Unit"},{"$f":"title911","v":"Forest Harvesting Residues"},null,{"$f":"title910","v":"Woody Processing Residues"},null,null,null,{"$f":"title184","v":"This table gathers information on the type of labour (manual and machinery) required per hectare for each selected crop  collected in the field. The average fuel economy will depend on the type of machinery used to collect the residues. The collections months are determined by the crop calendar of the country."}]
[null,{"$f":"title176","v":"Collection type "}]
[null,{"$f":"title177","v":" - Manual "},null,"man-h/t"]
[null,{"$f":"title178","v":" - Machinery"},null,{"$f":"title172","v":"hours/ha"}]
[null,"Collection method"]
[null,{"$f":"title179","v":"Machinery type used for collection"}]
[null,{"$f":"title180","v":" - Average fuel economy"},null,"l/h"]
[null,"Collection Months Residues"]
[null,{"$f":"title182","v":" - Collection months"},null,{"$f":"title183","v":"months"}]
[null,"Storage Costs"]
[null,"Storage Costs",null,"USD/t"]
[null,"Market Price"]
[null,"Market",null,"USD/t"]
[null,"Collection Price"]
[null,"Collection Price",null,"USD/t"]
[null,{"$f":"title77","v":"Sources:"}," "]
[]
[]
[]
[null,{"$f":"title300","v":"3.       Woodfuel plantation budget                                                                                                                     (BEFS RA tool: Woodfuel Plantation Budget)"}]
[]
[null,{"$f":"title21","v":"Data required"},null,null,null,null,null,null,null,null,{"$f":"title22","v":"Instructions and explanatory notes"}]
[]
[null,{"$f":"title301","v":"3.1       Selection of species and wood production characteristics"}]
[null,null,null,null,{"$f":"title24","v":"Unit"},null,{"$f":"title864","v":"Select Species 1 from the drop-down list in the cell below"},null,{"$f":"title865","v":"Select Species 2 from the drop-down list in the cell below"},null,{"$f":"title48","v":"Table content:  "}]
[null,{"$f":"title302","v":"Select the species"},null,null,null,null,null,null,null,null,{"$f":"title366","v":"This table collects information on the selected tree species related to the typical wood production characteristics."},null,null,null,null,null,null,null,null,null,null,null,null,null,null,null,null,null,null,null,null,null,null,null,"Select species"]
[null,{"$f":"IF(G148=title859,title860,\"\")","v":""}]
[null,{"$f":"title303","v":"Planted area in the country"},null,null,"ha",null,null,null,null,null,{"$f":"title51","v":"Information regarding use within the tool:                                  "},null,null,null,null,null,null,null,null,null,null,null,null,null,null,null,null,null,null,null,null,null,null,null,"Acacia mangium"]
[null,{"$f":"title304","v":"Planting density per hectare"},null,null,{"$f":"title97","v":"plants/ha"},null,null,null,null,null,{"$f":"title367","v":"Within the Woodfuel Plantation Budget BEFS RA tool, the first step is to select tree species that will be analyzed for potential harvestable volume of biomass from dedicated bioenergy plantations. This biomass can be used in the form of fuelwood and/or as feedstock for charcoal, briquette and woodchip production. Up to two tree species can be analyzed at the same time and they are selected from the dropdown list. The list includes Acacia mangium, Acacia Senegal, Eucalyptus spp, Pinus patula, Pinus radiata, Populus spp, Salix spp. Furthermore, the user has the possibility to select a User-defined tree species option and then enter specific name and data. Data should be country representative. "},null,null,null,null,null,null,null,null,null,null,null,null,null,null,null,null,null,null,null,null,null,null,null,"Acacia senegal"]
[null,{"$f":"title305","v":"Average rotation length "},null,null,{"$f":"title98","v":"years"},null,null,null,null,null,null,null,null,null,null,null,null,null,null,null,null,null,null,null,null,null,null,null,null,null,null,null,null,null,"Eucalyptus spp"]
[null,{"$f":"title306","v":"Mean Annual Increment (average MAI)"},null,null,{"$f":"title312","v":"m3/ha/year"},null,null,null,null,null,null,null,null,null,null,null,null,null,null,null,null,null,null,null,null,null,null,null,null,null,null,null,null,null,"Pinus patula"]
[null,{"$f":"title307","v":"Total harvestable volume for bioenergy purposes"},null,null,"m³/ha",null,null,null,null,null,null,null,null,null,null,null,null,null,null,null,null,null,null,null,null,null,null,null,null,null,null,null,null,null,"Pinus radiate"]
[null,{"$f":"title308","v":"Low heating value (energy content) of wood harvested"},null,null,"MJ/kg",null,null,null,null,null,null,null,null,null,null,null,null,null,null,null,null,null,null,null,null,null,null,null,null,null,null,null,null,null,"Populus spp"]
[null,{"$f":"title867","v":"Average wood density"}]
[null,{"$f":"title309","v":"Moisture content"},null,null,"%",null,null,null,null,null,null,null,null,null,null,null,null,null,null,null,null,null,null,null,null,null,null,null,null,null,null,null,null,null,{"$f":"title859","v":"User-defined"}]
[null,{"$f":"title77","v":"Sources:"}]
[]
[null,{"$f":"title313","v":"3.2       Current prices"}]
[null,null,null,null,{"$f":"title24","v":"Unit"},null,{"$f":"title310","v":"Species 1"},null,{"$f":"title311","v":"Species 2"},null,{"$f":"title48","v":"Table content:  "}]
[null,{"$f":"title314","v":"Seedling"},null,null,{"$f":"title316","v":"USD/piece"},null,null,null,null,null,{"$f":"title368","v":"This table collects information on the current unit prices of seedling and fuelwood for the selected species."}]
[null,{"$f":"title315","v":"Farm-gate price of harvested fuelwood (stack) - (please provide also the unit)"}]
[null,{"$f":"title77","v":"Sources:"}]
[]
[null,{"$f":"title317","v":"3.3       Fertilizer nutrients (total amount per hectare)"}]
[null,{"$f":"title318","v":"Nutrients application per hectare overall the rotation lenght"},null,null,{"$f":"title24","v":"Unit"},null,{"$f":"title310","v":"Species 1"},null,{"$f":"title311","v":"Species 2"},null,{"$f":"title319","v":"Enter which year (s) of rotation lenght nutrients are applied"}]
[]
[null,{"$f":"title320","v":"Total nitrogen applied"},null,null,"kg/ha"]
[null,{"$f":"title321","v":"Total phosphorus applied"},null,null,"kg/ha"]
[null,{"$f":"title322","v":"Total potassium applied"},null,null,"kg/ha"]
[null,{"$f":"title323","v":"Other agrochemicals"}]
[null,{"$f":"title77","v":"Sources:"},null,null,null,null,null,null,null,null,{"$f":"title48","v":"Table content:  "}]
[null,null,null,null,null,null,null,null,null,null,{"$f":"title369","v":"This table collects information on the total amount of fertilizer nutrients applied per hectare during the overall rotation length and the related year(s) of rotation when such inputs are applied. Data should be country representative."}]
[]
[]
[null,{"$f":"title324","v":"3.4       Machinery rental rates (averages)"}]
[null,null,null,null,{"$f":"title24","v":"Unit"},null,{"$f":"title325","v":"Rate"},null,null,null,{"$f":"title48","v":"Table content:  "}]
[null,{"$f":"title326","v":"1. Forestry operation"},null,null,{"$f":"title75","v":"USD/hour"},null,null,null,null,null,{"$f":"title370","v":"This table collects information on the average cost per hour for machinery related to forestry operations (average rental cost)."}]
[]
[null,{"$f":"title77","v":"Sources:"}]
[]
[null,{"$f":"title327","v":"3.5       Labour (total amount per hectare) and related year(s) of rotation lenght"}]
[null,{"$f":"title328","v":"Operation"},null,null,{"$f":"title24","v":"Unit"},null,{"$f":"title310","v":"Species 1"},null,{"$f":"title311","v":"Species 2"},null,{"$f":"title48","v":"Table content:  "}]
[null,{"$f":"title329","v":"Land preparation and clearing"},null,null,{"$f":"title337","v":"Year(s) of rotation*"},null,null,null,null,null,{"$f":"title371","v":"This table collects information on the number of years and total labour amount carried out during the overall rotation length for each operation."}]
[null,{"$f":"title330","v":"Manual:"},null,null,{"$f":"title338","v":"Total \nman-days/ha"}]
[null,{"$f":"title331","v":"Machinery:"},null,null,{"$f":"title339","v":"Total hours/ha"}]
[null,{"$f":"title332","v":"Planting"},null,null,{"$f":"title337","v":"Year(s) of rotation*"},null,null,null,null,null,{"$f":"title81","v":"Notes:"}]
[null,{"$f":"title330","v":"Manual:"},null,null,{"$f":"title338","v":"Total \nman-days/ha"},null,null,null,null,null,{"$f":"title372","v":"*Year(s) of rotation lenght refers to the related year(s) of rotation when such labour is applied. For example, if the soil was fertilized before planting and once within the first five years of the rotation lenght, enter  ‘0-5’. It is important to consider that plantation is established at the beginning of the first year, i.e. year ‘0’. "}]
[null,{"$f":"title331","v":"Machinery:"},null,null,{"$f":"title339","v":"Total hours/ha"}]
[null,{"$f":"title333","v":"Fertilizer application"},null,null,{"$f":"title337","v":"Year(s) of rotation*"}]
[null,{"$f":"title330","v":"Manual:"},null,null,{"$f":"title338","v":"Total \nman-days/ha"}]
[null,{"$f":"title331","v":"Machinery:"},null,null,{"$f":"title339","v":"Total hours/ha"}]
[null,{"$f":"title334","v":"Application of other agrochemicals "},null,null,{"$f":"title337","v":"Year(s) of rotation*"}]
[null,{"$f":"title330","v":"Manual:"},null,null,{"$f":"title338","v":"Total \nman-days/ha"}]
[null,{"$f":"title331","v":"Machinery:"},null,null,{"$f":"title339","v":"Total hours/ha"}]
[null,{"$f":"title335","v":"Harvesting"},null,null,{"$f":"title337","v":"Year(s) of rotation*"}]
[null,{"$f":"title330","v":"Manual:"},null,null,{"$f":"title338","v":"Total \nman-days/ha"}]
[null,{"$f":"title331","v":"Machinery:"},null,null,{"$f":"title339","v":"Total hours/ha"}]
[null,{"$f":"title336","v":"Other operation:"},null,null,{"$f":"title337","v":"Year(s) of rotation*"}]
[null,"________________________________",null,null,{"$f":"title338","v":"Total \nman-days/ha"}]
[null,null,null,null,{"$f":"title339","v":"Total hours/ha"}]
[null,{"$f":"title77","v":"Sources:"}]
[]
[null,{"$f":"title257","v":"Disclaimer"}]
[null,{"$f":"title258","v":"FAO declines all responsibility for errors or deficiencies in the database or software or in the documentation accompanying it, for program maintenance and upgrading as well as for any damage that may arise from them. FAO also declines any responsibility for updating the data and assumes no responsibility for errors and omissions in the data provided. Users are, however, kindly asked to report any errors or deficiencies in this product to FAO. The choices of calculation made in this tool are those of the author(s) and do not necessarily reflect the views  and choices of the Food and Agriculture Organization of the United Nations."}]

{"sheet":"Labour","index":5,"n_rows":44,"n_cols":11,"rows_kept":44,"cut":false,"hidden":true,"merged":[[25,6,25,8],[14,8,14,9],[13,8,13,9],[14,10,14,13],[13,10,13,13],[14,1,14,2],[13,2,13,5],[14,3,14,5],[8,1,8,2],[8,3,8,10],[9,1,9,2],[9,3,9,10],[10,1,10,2],[10,3,11,10],[20,16,20,17],[21,1,21,3],[21,6,21,8],[22,1,22,3],[22,6,22,8],[20,1,20,6],[28,1,28,3],[28,6,28,8],[29,1,29,3],[29,6,29,8],[19,10,19,14],[28,10,29,14],[22,10,27,14],[23,1,23,3],[23,6,23,8],[26,1,26,3],[26,6,26,8],[27,1,27,3],[27,6,27,8],[24,1,24,3],[24,6,24,8],[25,1,25,3],[43,1,46,14],[30,1,30,3],[30,6,30,8],[31,1,31,3],[31,6,31,8],[32,2,33,8],[42,1,42,14],[35,1,35,6],[36,1,36,3],[36,6,36,8],[37,1,37,3],[37,6,37,8],[38,1,38,3],[38,6,38,8]]}
[]
[null,{"$f":"title2","v":"BEFS Rapid Appraisal"}]
[null,{"$f":"title3","v":"Data Collection"}]
[]
[]
[]
[]
[]
[null,{"$f":"title6","v":"Data collection area"},null,{"$f":"title373","v":"LABOUR"}]
[null,{"$f":"title7","v":"Sections of the data collection sheet:"},null,{"$f":"title374","v":"1. Labour"}]
[null,{"$f":"title8","v":"BEFS RA use: "},null,{"$f":"title375","v":"Section 1: Labour collects data for use in the CROP BUDGET TOOL, WOODFUEL PLANTATION BUDGET TOOL, TRANSPORT TOOL, BRIQUETTES TOOL, PELLETS TOOL, CHARCOAL TOOL, BIOGAS COMMUNITY TOOL, BIOGAS INDUSTRIAL, SVO TOOL, GASIFICATION TOOL, COMBUSTION TOOL, CHP (COGENERATION) TOOL"}]
[]
[]
[null,{"$f":"title16","v":"Country:"},null,null,null,null,null,null,{"$f":"title18","v":"Focal person:"}]
[null,{"$f":"title17","v":"USD currency exchange rate:"},null,null,null,null,null,null,{"$f":"title19","v":"Date:"}]
[]
[null,{"$f":"title374","v":"1. Labour"}]
[]
[null,{"$f":"title21","v":"Data required"},null,null,null,null,null,null,null,null,{"$f":"title22","v":"Instructions and explanatory notes"}]
[null,null,null,null,null,null,null,null,null,null,{"$f":"title376","v":"The table below collects data on labour related data required within the BEFS RA tools listed above. "}]
[null,{"$f":"title377","v":"1.1       Sectoral minimum wages*"}]
[null,null,null,null,{"$f":"title24","v":"Unit"},"Rate",{"$f":"title824","v":"Notes"},null,null,null,{"$f":"title48","v":"Table content:  "}]
[null,{"$f":"title817","v":"Agricultural worker-farm (unskilled)"},null,null,{"$f":"title672","v":"USD/day"},null,null,null,null,null,{"$f":"title386","v":"This table collects information on the current rate of sectoral daily minimum wage in the country. Unskilled worker refer to non-trained operator. Skilled worker are who receive technical training for leading the operations and maintanence."}]
[null,{"$f":"title818","v":"Agricultural worker-farm (skilled)"},null,null,"USD/day"]
[null,{"$f":"title819","v":"Agricultural worker-biomass collection (unskilled)"},null,null,{"$f":"title75","v":"USD/hour"}]
[null,{"$f":"title820","v":"Agricultural worker-biomass collection (skilled)"},null,null,{"$f":"title75","v":"USD/hour"}]
[null,{"$f":"title380","v":"Forestry worker (unskilled)"},null,null,"USD/day"]
[null,{"$f":"title381","v":"Forestry worker (skilled)"},null,null,"USD/day"]
[null,{"$f":"title382","v":"Industrial worker (unskilled)"},null,null,{"$f":"title75","v":"USD/hour"}]
[null,{"$f":"title383","v":"Industrial worker (skilled)"},null,null,{"$f":"title75","v":"USD/hour"}]
[null,{"$f":"title384","v":"Construction worker (unskilled)"},null,null,"USD/hour",null,null,null,null,null,{"$f":"title77","v":"Sources:"}]
[null,"Construction worker (semi-skilled)",null,null,"USD/hour"]
[]
[null,{"$f":"title77","v":"Sources:"}]
[]
[null,{"$f":"title821","v":"1.2      Number of hours dedicated to biomass collection"},null,null,null,null,null,null,null,null,{"$f":"title77","v":"Sources:"}]
[null,null,null,null,{"$f":"title24","v":"Unit"},{"$f":"title325","v":"Rate"},{"$f":"title824","v":"Notes"}]
[null,{"$f":"title822","v":"Working hours per day (manual)"},null,null,{"$f":"title592","v":"h/day"}]
[null,{"$f":"title823","v":"Working hours per day (mechanized)"},null,null,{"$f":"title592","v":"h/day"}]
[]
[]
[]
[null,{"$f":"title257","v":"Disclaimer"}]
[null,{"$f":"title258","v":"FAO declines all responsibility for errors or deficiencies in the database or software or in the documentation accompanying it, for program maintenance and upgrading as well as for any damage that may arise from them. FAO also declines any responsibility for updating the data and assumes no responsibility for errors and omissions in the data provided. Users are, however, kindly asked to report any errors or deficiencies in this product to FAO. The choices of calculation made in this tool are those of the author(s) and do not necessarily reflect the views  and choices of the Food and Agriculture Organization of the United Nations."}]

{"sheet":"Economics & Finance","index":6,"n_rows":63,"n_cols":8,"rows_kept":63,"cut":false,"hidden":true,"merged":[[19,7,19,13],[13,2,13,4],[14,8,14,12],[13,8,13,12],[8,1,8,2],[8,3,8,9],[9,1,9,2],[9,3,9,9],[10,1,10,2],[10,3,11,9],[14,1,14,3],[26,7,26,13],[21,1,21,4],[22,1,22,4],[22,7,24,13],[23,1,23,4],[24,1,24,4],[38,1,38,4],[38,7,39,13],[28,1,28,4],[29,1,29,4],[29,7,30,13],[33,1,33,4],[37,1,37,4],[30,2,30,5],[34,2,34,5],[39,2,39,5],[61,1,61,13],[62,1,65,13],[42,1,42,4],[43,1,43,4],[43,7,44,13],[47,1,47,4],[48,1,48,4],[52,1,52,4],[53,1,53,4],[57,1,57,4],[58,1,58,4],[52,7,54,13],[44,2,44,5],[49,2,49,5],[54,2,54,5],[59,2,59,5]]}
[]
[null,{"$f":"title2","v":"BEFS Rapid Appraisal"}]
[null,{"$f":"title3","v":"Data Collection"}]
[]
[]
[]
[]
[]
[null,{"$f":"title6","v":"Data collection area"},null,{"$f":"title388","v":"ECONOMICS and FINANCE"}]
[null,{"$f":"title7","v":"Sections of the data collection sheet:"},null,{"$f":"title389","v":"1. Economics and Finance"}]
[null,{"$f":"title8","v":"BEFS RA use: "},null,{"$f":"title390","v":"Section 1: Economics and Finance collects data for use in the CROP BUDGET TOOL, WOODFUEL PLANTATION BUDGET TOOL, TRANSPORT TOOL, BRIQUETTES TOOL, PELLETS TOOL, CHARCOAL TOOL, BIOGAS COMMUNITY TOOL, BIOGAS INDUSTRIAL, SVO TOOL, GASIFICATION TOOL,  COMBUSTION TOOL, CHP (COGENERATION) TOOL"}]
[]
[]
[null,{"$f":"title16","v":"Country:"},null,null,null,null,null,{"$f":"title18","v":"Focal person:"}]
[null,{"$f":"title17","v":"USD currency exchange rate:"},null,null,null,null,null,{"$f":"title19","v":"Date:"}]
[]
[null,{"$f":"title389","v":"1. Economics and Finance"}]
[]
[null,{"$f":"title21","v":"Data required"},null,null,null,null,null,{"$f":"title22","v":"Instructions and explanatory notes"}]
[null,null,null,null,null,null,null,{"$f":"title670","v":"The tables below collects information on economic and financial parameters required within the BEFS RA tools listed above. The title described the data required and further on the tool within which the data is used.  "}]
[null,{"$f":"title391","v":"1.1       Financial Rates"}]
[null,{"$f":"title392","v":"Discount rate (%)"},null,null,null,null,null,{"$f":"title48","v":"Table content:  "}]
[null,{"$f":"title393","v":"Loan interest rate (max) (%)        "},null,null,null,null,null,{"$f":"title396","v":"This table collects information on the discount rate used as interest rate to determine the present value of a future value by discounting. It is also required the loan interest rate, capital interest rate and inflation rate."}]
[null,{"$f":"title394","v":"Loan interest rate (min) (%)"}]
[null,{"$f":"title395","v":"Capital interest rate (%)"}]
[null,"Sources:\n",null,null,null,null,null,{"$f":"title22","v":"Instructions and explanatory notes"}]
[null,null,null,null,null,null,null,{"$f":"title397","v":"All tables below request information on loan parameters. The tables are divided by biofuel type. If there is no difference or data by sector does not exist please make a note accordingly."}]
[null,{"$f":"title398","v":"1.2       Typical loan parameters for liquid biofuel plants investment"}]
[null,{"$f":"title399","v":"Loan ratio (%) for 5ML, 25ML, 50ML, 100ML plant size"}]
[null,{"$f":"title400","v":"Loan term (years) "}]
[null,{"$f":"title77","v":"Sources:"}]
[]
[null,{"$f":"title403","v":"1.3       Typical loan parameters for charcoal factories investment"}]
[null,{"$f":"title401","v":"Loan ratio (%) "}]
[null,{"$f":"title77","v":"Sources:"}]
[]
[null,{"$f":"title404","v":"1.4       Typical loan parameters for briquettes/pellets factories investment"}]
[null,{"$f":"title401","v":"Loan ratio (%) "}]
[null,{"$f":"title400","v":"Loan term (years) "}]
[null,{"$f":"title77","v":"Sources:"}]
[]
[null,{"$f":"title405","v":"1.5       Typical loan parameters for rural electricity plants investment"}]
[null,{"$f":"title401","v":"Loan ratio (%) "}]
[null,{"$f":"title400","v":"Loan term (years) "}]
[null,{"$f":"title77","v":"Sources:"}]
[]
[null,{"$f":"title406","v":"1.6       Typical loan parameters for biogas community plants investment"}]
[null,{"$f":"title401","v":"Loan ratio (%) "}]
[null,{"$f":"title400","v":"Loan term (years) "}]
[null,{"$f":"title77","v":"Sources:"}]
[]
[null,{"$f":"title407","v":"1.7       Typical loan parameters for biogas industrial plants investment"}]
[null,{"$f":"title402","v":"Loan ratio (%) for Size 1, Size 2, Size 3, Size 4 "},null,null,null,null,null,{"$f":"title409","v":"In the Biogas Industrial tool, plant sizes are defined by the user. The defaults values in the tool are: 250 kWe, 1000 kWe, 10000 kWe, and 50000 kWe."}]
[null,{"$f":"title400","v":"Loan term (years) "}]
[null,{"$f":"title77","v":"Sources:"}]
[]
[null,{"$f":"title408","v":"1.8       Typical loan parameters for CHP (cogeneration) plants investment"}]
[null,{"$f":"title401","v":"Loan ratio (%) "}]
[null,{"$f":"title400","v":"Loan term (years) "}]
[null,{"$f":"title77","v":"Sources:"}]
[]
[null,{"$f":"title257","v":"Disclaimer"}]
[null,{"$f":"title258","v":"FAO declines all responsibility for errors or deficiencies in the database or software or in the documentation accompanying it, for program maintenance and upgrading as well as for any damage that may arise from them. FAO also declines any responsibility for updating the data and assumes no responsibility for errors and omissions in the data provided. Users are, however, kindly asked to report any errors or deficiencies in this product to FAO. The choices of calculation made in this tool are those of the author(s) and do not necessarily reflect the views  and choices of the Food and Agriculture Organization of the United Nations."}]

{"sheet":"Energy & Industry","index":7,"n_rows":385,"n_cols":11,"rows_kept":385,"cut":false,"hidden":true,"merged":[[250,1,250,5],[228,1,228,5],[205,2,205,7],[229,1,229,5],[267,1,267,5],[190,1,190,7],[191,1,191,5],[192,1,192,5],[193,1,193,7],[194,1,194,5],[195,1,195,5],[234,1,234,5],[221,1,221,5],[255,1,255,5],[256,1,256,5],[236,1,236,5],[220,1,220,5],[246,1,246,5],[249,1,249,5],[145,1,145,5],[146,1,146,5],[152,1,152,5],[153,1,153,5],[154,2,154,7],[169,1,169,7],[178,1,178,5],[179,1,179,5],[180,1,180,5],[149,1,149,5],[147,1,147,5],[148,1,148,5],[151,1,151,5],[150,1,150,5],[181,1,181,5],[182,1,182,5],[86,2,86,7],[29,1,29,5],[30,1,30,5],[34,1,34,5],[37,1,37,5],[45,1,45,5],[46,1,46,5],[32,1,32,5],[44,1,44,5],[38,1,38,5],[39,1,39,5],[40,1,40,5],[41,1,41,5],[84,1,84,5],[85,1,85,5],[82,1,82,5],[59,1,59,5],[57,1,57,5],[36,1,36,5],[55,1,55,5],[49,1,49,5],[47,1,47,5],[67,1,67,5],[53,1,53,5],[25,1,25,5],[26,1,26,5],[27,1,27,5],[28,1,28,5],[35,1,35,5],[33,1,33,5],[27,9,28,14],[30,9,32,14],[52,1,52,5],[31,1,31,5],[50,1,50,5],[51,1,51,5],[81,1,81,5],[66,9,66,14],[8,1,8,2],[8,3,8,10],[9,1,9,2],[9,3,9,10],[10,3,11,10],[14,7,14,8],[13,7,13,8],[14,9,14,13],[13,9,13,13],[13,2,13,4],[14,3,14,4],[10,1,11,2],[54,1,54,5],[19,9,19,14],[22,1,22,5],[22,9,22,14],[33,9,34,14],[42,1,42,5],[43,1,43,5],[48,1,48,5],[23,1,23,5],[24,1,24,5],[106,1,106,5],[107,1,107,5],[89,9,89,14],[90,1,90,5],[91,1,91,5],[91,9,93,14],[92,1,92,5],[93,1,93,5],[48,9,60,14],[78,9,78,13],[83,1,83,5],[68,1,68,5],[69,1,69,5],[72,2,72,7],[77,1,77,5],[78,1,78,5],[79,1,79,5],[68,9,69,14],[56,1,56,5],[58,1,58,5],[60,1,60,5],[61,2,61,7],[66,1,66,5],[80,1,80,5],[94,1,94,5],[95,1,95,5],[96,1,96,5],[97,1,97,5],[98,1,98,5],[99,1,99,5],[100,1,100,5],[101,1,101,5],[102,1,102,5],[98,10,102,14],[95,10,96,14],[139,9,139,14],[140,1,140,5],[111,1,111,5],[117,2,117,7],[121,1,121,7],[121,9,121,14],[122,1,122,5],[123,1,123,5],[113,1,113,5],[114,1,114,5],[115,1,115,5],[116,1,116,5],[112,1,112,5],[136,1,136,5],[137,2,137,7],[139,1,139,7],[103,1,103,5],[104,1,104,5],[105,1,105,5],[108,1,108,5],[109,1,109,5],[110,1,110,5],[176,1,176,5],[198,1,198,5],[177,1,177,5],[196,1,196,7],[197,1,197,5],[184,1,184,7],[185,1,185,5],[186,1,186,5],[187,1,187,7],[188,1,188,5],[189,1,189,5],[156,9,156,14],[156,1,156,7],[157,1,157,5],[161,1,161,5],[166,1,166,5],[167,2,167,7],[162,1,162,5],[163,1,163,5],[164,1,164,5],[165,1,165,5],[264,1,264,5],[265,1,265,5],[266,1,266,5],[262,1,262,5],[183,1,183,5],[239,1,239,5],[268,1,268,5],[245,1,245,5],[199,1,199,7],[200,1,200,5],[201,1,201,5],[202,1,202,7],[203,1,203,5],[204,1,204,5],[230,1,230,5],[231,1,231,5],[233,1,233,5],[242,1,242,5],[257,1,257,7],[258,1,258,5],[259,1,259,5],[244,1,244,5],[235,1,235,5],[232,1,232,5],[350,1,350,5],[352,1,352,5],[353,1,353,5],[327,1,327,5],[329,1,329,5],[316,1,316,5],[317,1,317,5],[330,1,330,5],[325,1,325,5],[326,1,326,5],[318,1,318,5],[319,1,319,5],[322,1,322,5],[323,1,323,5],[344,1,344,5],[346,9,346,13],[331,1,331,5],[377,1,377,5],[378,1,378,5],[355,1,355,5],[169,9,169,14],[170,1,170,5],[172,1,172,5],[173,1,173,5],[174,1,174,5],[175,1,175,5],[222,1,222,5],[223,1,223,5],[224,2,224,7],[210,1,210,5],[208,1,208,7],[216,1,216,5],[218,1,218,5],[219,1,219,5],[217,1,217,5],[296,2,296,7],[278,1,278,7],[272,1,272,7],[283,1,283,7],[384,1,387,14],[374,1,374,5],[375,1,375,5],[376,1,376,5],[379,1,379,5],[381,2,381,7],[383,1,383,14],[354,1,354,5],[357,1,357,5],[358,1,358,5],[359,1,359,5],[371,1,371,5],[373,1,373,5],[380,1,380,5],[362,1,362,5],[363,1,363,5],[364,1,364,5],[367,1,367,5],[369,1,369,5],[368,1,368,5],[306,1,306,5],[309,1,309,5],[310,1,310,5],[261,1,261,5],[263,1,263,5],[288,1,288,5],[231,9,236,14],[209,1,209,5],[214,1,214,5],[215,1,215,5],[226,1,226,7],[226,9,226,14],[279,1,279,5],[286,1,286,5],[287,1,287,5],[280,1,280,5],[307,1,307,5],[305,1,305,5],[304,1,304,5],[303,1,303,5],[302,1,302,5],[308,1,308,5],[289,1,289,7],[276,1,276,5],[345,1,345,5],[344,9,344,12],[345,9,345,12],[348,1,348,5],[349,1,349,5],[342,1,342,7],[143,9,146,14],[158,9,161,14],[238,1,238,5],[240,1,240,5],[241,1,241,5],[270,2,270,7],[314,1,314,7],[315,1,315,5],[260,1,260,5],[243,1,243,5],[251,1,251,5],[252,1,252,5],[254,1,254,5],[301,1,301,5],[299,1,299,5],[298,1,298,7],[290,1,290,5],[208,9,208,14],[292,1,292,5],[293,1,293,5],[295,1,295,5],[291,1,291,5],[294,1,294,5],[273,1,273,7],[342,9,342,14],[343,1,343,5],[300,1,300,5],[336,1,336,5],[333,1,333,5],[334,1,334,5],[335,1,335,5],[338,2,338,7],[312,2,312,7],[311,1,311,5],[274,1,274,5],[275,1,275,5],[281,1,281,5],[282,1,282,5],[277,1,277,5],[284,1,284,5],[285,1,285,5],[343,9,343,14]]}
[]
[null,{"$f":"title2","v":"BEFS Rapid Appraisal"}]
[null,{"$f":"title3","v":"Data Collection"}]
[]
[]
[]
[]
[]
[null,{"$f":"title6","v":"Data collection area"},null,{"$f":"title410","v":"ENERGY and INDUSTRY"}]
[null,{"$f":"title7","v":"Sections of the data collection sheet:"},null,{"$f":"title411","v":"1. Energy and Industry"}]
[null,{"$f":"title8","v":"BEFS RA use: "},null,{"$f":"title412","v":"Section 1:  Energy and Industry collects data for use in the COUNTRY STATUS TOOL, TRANSPORT TOOL, BRIQUETTES TOOL, PELLETS TOOL, CHARCOAL TOOL, BIOGAS COMMUNITY TOOL, BIOGAS INDUSTRIAL, SVO TOOL, GASIFICATION TOOL, COMBUSTION TOOL, CHP (COGENERATION) TOOL"}]
[]
[]
[null,{"$f":"title16","v":"Country:"},null,null,null,null,null,{"$f":"title18","v":"Focal person:"}]
[null,{"$f":"title17","v":"USD currency exchange rate:"},null,null,null,null,null,{"$f":"title19","v":"Date:"}]
[]
[null,{"$f":"title411","v":"1. Energy and Industry"}]
[]
[null,{"$f":"title21","v":"Data required"},null,null,null,null,null,null,null,{"$f":"title22","v":"Instructions and explanatory notes"}]
[null,null,null,null,null,null,null,null,null,{"$f":"title413","v":"The tables below collects information on a number of energy related data required within the BEFS RA tools listed above. The title described the data required and further on the tool within which the data is used.  "}]
[null,{"$f":"title414","v":"1.1      Energy and product market prices"}]
[]
[null,{"$f":"title415","v":"Diesel free on board (FOB)*"},null,null,null,null,"USD/l"]
[null,{"$f":"title416","v":"Gasoline FOB "},null,null,null,null,"USD/l"]
[null,{"$f":"title417","v":"Diesel factory gate (FGP)*"},null,null,null,null,"USD/l",null,null,{"$f":"title454","v":"* Definition:"}]
[null,{"$f":"title418","v":"Gasoline FGP"},null,null,null,null,"USD/l",null,null,{"$f":"title455","v":"FOB: Free on board."}]
[null,{"$f":"title419","v":"Biodiesel FOB "},null,null,null,null,"USD/l",null,null,{"$f":"title456","v":"FGP: Factory gate price."}]
[null,{"$f":"title420","v":"Ethanol FOB "},null,null,null,null,"USD/l",null,null,{"$f":"title457","v":"Meal: Seed cake or kernel meal obtained after oil extraction."}]
[null,{"$f":"title421","v":"Biodiesel FGP "},null,null,null,null,"USD/l"]
[null,{"$f":"title422","v":"Ethanol FGP "},null,null,null,null,"USD/l",null,null,{"$f":"title458","v":"DDGS: Dried distillers grains with solubles."}]
[null,{"$f":"title423","v":"Diesel at the pump"},null,null,null,null,"USD/l",null,null,{"$f":"title459","v":"Digestate: Fertilizer obtained from biogas production, also known as bioslurry."}]
[null,{"$f":"title825","v":"Gasoline at the pump"},null,null,null,null,"USD/l"]
[null,{"$f":"title424","v":"Distance from nearest port to main city"},null,null,null,null,"km"]
[null,{"$f":"title425","v":"Heat cost (industry)"},null,null,null,null,"USD/GJ"]
[null,{"$f":"title426","v":"Heat selling price (industry) "},null,null,null,null,"USD/GJ"]
[null,{"$f":"title427","v":"Biogas selling price (industry) "},null,null,null,null,"USD/m3"]
[null,{"$f":"title428","v":"Kerosene (rural areas)"},null,null,null,null,"USD/l"]
[null,{"$f":"title429","v":"Kerosene (urban areas)"},null,null,null,null,"USD/l"]
[null,{"$f":"title430","v":"LPG (rural areas)"},null,null,null,null,"USD/l"]
[null,{"$f":"title431","v":"LPG (urban areas)"},null,null,null,null,"USD/l"]
[null,{"$f":"title432","v":"Natural gas (rural areas)"},null,null,null,null,"USD/m3"]
[null,{"$f":"title433","v":"Natural gas (urban areas)"},null,null,null,null,"USD/m3"]
[null,{"$f":"title434","v":"Natural gas (industry)"},null,null,null,null,"USD/m3"]
[null,{"$f":"title435","v":"Biomethane selling price (industry) "},null,null,null,null,"USD/m3"]
[null,{"$f":"title436","v":"Electricity selling price (industry) "},null,null,null,null,"USD/kWh"]
[null,{"$f":"title437","v":"Electricity cost (rural areas)"},null,null,null,null,"USD/kWh"]
[null,{"$f":"title438","v":"Electricity cost (urban areas)"},null,null,null,null,"USD/kWh"]
[null,{"$f":"title439","v":"Electricity cost (industry)"},null,null,null,null,"USD/kWh"]
[null,{"$f":"title440","v":"Fuel wood (rural areas)"},null,null,null,null,"USD/kg"]
[null,{"$f":"title441","v":"Fuel wood (urban areas)"},null,null,null,null,"USD/kg"]
[null,{"$f":"title442","v":"Briquettes/Pellets (rural areas)"},null,null,null,null,"USD/t"]
[null,{"$f":"title443","v":"Briquettes/Pellets (urban areas)"},null,null,null,null,"USD/t"]
[null,{"$f":"title444","v":"Charcoal (rural areas)"},null,null,null,null,"USD/kg"]
[null,{"$f":"title445","v":"Charcoal (urban areas)"},null,null,null,null,"USD/kg"]
[null,{"$f":"title446","v":"Charcoal (industry)"},null,null,null,null,"USD/kg"]
[null,{"$f":"title447","v":"Coal (rural areas)"},null,null,null,null,"USD/kg"]
[null,{"$f":"title448","v":"Coal (urban areas)"},null,null,null,null,"USD/kg"]
[null,{"$f":"title450","v":"Digestate market price "},null,null,null,null,"USD/t "]
[null,{"$f":"title451","v":"Raw glycerol"},null,null,null,null,"USD/t "]
[null,{"$f":"title452","v":"Meal*"},null,null,null,null,"USD/t "]
[null,{"$f":"title453","v":"DDGS*"},null,null,null,null,"USD/t "]
[null,{"$f":"title77","v":"Sources:"}]
[]
[null,{"$f":"title460","v":"1.2      Utilities prices"}]
[]
[null,{"$f":"title826","v":"Water (agriculture)"},null,null,null,null,"USD/m3"]
[null,{"$f":"title461","v":"Water (urban areas)"},null,null,null,null,"USD/m3"]
[null,{"$f":"title462","v":"Water (rural areas)"},null,null,null,null,"USD/m3",null,null,{"$f":"title465","v":"Note: "}]
[null,{"$f":"title463","v":"Water (industrial)"},null,null,null,null,"USD/m3",null,null,{"$f":"title466","v":"Heat carrier is the cost of low pressure steam production. "}]
[null,{"$f":"title827","v":"Heat carrier (steam generation cost - low pressure)"},null,null,null,null,{"$f":"title829","v":"USD/t steam"}]
[null,{"$f":"title828","v":"Fuel used for steam generation"}]
[null,{"$f":"title77","v":"Sources:"}]
[]
[]
[null,{"$f":"title468","v":"1.3      Industrial input prices"}]
[]
[null,{"$f":"title469","v":"1.3.1       Transport (Biodiesel and Ethanol)/Biogas Industrial"}]
[null,{"$f":"title470","v":"Methanol "},null,null,null,null,"USD/t",null,null,{"$f":"title465","v":"Note: "}]
[null,{"$f":"title471","v":"Sodium hydroxide "},null,null,null,null,"USD/t",null,null,{"$f":"title669","v":"If the specific data of the country is not available, consult the following link."}]
[null,{"$f":"title472","v":"Hexane "},null,null,null,null,"USD/t",null,null,"http://www.icis.com/chemicals/channel-info-chemicals-a-z/"]
[null,{"$f":"title473","v":"Ammonia"},null,null,null,null,"USD/t"]
[null,{"$f":"title474","v":"Yeast"},null,null,null,null,"USD/t"]
[null,{"$f":"title475","v":"Sulfuric acid"},null,null,null,null,"USD/t"]
[null,{"$f":"title476","v":"Lime"},null,null,null,null,"USD/t"]
[null,{"$f":"title477","v":"Alpha-amylase"},null,null,null,null,"USD/t"]
[null,{"$f":"title478","v":"Glucoamylase"},null,null,null,null,"USD/t"]
[null,{"$f":"title77","v":"Sources:"}]
[]
[]
[null,{"$f":"title479","v":"1.3.2       Biogas Community/Charcoal"}]
[null,{"$f":"title480","v":"Bricks "},null,null,null,null,"USD/pc",null,null,{"$f":"title48","v":"Table content:  "}]
[null,{"$f":"title481","v":"Cement 50 kg bag"},null,null,null,null,{"$f":"title506","v":"USD/bag"},null,null,{"$f":"title508","v":"This table collects information on the prices of construction material required for contructioning the biodigestor reactor."}]
[null,{"$f":"title482","v":"Plastic valve 1/2''"},null,null,null,null,{"$f":"title857","v":"USD/pc"}]
[null,{"$f":"title483","v":"Plastic hub 1/2''"},null,null,null,null,{"$f":"title857","v":"USD/pc"}]
[null,{"$f":"title484","v":"Concrete"},null,null,null,null,"USD/m3",null,null,{"$f":"title81","v":"Notes:"}]
[null,{"$f":"title485","v":"Oil drum (200 litres)"},null,null,null,null,{"$f":"title507","v":"USD/unit"},null,null,{"$f":"title509","v":"Main valve "},{"$f":"title510","v":"- standard gas shut off valve for the stove. It costs around 11 USD/pc in the USA. "}]
[null,{"$f":"title486","v":"Angle iron for frame 40 x 50 x 5 mm"},null,null,null,null,{"$f":"title507","v":"USD/unit"}]
[null,{"$f":"title487","v":"Sand"},null,null,null,null,"USD/m3"]
[null,{"$f":"title488","v":"Pneumatic league"},null,null,null,null,"USD/m",null,null,{"$f":"title511","v":"Mixing device"},{"$f":"title512","v":"- refers to any type of equipment used to dilute manure in water. The standard mixing device is a plastic bucket. However, cut oil drums or bins may also be used. "}]
[null,{"$f":"title489","v":"Gravel"},null,null,null,null,"USD/m3"]
[null,{"$f":"title490","v":"H2S filter"},null,null,null,null,"USD/set"]
[null,{"$f":"title491","v":"Paint"},null,null,null,null,"USD/l"]
[null,{"$f":"title492","v":"Main valve"},null,null,null,null,{"$f":"title857","v":"USD/pc"}]
[null,{"$f":"title493","v":"Net cyclone 4'' feet"},null,null,null,null,{"$f":"title857","v":"USD/pc"}]
[null,{"$f":"title494","v":"Mixing device"},null,null,null,null,{"$f":"title857","v":"USD/pc"}]
[null,{"$f":"title495","v":"Zinc sheets"},null,null,null,null,"USD/kg"]
[null,{"$f":"title496","v":"Metal sheet (thickness 30 mm)"},null,null,null,null,"USD/m2"]
[null,{"$f":"title497","v":"Gas stove"},null,null,null,null,{"$f":"title857","v":"USD/pc"}]
[null,{"$f":"title868","v":"Steel sheet density"}]
[null,{"$f":"title498","v":"Plastic bag (polyethylene 0,2 mm thick)"},null,null,null,null,"USD/m"]
[null,{"$f":"title499","v":"Gas light"},null,null,null,null,{"$f":"title857","v":"USD/pc"}]
[null,{"$f":"title500","v":"Pressure manometer"},null,null,null,null,{"$f":"title857","v":"USD/pc"}]
[null,{"$f":"title501","v":"Axe"},null,null,null,null,{"$f":"title507","v":"USD/unit"}]
[null,{"$f":"title502","v":"Hoe"},null,null,null,null,{"$f":"title507","v":"USD/unit"}]
[null,{"$f":"title503","v":"Machete"},null,null,null,null,{"$f":"title507","v":"USD/unit"}]
[null,{"$f":"title504","v":"Shovel"},null,null,null,null,{"$f":"title507","v":"USD/unit"}]
[null,{"$f":"title505","v":"Fork rake"},null,null,null,null,{"$f":"title507","v":"USD/unit"}]
[null,{"$f":"title77","v":"Sources:"}]
[]
[null,{"$f":"title513","v":"1.4       Storage, logistic and other technical data"}]
[]
[null,{"$f":"title514","v":"1.4.1       Transport (Biodiesel and Ethanol)"}]
[null,{"$f":"title515","v":"Biodiesel storage cost"},null,null,null,null,{"$f":"title524","v":"USD/l/year"}]
[null,{"$f":"title516","v":"Ethanol storage cost"},null,null,null,null,{"$f":"title524","v":"USD/l/year"}]
[null,"Storage rate of biodiesel",null,null,null,null,"%"]
[null,{"$f":"title830","v":"Storage rate of ethanol"},null,null,null,null,"%"]
[null,{"$f":"title831","v":"Working days per year"},null,null,null,null,{"$f":"title833","v":"days/year"}]
[null,{"$f":"title832&\" 1 (5 ML)\"","v":"Distance Size 1 (5 ML)"},null,null,null,null,"km"]
[null,{"$f":"title832&\" 2 (5 ML)\"","v":"Distance Size 2 (5 ML)"},null,null,null,null,"km"]
[null,{"$f":"title832&\" 3 (5 ML)\"","v":"Distance Size 3 (5 ML)"},null,null,null,null,"km"]
[null,{"$f":"title832&\" 4 (5 ML)\"","v":"Distance Size 4 (5 ML)"},null,null,null,null,"km"]
[null,{"$f":"title517","v":"Safety storage rate: 5 ML"},null,null,null,null,"%"]
[null,{"$f":"title518","v":"Safety storage rate: 25 ML"},null,null,null,null,"%"]
[null,{"$f":"title519","v":"Safety storage rate: 50 ML"},null,null,null,null,"%"]
[null,{"$f":"title520","v":"Safety storage rate: 100 ML"},null,null,null,null,"%"]
[null,{"$f":"title522","v":"Transportation cost of biomass (farm to plant)"},null,null,null,null,"USD/t/km"]
[null,{"$f":"title523","v":"Typical distance to waste treatment plants"},null,null,null,null,"km"]
[null,{"$f":"title77","v":"Sources:"}]
[]
[null,{"$f":"title525","v":"1.4.2       Briquettes/Pellets"}]
[null,{"$f":"title526","v":"Biomass storage cost"},null,null,null,null,"USD/t"]
[null,{"$f":"title527","v":"Safety storage rate: 4 kg/h"},null,null,null,null,"%"]
[null,{"$f":"title528","v":"Safety storage rate: 40 kg/h"},null,null,null,null,"%",null,null,{"$f":"title465","v":"Note: "}]
[null,{"$f":"title529","v":"Safety storage rate: 400 kg/h"},null,null,null,null,"%",null,null,{"$f":"title663","v":"When applicable enter values for manual, small, medium and large scale production for typical distance."}]
[null,{"$f":"title530","v":"Safety storage rate: 3000 kg/h"},null,null,null,null,"%"]
[null,{"$f":"title531","v":"Typical distance between biomass collection point and briquette/pellet factories (manual, small, medium and large scale production)"},null,null,null,null,"km"]
[null,{"$f":"title532","v":"Typical distance between biomass briquette/pellet factories and market    (manual, small, medium and large scale production)"},null,null,null,null,"km"]
[null,{"$f":"title657","v":"Operating days per year"},null,null,null,null,{"$f":"title554","v":"days"}]
[null,{"$f":"title912","v":"Safety storage rate"},null,null,null,null,"%"]
[null,{"$f":"title658&title914","v":"Operating hours per day (manual)"},null,null,null,null,{"$f":"title662","v":"hours"}]
[null,{"$f":"title658&title915","v":"Operating hours per day (semi-mechanized)"},null,null,null,null,{"$f":"title662","v":"hours"}]
[null,{"$f":"title913","v":"Transformation efficiency (%)"},null,null,null,null,"%"]
[null,{"$f":"title533","v":"Transportation cost of biomass (farm to briquettes/pellets plant)"},null,null,null,null,"USD/t/km"]
[null,{"$f":"title534","v":"Transportation cost of briquettes/pellets (briquettes/pellets plant to market)"},null,null,null,null,"USD/t/km"]
[null,{"$f":"title77","v":"Sources:"}]
[]
[null,{"$f":"title535","v":"1.4.3       CHP (Cogeneration)"}]
[null,{"$f":"title831","v":"Working days per year"},null,null,null,null,{"$f":"title833","v":"days/year"},null,null,{"$f":"title465","v":"Note: "}]
[null,{"$f":"title537","v":"Safety storage rate: Tech 1"},null,null,null,null,"%",null,null,{"$f":"title664","v":"Tech 1 is a simple technology (condensing turbine), Tech 2 is a semi-advanced technology (back-pressure steam turbine), and Tech 3 is an advanced technology (biomass gasification combined cycle). "}]
[null,{"$f":"title538","v":"Safety storage rate: Tech 2"},null,null,null,null,"%"]
[null,{"$f":"title539","v":"Safety storage rate: Tech 3"},null,null,null,null,"%"]
[null,{"$f":"title540","v":"Transportation cost of feedstock (collection point to cogeneration plant)"},null,null,null,null,"USD/t/km"]
[null,{"$f":"title834","v":"Heat loss in distribution (%)"},"Heat loss in distribution (%)","Heat loss in distribution (%)","Heat loss in distribution (%)","Heat loss in distribution (%)","%"]
[null,{"$f":"title835","v":"Power loss in distribution (%)"},"Power loss in distribution (%)","Power loss in distribution (%)","Power loss in distribution (%)","Power loss in distribution (%)","%"]
[null,{"$f":"title836","v":"Power - self use (%)"},"Power - self use (%)","Power - self use (%)","Power - self use (%)","Power - self use (%)","%"]
[null,{"$f":"title658","v":"Operating hours per day"},"Operating hours per day","Operating hours per day","Operating hours per day","Operating hours per day","h"]
[null,{"$f":"title837","v":"Transportation distance (collection point to cogeneration plant)"},null,null,null,null,"km"]
[null,{"$f":"title77","v":"Sources:"}]
[]
[null,{"$f":"title542","v":"1.4.4      Charcoal"}]
[null,{"$f":"title543","v":"Feedstock storage cost "},null,null,null,null,"USD/t"]
[null,{"$f":"title869","v":"Charcoal storage cost"},null,null,null,null,"USD/t"]
[null,{"$f":"title544","v":"Wood residues drying period"},null,null,null,null,{"$f":"title554","v":"days"}]
[null,{"$f":"title545","v":"Wood residues safety storage rate"},null,null,null,null,"%"]
[null,{"$f":"title546","v":"Transportation cost of wood residues"},null,null,null,null,"USD/t/km"]
[null,{"$f":"title547","v":"Transportation cost of charcoal"},null,null,null,null,"USD/t/km"]
[null,{"$f":"title870","v":"Share of market price paid to small scale producers"},null,null,null,null,"%"]
[null,{"$f":"title871","v":"Share of market price paid to medium and large scale producers"},null,null,null,null,"%"]
[null,{"$f":"title548","v":"Typical distance between field and charcoal factories "},null,null,null,null,"km"]
[null,{"$f":"title549","v":"Typical distance between charcoal factories and market "},null,null,null,null,"km"]
[null,{"$f":"title550","v":"Typical distance between collection point and kiln "},null,null,null,null,"km"]
[null,{"$f":"title551","v":"Transportation cost collection point to kiln"},null,null,null,null,"USD/t/km"]
[null,{"$f":"title552","v":"Typical distance between kiln and market"},null,null,null,null,"km"]
[null,{"$f":"title553","v":"Transportation cost kiln to market"},null,null,null,null,"USD/t/km"]
[null,{"$f":"title872","v":"Oil drum"}]
[null,{"$f":"title658&\" (max. 8h)\"","v":"Operating hours per day (max. 8h)"},null,null,null,null,{"$f":"title592","v":"h/day"}]
[null,{"$f":"title657","v":"Operating days per year"},null,null,null,null,{"$f":"title833","v":"days/year"}]
[null,{"$f":"title873","v":"Casamance"}]
[null,{"$f":"title658&\" (max. 8h)\"","v":"Operating hours per day (max. 8h)"},null,null,null,null,{"$f":"title592","v":"h/day"}]
[null,{"$f":"title657","v":"Operating days per year"},null,null,null,null,{"$f":"title833","v":"days/year"}]
[null,{"$f":"title874","v":"Improved pit Liberia"}]
[null,{"$f":"title658&\" (max. 8h)\"","v":"Operating hours per day (max. 8h)"},null,null,null,null,{"$f":"title592","v":"h/day"}]
[null,{"$f":"title657","v":"Operating days per year"},null,null,null,null,{"$f":"title833","v":"days/year"}]
[null,{"$f":"title875","v":"Portable steel kiln"}]
[null,{"$f":"title658&\" (max. 8h)\"","v":"Operating hours per day (max. 8h)"},null,null,null,null,{"$f":"title592","v":"h/day"}]
[null,{"$f":"title657","v":"Operating days per year"},null,null,null,null,{"$f":"title833","v":"days/year"}]
[null,{"$f":"title876","v":"Standard Beehive"}]
[null,{"$f":"title658&\" (max. 8h)\"","v":"Operating hours per day (max. 8h)"},null,null,null,null,{"$f":"title592","v":"h/day"}]
[null,{"$f":"title657","v":"Operating days per year"},null,null,null,null,{"$f":"title833","v":"days/year"}]
[null,{"$f":"title877","v":"Missouri"}]
[null,{"$f":"title658&\" (max. 8h)\"","v":"Operating hours per day (max. 8h)"},null,null,null,null,{"$f":"title592","v":"h/day"}]
[null,{"$f":"title657","v":"Operating days per year"},null,null,null,null,{"$f":"title833","v":"days/year"}]
[null,{"$f":"title878","v":"Somalia mound"}]
[null,{"$f":"title658&\" (max. 8h)\"","v":"Operating hours per day (max. 8h)"},null,null,null,null,{"$f":"title592","v":"h/day"}]
[null,{"$f":"title657","v":"Operating days per year"},null,null,null,null,{"$f":"title833","v":"days/year"}]
[null,{"$f":"title77","v":"Sources:"}]
[]
[]
[null,{"$f":"title556","v":"1.4.5       SVO/Gasification/Combustion"}]
[null,{"$f":"title557","v":"Feedstock storage cost (oilseeds)"},null,null,null,null,"USD/t"]
[null,{"$f":"title838","v":"Feedstock storage cost (biomass residues)"},null,null,null,null,"USD/t"]
[null,{"$f":"title559","v":"Safety storage rate: 10 kW"},null,null,null,null,"%"]
[null,{"$f":"title560","v":"Safety storage rate: 40 kW"},null,null,null,null,"%"]
[null,{"$f":"title561","v":"Safety storage rate: 100 kW"},null,null,null,null,"%"]
[null,{"$f":"title562","v":"Transportation cost of biomass residues"},null,null,null,null,"USD/t/km"]
[null,{"$f":"title563","v":"Transportation cost of oilseeds"},null,null,null,null,"USD/t/km"]
[null,{"$f":"title839","v":"Power loss due to operation (%) - Combustion"},null,null,null,null,"%"]
[null,{"$f":"title840","v":"Power loss due to operation (%) - Gasification"},null,null,null,null,"%"]
[null,{"$f":"title658","v":"Operating hours per day"},null,null,null,null,"h"]
[null,{"$f":"title841","v":"Power loss in distribution network (%)"},null,null,null,null,"%"]
[null,{"$f":"title916&title917","v":"Engine efficiency (%) - (Gasification)"},null,null,null,null,"%"]
[null,{"$f":"title916&title918","v":"Engine efficiency (%) - (SVO)"},null,null,null,null,"%"]
[null,{"$f":"title564","v":"Typical distance between biomass collection point and electricity plant (small, medium and large scale production)"},null,null,null,null,"km"]
[null,{"$f":"title565","v":"Electricity consumption per household (average)"},null,null,null,null,{"$f":"title555","v":"kWh/month"}]
[null,{"$f":"title77","v":"Sources:"}]
[]
[null,{"$f":"title566","v":"1.4.6      Biogas Community/Biogas Industrial/Briquettes/Pellets/Charcoal/CHP (Cogeneration)/Country Status - Profile of energy consumption per household and industry"}]
[null,{"$f":"title580","v":"Energy consumption per rural household"}]
[null,{"$f":"title581","v":"Coal"},null,null,null,null,{"$f":"title594","v":"kg/day"}]
[null,{"$f":"title582","v":"Briquettes/Pellets"},null,null,null,null,{"$f":"title594","v":"kg/day"}]
[null,{"$f":"title583","v":"Fuel wood"},null,null,null,null,{"$f":"title594","v":"kg/day"},null,null,{"$f":"title48","v":"Table content:  "}]
[null,{"$f":"title584","v":"Charcoal"},null,null,null,null,{"$f":"title594","v":"kg/day"},null,null,{"$f":"title665","v":"This table collects information on the time rural households employ in collecting fuelwood, dung and water, preparing manure for digester (mixing) and cooking using fuelwood. Moreover, the type and quantities of typical fuels used for heating and cooking and nutrients fertilizer consumption are needed."}]
[null,{"$f":"title585","v":"Natural gas"},null,null,null,null,{"$f":"title595","v":"m3/day"}]
[null,{"$f":"title586","v":"Kerosene"},null,null,null,null,{"$f":"title596","v":"l/day"}]
[null,{"$f":"title587","v":"LPG"},null,null,null,null,{"$f":"title596","v":"l/day"}]
[null,{"$f":"title671","v":"Heat"},null,null,null,null,{"$f":"title597","v":"kWhth/month"}]
[null,{"$f":"title589","v":"Electricity"},null,null,null,null,{"$f":"title598","v":"kWh/day"}]
[null,{"$f":"title590","v":"Energy consumption per urban household"}]
[null,{"$f":"title581","v":"Coal"},null,null,null,null,{"$f":"title594","v":"kg/day"}]
[null,{"$f":"title582","v":"Briquettes/Pellets"},null,null,null,null,{"$f":"title594","v":"kg/day"}]
[null,{"$f":"title583","v":"Fuel wood"},null,null,null,null,{"$f":"title594","v":"kg/day"}]
[null,{"$f":"title584","v":"Charcoal"},null,null,null,null,{"$f":"title594","v":"kg/day"}]
[null,{"$f":"title585","v":"Natural gas"},null,null,null,null,{"$f":"title595","v":"m3/day"}]
[null,{"$f":"title586","v":"Kerosene"},null,null,null,null,{"$f":"title596","v":"l/day"}]
[null,{"$f":"title587","v":"LPG"},null,null,null,null,{"$f":"title596","v":"l/day"}]
[null,{"$f":"+title671","v":"Heat"},null,null,null,null,{"$f":"title597","v":"kWhth/month"}]
[null,{"$f":"title589","v":"Electricity"},null,null,null,null,{"$f":"title598","v":"kWh/day"}]
[null,"Energy consumption by industry "]
[null,{"$f":"title843","v":"Option 1 - Charcoal"}]
[null,{"$f":"title583","v":"Fuel wood"},null,null,null,null,{"$f":"title594","v":"kg/day"}]
[null,{"$f":"title584","v":"Charcoal"},null,null,null,null,{"$f":"title594","v":"kg/day"}]
[null,{"$f":"title582","v":"Briquettes/Pellets"},null,null,null,null,{"$f":"title594","v":"kg/day"}]
[null,{"$f":"title587","v":"LPG"},null,null,null,null,{"$f":"title596","v":"l/day"}]
[null,"Fuel oil",null,null,null,null,{"$f":"title596","v":"l/day"}]
[null,{"$f":"title740","v":"Diesel"},null,null,null,null,{"$f":"title596","v":"l/day"}]
[null,{"$f":"title581","v":"Coal"},null,null,null,null,{"$f":"title594","v":"kg/day"}]
[null,{"$f":"title585","v":"Natural gas"},null,null,null,null,{"$f":"title595","v":"m3/day"}]
[null,{"$f":"title844","v":"Option 2 - CHP/Biogas Industrial"}]
[null,{"$f":"title845&\" 1\"","v":"Process 1"}]
[null,{"$f":"title589","v":"Electricity"},null,null,null,null,{"$f":"title599","v":"kWh/year"}]
[null,{"$f":"title588","v":"Heating"},null,null,null,null,{"$f":"title600","v":"MJ/year"}]
[null,{"$f":"title845&\" 2\"","v":"Process 2"}]
[null,{"$f":"title589","v":"Electricity"},null,null,null,null,{"$f":"title599","v":"kWh/year"}]
[null,{"$f":"title588","v":"Heating"},null,null,null,null,{"$f":"title600","v":"MJ/year"}]
[null,{"$f":"title845&\" 3\"","v":"Process 3"}]
[null,{"$f":"title589","v":"Electricity"},null,null,null,null,{"$f":"title599","v":"kWh/year"}]
[null,{"$f":"title588","v":"Heating"},null,null,null,null,{"$f":"title600","v":"MJ/year"}]
[null,{"$f":"title845&\" 4\"","v":"Process 4"}]
[null,{"$f":"title589","v":"Electricity"},null,null,null,null,{"$f":"title599","v":"kWh/year"}]
[null,{"$f":"title588","v":"Heating"},null,null,null,null,{"$f":"title600","v":"MJ/year"}]
[null,{"$f":"title77","v":"Sources:"}]
[]
[null,{"$f":"title603","v":"1.4.7       Traditional charcoal making"}]
[null,{"$f":"title604","v":"Charcoal subsistence producers data"}]
[null,{"$f":"title605","v":"Standard production rate"},null,null,null,null,{"$f":"title601","v":"t charcoal/year"}]
[null,{"$f":"title606","v":"Standard efficiency"},null,null,null,null,"%"]
[null,{"$f":"title879","v":"Average production cost"},null,null,null,null,"USD/t"]
[null,{"$f":"title880","v":"Average investment cost"},null,null,null,null,"USD"]
[null,{"$f":"title607","v":"Activities:"}]
[null,{"$f":"title608","v":"Biomass collection and preparation"},null,null,null,null,{"$f":"title602","v":"person-day"}]
[null,{"$f":"title609","v":"Kiln construction"},null,null,null,null,{"$f":"title602","v":"person-day"}]
[null,{"$f":"title610","v":"Operating kiln (loading and unloading included)"},null,null,null,null,{"$f":"title602","v":"person-day"}]
[null,{"$f":"title611","v":"Packing charcoal"},null,null,null,null,{"$f":"title602","v":"person-day"}]
[null,{"$f":"title612","v":"Charcoal commercial producers data"}]
[null,{"$f":"title605","v":"Standard production rate"},null,null,null,null,{"$f":"title601","v":"t charcoal/year"}]
[null,{"$f":"title606","v":"Standard efficiency"},null,null,null,null,"%"]
[null,{"$f":"title879","v":"Average production cost"},null,null,null,null,"USD/t"]
[null,{"$f":"title880","v":"Average investment cost"},null,null,null,null,"USD"]
[null,{"$f":"title881","v":"Feedstock cost"},null,null,null,null,"USD/t"]
[null,{"$f":"title607","v":"Activities:"}]
[null,{"$f":"title613","v":"Biomass preparation"},null,null,null,null,{"$f":"title602","v":"person-day"}]
[null,{"$f":"title609","v":"Kiln construction"},null,null,null,null,{"$f":"title602","v":"person-day"}]
[null,{"$f":"title610","v":"Operating kiln (loading and unloading included)"},null,null,null,null,{"$f":"title602","v":"person-day"}]
[null,{"$f":"title611","v":"Packing charcoal"},null,null,null,null,{"$f":"title602","v":"person-day"}]
[null,{"$f":"title614","v":"Supervising charcoal processing"},null,null,null,null,{"$f":"title602","v":"person-day"}]
[null,{"$f":"title615","v":"Transportation distance (Fs -> Plant)"},null,null,null,null,"km"]
[null,{"$f":"title77","v":"Sources:"}]
[]
[null,{"$f":"title616","v":"1.4.8       Biogas Industrial"}]
[null,{"$f":"title617","v":"Storage safety rate of biogas"},null,null,null,null,"%"]
[null,{"$f":"title618","v":"Feedstock storage cost (crops)"},null,null,null,null,"USD/t"]
[null,{"$f":"title619","v":"Feedstock storage cost (crop residues)"},null,null,null,null,"USD/t"]
[null,{"$f":"title620","v":"Feedstock storage cost (food processing residues)"},null,null,null,null,"USD/t"]
[null,{"$f":"title621","v":"Feedstock storage cost (biofuel residues)"},null,null,null,null,"USD/t"]
[null,{"$f":"title622","v":"Feedstock storage cost (manure)"},null,null,null,null,"USD/t"]
[null,{"$f":"title623","v":"Feedstock storage cost (other residue types)"},null,null,null,null,"USD/t"]
[null,{"$f":"title624","v":"Transportation cost of feedstock (collection point to plant) (crops)"},null,null,null,null,"USD/t/km"]
[null,{"$f":"title625","v":"Transportation cost of feedstock (collection point to plant) (crop residues)"},null,null,null,null,"USD/t/km"]
[null,{"$f":"title626","v":"Transportation cost of feedstock (collection point to plant) (food pro. residues)"},null,null,null,null,"USD/t/km"]
[null,{"$f":"title627","v":"Transportation cost of feedstock (collection point to plant) (biofuel residues)"},null,null,null,null,"USD/t/km"]
[null,{"$f":"title628","v":"Transportation cost of feedstock (collection point to plant) (manure)"},null,null,null,null,"USD/t/km"]
[null,{"$f":"title629","v":"Transportation cost of feedstock (collection point to plant) (other res. types)"},null,null,null,null,"USD/t/km"]
[null,{"$f":"title77","v":"Sources:"}]
[]
[null,{"$f":"title846","v":"1.4.9       Biogas Community"}]
[]
[null,{"$f":"title847","v":"Average annual temperature"},"Average annual temperature (°C)","Average annual temperature (°C)","Average annual temperature (°C)","Average annual temperature (°C)","°C"]
[null,{"$f":"title848","v":"Implementation of Biogas Programme (years)"},"Implementation of Biogas Programme (years)","Implementation of Biogas Programme (years)","Implementation of Biogas Programme (years)","Implementation of Biogas Programme (years)",{"$f":"title98","v":"years"}]
[null,{"$f":"title849","v":"Share of households collecting fuelwood"},"Implementation of Biogas Programme (years)","Implementation of Biogas Programme (years)","Implementation of Biogas Programme (years)","Implementation of Biogas Programme (years)","%"]
[null,{"$f":"title850","v":"Share of time dedicated to income generation"},"Implementation of Biogas Programme (years)","Implementation of Biogas Programme (years)","Implementation of Biogas Programme (years)","Implementation of Biogas Programme (years)","%"]
[null,{"$f":"title567","v":"Percentage of rural households collecting fuelwood"},null,null,null,null,"%"]
[null,{"$f":"title568","v":"Time consumption per household"}]
[null,{"$f":"title569","v":"Fuelwood collection"},null,null,null,null,{"$f":"title592","v":"h/day"}]
[null,{"$f":"title570","v":"Cooking using fuelwood"},null,null,null,null,{"$f":"title592","v":"h/day"}]
[null,{"$f":"title571","v":"Time consumption in biogas community production"}]
[null,{"$f":"title572","v":"Dung collection"},null,null,null,null,{"$f":"title592","v":"h/day"}]
[null,{"$f":"title573","v":"Water collection"},null,null,null,null,{"$f":"title592","v":"h/day"}]
[null,{"$f":"title574","v":"Mixing up dung in digestor"},null,null,null,null,{"$f":"title592","v":"h/day"}]
[null,{"$f":"title852","v":"Nutrients fertilizer prices (These can be calculated using crops tools)"}]
[null,{"$f":"title576","v":"Nitrogen"},null,null,null,null,"USD/kg"]
[null,{"$f":"title577","v":"Phosphorous"},null,null,null,null,"USD/kg"]
[null,{"$f":"title578","v":"Potassium"},null,null,null,null,"USD/kg"]
[null,{"$f":"title575","v":"Nutrients fertilizer consumption per household"}]
[null,{"$f":"title576","v":"Nitrogen"},null,null,null,null,{"$f":"title593","v":"kg/year"}]
[null,{"$f":"title577","v":"Phosphorous"},null,null,null,null,{"$f":"title593","v":"kg/year"}]
[null,{"$f":"title578","v":"Potassium"},null,null,null,null,{"$f":"title593","v":"kg/year"}]
[null,{"$f":"title579","v":"Manure"},null,null,null,null,{"$f":"title593","v":"kg/year"}]
[]
[null,{"$f":"title77","v":"Sources:"}]
[]
[null,{"$f":"title630","v":"1.5       Other costs for industrial processes (average percentage)"}]
[]
[null,{"$f":"title631","v":"Transport (Biodiesel and Ethanol)"}]
[null,{"$f":"title632","v":"Typical plant overhead in liquid biofuel factories[1]"},null,null,null,null,"%",null,null,{"$f":"title81","v":"Notes:"}]
[null,{"$f":"title633","v":"Typical maintenance cost in liquid biofuel factories[2]"},null,null,null,null,"%",null,null,{"$f":"title666","v":"[1]Plant overhead is defined as a percentage of production costs used to pay for services, facilities, payroll overhead, etc."}]
[null,{"$f":"title634","v":"Typical general and administrative cost percentage in liquid biofuel factories[3]"},null,null,null,null,"%",null,null,{"$f":"title667","v":"[2]Maintenance includes the percentage of costs used to cover the maintenance cost of all equipment, including labor and materials."}]
[null,{"$f":"title853","v":"Miscellaneous cost - Labor (%)"},null,null,null,null,"%",null,null,{"$f":"title668","v":"[3]The general and administrative item comprises the percentage of cost to cover rents, insurances, managerial, administrative and executive salaries."}]
[null,{"$f":"title582","v":"Briquettes/Pellets"}]
[null,{"$f":"title635","v":"Typical plant overhead in briquettes/pellets factories[1]"},null,null,null,null,"%"]
[null,{"$f":"title636","v":"Typical maintenance cost in briquettes/pellets factories[2]"},null,null,null,null,"%"]
[null,{"$f":"title637","v":"Typical general and administrative cost percentage in briquettes/pellets factories[3]"},null,null,null,null,"%"]
[null,{"$f":"title584","v":"Charcoal"}]
[null,{"$f":"title638","v":"Typical plant overhead in biofuel factories[1]"},null,null,null,null,"%"]
[null,{"$f":"title639","v":"Typical maintenance cost in biofuel factories[2]"},null,null,null,null,"%"]
[null,{"$f":"title640","v":"Typical general and administrative cost percentage in charcoal factories[3]"},null,null,null,null,"%"]
[null,{"$f":"title169","v":"Miscellaneous"},null,null,null,null,"%"]
[null,{"$f":"title641","v":"SVO/Gasification/Combustion"}]
[null,{"$f":"title642","v":"Typical plant overhead in electricity plant[1]"},null,null,null,null,"%"]
[null,{"$f":"title643","v":"Typical maintenance cost in electricity plant[2]"},null,null,null,null,"%"]
[null,{"$f":"title644","v":"Typical general and administrative cost percentage in electricity plant[3]"},null,null,null,null,"%"]
[null,{"$f":"title853","v":"Miscellaneous cost - Labor (%)"},null,null,null,null,"%"]
[null,{"$f":"title645","v":"CHP (Cogeneration)"}]
[null,{"$f":"title646","v":"Typical plant overhead in CHP (cogeneration) plant[1]"},null,null,null,null,"%"]
[null,{"$f":"title647","v":"Typical maintenance cost in CHP (cogeneration) plant[2]"},null,null,null,null,"%"]
[null,{"$f":"title648","v":"Typical general and administrative cost percentage in CHP (cogeneration) plant[3]"},null,null,null,null,"%"]
[null,{"$f":"title853","v":"Miscellaneous cost - Labor (%)"},null,null,null,null,"%"]
[null,{"$f":"title649","v":"Biogas Industrial"}]
[null,{"$f":"title650","v":"Typical plant overhead in biogas industrial plant[1]"},null,null,null,null,"%"]
[null,{"$f":"title651","v":"Typical maintenance cost in biogas industrial  plant[2]"},null,null,null,null,"%"]
[null,{"$f":"title652","v":"Typical general and administrative cost percentage in biogas industrial  plant[3]"},null,null,null,null,"%"]
[null,{"$f":"title653","v":"Biogas Community"}]
[null,{"$f":"title654","v":"Typical maintenance cost for biogas production[1]"},null,null,null,null,"%"]
[null,{"$f":"title655","v":"Current electricity production in off-grid rural areas"}]
[null,{"$f":"title656","v":"Typical diesel generator capacity (kW)"},null,null,null,null,"kW"]
[null,{"$f":"title657","v":"Operating days per year"},null,null,null,null,{"$f":"title554","v":"days"}]
[null,{"$f":"title658","v":"Operating hours per day"},null,null,null,null,{"$f":"title662","v":"hours"}]
[null,{"$f":"title659","v":"Typical efficiency (%)"},null,null,null,null,"%"]
[null,{"$f":"title854","v":"Transportation cost of diesel (USD/t/km)"},null,null,null,null,"USD/t/km"]
[null,{"$f":"title855","v":"Operating and maintenance cost (USD/kWh)"},null,null,null,null,"USD/kWh"]
[null,{"$f":"title660","v":"Cost of diesel generator at selected capacity (USD)"},null,null,null,null,"USD"]
[null,{"$f":"title661","v":"Transportation distance from  the diesel fuel pump"},null,null,null,null,"km"]
[null,{"$f":"title77","v":"Sources:"}]
[]
[null,{"$f":"title257","v":"Disclaimer"}]
[null,{"$f":"title258","v":"FAO declines all responsibility for errors or deficiencies in the database or software or in the documentation accompanying it, for program maintenance and upgrading as well as for any damage that may arise from them. FAO also declines any responsibility for updating the data and assumes no responsibility for errors and omissions in the data provided. Users are, however, kindly asked to report any errors or deficiencies in this product to FAO. The choices of calculation made in this tool are those of the author(s) and do not necessarily reflect the views  and choices of the Food and Agriculture Organization of the United Nations."}]

{"sheet":"Crops","index":8,"n_rows":49,"n_cols":23,"rows_kept":49,"cut":false,"hidden":true,"merged":[[1,10,1,13],[1,14,1,15],[32,6,32,22]]}
[1,2,3,4,5,6,7,8,9,10,11,12,13,14,15,16,17]
["Code","Select a crop ",null,"Biodiesel","Ethanol",null,null,null,"Residues",null,"Residue : Product ratio",null,null,null,"Location",null,"Alternative uses"]
[1,"Barley",null,"jatropha","cassava",null,"Select a crop",null,"Crop","residue ","average","min","max","stdev"]
[2,"Cacao",null,"oil palm","maize",1,"barley",{"$f":"CONCATENATE(I4,J4)","v":"barleystraw"},"barley","straw",1.3494374999999998,0.95,1.75,0.27415440399209556,"field"]
[3,"Cassava",null,"rapeseed","sorghum",2,"cacao",{"$f":"CONCATENATE(I5,J5)","v":"cacaopods"},"cacao","pods",1.5,1,2,0.71,"field","processing "]
[4,"Coconut",null,"soybean","sugarbeet",3,"cassava","cassavastalk","cassava","stalk",0.1337909090909091,0.06,0.2,6.2066745597710415E-2,"field"]
[5,"Coffee",null,"sunflower","sugar cane ",4,"coconut","coconutfronds","coconut","fronds",0.47296779938330141,0.22500000000000001,0.95298602287166445,0.34333992717551631,"field"]
[6,"Cotton",null,null,null,5,"coffee","coconuthusk","coconut","husk",0.49,0.36199999999999999,0.84,0.18243354954612886,null,"processing ","fibers"]
[7,"Groundnut",null,"Coversion to bioenergy",null,6,"cotton","coconutshell","coconut","shell",0.39,0.12,0.7,0.24637099396371051,null,"processing ","charcoal, activated carbon"]
[8,"Jatropha",null,"Gasification",null,7,"groundnut","coffeehusk","coffee","husk",1.3191406250000002,0.15656249999999999,2.1,0.95400626523181775,null,"processing ","bioenergy; animal bedding (potentially poisenous)"]
[9,"Maize",null,"Briquettes",null,8,"maize","cottonhull","cotton","hull",0.26,0.26,0.26,0,null,"processing ","animal feed (cakes)"]
[10,"Millet",null,"Combustion",null,9,"millet","cottonstalk","cotton","stalk",3.4038571428571425,2.7549999999999999,4.25,0.47347241933203782,"field",null,"bioenergy"]
[11,"Oat",null,"Charcoal",null,10,"oat","groundnuthusk","groundnut","husk",0.4681818181818182,0.32300000000000001,0.67,0.12234362932479807,null,"processing ","cattle feed, carrier of incecticides, alpha cellulose, charcoal, activated carbon; pellets, briquettes"]
[12,"Oilpalm",null,null,null,11,"oilpalm","maizecob","maize","cob",0.33075335335335332,0.2,0.86,0.16066748249615412,null,"processing ","feed"]
[13,"Potato",null,null,null,12,"rice","maizehusk","maize","husk",0.22166666666666665,0.2,0.3,4.0207793606049667E-2,null,"processing ","feed"]
[14,"Rapeseed",null,null,null,13,"rye","maizestover","maize","stover",1.96,1,3.77,0.67]
[15,"Rice",null,null,null,14,"sorghum","milletstraw","millet","straw",2.54,1.4,4,0.81,"field","processing ","feed, mulch, thatching material for tranditional houses"]
[16,"Rye",null,null,null,15,"soybean","oatstraw","oat","straw",1.4226923076923075,1,2,0.33082356441044486,"field"]
[17,"Sorghum",null,null,null,16,"sugarcane",{"$f":"CONCATENATE(I19,J19)","v":"oilpalmempty bunches"},"oilpalm","empty bunches",0.31020000000000003,0.23,0.43,9.4695770174220928E-2,null,"processing"]
[18,"Soybean",null,null,null,17,"wheat","oilpalmfronds","oilpalm","fronds",2.6026666666666665,2.6,2.6040000000000001,2.3094010767585054E-3,"field"]
[19,"Sugarbeet",null,null,null,18,null,"oilpalmshell","oilpalm","shell",5.7499999999999996E-2,4.7E-2,7.4999999999999997E-2,1.0253919111386544E-2,null,"processing","constcution of roads, fuel (contains silicates which damage boilers)"]
[20,"Sugarcane",null,null,null,19,null,"ricestraw","rice","straw",1.3341666666666667,0.42,2.15,0.68069309401175393,"field",null,"bedding"]
[21,"Sunflower",null,null,null,20,null,"ricehusk","rice","husk",0.25,0.15,0.36,0.06,null,"processing"]
[22,"Tea",null,null,null,21,null,"ryestraw","rye","straw",1.61,1,2,0.37,"field",null,"bedding"]
[23,"Tobacco",null,null,null,22,null,"sorghumstraw/stalk","sorghum","straw/stalk",2.44,1,4.5999999999999996,0.97,null,null,"fuel, mat, hat, building materials, frame materials, barrier;"]
[24,"Wheat",null,null,null,23,null,"soybeanstraw","soybean","straw",1.53,1,2.5,0.83864970836060893,"field","processing","left on the soil"]
[25,"Yams",null,null,null,24,null,{"$f":"CONCATENATE(I27,J27)","v":"soybeanpods"},"soybean","pods",1.0900000000000001,0.9,1.3599999999999999,0.24193663082165406,"field","processing"]
[26,null,null,null,null,25,null,"sugarcanetops/leaves","sugarcane","tops/leaves",0.20030769230769233,0.05,0.30199999999999999,9.5024895523387748E-2,"field",null,"animal feed and bedding, only avaialble with machinery harvesting"]
[27,null,null,null,null,26,null,"sugarcanebaggase","sugarcane","baggase",0.2578571428571429,0.14099999999999999,0.4,7.3452085002461281E-2,null,"processing","feed, fertilizer"]
[null,null,null,null,null,27,null,"wheatstraw","wheat","straw",1.28,0.5,2,0.36,"field"]
[]
[]
[null,null,null,null,null,null,"CROP - RESIDUE COMBINATION LIST"]
[null,null,null,null,null,null,"barley","cacao","cassava","coconut","coffee","cotton","groundnut","maize","millet","oat","oilpalm","rice","rye","sorghum","soybean","sugarcane","wheat"]
[null,null,null,null,null,null,"straw","pods","stalk","fronds","husk","hull","husk","cob","straw","straw","empty bunches","straw","straw","straw/stalk","straw","tops/leaves","straw"]
[null,null,null,null,null,null,null,null,null,"husk",null,"stalk",null,"husk",null,null,"fronds","husk",null,null,"pods","baggase"]
[null,null,null,null,null,null,null,null,null,"shell",null,null,null,"stover",null,null,"shell"]
[]
[]
[]
[]
["Plantations"]
[null,"Species",null,"Management system",null,null,"Wood use"]
[1,"Acacia",null,"clear-felling and replanting ",null,null,"fuelwood"]
[2,"Eucalyptus",null,"short rotation coppice ",null,null,"charcoal production"]
[3,"Pinus",null,"pollarding ",null,null,"industrial roundwood"]
[4,"Populus",null,null,null,null,"second-generation biofuels"]
[5,"Salix",null,null,null,null,"combustion "]
[6,"Cunninghamia",null,null,null,null,"gasification"]